Workbook

Sheet методология
A1: Методология будет добавлена до 21 июня 2021г. Ожидайте

Sheet screen
A1: C
A2: I
A3: F | K3: =BD!$AK$1 -> исполнитель | L3: * | N3: ^ | O3: =IF(OR(M3="",M3=0),0,IF(COUNTIF(lists!$CP:$CP,M3)=1,0,1)) -> 0
A5: =IF($C$47="","",INDEX(BD!$AS:$AS,SUMIFS(BD!$A:$A,BD!$I:$I,1,BD!$L:$L,$C$47))) -> Зак | C5: =lists!$G$8 -> сокращ. название Заказчика | D5: * | F5: ^ | G5: =IF(OR(E5="",E5=0),0,IF(COUNTIF(lists!$G:$G,E5)=1,0,1)) -> 0 | I5: =BD!$O$1 -> статус Долга | K5: =INDEX(BD!$O:$O,SUMIFS(BD!$A:$A,BD!$I:$I,1,BD!$AS:$AS,$E$5,BD!$AT:$AT,$E$7,BD!$AV:$AV,$E$11,BD!$AW:$AW,$E$13)) -> Долга нет
E6: ="*"&E5&"*" -> **
A7: =IF($C$47="","",INDEX(BD!$AT:$AT,SUMIFS(BD!$A:$A,BD!$I:$I,1,BD!$L:$L,$C$47))) -> №2 | C7: =BD!$AT$1 -> № Договора | D7: * | I7: =BD!$P$1 -> статус ответственного за Долг | K7: =INDEX(BD!$P:$P,SUMIFS(BD!$A:$A,BD!$I:$I,1,BD!$AS:$AS,$E$5,BD!$AT:$AT,$E$7,BD!$AV:$AV,$E$11,BD!$AW:$AW,$E$13)) -> Нет задачи | R7: +7(985)201-6607
E8: ="*"&E7&"*" -> **
A9: =IF($C$47="","",INDEX(BD!$AU:$AU,SUMIFS(BD!$A:$A,BD!$I:$I,1,BD!$L:$L,$C$47))) -> 43723 | C9: =BD!$AU$1 -> дата Договора | D9: * | I9: =BD!$Q$1 -> статус просроченного Долга | K9: =INDEX(BD!$Q:$Q,SUMIFS(BD!$A:$A,BD!$I:$I,1,BD!$AS:$AS,$E$5,BD!$AT:$AT,$E$7,BD!$AV:$AV,$E$11,BD!$AW:$AW,$E$13)) -> нет статуса | M9: перевести Долг в следующий статус
A11: =IF($C$47="","",INDEX(BD!$AV:$AV,SUMIFS(BD!$A:$A,BD!$I:$I,1,BD!$L:$L,$C$47))) -> ТН | C11: =BD!$AV$1 -> Документ | D11: * | I11: =BD!$R$1 -> статус действия | K11: =INDEX(BD!$R:$R,SUMIFS(BD!$A:$A,BD!$I:$I,1,BD!$AS:$AS,$E$5,BD!$AT:$AT,$E$7,BD!$AV:$AV,$E$11,BD!$AW:$AW,$E$13)) -> нет действий | M11: =IF(K11=lists!$BT$13,"некуда переводить - неликвид",IF(K11=lists!$BT$12,lists!$BT$13,IF(K11=lists!$CK$15,lists!$BT$12,INDEX(lists!$CK$11:$CK$15,1+IF(OR(K11="",K11=0,K11="нет действий"),0,SUMIFS(lists!$BW$11:$BW$15,lists!$CK$11:$CK$15,K11)))))) -> коммуникация
E12: ="*"&E11&"*" -> **
A13: =IF($C$47="","",INDEX(BD!$AW:$AW,SUMIFS(BD!$A:$A,BD!$I:$I,1,BD!$L:$L,$C$47))) -> №5 | C13: =BD!$AW$1 -> № Документа | D13: * | I13: красная зона | K13: =SUMIFS(BD!$U:$U,BD!$I:$I,1,BD!$AS:$AS,$E$5,BD!$AT:$AT,$E$7,BD!$AV:$AV,$E$11,BD!$AW:$AW,$E$13)+SUMIFS(BD!$X:$X,BD!$I:$I,1,BD!$AS:$AS,$E$5,BD!$AT:$AT,$E$7,BD!$AV:$AV,$E$11,BD!$AW:$AW,$E$13)+SUMIFS(BD!$AA:$AA,BD!$I:$I,1,BD!$AS:$AS,$E$5,BD!$AT:$AT,$E$7,BD!$AV:$AV,$E$11,BD!$AW:$AW,$E$13)+SUMIFS(BD!$AD:$AD,BD!$I:$I,1,BD!$AS:$AS,$E$5,BD!$AT:$AT,$E$7,BD!$AV:$AV,$E$11,BD!$AW:$AW,$E$13)+SUMIFS(BD!$AG:$AG,BD!$I:$I,1,BD!$AS:$AS,$E$5,BD!$AT:$AT,$E$7,BD!$AV:$AV,$E$11,BD!$AW:$AW,$E$13) -> 0 | L13: * | N13: ^ | O13: =IF(OR(M13="",M13=0),0,IF(COUNTIF(lists!$CW:$CW,M13)=1,0,1)) -> 0
E14: ="*"&E13&"*" -> **
A15: =IF($C$47="","",INDEX(BD!$AX:$AX,SUMIFS(BD!$A:$A,BD!$I:$I,1,BD!$L:$L,$C$47))) -> 43740 | C15: =BD!$AX$1 -> дата Документа | D15: * | I15: =BD!$N$1 -> срок просрочки | K15: =SUMIFS(BD!$N:$N,BD!$I:$I,1,BD!$AS:$AS,$E$5,BD!$AT:$AT,$E$7,BD!$AV:$AV,$E$11,BD!$AW:$AW,$E$13) -> 0 | L15: f | M15: =IF(AND(M13=screen!$M$17,screen!$M$11=lists!$BT$12,screen!$M$13=lists!$CW$11),$AI15,IF(AND(M13=screen!$M$21,screen!$M$11=lists!$BT$13,screen!$M$13=lists!$CW$11),$AI15,IF(AND(M13=screen!$M$25,screen!$M$11=lists!$CK$11,screen!$M$13=lists!$CW$11),$AI15,IF(AND(M13=screen!$M$29,screen!$M$11=lists!$CK$12,screen!$M$13=lists!$CW$11),$AI15,IF(AND(M13=screen!$M$33,screen!$M$11=lists!$CK$13,screen!$M$13=lists!$CW$11),$AI15,IF(AND(M13=screen!$M$37,screen!$M$11=lists!$CK$14,screen!$M$13=lists!$CW$11),$AI15,IF(AND(M13=screen!$M$41,screen!$M$11=lists!$CK$15,screen!$M$13=lists!$CW$11),$AI15,M14))))))) -> 0
A17: =IF($C$47="","",INDEX(BD!$AY:$AY,SUMIFS(BD!$A:$A,BD!$I:$I,1,BD!$L:$L,$C$47))) -> 1000000 | C17: =BD!$AY$1 -> сумма отгрузки | D17: * | I17: =BD!$M$1 -> сумма Долга | K17: =SUMIFS(BD!$M:$M,BD!$I:$I,1,BD!$AS:$AS,$E$5,BD!$AT:$AT,$E$7,BD!$AV:$AV,$E$11,BD!$AW:$AW,$E$13) -> 0 | M17: =BD!$AL$1 -> дата перевода Долга в ответств. Юр
C19: соглас. даты оплаты: | E19: соглас. суммы оплаты: | I19: фактич. даты оплаты: | K19: фактич. суммы оплаты: | M19: =SUMIFS(BD!$AL:$AL,BD!$I:$I,1,BD!$AS:$AS,$E$5,BD!$AT:$AT,$E$7,BD!$AV:$AV,$E$11,BD!$AW:$AW,$E$13) -> 00:00:00 | N19: =IF($C$47="","",INDEX(BD!$AL:$AL,SUMIFS(BD!$A:$A,BD!$I:$I,1,BD!$L:$L,$C$47))) -> 0
A21: =IF($C$47="","",INDEX(BD!$AZ:$AZ,SUMIFS(BD!$A:$A,BD!$I:$I,1,BD!$L:$L,$C$47))) -> 43726 | B21: * | D21: * | F21: =IF($C$47="","",INDEX(BD!$BA:$BA,SUMIFS(BD!$A:$A,BD!$I:$I,1,BD!$L:$L,$C$47))) -> 300000 | G21: =IF($C$47="","",INDEX(BD!$BX:$BX,SUMIFS(BD!$A:$A,BD!$I:$I,1,BD!$L:$L,$C$47))) -> 43731 | H21: * | J21: * | L21: =IF($C$47="","",INDEX(BD!$BY:$BY,SUMIFS(BD!$A:$A,BD!$I:$I,1,BD!$L:$L,$C$47))) -> 400000 | M21: =BD!$AM$1 -> дата перевода Долга в ответств. ТОП
A23: =IF($C$47="","",INDEX(BD!$BB:$BB,SUMIFS(BD!$A:$A,BD!$I:$I,1,BD!$L:$L,$C$47))) -> 43739 | B23: * | D23: * | F23: =IF($C$47="","",INDEX(BD!$BC:$BC,SUMIFS(BD!$A:$A,BD!$I:$I,1,BD!$L:$L,$C$47))) -> 500000 | G23: =IF($C$47="","",INDEX(BD!$BZ:$BZ,SUMIFS(BD!$A:$A,BD!$I:$I,1,BD!$L:$L,$C$47))) -> 43741 | H23: * | J23: * | L23: =IF($C$47="","",INDEX(BD!$CA:$CA,SUMIFS(BD!$A:$A,BD!$I:$I,1,BD!$L:$L,$C$47))) -> 100000 | M23: =SUMIFS(BD!$AM:$AM,BD!$I:$I,1,BD!$AS:$AS,$E$5,BD!$AT:$AT,$E$7,BD!$AV:$AV,$E$11,BD!$AW:$AW,$E$13) -> 00:00:00 | N23: =IF($C$47="","",INDEX(BD!$AM:$AM,SUMIFS(BD!$A:$A,BD!$I:$I,1,BD!$L:$L,$C$47))) -> 0
A25: =IF($C$47="","",INDEX(BD!$BD:$BD,SUMIFS(BD!$A:$A,BD!$I:$I,1,BD!$L:$L,$C$47))) -> 43742 | B25: * | D25: * | F25: =IF($C$47="","",INDEX(BD!$BE:$BE,SUMIFS(BD!$A:$A,BD!$I:$I,1,BD!$L:$L,$C$47))) -> 200000 | G25: =IF($C$47="","",INDEX(BD!$CB:$CB,SUMIFS(BD!$A:$A,BD!$I:$I,1,BD!$L:$L,$C$47))) -> 43746 | H25: * | J25: * | L25: =IF($C$47="","",INDEX(BD!$CC:$CC,SUMIFS(BD!$A:$A,BD!$I:$I,1,BD!$L:$L,$C$47))) -> 500000 | M25: =BD!$AN$1 -> дата статуса-1 (коммуникация)
A27: =IF($C$47="","",INDEX(BD!$BF:$BF,SUMIFS(BD!$A:$A,BD!$I:$I,1,BD!$L:$L,$C$47))) -> 0 | B27: * | D27: * | F27: =IF($C$47="","",INDEX(BD!$BG:$BG,SUMIFS(BD!$A:$A,BD!$I:$I,1,BD!$L:$L,$C$47))) -> 0 | G27: =IF($C$47="","",INDEX(BD!$CD:$CD,SUMIFS(BD!$A:$A,BD!$I:$I,1,BD!$L:$L,$C$47))) -> 0 | H27: * | J27: * | L27: =IF($C$47="","",INDEX(BD!$CE:$CE,SUMIFS(BD!$A:$A,BD!$I:$I,1,BD!$L:$L,$C$47))) -> 0 | M27: =SUMIFS(BD!$AN:$AN,BD!$I:$I,1,BD!$AS:$AS,$E$5,BD!$AT:$AT,$E$7,BD!$AV:$AV,$E$11,BD!$AW:$AW,$E$13) -> 00:00:00 | N27: =IF($C$47="","",INDEX(BD!$AN:$AN,SUMIFS(BD!$A:$A,BD!$I:$I,1,BD!$L:$L,$C$47))) -> 43746.20269
A29: =IF($C$47="","",INDEX(BD!$BH:$BH,SUMIFS(BD!$A:$A,BD!$I:$I,1,BD!$L:$L,$C$47))) -> 0 | B29: * | D29: * | F29: =IF($C$47="","",INDEX(BD!$BI:$BI,SUMIFS(BD!$A:$A,BD!$I:$I,1,BD!$L:$L,$C$47))) -> 0 | G29: =IF($C$47="","",INDEX(BD!$CF:$CF,SUMIFS(BD!$A:$A,BD!$I:$I,1,BD!$L:$L,$C$47))) -> 0 | H29: * | J29: * | L29: =IF($C$47="","",INDEX(BD!$CG:$CG,SUMIFS(BD!$A:$A,BD!$I:$I,1,BD!$L:$L,$C$47))) -> 0 | M29: =BD!$AO$1 -> дата статуса-2 (график рассрочки)
A31: =IF($C$47="","",INDEX(BD!$BJ:$BJ,SUMIFS(BD!$A:$A,BD!$I:$I,1,BD!$L:$L,$C$47))) -> 0 | B31: * | D31: * | F31: =IF($C$47="","",INDEX(BD!$BK:$BK,SUMIFS(BD!$A:$A,BD!$I:$I,1,BD!$L:$L,$C$47))) -> 0 | G31: =IF($C$47="","",INDEX(BD!$CH:$CH,SUMIFS(BD!$A:$A,BD!$I:$I,1,BD!$L:$L,$C$47))) -> 0 | H31: * | J31: * | L31: =IF($C$47="","",INDEX(BD!$CI:$CI,SUMIFS(BD!$A:$A,BD!$I:$I,1,BD!$L:$L,$C$47))) -> 0 | M31: =SUMIFS(BD!$AO:$AO,BD!$I:$I,1,BD!$AS:$AS,$E$5,BD!$AT:$AT,$E$7,BD!$AV:$AV,$E$11,BD!$AW:$AW,$E$13) -> 00:00:00 | N31: =IF($C$47="","",INDEX(BD!$AO:$AO,SUMIFS(BD!$A:$A,BD!$I:$I,1,BD!$L:$L,$C$47))) -> 43746.20354
A33: =IF($C$47="","",INDEX(BD!$BL:$BL,SUMIFS(BD!$A:$A,BD!$I:$I,1,BD!$L:$L,$C$47))) -> 0 | B33: * | D33: * | F33: =IF($C$47="","",INDEX(BD!$BM:$BM,SUMIFS(BD!$A:$A,BD!$I:$I,1,BD!$L:$L,$C$47))) -> 0 | G33: =IF($C$47="","",INDEX(BD!$CJ:$CJ,SUMIFS(BD!$A:$A,BD!$I:$I,1,BD!$L:$L,$C$47))) -> 0 | H33: * | J33: * | L33: =IF($C$47="","",INDEX(BD!$CK:$CK,SUMIFS(BD!$A:$A,BD!$I:$I,1,BD!$L:$L,$C$47))) -> 0 | M33: =BD!$AP$1 -> дата статуса-3 (досудебная претензия)
A35: =IF($C$47="","",INDEX(BD!$BN:$BN,SUMIFS(BD!$A:$A,BD!$I:$I,1,BD!$L:$L,$C$47))) -> 0 | B35: * | D35: * | F35: =IF($C$47="","",INDEX(BD!$BO:$BO,SUMIFS(BD!$A:$A,BD!$I:$I,1,BD!$L:$L,$C$47))) -> 0 | G35: =IF($C$47="","",INDEX(BD!$CL:$CL,SUMIFS(BD!$A:$A,BD!$I:$I,1,BD!$L:$L,$C$47))) -> 0 | H35: * | J35: * | L35: =IF($C$47="","",INDEX(BD!$CM:$CM,SUMIFS(BD!$A:$A,BD!$I:$I,1,BD!$L:$L,$C$47))) -> 0 | M35: =SUMIFS(BD!$AP:$AP,BD!$I:$I,1,BD!$AS:$AS,$E$5,BD!$AT:$AT,$E$7,BD!$AV:$AV,$E$11,BD!$AW:$AW,$E$13) -> 00:00:00 | N35: =IF($C$47="","",INDEX(BD!$AP:$AP,SUMIFS(BD!$A:$A,BD!$I:$I,1,BD!$L:$L,$C$47))) -> 43746.20568
A37: =IF($C$47="","",INDEX(BD!$BP:$BP,SUMIFS(BD!$A:$A,BD!$I:$I,1,BD!$L:$L,$C$47))) -> 0 | B37: * | D37: * | F37: =IF($C$47="","",INDEX(BD!$BQ:$BQ,SUMIFS(BD!$A:$A,BD!$I:$I,1,BD!$L:$L,$C$47))) -> 0 | G37: =IF($C$47="","",INDEX(BD!$CN:$CN,SUMIFS(BD!$A:$A,BD!$I:$I,1,BD!$L:$L,$C$47))) -> 0 | H37: * | J37: * | L37: =IF($C$47="","",INDEX(BD!$CO:$CO,SUMIFS(BD!$A:$A,BD!$I:$I,1,BD!$L:$L,$C$47))) -> 0 | M37: =BD!$AQ$1 -> дата статуса-4 (ознакомление Должника с иском)
A39: =IF($C$47="","",INDEX(BD!$BR:$BR,SUMIFS(BD!$A:$A,BD!$I:$I,1,BD!$L:$L,$C$47))) -> 0 | B39: * | D39: * | F39: =IF($C$47="","",INDEX(BD!$BS:$BS,SUMIFS(BD!$A:$A,BD!$I:$I,1,BD!$L:$L,$C$47))) -> 0 | G39: =IF($C$47="","",INDEX(BD!$CP:$CP,SUMIFS(BD!$A:$A,BD!$I:$I,1,BD!$L:$L,$C$47))) -> 0 | H39: * | J39: * | L39: =IF($C$47="","",INDEX(BD!$CQ:$CQ,SUMIFS(BD!$A:$A,BD!$I:$I,1,BD!$L:$L,$C$47))) -> 0 | M39: =SUMIFS(BD!$AQ:$AQ,BD!$I:$I,1,BD!$AS:$AS,$E$5,BD!$AT:$AT,$E$7,BD!$AV:$AV,$E$11,BD!$AW:$AW,$E$13) -> 00:00:00 | N39: =IF($C$47="","",INDEX(BD!$AQ:$AQ,SUMIFS(BD!$A:$A,BD!$I:$I,1,BD!$L:$L,$C$47))) -> 43749.50487
A41: =IF($C$47="","",INDEX(BD!$BT:$BT,SUMIFS(BD!$A:$A,BD!$I:$I,1,BD!$L:$L,$C$47))) -> 0 | B41: * | D41: * | F41: =IF($C$47="","",INDEX(BD!$BU:$BU,SUMIFS(BD!$A:$A,BD!$I:$I,1,BD!$L:$L,$C$47))) -> 0 | G41: =IF($C$47="","",INDEX(BD!$CR:$CR,SUMIFS(BD!$A:$A,BD!$I:$I,1,BD!$L:$L,$C$47))) -> 0 | H41: * | J41: * | L41: =IF($C$47="","",INDEX(BD!$CS:$CS,SUMIFS(BD!$A:$A,BD!$I:$I,1,BD!$L:$L,$C$47))) -> 0 | M41: =BD!$AR$1 -> дата статуса-5 (иск в Суд)
A43: =IF($C$47="","",INDEX(BD!$BV:$BV,SUMIFS(BD!$A:$A,BD!$I:$I,1,BD!$L:$L,$C$47))) -> 0 | B43: * | D43: * | F43: =IF($C$47="","",INDEX(BD!$BW:$BW,SUMIFS(BD!$A:$A,BD!$I:$I,1,BD!$L:$L,$C$47))) -> 0 | G43: =IF($C$47="","",INDEX(BD!$CT:$CT,SUMIFS(BD!$A:$A,BD!$I:$I,1,BD!$L:$L,$C$47))) -> 0 | H43: * | J43: * | L43: =IF($C$47="","",INDEX(BD!$CU:$CU,SUMIFS(BD!$A:$A,BD!$I:$I,1,BD!$L:$L,$C$47))) -> 0 | M43: =SUMIFS(BD!$AR:$AR,BD!$I:$I,1,BD!$AS:$AS,$E$5,BD!$AT:$AT,$E$7,BD!$AV:$AV,$E$11,BD!$AW:$AW,$E$13) -> 00:00:00 | N43: =IF($C$47="","",INDEX(BD!$AR:$AR,SUMIFS(BD!$A:$A,BD!$I:$I,1,BD!$L:$L,$C$47))) -> 0
C45: =BD!$AH$1 -> контроль суммы | E45: =SUMIFS(BD!$AH:$AH,BD!$I:$I,1,BD!$AS:$AS,$E$5,BD!$AT:$AT,$E$7,BD!$AV:$AV,$E$11,BD!$AW:$AW,$E$13) -> 0 | K45: =BD!$P$1 -> статус ответственного за Долг | M45: =BD!$R$1 -> статус действия
B47: 1 | C47: =IF(SUMIFS(PvT!$A:$A,PvT!$B:$B,$B47)=0,"",INDEX(PvT!$C:$C,SUMIFS(PvT!$A:$A,PvT!$B:$B,$B47))) -> Зак / дог. №2 от 15.9.2019г. / ТН №5 от 2.10.2019г. / сумма отгр. 1000000 | K47: =IF($C47="","",INDEX(BD!$P:$P,SUMIFS(BD!$A:$A,BD!$I:$I,1,BD!$L:$L,$C47))) -> Нет задачи | M47: =IF($C47="","",INDEX(BD!$R:$R,SUMIFS(BD!$A:$A,BD!$I:$I,1,BD!$L:$L,$C47))) -> нет действий
B49: =MAX(B$46:B48)+1 -> 2 | C49: =IF(SUMIFS(PvT!$A:$A,PvT!$B:$B,$B49)=0,"",INDEX(PvT!$C:$C,SUMIFS(PvT!$A:$A,PvT!$B:$B,$B49))) -> Зак-2 / дог. №76-в от 23.9.2019г. / АКТ №786 от 1.10.2019г. / сумма отгр. 3000000 | K49: =IF($C49="","",INDEX(BD!$P:$P,SUMIFS(BD!$A:$A,BD!$I:$I,1,BD!$L:$L,$C49))) -> Долг брошенный | M49: =IF($C49="","",INDEX(BD!$R:$R,SUMIFS(BD!$A:$A,BD!$I:$I,1,BD!$L:$L,$C49))) -> досудебная претензия
B50: =MAX(B$46:B49)+1 -> 3 | C50: =IF(SUMIFS(PvT!$A:$A,PvT!$B:$B,$B50)=0,"",INDEX(PvT!$C:$C,SUMIFS(PvT!$A:$A,PvT!$B:$B,$B50))) -> Зак-2 / дог. №555 от 1.10.2019г. / ТН №777 от 1.10.2019г. / сумма отгр. 1000000 | K50: =IF($C50="","",INDEX(BD!$P:$P,SUMIFS(BD!$A:$A,BD!$I:$I,1,BD!$L:$L,$C50))) -> Нет задачи | M50: =IF($C50="","",INDEX(BD!$R:$R,SUMIFS(BD!$A:$A,BD!$I:$I,1,BD!$L:$L,$C50))) -> нет действий
B51: =MAX(B$46:B50)+1 -> 4 | C51: =IF(SUMIFS(PvT!$A:$A,PvT!$B:$B,$B51)=0,"",INDEX(PvT!$C:$C,SUMIFS(PvT!$A:$A,PvT!$B:$B,$B51))) -> зак-4 / дог. №444 от 1.10.2019г. / Акт №444/1 от 10.10.2019г. / сумма отгр. 1000000 | K51: =IF($C51="","",INDEX(BD!$P:$P,SUMIFS(BD!$A:$A,BD!$I:$I,1,BD!$L:$L,$C51))) -> Нет задачи | M51: =IF($C51="","",INDEX(BD!$R:$R,SUMIFS(BD!$A:$A,BD!$I:$I,1,BD!$L:$L,$C51))) -> нет действий
B52: =MAX(B$46:B51)+1 -> 5 | C52: =IF(SUMIFS(PvT!$A:$A,PvT!$B:$B,$B52)=0,"",INDEX(PvT!$C:$C,SUMIFS(PvT!$A:$A,PvT!$B:$B,$B52))) -> Зак / дог. №1172 от 4.10.2019г. / ТН №1172/тн от 10.10.2019г. / сумма отгр. 200000 | K52: =IF($C52="","",INDEX(BD!$P:$P,SUMIFS(BD!$A:$A,BD!$I:$I,1,BD!$L:$L,$C52))) -> Долг брошенный | M52: =IF($C52="","",INDEX(BD!$R:$R,SUMIFS(BD!$A:$A,BD!$I:$I,1,BD!$L:$L,$C52))) -> нет действий
B53: =MAX(B$46:B52)+1 -> 6 | C53: =IF(SUMIFS(PvT!$A:$A,PvT!$B:$B,$B53)=0,"",INDEX(PvT!$C:$C,SUMIFS(PvT!$A:$A,PvT!$B:$B,$B53))) -> Зак / дог. №1172 от 4.10.2019г. / ТН №1172/тн-2 от 23.10.2019г. / сумма отгр. 500000 | K53: =IF($C53="","",INDEX(BD!$P:$P,SUMIFS(BD!$A:$A,BD!$I:$I,1,BD!$L:$L,$C53))) -> Долг брошенный | M53: =IF($C53="","",INDEX(BD!$R:$R,SUMIFS(BD!$A:$A,BD!$I:$I,1,BD!$L:$L,$C53))) -> нет действий
B54: =MAX(B$46:B53)+1 -> 7 | C54: =IF(SUMIFS(PvT!$A:$A,PvT!$B:$B,$B54)=0,"",INDEX(PvT!$C:$C,SUMIFS(PvT!$A:$A,PvT!$B:$B,$B54))) -> зак-4 / дог. №8823 от 15.10.2019г. / АКТ №45 от 31.10.2019г. / сумма отгр. 1600000 | K54: =IF($C54="","",INDEX(BD!$P:$P,SUMIFS(BD!$A:$A,BD!$I:$I,1,BD!$L:$L,$C54))) -> Долг брошенный | M54: =IF($C54="","",INDEX(BD!$R:$R,SUMIFS(BD!$A:$A,BD!$I:$I,1,BD!$L:$L,$C54))) -> нет действий
B55: =MAX(B$46:B54)+1 -> 8 | C55: =IF(SUMIFS(PvT!$A:$A,PvT!$B:$B,$B55)=0,"",INDEX(PvT!$C:$C,SUMIFS(PvT!$A:$A,PvT!$B:$B,$B55))) -> зак-4 / дог. №12-3 от 1.10.2019г. / АКТ №12-3/акт от 12.10.2019г. / сумма отгр. 700000 | K55: =IF($C55="","",INDEX(BD!$P:$P,SUMIFS(BD!$A:$A,BD!$I:$I,1,BD!$L:$L,$C55))) -> Долг брошенный | M55: =IF($C55="","",INDEX(BD!$R:$R,SUMIFS(BD!$A:$A,BD!$I:$I,1,BD!$L:$L,$C55))) -> нет действий
B56: =MAX(B$46:B55)+1 -> 9 | C56: =IF(SUMIFS(PvT!$A:$A,PvT!$B:$B,$B56)=0,"",INDEX(PvT!$C:$C,SUMIFS(PvT!$A:$A,PvT!$B:$B,$B56))) ->  | K56: =IF($C56="","",INDEX(BD!$P:$P,SUMIFS(BD!$A:$A,BD!$I:$I,1,BD!$L:$L,$C56))) ->  | M56: =IF($C56="","",INDEX(BD!$R:$R,SUMIFS(BD!$A:$A,BD!$I:$I,1,BD!$L:$L,$C56))) -> 
B57: =MAX(B$46:B56)+1 -> 10 | C57: =IF(SUMIFS(PvT!$A:$A,PvT!$B:$B,$B57)=0,"",INDEX(PvT!$C:$C,SUMIFS(PvT!$A:$A,PvT!$B:$B,$B57))) ->  | K57: =IF($C57="","",INDEX(BD!$P:$P,SUMIFS(BD!$A:$A,BD!$I:$I,1,BD!$L:$L,$C57))) ->  | M57: =IF($C57="","",INDEX(BD!$R:$R,SUMIFS(BD!$A:$A,BD!$I:$I,1,BD!$L:$L,$C57))) -> 
B58: =MAX(B$46:B57)+1 -> 11 | C58: =IF(SUMIFS(PvT!$A:$A,PvT!$B:$B,$B58)=0,"",INDEX(PvT!$C:$C,SUMIFS(PvT!$A:$A,PvT!$B:$B,$B58))) ->  | K58: =IF($C58="","",INDEX(BD!$P:$P,SUMIFS(BD!$A:$A,BD!$I:$I,1,BD!$L:$L,$C58))) ->  | M58: =IF($C58="","",INDEX(BD!$R:$R,SUMIFS(BD!$A:$A,BD!$I:$I,1,BD!$L:$L,$C58))) -> 
B59: =MAX(B$46:B58)+1 -> 12 | C59: =IF(SUMIFS(PvT!$A:$A,PvT!$B:$B,$B59)=0,"",INDEX(PvT!$C:$C,SUMIFS(PvT!$A:$A,PvT!$B:$B,$B59))) ->  | K59: =IF($C59="","",INDEX(BD!$P:$P,SUMIFS(BD!$A:$A,BD!$I:$I,1,BD!$L:$L,$C59))) ->  | M59: =IF($C59="","",INDEX(BD!$R:$R,SUMIFS(BD!$A:$A,BD!$I:$I,1,BD!$L:$L,$C59))) -> 
B60: =MAX(B$46:B59)+1 -> 13 | C60: =IF(SUMIFS(PvT!$A:$A,PvT!$B:$B,$B60)=0,"",INDEX(PvT!$C:$C,SUMIFS(PvT!$A:$A,PvT!$B:$B,$B60))) ->  | K60: =IF($C60="","",INDEX(BD!$P:$P,SUMIFS(BD!$A:$A,BD!$I:$I,1,BD!$L:$L,$C60))) ->  | M60: =IF($C60="","",INDEX(BD!$R:$R,SUMIFS(BD!$A:$A,BD!$I:$I,1,BD!$L:$L,$C60))) -> 
B61: =MAX(B$46:B60)+1 -> 14 | C61: =IF(SUMIFS(PvT!$A:$A,PvT!$B:$B,$B61)=0,"",INDEX(PvT!$C:$C,SUMIFS(PvT!$A:$A,PvT!$B:$B,$B61))) ->  | K61: =IF($C61="","",INDEX(BD!$P:$P,SUMIFS(BD!$A:$A,BD!$I:$I,1,BD!$L:$L,$C61))) ->  | M61: =IF($C61="","",INDEX(BD!$R:$R,SUMIFS(BD!$A:$A,BD!$I:$I,1,BD!$L:$L,$C61))) -> 
B62: =MAX(B$46:B61)+1 -> 15 | C62: =IF(SUMIFS(PvT!$A:$A,PvT!$B:$B,$B62)=0,"",INDEX(PvT!$C:$C,SUMIFS(PvT!$A:$A,PvT!$B:$B,$B62))) ->  | K62: =IF($C62="","",INDEX(BD!$P:$P,SUMIFS(BD!$A:$A,BD!$I:$I,1,BD!$L:$L,$C62))) ->  | M62: =IF($C62="","",INDEX(BD!$R:$R,SUMIFS(BD!$A:$A,BD!$I:$I,1,BD!$L:$L,$C62))) -> 
B63: =MAX(B$46:B62)+1 -> 16 | C63: =IF(SUMIFS(PvT!$A:$A,PvT!$B:$B,$B63)=0,"",INDEX(PvT!$C:$C,SUMIFS(PvT!$A:$A,PvT!$B:$B,$B63))) ->  | K63: =IF($C63="","",INDEX(BD!$P:$P,SUMIFS(BD!$A:$A,BD!$I:$I,1,BD!$L:$L,$C63))) ->  | M63: =IF($C63="","",INDEX(BD!$R:$R,SUMIFS(BD!$A:$A,BD!$I:$I,1,BD!$L:$L,$C63))) -> 
B64: =MAX(B$46:B63)+1 -> 17 | C64: =IF(SUMIFS(PvT!$A:$A,PvT!$B:$B,$B64)=0,"",INDEX(PvT!$C:$C,SUMIFS(PvT!$A:$A,PvT!$B:$B,$B64))) ->  | K64: =IF($C64="","",INDEX(BD!$P:$P,SUMIFS(BD!$A:$A,BD!$I:$I,1,BD!$L:$L,$C64))) ->  | M64: =IF($C64="","",INDEX(BD!$R:$R,SUMIFS(BD!$A:$A,BD!$I:$I,1,BD!$L:$L,$C64))) -> 
B65: =MAX(B$46:B64)+1 -> 18 | C65: =IF(SUMIFS(PvT!$A:$A,PvT!$B:$B,$B65)=0,"",INDEX(PvT!$C:$C,SUMIFS(PvT!$A:$A,PvT!$B:$B,$B65))) ->  | K65: =IF($C65="","",INDEX(BD!$P:$P,SUMIFS(BD!$A:$A,BD!$I:$I,1,BD!$L:$L,$C65))) ->  | M65: =IF($C65="","",INDEX(BD!$R:$R,SUMIFS(BD!$A:$A,BD!$I:$I,1,BD!$L:$L,$C65))) -> 
B66: =MAX(B$46:B65)+1 -> 19 | C66: =IF(SUMIFS(PvT!$A:$A,PvT!$B:$B,$B66)=0,"",INDEX(PvT!$C:$C,SUMIFS(PvT!$A:$A,PvT!$B:$B,$B66))) ->  | K66: =IF($C66="","",INDEX(BD!$P:$P,SUMIFS(BD!$A:$A,BD!$I:$I,1,BD!$L:$L,$C66))) ->  | M66: =IF($C66="","",INDEX(BD!$R:$R,SUMIFS(BD!$A:$A,BD!$I:$I,1,BD!$L:$L,$C66))) -> 
B67: =MAX(B$46:B66)+1 -> 20 | C67: =IF(SUMIFS(PvT!$A:$A,PvT!$B:$B,$B67)=0,"",INDEX(PvT!$C:$C,SUMIFS(PvT!$A:$A,PvT!$B:$B,$B67))) ->  | K67: =IF($C67="","",INDEX(BD!$P:$P,SUMIFS(BD!$A:$A,BD!$I:$I,1,BD!$L:$L,$C67))) ->  | M67: =IF($C67="","",INDEX(BD!$R:$R,SUMIFS(BD!$A:$A,BD!$I:$I,1,BD!$L:$L,$C67))) -> 
B68: =MAX(B$46:B67)+1 -> 21 | C68: =IF(SUMIFS(PvT!$A:$A,PvT!$B:$B,$B68)=0,"",INDEX(PvT!$C:$C,SUMIFS(PvT!$A:$A,PvT!$B:$B,$B68))) ->  | K68: =IF($C68="","",INDEX(BD!$P:$P,SUMIFS(BD!$A:$A,BD!$I:$I,1,BD!$L:$L,$C68))) ->  | M68: =IF($C68="","",INDEX(BD!$R:$R,SUMIFS(BD!$A:$A,BD!$I:$I,1,BD!$L:$L,$C68))) -> 
B69: =MAX(B$46:B68)+1 -> 22 | C69: =IF(SUMIFS(PvT!$A:$A,PvT!$B:$B,$B69)=0,"",INDEX(PvT!$C:$C,SUMIFS(PvT!$A:$A,PvT!$B:$B,$B69))) ->  | K69: =IF($C69="","",INDEX(BD!$P:$P,SUMIFS(BD!$A:$A,BD!$I:$I,1,BD!$L:$L,$C69))) ->  | M69: =IF($C69="","",INDEX(BD!$R:$R,SUMIFS(BD!$A:$A,BD!$I:$I,1,BD!$L:$L,$C69))) -> 
B70: =MAX(B$46:B69)+1 -> 23 | C70: =IF(SUMIFS(PvT!$A:$A,PvT!$B:$B,$B70)=0,"",INDEX(PvT!$C:$C,SUMIFS(PvT!$A:$A,PvT!$B:$B,$B70))) ->  | K70: =IF($C70="","",INDEX(BD!$P:$P,SUMIFS(BD!$A:$A,BD!$I:$I,1,BD!$L:$L,$C70))) ->  | M70: =IF($C70="","",INDEX(BD!$R:$R,SUMIFS(BD!$A:$A,BD!$I:$I,1,BD!$L:$L,$C70))) -> 
B71: =MAX(B$46:B70)+1 -> 24 | C71: =IF(SUMIFS(PvT!$A:$A,PvT!$B:$B,$B71)=0,"",INDEX(PvT!$C:$C,SUMIFS(PvT!$A:$A,PvT!$B:$B,$B71))) ->  | K71: =IF($C71="","",INDEX(BD!$P:$P,SUMIFS(BD!$A:$A,BD!$I:$I,1,BD!$L:$L,$C71))) ->  | M71: =IF($C71="","",INDEX(BD!$R:$R,SUMIFS(BD!$A:$A,BD!$I:$I,1,BD!$L:$L,$C71))) -> 
B72: =MAX(B$46:B71)+1 -> 25 | C72: =IF(SUMIFS(PvT!$A:$A,PvT!$B:$B,$B72)=0,"",INDEX(PvT!$C:$C,SUMIFS(PvT!$A:$A,PvT!$B:$B,$B72))) ->  | K72: =IF($C72="","",INDEX(BD!$P:$P,SUMIFS(BD!$A:$A,BD!$I:$I,1,BD!$L:$L,$C72))) ->  | M72: =IF($C72="","",INDEX(BD!$R:$R,SUMIFS(BD!$A:$A,BD!$I:$I,1,BD!$L:$L,$C72))) -> 
B73: =MAX(B$46:B72)+1 -> 26 | C73: =IF(SUMIFS(PvT!$A:$A,PvT!$B:$B,$B73)=0,"",INDEX(PvT!$C:$C,SUMIFS(PvT!$A:$A,PvT!$B:$B,$B73))) ->  | K73: =IF($C73="","",INDEX(BD!$P:$P,SUMIFS(BD!$A:$A,BD!$I:$I,1,BD!$L:$L,$C73))) ->  | M73: =IF($C73="","",INDEX(BD!$R:$R,SUMIFS(BD!$A:$A,BD!$I:$I,1,BD!$L:$L,$C73))) -> 
B74: =MAX(B$46:B73)+1 -> 27 | C74: =IF(SUMIFS(PvT!$A:$A,PvT!$B:$B,$B74)=0,"",INDEX(PvT!$C:$C,SUMIFS(PvT!$A:$A,PvT!$B:$B,$B74))) ->  | K74: =IF($C74="","",INDEX(BD!$P:$P,SUMIFS(BD!$A:$A,BD!$I:$I,1,BD!$L:$L,$C74))) ->  | M74: =IF($C74="","",INDEX(BD!$R:$R,SUMIFS(BD!$A:$A,BD!$I:$I,1,BD!$L:$L,$C74))) -> 
B75: =MAX(B$46:B74)+1 -> 28 | C75: =IF(SUMIFS(PvT!$A:$A,PvT!$B:$B,$B75)=0,"",INDEX(PvT!$C:$C,SUMIFS(PvT!$A:$A,PvT!$B:$B,$B75))) ->  | K75: =IF($C75="","",INDEX(BD!$P:$P,SUMIFS(BD!$A:$A,BD!$I:$I,1,BD!$L:$L,$C75))) ->  | M75: =IF($C75="","",INDEX(BD!$R:$R,SUMIFS(BD!$A:$A,BD!$I:$I,1,BD!$L:$L,$C75))) -> 
B76: =MAX(B$46:B75)+1 -> 29 | C76: =IF(SUMIFS(PvT!$A:$A,PvT!$B:$B,$B76)=0,"",INDEX(PvT!$C:$C,SUMIFS(PvT!$A:$A,PvT!$B:$B,$B76))) ->  | K76: =IF($C76="","",INDEX(BD!$P:$P,SUMIFS(BD!$A:$A,BD!$I:$I,1,BD!$L:$L,$C76))) ->  | M76: =IF($C76="","",INDEX(BD!$R:$R,SUMIFS(BD!$A:$A,BD!$I:$I,1,BD!$L:$L,$C76))) -> 
B77: =MAX(B$46:B76)+1 -> 30 | C77: =IF(SUMIFS(PvT!$A:$A,PvT!$B:$B,$B77)=0,"",INDEX(PvT!$C:$C,SUMIFS(PvT!$A:$A,PvT!$B:$B,$B77))) ->  | K77: =IF($C77="","",INDEX(BD!$P:$P,SUMIFS(BD!$A:$A,BD!$I:$I,1,BD!$L:$L,$C77))) ->  | M77: =IF($C77="","",INDEX(BD!$R:$R,SUMIFS(BD!$A:$A,BD!$I:$I,1,BD!$L:$L,$C77))) -> 
B78: =MAX(B$46:B77)+1 -> 31 | C78: =IF(SUMIFS(PvT!$A:$A,PvT!$B:$B,$B78)=0,"",INDEX(PvT!$C:$C,SUMIFS(PvT!$A:$A,PvT!$B:$B,$B78))) ->  | K78: =IF($C78="","",INDEX(BD!$P:$P,SUMIFS(BD!$A:$A,BD!$I:$I,1,BD!$L:$L,$C78))) ->  | M78: =IF($C78="","",INDEX(BD!$R:$R,SUMIFS(BD!$A:$A,BD!$I:$I,1,BD!$L:$L,$C78))) -> 
B79: =MAX(B$46:B78)+1 -> 32 | C79: =IF(SUMIFS(PvT!$A:$A,PvT!$B:$B,$B79)=0,"",INDEX(PvT!$C:$C,SUMIFS(PvT!$A:$A,PvT!$B:$B,$B79))) ->  | K79: =IF($C79="","",INDEX(BD!$P:$P,SUMIFS(BD!$A:$A,BD!$I:$I,1,BD!$L:$L,$C79))) ->  | M79: =IF($C79="","",INDEX(BD!$R:$R,SUMIFS(BD!$A:$A,BD!$I:$I,1,BD!$L:$L,$C79))) -> 
B80: =MAX(B$46:B79)+1 -> 33 | C80: =IF(SUMIFS(PvT!$A:$A,PvT!$B:$B,$B80)=0,"",INDEX(PvT!$C:$C,SUMIFS(PvT!$A:$A,PvT!$B:$B,$B80))) ->  | K80: =IF($C80="","",INDEX(BD!$P:$P,SUMIFS(BD!$A:$A,BD!$I:$I,1,BD!$L:$L,$C80))) ->  | M80: =IF($C80="","",INDEX(BD!$R:$R,SUMIFS(BD!$A:$A,BD!$I:$I,1,BD!$L:$L,$C80))) -> 
B81: =MAX(B$46:B80)+1 -> 34 | C81: =IF(SUMIFS(PvT!$A:$A,PvT!$B:$B,$B81)=0,"",INDEX(PvT!$C:$C,SUMIFS(PvT!$A:$A,PvT!$B:$B,$B81))) ->  | K81: =IF($C81="","",INDEX(BD!$P:$P,SUMIFS(BD!$A:$A,BD!$I:$I,1,BD!$L:$L,$C81))) ->  | M81: =IF($C81="","",INDEX(BD!$R:$R,SUMIFS(BD!$A:$A,BD!$I:$I,1,BD!$L:$L,$C81))) -> 
B82: =MAX(B$46:B81)+1 -> 35 | C82: =IF(SUMIFS(PvT!$A:$A,PvT!$B:$B,$B82)=0,"",INDEX(PvT!$C:$C,SUMIFS(PvT!$A:$A,PvT!$B:$B,$B82))) ->  | K82: =IF($C82="","",INDEX(BD!$P:$P,SUMIFS(BD!$A:$A,BD!$I:$I,1,BD!$L:$L,$C82))) ->  | M82: =IF($C82="","",INDEX(BD!$R:$R,SUMIFS(BD!$A:$A,BD!$I:$I,1,BD!$L:$L,$C82))) -> 
B83: =MAX(B$46:B82)+1 -> 36 | C83: =IF(SUMIFS(PvT!$A:$A,PvT!$B:$B,$B83)=0,"",INDEX(PvT!$C:$C,SUMIFS(PvT!$A:$A,PvT!$B:$B,$B83))) ->  | K83: =IF($C83="","",INDEX(BD!$P:$P,SUMIFS(BD!$A:$A,BD!$I:$I,1,BD!$L:$L,$C83))) ->  | M83: =IF($C83="","",INDEX(BD!$R:$R,SUMIFS(BD!$A:$A,BD!$I:$I,1,BD!$L:$L,$C83))) -> 
B84: =MAX(B$46:B83)+1 -> 37 | C84: =IF(SUMIFS(PvT!$A:$A,PvT!$B:$B,$B84)=0,"",INDEX(PvT!$C:$C,SUMIFS(PvT!$A:$A,PvT!$B:$B,$B84))) ->  | K84: =IF($C84="","",INDEX(BD!$P:$P,SUMIFS(BD!$A:$A,BD!$I:$I,1,BD!$L:$L,$C84))) ->  | M84: =IF($C84="","",INDEX(BD!$R:$R,SUMIFS(BD!$A:$A,BD!$I:$I,1,BD!$L:$L,$C84))) -> 
B85: =MAX(B$46:B84)+1 -> 38 | C85: =IF(SUMIFS(PvT!$A:$A,PvT!$B:$B,$B85)=0,"",INDEX(PvT!$C:$C,SUMIFS(PvT!$A:$A,PvT!$B:$B,$B85))) ->  | K85: =IF($C85="","",INDEX(BD!$P:$P,SUMIFS(BD!$A:$A,BD!$I:$I,1,BD!$L:$L,$C85))) ->  | M85: =IF($C85="","",INDEX(BD!$R:$R,SUMIFS(BD!$A:$A,BD!$I:$I,1,BD!$L:$L,$C85))) -> 
B86: =MAX(B$46:B85)+1 -> 39 | C86: =IF(SUMIFS(PvT!$A:$A,PvT!$B:$B,$B86)=0,"",INDEX(PvT!$C:$C,SUMIFS(PvT!$A:$A,PvT!$B:$B,$B86))) ->  | K86: =IF($C86="","",INDEX(BD!$P:$P,SUMIFS(BD!$A:$A,BD!$I:$I,1,BD!$L:$L,$C86))) ->  | M86: =IF($C86="","",INDEX(BD!$R:$R,SUMIFS(BD!$A:$A,BD!$I:$I,1,BD!$L:$L,$C86))) -> 
B87: =MAX(B$46:B86)+1 -> 40 | C87: =IF(SUMIFS(PvT!$A:$A,PvT!$B:$B,$B87)=0,"",INDEX(PvT!$C:$C,SUMIFS(PvT!$A:$A,PvT!$B:$B,$B87))) ->  | K87: =IF($C87="","",INDEX(BD!$P:$P,SUMIFS(BD!$A:$A,BD!$I:$I,1,BD!$L:$L,$C87))) ->  | M87: =IF($C87="","",INDEX(BD!$R:$R,SUMIFS(BD!$A:$A,BD!$I:$I,1,BD!$L:$L,$C87))) -> 
B88: =MAX(B$46:B87)+1 -> 41 | C88: =IF(SUMIFS(PvT!$A:$A,PvT!$B:$B,$B88)=0,"",INDEX(PvT!$C:$C,SUMIFS(PvT!$A:$A,PvT!$B:$B,$B88))) ->  | K88: =IF($C88="","",INDEX(BD!$P:$P,SUMIFS(BD!$A:$A,BD!$I:$I,1,BD!$L:$L,$C88))) ->  | M88: =IF($C88="","",INDEX(BD!$R:$R,SUMIFS(BD!$A:$A,BD!$I:$I,1,BD!$L:$L,$C88))) -> 
B89: =MAX(B$46:B88)+1 -> 42 | C89: =IF(SUMIFS(PvT!$A:$A,PvT!$B:$B,$B89)=0,"",INDEX(PvT!$C:$C,SUMIFS(PvT!$A:$A,PvT!$B:$B,$B89))) ->  | K89: =IF($C89="","",INDEX(BD!$P:$P,SUMIFS(BD!$A:$A,BD!$I:$I,1,BD!$L:$L,$C89))) ->  | M89: =IF($C89="","",INDEX(BD!$R:$R,SUMIFS(BD!$A:$A,BD!$I:$I,1,BD!$L:$L,$C89))) -> 
B90: =MAX(B$46:B89)+1 -> 43 | C90: =IF(SUMIFS(PvT!$A:$A,PvT!$B:$B,$B90)=0,"",INDEX(PvT!$C:$C,SUMIFS(PvT!$A:$A,PvT!$B:$B,$B90))) ->  | K90: =IF($C90="","",INDEX(BD!$P:$P,SUMIFS(BD!$A:$A,BD!$I:$I,1,BD!$L:$L,$C90))) ->  | M90: =IF($C90="","",INDEX(BD!$R:$R,SUMIFS(BD!$A:$A,BD!$I:$I,1,BD!$L:$L,$C90))) -> 
B91: =MAX(B$46:B90)+1 -> 44 | C91: =IF(SUMIFS(PvT!$A:$A,PvT!$B:$B,$B91)=0,"",INDEX(PvT!$C:$C,SUMIFS(PvT!$A:$A,PvT!$B:$B,$B91))) ->  | K91: =IF($C91="","",INDEX(BD!$P:$P,SUMIFS(BD!$A:$A,BD!$I:$I,1,BD!$L:$L,$C91))) ->  | M91: =IF($C91="","",INDEX(BD!$R:$R,SUMIFS(BD!$A:$A,BD!$I:$I,1,BD!$L:$L,$C91))) -> 
B92: =MAX(B$46:B91)+1 -> 45 | C92: =IF(SUMIFS(PvT!$A:$A,PvT!$B:$B,$B92)=0,"",INDEX(PvT!$C:$C,SUMIFS(PvT!$A:$A,PvT!$B:$B,$B92))) ->  | K92: =IF($C92="","",INDEX(BD!$P:$P,SUMIFS(BD!$A:$A,BD!$I:$I,1,BD!$L:$L,$C92))) ->  | M92: =IF($C92="","",INDEX(BD!$R:$R,SUMIFS(BD!$A:$A,BD!$I:$I,1,BD!$L:$L,$C92))) -> 
B93: =MAX(B$46:B92)+1 -> 46 | C93: =IF(SUMIFS(PvT!$A:$A,PvT!$B:$B,$B93)=0,"",INDEX(PvT!$C:$C,SUMIFS(PvT!$A:$A,PvT!$B:$B,$B93))) ->  | K93: =IF($C93="","",INDEX(BD!$P:$P,SUMIFS(BD!$A:$A,BD!$I:$I,1,BD!$L:$L,$C93))) ->  | M93: =IF($C93="","",INDEX(BD!$R:$R,SUMIFS(BD!$A:$A,BD!$I:$I,1,BD!$L:$L,$C93))) -> 
B94: =MAX(B$46:B93)+1 -> 47 | C94: =IF(SUMIFS(PvT!$A:$A,PvT!$B:$B,$B94)=0,"",INDEX(PvT!$C:$C,SUMIFS(PvT!$A:$A,PvT!$B:$B,$B94))) ->  | K94: =IF($C94="","",INDEX(BD!$P:$P,SUMIFS(BD!$A:$A,BD!$I:$I,1,BD!$L:$L,$C94))) ->  | M94: =IF($C94="","",INDEX(BD!$R:$R,SUMIFS(BD!$A:$A,BD!$I:$I,1,BD!$L:$L,$C94))) -> 
B95: =MAX(B$46:B94)+1 -> 48 | C95: =IF(SUMIFS(PvT!$A:$A,PvT!$B:$B,$B95)=0,"",INDEX(PvT!$C:$C,SUMIFS(PvT!$A:$A,PvT!$B:$B,$B95))) ->  | K95: =IF($C95="","",INDEX(BD!$P:$P,SUMIFS(BD!$A:$A,BD!$I:$I,1,BD!$L:$L,$C95))) ->  | M95: =IF($C95="","",INDEX(BD!$R:$R,SUMIFS(BD!$A:$A,BD!$I:$I,1,BD!$L:$L,$C95))) -> 
B96: =MAX(B$46:B95)+1 -> 49 | C96: =IF(SUMIFS(PvT!$A:$A,PvT!$B:$B,$B96)=0,"",INDEX(PvT!$C:$C,SUMIFS(PvT!$A:$A,PvT!$B:$B,$B96))) ->  | K96: =IF($C96="","",INDEX(BD!$P:$P,SUMIFS(BD!$A:$A,BD!$I:$I,1,BD!$L:$L,$C96))) ->  | M96: =IF($C96="","",INDEX(BD!$R:$R,SUMIFS(BD!$A:$A,BD!$I:$I,1,BD!$L:$L,$C96))) -> 
B97: =MAX(B$46:B96)+1 -> 50 | C97: =IF(SUMIFS(PvT!$A:$A,PvT!$B:$B,$B97)=0,"",INDEX(PvT!$C:$C,SUMIFS(PvT!$A:$A,PvT!$B:$B,$B97))) ->  | K97: =IF($C97="","",INDEX(BD!$P:$P,SUMIFS(BD!$A:$A,BD!$I:$I,1,BD!$L:$L,$C97))) ->  | M97: =IF($C97="","",INDEX(BD!$R:$R,SUMIFS(BD!$A:$A,BD!$I:$I,1,BD!$L:$L,$C97))) -> 
B98: =MAX(B$46:B97)+1 -> 51 | C98: =IF(SUMIFS(PvT!$A:$A,PvT!$B:$B,$B98)=0,"",INDEX(PvT!$C:$C,SUMIFS(PvT!$A:$A,PvT!$B:$B,$B98))) ->  | K98: =IF($C98="","",INDEX(BD!$P:$P,SUMIFS(BD!$A:$A,BD!$I:$I,1,BD!$L:$L,$C98))) ->  | M98: =IF($C98="","",INDEX(BD!$R:$R,SUMIFS(BD!$A:$A,BD!$I:$I,1,BD!$L:$L,$C98))) -> 
B99: =MAX(B$46:B98)+1 -> 52 | C99: =IF(SUMIFS(PvT!$A:$A,PvT!$B:$B,$B99)=0,"",INDEX(PvT!$C:$C,SUMIFS(PvT!$A:$A,PvT!$B:$B,$B99))) ->  | K99: =IF($C99="","",INDEX(BD!$P:$P,SUMIFS(BD!$A:$A,BD!$I:$I,1,BD!$L:$L,$C99))) ->  | M99: =IF($C99="","",INDEX(BD!$R:$R,SUMIFS(BD!$A:$A,BD!$I:$I,1,BD!$L:$L,$C99))) -> 
B100: =MAX(B$46:B99)+1 -> 53 | C100: =IF(SUMIFS(PvT!$A:$A,PvT!$B:$B,$B100)=0,"",INDEX(PvT!$C:$C,SUMIFS(PvT!$A:$A,PvT!$B:$B,$B100))) ->  | K100: =IF($C100="","",INDEX(BD!$P:$P,SUMIFS(BD!$A:$A,BD!$I:$I,1,BD!$L:$L,$C100))) ->  | M100: =IF($C100="","",INDEX(BD!$R:$R,SUMIFS(BD!$A:$A,BD!$I:$I,1,BD!$L:$L,$C100))) -> 

Sheet BD
A1: №стр | B1: B | C1: C | D1: D | E1: E | F1: F | G1: G | H1: H | I1: Last | J1: ID | K1: 1 | L1: ID_Долг | M1: сумма Долга | N1: =lists!$CB$8 -> срок просрочки | O1: =lists!$BQ$8 -> статус Долга | P1: =lists!$BT$8 -> статус ответственного за Долг | Q1: =lists!$BY$8 -> статус просроченного Долга | R1: =lists!$CK$8 -> статус действия | S1: f-контроль-1 | T1: f-желтая зона-1 | U1: f-красная зона-1 | V1: f-контроль-2 | W1: f-желтая зона-2 | X1: f-красная зона-2 | Y1: f-контроль-3 | Z1: f-желтая зона-3 | AA1: f-красная зона-3 | AB1: f-контроль-4 | AC1: f-желтая зона-4 | AD1: f-красная зона-4 | AE1: f-контроль-5 | AF1: f-желтая зона-5 | AG1: f-красная зона-5 | AH1: контроль суммы | AI1: дата-время | AJ1: руководитель | AK1: исполнитель | AL1: дата перевода Долга в ответств. Юр | AM1: дата перевода Долга в ответств. ТОП | AN1: ="дата статуса-1 ("&lists!$CK$11&")" -> дата статуса-1 (коммуникация) | AO1: ="дата статуса-2 ("&lists!$CK$12&")" -> дата статуса-2 (график рассрочки) | AP1: ="дата статуса-3 ("&lists!$CK$13&")" -> дата статуса-3 (досудебная претензия) | AQ1: ="дата статуса-4 ("&lists!$CK$14&")" -> дата статуса-4 (ознакомление Должника с иском) | AR1: ="дата статуса-5 ("&lists!$CK$15&")" -> дата статуса-5 (иск в Суд) | AS1: =lists!G8 -> сокращ. название Заказчика | AT1: № Договора | AU1: дата Договора | AV1: Документ | AW1: № Документа | AX1: дата Документа | AY1: сумма отгрузки | AZ1: соглас. дата-1 | BA1: соглас. оплата-1 | BB1: соглас. дата-2 | BC1: соглас. оплата-2 | BD1: соглас. дата-3 | BE1: соглас. оплата-3 | BF1: соглас. дата-4 | BG1: соглас. оплата-4 | BH1: соглас. дата-5 | BI1: соглас. оплата-5 | BJ1: соглас. дата-6 | BK1: соглас. оплата-6 | BL1: соглас. дата-7 | BM1: соглас. оплата-7 | BN1: соглас. дата-8 | BO1: соглас. оплата-8 | BP1: соглас. дата-9 | BQ1: соглас. оплата-9 | BR1: соглас. дата-10 | BS1: соглас. оплата-10 | BT1: соглас. дата-11 | BU1: соглас. оплата-11 | BV1: соглас. дата-12 | BW1: соглас. оплата-12 | BX1: фактич. дата-1 | BY1: фактич. оплата-1 | BZ1: фактич. дата-2 | CA1: фактич. оплата-2 | CB1: фактич. дата-3 | CC1: фактич. оплата-3 | CD1: фактич. дата-4 | CE1: фактич. оплата-4 | CF1: фактич. дата-5 | CG1: фактич. оплата-5 | CH1: фактич. дата-6 | CI1: фактич. оплата-6 | CJ1: фактич. дата-7 | CK1: фактич. оплата-7 | CL1: фактич. дата-8 | CM1: фактич. оплата-8 | CN1: фактич. дата-9 | CO1: фактич. оплата-9 | CP1: фактич. дата-10 | CQ1: фактич. оплата-10 | CR1: фактич. дата-11 | CS1: фактич. оплата-11 | CT1: фактич. дата-12 | CU1: фактич. оплата-12 | CV1: =lists!J8 -> полн. наим. Заказчика | CW1: =lists!M8 -> кратк. наим. Заказчика | CX1: =lists!P8 -> ФИО ГД | CY1: =lists!S8 -> тел. | CZ1: =lists!V8 -> e-mail | DA1: =lists!Y8 -> ИНН | DB1: =lists!AB8 -> КПП | DC1: =lists!AE8 -> ОГРН | DD1: =lists!AH8 -> Адрес | DE1: =lists!AK8 -> р/сч | DF1: =lists!AN8 -> Банк | DG1: =lists!AQ8 -> корр/сч | DH1: =lists!AT8 -> БИК | DI1: =lists!AW8 -> Атриб-15 | DJ1: =lists!AZ8 -> Атриб-16 | DK1: =lists!BC8 -> Атриб-17 | DL1: =lists!BF8 -> Атриб-18 | DM1: =lists!BI8 -> Атриб-19 | DN1: =lists!BL8 -> Атриб-20
A2: =ROW() -> 2 | I2: =IF(SUMIFS(INDIRECT("K$1:K"&A2-1),INDIRECT("AS$1:AS"&A2-1),AS2,INDIRECT("AT$1:AT"&A2-1),AT2,INDIRECT("AV$1:AV"&A2-1),AV2,INDIRECT("AW$1:AW"&A2-1),AW2)=0,1,0) -> 1 | J2: =IF(SUMIFS(K2:K2,I2:I2,1,AS2:AS2,screen!$E$6,AT2:AT2,screen!$E$8,AV2:AV2,screen!$E$12,AW2:AW2,screen!$E$14)=0,"",1) ->  | K2: =1 -> 1 | L2: =AS2&" / дог. "&AT2&" от "&DAY(AU2)&"."&MONTH(AU2)&"."&YEAR(AU2)&"г. / "&AV2&" "&AW2&" от "&DAY(AX2)&"."&MONTH(AX2)&"."&YEAR(AX2)&"г. / сумма отгр. "&AY2 -> 0 / дог. 0 от 0.1.1900г. / 0 0 от 0.1.1900г. / сумма отгр. 0 | M2: =IF(IF(AY2="",0,AY2)-SUMIFS(BX2:CU2,BX$1:CU$1,"фактич. оплата"&"*")>0,IF(AY2="",0,AY2)-SUMIFS(BX2:CU2,BX$1:CU$1,"фактич. оплата"&"*"),0) -> 0 | N2: =IF(IF(M2=0,0,IF(AY2=0,0,((BX2-AX2)*BY2+(BZ2-AX2)*CA2+(CB2-AX2)*CC2+(CD2-AX2)*CE2+(CF2-AX2)*CG2+(CH2-AX2)*CI2+(CJ2-AX2)*CK2+(CL2-AX2)*CM2+(CN2-AX2)*CO2+(CP2-AX2)*CQ2+(CR2-AX2)*CS2+(CT2-AX2)*CU2+($AI$2-AX2)*M2)/AY2)-IF(AY2=0,0,((AZ2-AX2)*BA2+(BB2-AX2)*BC2+(BD2-AX2)*BE2+(BF2-AX2)*BG2+(BH2-AX2)*BI2+(BJ2-AX2)*BK2+(BL2-AX2)*BM2+(BN2-AX2)*BO2+(BP2-AX2)*BQ2+(BR2-AX2)*BS2+(BT2-AX2)*BU2+(AX2-AX2)*BW2)/AY2))<=0,0,IF(M2=0,0,IF(AY2=0,0,((BX2-AX2)*BY2+(BZ2-AX2)*CA2+(CB2-AX2)*CC2+(CD2-AX2)*CE2+(CF2-AX2)*CG2+(CH2-AX2)*CI2+(CJ2-AX2)*CK2+(CL2-AX2)*CM2+(CN2-AX2)*CO2+(CP2-AX2)*CQ2+(CR2-AX2)*CS2+(CT2-AX2)*CU2+($AI$2-AX2)*M2)/AY2)-IF(AY2=0,0,((AZ2-AX2)*BA2+(BB2-AX2)*BC2+(BD2-AX2)*BE2+(BF2-AX2)*BG2+(BH2-AX2)*BI2+(BJ2-AX2)*BK2+(BL2-AX2)*BM2+(BN2-AX2)*BO2+(BP2-AX2)*BQ2+(BR2-AX2)*BS2+(BT2-AX2)*BU2+(AX2-AX2)*BW2)/AY2))) -> 0 | O2: =IF(M2=0,lists!$BQ$11,IF(N2<1,lists!$BQ$12,IF(M2<=conditions!$J$10,lists!$BQ$13,lists!$BQ$14))) -> Долга нет | P2: =IF(O2<>lists!$BQ$14,lists!$BT$11,IF(AND(AL2<>"",AL2<>0,AL2>IF(AM2="",0,AM2)),lists!$BT$12,IF(AND(AM2<>"",AM2<>0,AM2>=IF(AL2="",0,AL2)),lists!$BT$13,IF(IF(OR(AN2="",AN2=0),1,0)*U2+IF(OR(AO2="",AO2=0),1,0)*X2+IF(OR(AP2="",AP2=0),1,0)*AA2+IF(OR(AQ2="",AQ2=0),1,0)*AD2+IF(OR(AR2="",AR2=0),1,0)*AG2>0,lists!$BT$14,lists!$BT$15)))) -> Нет задачи | Q2: =IF(O2<>lists!$BQ$14,"нет статуса",IF(BD!N2<=lists!$CB$11,lists!$BY$11,IF(BD!N2<=lists!$CB$12,lists!$BY$12,IF(BD!N2<=lists!$CB$13,lists!$BY$13,IF(BD!N2<=lists!$CB$14,lists!$BY$14,lists!$BY$15))))) -> нет статуса | R2: =IF(Q2="нет статуса","нет действий",IF(AND(Q2=lists!$BY$11,AI2-N2>=AN2),"нет действий",IF(AND(Q2=lists!$BY$11,AI2-N2<AN2),lists!$CK$11,IF(AND(AR2<>0,AR2<>""),lists!$CK$15,IF(AND(AQ2<>0,AQ2<>""),lists!$CK$14,IF(AND(AP2<>0,AP2<>""),lists!$CK$13,IF(AND(AO2<>0,AO2<>""),lists!$CK$12,IF(AND(AN2<>0,AN2<>""),lists!$CK$11,"нет действий")))))))) -> нет действий | S2: =IF(OR(AN2="",AN2=0),0,IF(AN2<$AI$2-N2,1,0)) -> 0 | T2: =IF(OR(AN2="",AN2=0),IF(AND(N2>lists!$CE$11,N2<=lists!$CH$11),N2-lists!$CE$11,0),IF(AND(AN2-($AI$2-N2)>lists!$CE$11,AN2-($AI$2-N2)<=lists!$CH$11),AN2-($AI$2-N2)-lists!$CE$11,0)) -> 0 | U2: =IF(OR(AN2="",AN2=0),IF(N2>lists!$CH$11,N2-lists!$CH$11,0),IF(AN2-($AI$2-N2)>lists!$CH$11,AN2-($AI$2-N2)-lists!$CH$11,0)) -> 0 | V2: =IF(OR(AO2="",AO2=0),0,IF(AO2<$AI$2-N2+lists!$CB$11,1,0)) -> 0 | W2: =IF(OR(AO2="",AO2=0),IF(AND(N2-lists!$CB$11>lists!$CE$12,N2-lists!$CB$11<=lists!$CH$12),N2-lists!$CB$11-lists!$CE$12,0),IF(AND(AO2-($AI$2-N2)-lists!$CB$11>lists!$CE$12,AO2-($AI$2-N2)-lists!$CB$11<=lists!$CH$12),AO2-($AI$2-N2)-lists!$CB$11-lists!$CE$12,0)) -> 0 | X2: =IF(OR(AO2="",AO2=0),IF(N2-lists!CB11>lists!$CH$12,N2-lists!CB11-lists!$CH$12,0),IF(AO2-($AI$2-N2)-lists!CB11>lists!$CH$12,AO2-($AI$2-N2)-lists!CB11-lists!$CH$12,0)) -> 0 | Y2: =IF(OR(AP2="",AP2=0),0,IF(AP2<$AI$2-N2+lists!$CB$11+lists!$CB$12,1,0)) -> 0 | Z2: =IF(OR(AP2="",AP2=0),IF(AND(N2-lists!$CB$11-lists!$CB$12>lists!$CE$13,N2-lists!$CB$11-lists!$CB$12<=lists!$CH$13),N2-lists!$CB$11-lists!$CB$12-lists!$CE$13,0),IF(AND(AP2-($AI$2-N2)-lists!$CB$11-lists!$CB$12>lists!$CE$13,AP2-($AI$2-N2)-lists!$CB$11-lists!$CB$12<=lists!$CH$13),AP2-($AI$2-N2)-lists!$CB$11-lists!$CB$12-lists!$CE$13,0)) -> 0 | AA2: =IF(OR(AP2="",AP2=0),IF(N2-lists!CB11-lists!CB12>lists!$CH$13,N2-lists!CB11-lists!CB12-lists!$CH$13,0),IF(AP2-($AI$2-N2)-lists!CB11-lists!CB12>lists!$CH$13,AP2-($AI$2-N2)-lists!CB11-lists!CB12-lists!$CH$13,0)) -> 0 | AB2: =IF(OR(AQ2="",AQ2=0),0,IF(AQ2<$AI$2-N2+lists!$CB$11+lists!$CB$12+lists!$CB$13,1,0)) -> 0 | AC2: =IF(OR(AQ2="",AQ2=0),IF(AND(N2-lists!$CB$11-lists!$CB$12-lists!$CB$13>lists!$CE$14,N2-lists!$CB$11-lists!$CB$12-lists!$CB$13<=lists!$CH$14),N2-lists!$CB$11-lists!$CB$12-lists!$CB$13-lists!$CE$14,0),IF(AND(AQ2-($AI$2-N2)-lists!$CB$11-lists!$CB$12-lists!$CB$13>lists!$CE$14,AQ2-($AI$2-N2)-lists!$CB$11-lists!$CB$12-lists!$CB$13<=lists!$CH$14),AQ2-($AI$2-N2)-lists!$CB$11-lists!$CB$12-lists!$CB$13-lists!$CE$14,0)) -> 0 | AD2: =IF(OR(AQ2="",AQ2=0),IF(N2-lists!CB11-lists!CB12-lists!CB13>lists!$CH$14,N2-lists!CB11-lists!CB12-lists!CB13-lists!$CH$14,0),IF(AQ2-($AI$2-N2)-lists!CB11-lists!CB12-lists!CB13>lists!$CH$14,AQ2-($AI$2-N2)-lists!CB11-lists!CB12-lists!CB13-lists!$CH$14,0)) -> 0 | AE2: =IF(OR(AR2="",AR2=0),0,IF(AR2<$AI$2-N2+lists!$CB$11+lists!$CB$12+lists!$CB$13+lists!$CB$14,1,0)) -> 0 | AF2: =IF(OR(AR2="",AR2=0),IF(AND(N2-lists!$CB$11-lists!$CB$12-lists!$CB$13-lists!$CB$14>lists!$CE$15,N2-lists!$CB$11-lists!$CB$12-lists!$CB$13-lists!$CB$14<=lists!$CH$15),N2-lists!$CB$11-lists!$CB$12-lists!$CB$13-lists!$CB$14-lists!$CE$15,0),IF(AND(AR2-($AI$2-N2)-lists!$CB$11-lists!$CB$12-lists!$CB$13-lists!$CB$14>lists!$CE$15,AR2-($AI$2-N2)-lists!$CB$11-lists!$CB$12-lists!$CB$13-lists!$CB$14<=lists!$CH$15),AR2-($AI$2-N2)-lists!$CB$11-lists!$CB$12-lists!$CB$13-lists!$CB$14-lists!$CE$15,0)) -> 0 | AG2: =IF(OR(AR2="",AR2=0),IF(N2-lists!CB11-lists!CB12-lists!CB13-lists!CB14>lists!$CH$15,N2-lists!CB11-lists!CB12-lists!CB13-lists!CB14-lists!$CH$15,0),IF(AR2-($AI$2-N2)-lists!CB11-lists!CB12-lists!CB13-lists!CB14>lists!$CH$15,AR2-($AI$2-N2)-lists!CB11-lists!CB12-lists!CB13-lists!CB14-lists!$CH$15,0)) -> 0 | AH2: =SUMIFS(AZ2:BW2,AZ$1:BW$1,"соглас. оплата"&"*")-IF(AY2="",0,AY2) -> 0 | AI2: =NOW() -> 2021-06-01T12:50:43.510 | AK2: =screen!$M$3 -> 0 | AS2: =screen!$E$5 -> 0 | AT2: =screen!$E$7 -> 0 | AU2: =screen!$E$9 -> 00:00:00 | AV2: =screen!$E$11 -> 0 | AW2: =screen!$E$13 -> 0 | AX2: =screen!$E$15 -> 00:00:00 | AY2: =screen!$E$17 -> 0 | AZ2: =screen!$C$21 -> 00:00:00 | BA2: =screen!$E$21 -> 0 | BB2: =screen!$C$23 -> 00:00:00 | BC2: =screen!$E$23 -> 0 | BD2: =screen!$C$25 -> 00:00:00 | BE2: =screen!$E$25 -> 0 | BF2: =screen!$C$27 -> 00:00:00 | BG2: =screen!$E$27 -> 0 | BH2: =screen!$C$29 -> 00:00:00 | BI2: =screen!$E$29 -> 0 | BJ2: =screen!$C$31 -> 00:00:00 | BK2: =screen!$E$31 -> 0 | BL2: =screen!$C$33 -> 00:00:00 | BM2: =screen!$E$33 -> 0 | BN2: =screen!$C$35 -> 00:00:00 | BO2: =screen!$E$35 -> 0 | BP2: =screen!$C$37 -> 00:00:00 | BQ2: =screen!$E$37 -> 0 | BR2: =screen!$C$39 -> 00:00:00 | BS2: =screen!$E$39 -> 0 | BT2: =screen!$C$41 -> 00:00:00 | BU2: =screen!$E$41 -> 0 | BV2: =screen!$C$43 -> 00:00:00 | BW2: =screen!$E$43 -> 0 | BX2: =screen!$I$21 -> 00:00:00 | BY2: =screen!$K$21 -> 0 | BZ2: =screen!$I$23 -> 00:00:00 | CA2: =screen!$K$23 -> 0 | CB2: =screen!$I$25 -> 00:00:00 | CC2: =screen!$K$25 -> 0 | CD2: =screen!$I$27 -> 00:00:00 | CE2: =screen!$K$27 -> 0 | CF2: =screen!$I$29 -> 00:00:00 | CG2: =screen!$K$29 -> 0 | CH2: =screen!$I$31 -> 00:00:00 | CI2: =screen!$K$31 -> 0 | CJ2: =screen!$I$33 -> 00:00:00 | CK2: =screen!$K$33 -> 0 | CL2: =screen!$I$35 -> 00:00:00 | CM2: =screen!$K$35 -> 0 | CN2: =screen!$I$37 -> 00:00:00 | CO2: =screen!$K$37 -> 0 | CP2: =screen!$I$39 -> 00:00:00 | CQ2: =screen!$K$39 -> 0 | CR2: =screen!$I$41 -> 00:00:00 | CS2: =screen!$K$41 -> 0 | CT2: =screen!$I$43 -> 00:00:00 | CU2: =screen!$K$43 -> 0 | CV2: =INDEX(lists!$1:$1048576,SUMIFS(lists!$A:$A,lists!$G:$G,$AS2),SUMIFS(lists!$1:$1,lists!$8:$8,CV$1)) -> 0 | CW2: =INDEX(lists!$1:$1048576,SUMIFS(lists!$A:$A,lists!$G:$G,$AS2),SUMIFS(lists!$1:$1,lists!$8:$8,CW$1)) -> 0 | CX2: =INDEX(lists!$1:$1048576,SUMIFS(lists!$A:$A,lists!$G:$G,$AS2),SUMIFS(lists!$1:$1,lists!$8:$8,CX$1)) -> 0 | CY2: =INDEX(lists!$1:$1048576,SUMIFS(lists!$A:$A,lists!$G:$G,$AS2),SUMIFS(lists!$1:$1,lists!$8:$8,CY$1)) -> 0 | CZ2: =INDEX(lists!$1:$1048576,SUMIFS(lists!$A:$A,lists!$G:$G,$AS2),SUMIFS(lists!$1:$1,lists!$8:$8,CZ$1)) -> 0 | DA2: =INDEX(lists!$1:$1048576,SUMIFS(lists!$A:$A,lists!$G:$G,$AS2),SUMIFS(lists!$1:$1,lists!$8:$8,DA$1)) -> 0 | DB2: =INDEX(lists!$1:$1048576,SUMIFS(lists!$A:$A,lists!$G:$G,$AS2),SUMIFS(lists!$1:$1,lists!$8:$8,DB$1)) -> 0 | DC2: =INDEX(lists!$1:$1048576,SUMIFS(lists!$A:$A,lists!$G:$G,$AS2),SUMIFS(lists!$1:$1,lists!$8:$8,DC$1)) -> 0 | DD2: =INDEX(lists!$1:$1048576,SUMIFS(lists!$A:$A,lists!$G:$G,$AS2),SUMIFS(lists!$1:$1,lists!$8:$8,DD$1)) -> 0 | DE2: =INDEX(lists!$1:$1048576,SUMIFS(lists!$A:$A,lists!$G:$G,$AS2),SUMIFS(lists!$1:$1,lists!$8:$8,DE$1)) -> 0 | DF2: =INDEX(lists!$1:$1048576,SUMIFS(lists!$A:$A,lists!$G:$G,$AS2),SUMIFS(lists!$1:$1,lists!$8:$8,DF$1)) -> 0 | DG2: =INDEX(lists!$1:$1048576,SUMIFS(lists!$A:$A,lists!$G:$G,$AS2),SUMIFS(lists!$1:$1,lists!$8:$8,DG$1)) -> 0 | DH2: =INDEX(lists!$1:$1048576,SUMIFS(lists!$A:$A,lists!$G:$G,$AS2),SUMIFS(lists!$1:$1,lists!$8:$8,DH$1)) -> 0 | DI2: =INDEX(lists!$1:$1048576,SUMIFS(lists!$A:$A,lists!$G:$G,$AS2),SUMIFS(lists!$1:$1,lists!$8:$8,DI$1)) -> 0 | DJ2: =INDEX(lists!$1:$1048576,SUMIFS(lists!$A:$A,lists!$G:$G,$AS2),SUMIFS(lists!$1:$1,lists!$8:$8,DJ$1)) -> 0 | DK2: =INDEX(lists!$1:$1048576,SUMIFS(lists!$A:$A,lists!$G:$G,$AS2),SUMIFS(lists!$1:$1,lists!$8:$8,DK$1)) -> 0 | DL2: =INDEX(lists!$1:$1048576,SUMIFS(lists!$A:$A,lists!$G:$G,$AS2),SUMIFS(lists!$1:$1,lists!$8:$8,DL$1)) -> 0 | DM2: =INDEX(lists!$1:$1048576,SUMIFS(lists!$A:$A,lists!$G:$G,$AS2),SUMIFS(lists!$1:$1,lists!$8:$8,DM$1)) -> 0 | DN2: =INDEX(lists!$1:$1048576,SUMIFS(lists!$A:$A,lists!$G:$G,$AS2),SUMIFS(lists!$1:$1,lists!$8:$8,DN$1)) -> 0
A3: =ROW() -> 3 | I3: =IF(SUMIFS(INDIRECT("K$1:K"&A3-1),INDIRECT("AS$1:AS"&A3-1),AS3,INDIRECT("AT$1:AT"&A3-1),AT3,INDIRECT("AV$1:AV"&A3-1),AV3,INDIRECT("AW$1:AW"&A3-1),AW3)=0,1,0) -> 1 | J3: =IF(SUMIFS(K3:K3,I3:I3,1,AS3:AS3,screen!$E$6,AT3:AT3,screen!$E$8,AV3:AV3,screen!$E$12,AW3:AW3,screen!$E$14)=0,"",1) -> 1 | K3: =1 -> 1 | L3: =AS3&" / дог. "&AT3&" от "&DAY(AU3)&"."&MONTH(AU3)&"."&YEAR(AU3)&"г. / "&AV3&" "&AW3&" от "&DAY(AX3)&"."&MONTH(AX3)&"."&YEAR(AX3)&"г. / сумма отгр. "&AY3 -> зак-4 / дог. №12-3 от 1.10.2019г. / АКТ №12-3/акт от 12.10.2019г. / сумма отгр. 700000 | M3: =IF(IF(AY3="",0,AY3)-SUMIFS(BX3:CU3,BX$1:CU$1,"фактич. оплата"&"*")>0,IF(AY3="",0,AY3)-SUMIFS(BX3:CU3,BX$1:CU$1,"фактич. оплата"&"*"),0) -> 400000 | N3: =IF(IF(M3=0,0,IF(AY3=0,0,((BX3-AX3)*BY3+(BZ3-AX3)*CA3+(CB3-AX3)*CC3+(CD3-AX3)*CE3+(CF3-AX3)*CG3+(CH3-AX3)*CI3+(CJ3-AX3)*CK3+(CL3-AX3)*CM3+(CN3-AX3)*CO3+(CP3-AX3)*CQ3+(CR3-AX3)*CS3+(CT3-AX3)*CU3+($AI$2-AX3)*M3)/AY3)-IF(AY3=0,0,((AZ3-AX3)*BA3+(BB3-AX3)*BC3+(BD3-AX3)*BE3+(BF3-AX3)*BG3+(BH3-AX3)*BI3+(BJ3-AX3)*BK3+(BL3-AX3)*BM3+(BN3-AX3)*BO3+(BP3-AX3)*BQ3+(BR3-AX3)*BS3+(BT3-AX3)*BU3+(AX3-AX3)*BW3)/AY3))<=0,0,IF(M3=0,0,IF(AY3=0,0,((BX3-AX3)*BY3+(BZ3-AX3)*CA3+(CB3-AX3)*CC3+(CD3-AX3)*CE3+(CF3-AX3)*CG3+(CH3-AX3)*CI3+(CJ3-AX3)*CK3+(CL3-AX3)*CM3+(CN3-AX3)*CO3+(CP3-AX3)*CQ3+(CR3-AX3)*CS3+(CT3-AX3)*CU3+($AI$2-AX3)*M3)/AY3)-IF(AY3=0,0,((AZ3-AX3)*BA3+(BB3-AX3)*BC3+(BD3-AX3)*BE3+(BF3-AX3)*BG3+(BH3-AX3)*BI3+(BJ3-AX3)*BK3+(BL3-AX3)*BM3+(BN3-AX3)*BO3+(BP3-AX3)*BQ3+(BR3-AX3)*BS3+(BT3-AX3)*BU3+(AX3-AX3)*BW3)/AY3))) -> 342.020129 | O3: =IF(M3=0,lists!$BQ$11,IF(N3<1,lists!$BQ$12,IF(M3<=conditions!$J$10,lists!$BQ$13,lists!$BQ$14))) -> Долг просроченный | P3: =IF(O3<>lists!$BQ$14,lists!$BT$11,IF(AND(AL3<>"",AL3<>0,AL3>IF(AM3="",0,AM3)),lists!$BT$12,IF(AND(AM3<>"",AM3<>0,AM3>=IF(AL3="",0,AL3)),lists!$BT$13,IF(IF(OR(AN3="",AN3=0),1,0)*U3+IF(OR(AO3="",AO3=0),1,0)*X3+IF(OR(AP3="",AP3=0),1,0)*AA3+IF(OR(AQ3="",AQ3=0),1,0)*AD3+IF(OR(AR3="",AR3=0),1,0)*AG3>0,lists!$BT$14,lists!$BT$15)))) -> Долг брошенный | Q3: =IF(O3<>lists!$BQ$14,"нет статуса",IF(BD!N3<=lists!$CB$11,lists!$BY$11,IF(BD!N3<=lists!$CB$12,lists!$BY$12,IF(BD!N3<=lists!$CB$13,lists!$BY$13,IF(BD!N3<=lists!$CB$14,lists!$BY$14,lists!$BY$15))))) -> просрочка-100 | R3: =IF(Q3="нет статуса","нет действий",IF(AND(Q3=lists!$BY$11,AI3-N3>=AN3),"нет действий",IF(AND(Q3=lists!$BY$11,AI3-N3<AN3),lists!$CK$11,IF(AND(AR3<>0,AR3<>""),lists!$CK$15,IF(AND(AQ3<>0,AQ3<>""),lists!$CK$14,IF(AND(AP3<>0,AP3<>""),lists!$CK$13,IF(AND(AO3<>0,AO3<>""),lists!$CK$12,IF(AND(AN3<>0,AN3<>""),lists!$CK$11,"нет действий")))))))) -> нет действий | S3: =IF(OR(AN3="",AN3=0),0,IF(AN3<$AI$2-N3,1,0)) -> 0 | T3: =IF(OR(AN3="",AN3=0),IF(AND(N3>lists!$CE$11,N3<=lists!$CH$11),N3-lists!$CE$11,0),IF(AND(AN3-($AI$2-N3)>lists!$CE$11,AN3-($AI$2-N3)<=lists!$CH$11),AN3-($AI$2-N3)-lists!$CE$11,0)) -> 0 | U3: =IF(OR(AN3="",AN3=0),IF(N3>lists!$CH$11,N3-lists!$CH$11,0),IF(AN3-($AI$2-N3)>lists!$CH$11,AN3-($AI$2-N3)-lists!$CH$11,0)) -> 340.020129 | V3: =IF(OR(AO3="",AO3=0),0,IF(AO3<$AI$2-N3+lists!$CB$11,1,0)) -> 0 | W3: =IF(OR(AO3="",AO3=0),IF(AND(N3-lists!$CB$11>lists!$CE$12,N3-lists!$CB$11<=lists!$CH$12),N3-lists!$CB$11-lists!$CE$12,0),IF(AND(AO3-($AI$2-N3)-lists!$CB$11>lists!$CE$12,AO3-($AI$2-N3)-lists!$CB$11<=lists!$CH$12),AO3-($AI$2-N3)-lists!$CB$11-lists!$CE$12,0)) -> 0 | X3: =IF(OR(AO3="",AO3=0),IF(N3-lists!CB12>lists!$CH$12,N3-lists!CB12-lists!$CH$12,0),IF(AO3-($AI$2-N3)-lists!CB12>lists!$CH$12,AO3-($AI$2-N3)-lists!CB12-lists!$CH$12,0)) -> 328.020129 | Y3: =IF(OR(AP3="",AP3=0),0,IF(AP3<$AI$2-N3+lists!$CB$11+lists!$CB$12,1,0)) -> 0 | Z3: =IF(OR(AP3="",AP3=0),IF(AND(N3-lists!$CB$11-lists!$CB$12>lists!$CE$13,N3-lists!$CB$11-lists!$CB$12<=lists!$CH$13),N3-lists!$CB$11-lists!$CB$12-lists!$CE$13,0),IF(AND(AP3-($AI$2-N3)-lists!$CB$11-lists!$CB$12>lists!$CE$13,AP3-($AI$2-N3)-lists!$CB$11-lists!$CB$12<=lists!$CH$13),AP3-($AI$2-N3)-lists!$CB$11-lists!$CB$12-lists!$CE$13,0)) -> 0 | AA3: =IF(OR(AP3="",AP3=0),IF(N3-lists!CB12-lists!CB13>lists!$CH$13,N3-lists!CB12-lists!CB13-lists!$CH$13,0),IF(AP3-($AI$2-N3)-lists!CB12-lists!CB13>lists!$CH$13,AP3-($AI$2-N3)-lists!CB12-lists!CB13-lists!$CH$13,0)) -> 286.020129 | AB3: =IF(OR(AQ3="",AQ3=0),0,IF(AQ3<$AI$2-N3+lists!$CB$11+lists!$CB$12+lists!$CB$13,1,0)) -> 0 | AC3: =IF(OR(AQ3="",AQ3=0),IF(AND(N3-lists!$CB$11-lists!$CB$12-lists!$CB$13>lists!$CE$14,N3-lists!$CB$11-lists!$CB$12-lists!$CB$13<=lists!$CH$14),N3-lists!$CB$11-lists!$CB$12-lists!$CB$13-lists!$CE$14,0),IF(AND(AQ3-($AI$2-N3)-lists!$CB$11-lists!$CB$12-lists!$CB$13>lists!$CE$14,AQ3-($AI$2-N3)-lists!$CB$11-lists!$CB$12-lists!$CB$13<=lists!$CH$14),AQ3-($AI$2-N3)-lists!$CB$11-lists!$CB$12-lists!$CB$13-lists!$CE$14,0)) -> 0 | AD3: =IF(OR(AQ3="",AQ3=0),IF(N3-lists!CB12-lists!CB13-lists!CB14>lists!$CH$14,N3-lists!CB12-lists!CB13-lists!CB14-lists!$CH$14,0),IF(AQ3-($AI$2-N3)-lists!CB12-lists!CB13-lists!CB14>lists!$CH$14,AQ3-($AI$2-N3)-lists!CB12-lists!CB13-lists!CB14-lists!$CH$14,0)) -> 215.020129 | AE3: =IF(OR(AR3="",AR3=0),0,IF(AR3<$AI$2-N3+lists!$CB$11+lists!$CB$12+lists!$CB$13+lists!$CB$14,1,0)) -> 0 | AF3: =IF(OR(AR3="",AR3=0),IF(AND(N3-lists!$CB$11-lists!$CB$12-lists!$CB$13-lists!$CB$14>lists!$CE$15,N3-lists!$CB$11-lists!$CB$12-lists!$CB$13-lists!$CB$14<=lists!$CH$15),N3-lists!$CB$11-lists!$CB$12-lists!$CB$13-lists!$CB$14-lists!$CE$15,0),IF(AND(AR3-($AI$2-N3)-lists!$CB$11-lists!$CB$12-lists!$CB$13-lists!$CB$14>lists!$CE$15,AR3-($AI$2-N3)-lists!$CB$11-lists!$CB$12-lists!$CB$13-lists!$CB$14<=lists!$CH$15),AR3-($AI$2-N3)-lists!$CB$11-lists!$CB$12-lists!$CB$13-lists!$CB$14-lists!$CE$15,0)) -> 0 | AG3: =IF(OR(AR3="",AR3=0),IF(N3-lists!CB12-lists!CB13-lists!CB14-lists!CB15>lists!$CH$15,N3-lists!CB12-lists!CB13-lists!CB14-lists!CB15-lists!$CH$15,0),IF(AR3-($AI$2-N3)-lists!CB12-lists!CB13-lists!CB14-lists!CB15>lists!$CH$15,AR3-($AI$2-N3)-lists!CB12-lists!CB13-lists!CB14-lists!CB15-lists!$CH$15,0)) -> 118.020129 | AH3: =SUMIFS(AZ3:BW3,AZ$1:BW$1,"соглас. оплата"&"*")-IF(AY3="",0,AY3) -> 0 | AI3: 2019-10-17T12:49:57.090 | AK3: 0 | AL3: 00:00:00 | AM3: 00:00:00 | AN3: 00:00:00 | AO3: 00:00:00 | AP3: 00:00:00 | AQ3: 00:00:00 | AR3: 00:00:00 | AS3: зак-4 | AT3: №12-3 | AU3: 2019-10-01 | AV3: АКТ | AW3: №12-3/акт | AX3: 2019-10-12 | AY3: 700000 | AZ3: 2019-10-01 | BA3: 300000 | BB3: 2019-10-15 | BC3: 400000 | BD3: 00:00:00 | BE3: 0 | BF3: 00:00:00 | BG3: 0 | BH3: 00:00:00 | BI3: 0 | BJ3: 00:00:00 | BK3: 0 | BL3: 00:00:00 | BM3: 0 | BN3: 00:00:00 | BO3: 0 | BP3: 00:00:00 | BQ3: 0 | BR3: 00:00:00 | BS3: 0 | BT3: 00:00:00 | BU3: 0 | BV3: 00:00:00 | BW3: 0 | BX3: 2019-10-05 | BY3: 300000 | BZ3: 00:00:00 | CA3: 0 | CB3: 00:00:00 | CC3: 0 | CD3: 00:00:00 | CE3: 0 | CF3: 00:00:00 | CG3: 0 | CH3: 00:00:00 | CI3: 0 | CJ3: 00:00:00 | CK3: 0 | CL3: 00:00:00 | CM3: 0 | CN3: 00:00:00 | CO3: 0 | CP3: 00:00:00 | CQ3: 0 | CR3: 00:00:00 | CS3: 0 | CT3: 00:00:00 | CU3: 0 | CV3: ООО "Заказчик-4" | CW3: ООО "Зак-4" | CX3: Алексеев | CY3: 4654654 | CZ3: 4565465 | DA3: 34654654 | DB3: 65436435 | DC3: 46543654 | DD3: 23645 | DE3: 54443647 | DF3: 65437 | DG3: 5675 | DH3: 6756546 | DI3: ALL | DJ3: ALL | DK3: ALL | DL3: ALL | DM3: ALL | DN3: ALL
A4: =ROW() -> 4 | I4: =IF(SUMIFS(INDIRECT("K$1:K"&A4-1),INDIRECT("AS$1:AS"&A4-1),AS4,INDIRECT("AT$1:AT"&A4-1),AT4,INDIRECT("AV$1:AV"&A4-1),AV4,INDIRECT("AW$1:AW"&A4-1),AW4)=0,1,0) -> 1 | J4: =IF(SUMIFS(K4:K4,I4:I4,1,AS4:AS4,screen!$E$6,AT4:AT4,screen!$E$8,AV4:AV4,screen!$E$12,AW4:AW4,screen!$E$14)=0,"",1) -> 1 | K4: =1 -> 1 | L4: =AS4&" / дог. "&AT4&" от "&DAY(AU4)&"."&MONTH(AU4)&"."&YEAR(AU4)&"г. / "&AV4&" "&AW4&" от "&DAY(AX4)&"."&MONTH(AX4)&"."&YEAR(AX4)&"г. / сумма отгр. "&AY4 -> зак-4 / дог. №8823 от 15.10.2019г. / АКТ №45 от 31.10.2019г. / сумма отгр. 1600000 | M4: =IF(IF(AY4="",0,AY4)-SUMIFS(BX4:CU4,BX$1:CU$1,"фактич. оплата"&"*")>0,IF(AY4="",0,AY4)-SUMIFS(BX4:CU4,BX$1:CU$1,"фактич. оплата"&"*"),0) -> 1000000 | N4: =IF(IF(M4=0,0,IF(AY4=0,0,((BX4-AX4)*BY4+(BZ4-AX4)*CA4+(CB4-AX4)*CC4+(CD4-AX4)*CE4+(CF4-AX4)*CG4+(CH4-AX4)*CI4+(CJ4-AX4)*CK4+(CL4-AX4)*CM4+(CN4-AX4)*CO4+(CP4-AX4)*CQ4+(CR4-AX4)*CS4+(CT4-AX4)*CU4+($AI$2-AX4)*M4)/AY4)-IF(AY4=0,0,((AZ4-AX4)*BA4+(BB4-AX4)*BC4+(BD4-AX4)*BE4+(BF4-AX4)*BG4+(BH4-AX4)*BI4+(BJ4-AX4)*BK4+(BL4-AX4)*BM4+(BN4-AX4)*BO4+(BP4-AX4)*BQ4+(BR4-AX4)*BS4+(BT4-AX4)*BU4+(AX4-AX4)*BW4)/AY4))<=0,0,IF(M4=0,0,IF(AY4=0,0,((BX4-AX4)*BY4+(BZ4-AX4)*CA4+(CB4-AX4)*CC4+(CD4-AX4)*CE4+(CF4-AX4)*CG4+(CH4-AX4)*CI4+(CJ4-AX4)*CK4+(CL4-AX4)*CM4+(CN4-AX4)*CO4+(CP4-AX4)*CQ4+(CR4-AX4)*CS4+(CT4-AX4)*CU4+($AI$2-AX4)*M4)/AY4)-IF(AY4=0,0,((AZ4-AX4)*BA4+(BB4-AX4)*BC4+(BD4-AX4)*BE4+(BF4-AX4)*BG4+(BH4-AX4)*BI4+(BJ4-AX4)*BK4+(BL4-AX4)*BM4+(BN4-AX4)*BO4+(BP4-AX4)*BQ4+(BR4-AX4)*BS4+(BT4-AX4)*BU4+(AX4-AX4)*BW4)/AY4))) -> 357.5220161 | O4: =IF(M4=0,lists!$BQ$11,IF(N4<1,lists!$BQ$12,IF(M4<=conditions!$J$10,lists!$BQ$13,lists!$BQ$14))) -> Долг просроченный | P4: =IF(O4<>lists!$BQ$14,lists!$BT$11,IF(AND(AL4<>"",AL4<>0,AL4>IF(AM4="",0,AM4)),lists!$BT$12,IF(AND(AM4<>"",AM4<>0,AM4>=IF(AL4="",0,AL4)),lists!$BT$13,IF(IF(OR(AN4="",AN4=0),1,0)*U4+IF(OR(AO4="",AO4=0),1,0)*X4+IF(OR(AP4="",AP4=0),1,0)*AA4+IF(OR(AQ4="",AQ4=0),1,0)*AD4+IF(OR(AR4="",AR4=0),1,0)*AG4>0,lists!$BT$14,lists!$BT$15)))) -> Долг брошенный | Q4: =IF(O4<>lists!$BQ$14,"нет статуса",IF(BD!N4<=lists!$CB$11,lists!$BY$11,IF(BD!N4<=lists!$CB$12,lists!$BY$12,IF(BD!N4<=lists!$CB$13,lists!$BY$13,IF(BD!N4<=lists!$CB$14,lists!$BY$14,lists!$BY$15))))) -> просрочка-100 | R4: =IF(Q4="нет статуса","нет действий",IF(AND(Q4=lists!$BY$11,AI4-N4>=AN4),"нет действий",IF(AND(Q4=lists!$BY$11,AI4-N4<AN4),lists!$CK$11,IF(AND(AR4<>0,AR4<>""),lists!$CK$15,IF(AND(AQ4<>0,AQ4<>""),lists!$CK$14,IF(AND(AP4<>0,AP4<>""),lists!$CK$13,IF(AND(AO4<>0,AO4<>""),lists!$CK$12,IF(AND(AN4<>0,AN4<>""),lists!$CK$11,"нет действий")))))))) -> нет действий | S4: =IF(OR(AN4="",AN4=0),0,IF(AN4<$AI$2-N4,1,0)) -> 0 | T4: =IF(OR(AN4="",AN4=0),IF(AND(N4>lists!$CE$11,N4<=lists!$CH$11),N4-lists!$CE$11,0),IF(AND(AN4-($AI$2-N4)>lists!$CE$11,AN4-($AI$2-N4)<=lists!$CH$11),AN4-($AI$2-N4)-lists!$CE$11,0)) -> 0 | U4: =IF(OR(AN4="",AN4=0),IF(N4>lists!$CH$11,N4-lists!$CH$11,0),IF(AN4-($AI$2-N4)>lists!$CH$11,AN4-($AI$2-N4)-lists!$CH$11,0)) -> 355.5220161 | V4: =IF(OR(AO4="",AO4=0),0,IF(AO4<$AI$2-N4+lists!$CB$11,1,0)) -> 0 | W4: =IF(OR(AO4="",AO4=0),IF(AND(N4-lists!$CB$11>lists!$CE$12,N4-lists!$CB$11<=lists!$CH$12),N4-lists!$CB$11-lists!$CE$12,0),IF(AND(AO4-($AI$2-N4)-lists!$CB$11>lists!$CE$12,AO4-($AI$2-N4)-lists!$CB$11<=lists!$CH$12),AO4-($AI$2-N4)-lists!$CB$11-lists!$CE$12,0)) -> 0 | X4: =IF(OR(AO4="",AO4=0),IF(N4-lists!CB12>lists!$CH$12,N4-lists!CB12-lists!$CH$12,0),IF(AO4-($AI$2-N4)-lists!CB12>lists!$CH$12,AO4-($AI$2-N4)-lists!CB12-lists!$CH$12,0)) -> 343.5220161 | Y4: =IF(OR(AP4="",AP4=0),0,IF(AP4<$AI$2-N4+lists!$CB$11+lists!$CB$12,1,0)) -> 0 | Z4: =IF(OR(AP4="",AP4=0),IF(AND(N4-lists!$CB$11-lists!$CB$12>lists!$CE$13,N4-lists!$CB$11-lists!$CB$12<=lists!$CH$13),N4-lists!$CB$11-lists!$CB$12-lists!$CE$13,0),IF(AND(AP4-($AI$2-N4)-lists!$CB$11-lists!$CB$12>lists!$CE$13,AP4-($AI$2-N4)-lists!$CB$11-lists!$CB$12<=lists!$CH$13),AP4-($AI$2-N4)-lists!$CB$11-lists!$CB$12-lists!$CE$13,0)) -> 0 | AA4: =IF(OR(AP4="",AP4=0),IF(N4-lists!CB12-lists!CB13>lists!$CH$13,N4-lists!CB12-lists!CB13-lists!$CH$13,0),IF(AP4-($AI$2-N4)-lists!CB12-lists!CB13>lists!$CH$13,AP4-($AI$2-N4)-lists!CB12-lists!CB13-lists!$CH$13,0)) -> 301.5220161 | AB4: =IF(OR(AQ4="",AQ4=0),0,IF(AQ4<$AI$2-N4+lists!$CB$11+lists!$CB$12+lists!$CB$13,1,0)) -> 0 | AC4: =IF(OR(AQ4="",AQ4=0),IF(AND(N4-lists!$CB$11-lists!$CB$12-lists!$CB$13>lists!$CE$14,N4-lists!$CB$11-lists!$CB$12-lists!$CB$13<=lists!$CH$14),N4-lists!$CB$11-lists!$CB$12-lists!$CB$13-lists!$CE$14,0),IF(AND(AQ4-($AI$2-N4)-lists!$CB$11-lists!$CB$12-lists!$CB$13>lists!$CE$14,AQ4-($AI$2-N4)-lists!$CB$11-lists!$CB$12-lists!$CB$13<=lists!$CH$14),AQ4-($AI$2-N4)-lists!$CB$11-lists!$CB$12-lists!$CB$13-lists!$CE$14,0)) -> 0 | AD4: =IF(OR(AQ4="",AQ4=0),IF(N4-lists!CB12-lists!CB13-lists!CB14>lists!$CH$14,N4-lists!CB12-lists!CB13-lists!CB14-lists!$CH$14,0),IF(AQ4-($AI$2-N4)-lists!CB12-lists!CB13-lists!CB14>lists!$CH$14,AQ4-($AI$2-N4)-lists!CB12-lists!CB13-lists!CB14-lists!$CH$14,0)) -> 230.5220161 | AE4: =IF(OR(AR4="",AR4=0),0,IF(AR4<$AI$2-N4+lists!$CB$11+lists!$CB$12+lists!$CB$13+lists!$CB$14,1,0)) -> 0 | AF4: =IF(OR(AR4="",AR4=0),IF(AND(N4-lists!$CB$11-lists!$CB$12-lists!$CB$13-lists!$CB$14>lists!$CE$15,N4-lists!$CB$11-lists!$CB$12-lists!$CB$13-lists!$CB$14<=lists!$CH$15),N4-lists!$CB$11-lists!$CB$12-lists!$CB$13-lists!$CB$14-lists!$CE$15,0),IF(AND(AR4-($AI$2-N4)-lists!$CB$11-lists!$CB$12-lists!$CB$13-lists!$CB$14>lists!$CE$15,AR4-($AI$2-N4)-lists!$CB$11-lists!$CB$12-lists!$CB$13-lists!$CB$14<=lists!$CH$15),AR4-($AI$2-N4)-lists!$CB$11-lists!$CB$12-lists!$CB$13-lists!$CB$14-lists!$CE$15,0)) -> 0 | AG4: =IF(OR(AR4="",AR4=0),IF(N4-lists!CB12-lists!CB13-lists!CB14-lists!CB15>lists!$CH$15,N4-lists!CB12-lists!CB13-lists!CB14-lists!CB15-lists!$CH$15,0),IF(AR4-($AI$2-N4)-lists!CB12-lists!CB13-lists!CB14-lists!CB15>lists!$CH$15,AR4-($AI$2-N4)-lists!CB12-lists!CB13-lists!CB14-lists!CB15-lists!$CH$15,0)) -> 133.5220161 | AH4: =SUMIFS(AZ4:BW4,AZ$1:BW$1,"соглас. оплата"&"*")-IF(AY4="",0,AY4) -> 0 | AI4: 2019-10-17T12:41:47.880 | AK4: 0 | AL4: 00:00:00 | AM4: 00:00:00 | AN4: 00:00:00 | AO4: 00:00:00 | AP4: 00:00:00 | AQ4: 00:00:00 | AR4: 00:00:00 | AS4: зак-4 | AT4: №8823 | AU4: 2019-10-15 | AV4: АКТ | AW4: №45 | AX4: 2019-10-31 | AY4: 1600000 | AZ4: 2019-10-15 | BA4: 600000 | BB4: 2019-10-31 | BC4: 500000 | BD4: 2019-11-15 | BE4: 500000 | BF4: 00:00:00 | BG4: 0 | BH4: 00:00:00 | BI4: 0 | BJ4: 00:00:00 | BK4: 0 | BL4: 00:00:00 | BM4: 0 | BN4: 00:00:00 | BO4: 0 | BP4: 00:00:00 | BQ4: 0 | BR4: 00:00:00 | BS4: 0 | BT4: 00:00:00 | BU4: 0 | BV4: 00:00:00 | BW4: 0 | BX4: 2019-10-15 | BY4: 600000 | BZ4: 00:00:00 | CA4: 0 | CB4: 00:00:00 | CC4: 0 | CD4: 00:00:00 | CE4: 0 | CF4: 00:00:00 | CG4: 0 | CH4: 00:00:00 | CI4: 0 | CJ4: 00:00:00 | CK4: 0 | CL4: 00:00:00 | CM4: 0 | CN4: 00:00:00 | CO4: 0 | CP4: 00:00:00 | CQ4: 0 | CR4: 00:00:00 | CS4: 0 | CT4: 00:00:00 | CU4: 0 | CV4: ООО "Заказчик-4" | CW4: ООО "Зак-4" | CX4: Алексеев | CY4: 4654654 | CZ4: 4565465 | DA4: 34654654 | DB4: 65436435 | DC4: 46543654 | DD4: 23645 | DE4: 54443647 | DF4: 65437 | DG4: 5675 | DH4: 6756546 | DI4: ALL | DJ4: ALL | DK4: ALL | DL4: ALL | DM4: ALL | DN4: ALL
A5: =ROW() -> 5 | I5: =IF(SUMIFS(INDIRECT("K$1:K"&A5-1),INDIRECT("AS$1:AS"&A5-1),AS5,INDIRECT("AT$1:AT"&A5-1),AT5,INDIRECT("AV$1:AV"&A5-1),AV5,INDIRECT("AW$1:AW"&A5-1),AW5)=0,1,0) -> 1 | J5: =IF(SUMIFS(K5:K5,I5:I5,1,AS5:AS5,screen!$E$6,AT5:AT5,screen!$E$8,AV5:AV5,screen!$E$12,AW5:AW5,screen!$E$14)=0,"",1) -> 1 | K5: =1 -> 1 | L5: =AS5&" / дог. "&AT5&" от "&DAY(AU5)&"."&MONTH(AU5)&"."&YEAR(AU5)&"г. / "&AV5&" "&AW5&" от "&DAY(AX5)&"."&MONTH(AX5)&"."&YEAR(AX5)&"г. / сумма отгр. "&AY5 -> Зак / дог. №1172 от 4.10.2019г. / ТН №1172/тн-2 от 23.10.2019г. / сумма отгр. 500000 | M5: =IF(IF(AY5="",0,AY5)-SUMIFS(BX5:CU5,BX$1:CU$1,"фактич. оплата"&"*")>0,IF(AY5="",0,AY5)-SUMIFS(BX5:CU5,BX$1:CU$1,"фактич. оплата"&"*"),0) -> 300000 | N5: =IF(IF(M5=0,0,IF(AY5=0,0,((BX5-AX5)*BY5+(BZ5-AX5)*CA5+(CB5-AX5)*CC5+(CD5-AX5)*CE5+(CF5-AX5)*CG5+(CH5-AX5)*CI5+(CJ5-AX5)*CK5+(CL5-AX5)*CM5+(CN5-AX5)*CO5+(CP5-AX5)*CQ5+(CR5-AX5)*CS5+(CT5-AX5)*CU5+($AI$2-AX5)*M5)/AY5)-IF(AY5=0,0,((AZ5-AX5)*BA5+(BB5-AX5)*BC5+(BD5-AX5)*BE5+(BF5-AX5)*BG5+(BH5-AX5)*BI5+(BJ5-AX5)*BK5+(BL5-AX5)*BM5+(BN5-AX5)*BO5+(BP5-AX5)*BQ5+(BR5-AX5)*BS5+(BT5-AX5)*BU5+(AX5-AX5)*BW5)/AY5))<=0,0,IF(M5=0,0,IF(AY5=0,0,((BX5-AX5)*BY5+(BZ5-AX5)*CA5+(CB5-AX5)*CC5+(CD5-AX5)*CE5+(CF5-AX5)*CG5+(CH5-AX5)*CI5+(CJ5-AX5)*CK5+(CL5-AX5)*CM5+(CN5-AX5)*CO5+(CP5-AX5)*CQ5+(CR5-AX5)*CS5+(CT5-AX5)*CU5+($AI$2-AX5)*M5)/AY5)-IF(AY5=0,0,((AZ5-AX5)*BA5+(BB5-AX5)*BC5+(BD5-AX5)*BE5+(BF5-AX5)*BG5+(BH5-AX5)*BI5+(BJ5-AX5)*BK5+(BL5-AX5)*BM5+(BN5-AX5)*BO5+(BP5-AX5)*BQ5+(BR5-AX5)*BS5+(BT5-AX5)*BU5+(AX5-AX5)*BW5)/AY5))) -> 345.5211355 | O5: =IF(M5=0,lists!$BQ$11,IF(N5<1,lists!$BQ$12,IF(M5<=conditions!$J$10,lists!$BQ$13,lists!$BQ$14))) -> Долг просроченный | P5: =IF(O5<>lists!$BQ$14,lists!$BT$11,IF(AND(AL5<>"",AL5<>0,AL5>IF(AM5="",0,AM5)),lists!$BT$12,IF(AND(AM5<>"",AM5<>0,AM5>=IF(AL5="",0,AL5)),lists!$BT$13,IF(IF(OR(AN5="",AN5=0),1,0)*U5+IF(OR(AO5="",AO5=0),1,0)*X5+IF(OR(AP5="",AP5=0),1,0)*AA5+IF(OR(AQ5="",AQ5=0),1,0)*AD5+IF(OR(AR5="",AR5=0),1,0)*AG5>0,lists!$BT$14,lists!$BT$15)))) -> Долг брошенный | Q5: =IF(O5<>lists!$BQ$14,"нет статуса",IF(BD!N5<=lists!$CB$11,lists!$BY$11,IF(BD!N5<=lists!$CB$12,lists!$BY$12,IF(BD!N5<=lists!$CB$13,lists!$BY$13,IF(BD!N5<=lists!$CB$14,lists!$BY$14,lists!$BY$15))))) -> просрочка-100 | R5: =IF(Q5="нет статуса","нет действий",IF(AND(Q5=lists!$BY$11,AI5-N5>=AN5),"нет действий",IF(AND(Q5=lists!$BY$11,AI5-N5<AN5),lists!$CK$11,IF(AND(AR5<>0,AR5<>""),lists!$CK$15,IF(AND(AQ5<>0,AQ5<>""),lists!$CK$14,IF(AND(AP5<>0,AP5<>""),lists!$CK$13,IF(AND(AO5<>0,AO5<>""),lists!$CK$12,IF(AND(AN5<>0,AN5<>""),lists!$CK$11,"нет действий")))))))) -> нет действий | S5: =IF(OR(AN5="",AN5=0),0,IF(AN5<$AI$2-N5,1,0)) -> 0 | T5: =IF(OR(AN5="",AN5=0),IF(AND(N5>lists!$CE$11,N5<=lists!$CH$11),N5-lists!$CE$11,0),IF(AND(AN5-($AI$2-N5)>lists!$CE$11,AN5-($AI$2-N5)<=lists!$CH$11),AN5-($AI$2-N5)-lists!$CE$11,0)) -> 0 | U5: =IF(OR(AN5="",AN5=0),IF(N5>lists!$CH$11,N5-lists!$CH$11,0),IF(AN5-($AI$2-N5)>lists!$CH$11,AN5-($AI$2-N5)-lists!$CH$11,0)) -> 343.5211355 | V5: =IF(OR(AO5="",AO5=0),0,IF(AO5<$AI$2-N5+lists!$CB$11,1,0)) -> 0 | W5: =IF(OR(AO5="",AO5=0),IF(AND(N5-lists!$CB$11>lists!$CE$12,N5-lists!$CB$11<=lists!$CH$12),N5-lists!$CB$11-lists!$CE$12,0),IF(AND(AO5-($AI$2-N5)-lists!$CB$11>lists!$CE$12,AO5-($AI$2-N5)-lists!$CB$11<=lists!$CH$12),AO5-($AI$2-N5)-lists!$CB$11-lists!$CE$12,0)) -> 0 | X5: =IF(OR(AO5="",AO5=0),IF(N5-lists!CB12>lists!$CH$12,N5-lists!CB12-lists!$CH$12,0),IF(AO5-($AI$2-N5)-lists!CB12>lists!$CH$12,AO5-($AI$2-N5)-lists!CB12-lists!$CH$12,0)) -> 331.5211355 | Y5: =IF(OR(AP5="",AP5=0),0,IF(AP5<$AI$2-N5+lists!$CB$11+lists!$CB$12,1,0)) -> 0 | Z5: =IF(OR(AP5="",AP5=0),IF(AND(N5-lists!$CB$11-lists!$CB$12>lists!$CE$13,N5-lists!$CB$11-lists!$CB$12<=lists!$CH$13),N5-lists!$CB$11-lists!$CB$12-lists!$CE$13,0),IF(AND(AP5-($AI$2-N5)-lists!$CB$11-lists!$CB$12>lists!$CE$13,AP5-($AI$2-N5)-lists!$CB$11-lists!$CB$12<=lists!$CH$13),AP5-($AI$2-N5)-lists!$CB$11-lists!$CB$12-lists!$CE$13,0)) -> 0 | AA5: =IF(OR(AP5="",AP5=0),IF(N5-lists!CB12-lists!CB13>lists!$CH$13,N5-lists!CB12-lists!CB13-lists!$CH$13,0),IF(AP5-($AI$2-N5)-lists!CB12-lists!CB13>lists!$CH$13,AP5-($AI$2-N5)-lists!CB12-lists!CB13-lists!$CH$13,0)) -> 289.5211355 | AB5: =IF(OR(AQ5="",AQ5=0),0,IF(AQ5<$AI$2-N5+lists!$CB$11+lists!$CB$12+lists!$CB$13,1,0)) -> 0 | AC5: =IF(OR(AQ5="",AQ5=0),IF(AND(N5-lists!$CB$11-lists!$CB$12-lists!$CB$13>lists!$CE$14,N5-lists!$CB$11-lists!$CB$12-lists!$CB$13<=lists!$CH$14),N5-lists!$CB$11-lists!$CB$12-lists!$CB$13-lists!$CE$14,0),IF(AND(AQ5-($AI$2-N5)-lists!$CB$11-lists!$CB$12-lists!$CB$13>lists!$CE$14,AQ5-($AI$2-N5)-lists!$CB$11-lists!$CB$12-lists!$CB$13<=lists!$CH$14),AQ5-($AI$2-N5)-lists!$CB$11-lists!$CB$12-lists!$CB$13-lists!$CE$14,0)) -> 0 | AD5: =IF(OR(AQ5="",AQ5=0),IF(N5-lists!CB12-lists!CB13-lists!CB14>lists!$CH$14,N5-lists!CB12-lists!CB13-lists!CB14-lists!$CH$14,0),IF(AQ5-($AI$2-N5)-lists!CB12-lists!CB13-lists!CB14>lists!$CH$14,AQ5-($AI$2-N5)-lists!CB12-lists!CB13-lists!CB14-lists!$CH$14,0)) -> 218.5211355 | AE5: =IF(OR(AR5="",AR5=0),0,IF(AR5<$AI$2-N5+lists!$CB$11+lists!$CB$12+lists!$CB$13+lists!$CB$14,1,0)) -> 0 | AF5: =IF(OR(AR5="",AR5=0),IF(AND(N5-lists!$CB$11-lists!$CB$12-lists!$CB$13-lists!$CB$14>lists!$CE$15,N5-lists!$CB$11-lists!$CB$12-lists!$CB$13-lists!$CB$14<=lists!$CH$15),N5-lists!$CB$11-lists!$CB$12-lists!$CB$13-lists!$CB$14-lists!$CE$15,0),IF(AND(AR5-($AI$2-N5)-lists!$CB$11-lists!$CB$12-lists!$CB$13-lists!$CB$14>lists!$CE$15,AR5-($AI$2-N5)-lists!$CB$11-lists!$CB$12-lists!$CB$13-lists!$CB$14<=lists!$CH$15),AR5-($AI$2-N5)-lists!$CB$11-lists!$CB$12-lists!$CB$13-lists!$CB$14-lists!$CE$15,0)) -> 0 | AG5: =IF(OR(AR5="",AR5=0),IF(N5-lists!CB12-lists!CB13-lists!CB14-lists!CB15>lists!$CH$15,N5-lists!CB12-lists!CB13-lists!CB14-lists!CB15-lists!$CH$15,0),IF(AR5-($AI$2-N5)-lists!CB12-lists!CB13-lists!CB14-lists!CB15>lists!$CH$15,AR5-($AI$2-N5)-lists!CB12-lists!CB13-lists!CB14-lists!CB15-lists!$CH$15,0)) -> 121.5211355 | AH5: =SUMIFS(AZ5:BW5,AZ$1:BW$1,"соглас. оплата"&"*")-IF(AY5="",0,AY5) -> 0 | AI5: 2019-10-17T12:40:09.260 | AK5: 0 | AL5: 00:00:00 | AM5: 00:00:00 | AN5: 00:00:00 | AO5: 00:00:00 | AP5: 00:00:00 | AQ5: 00:00:00 | AR5: 00:00:00 | AS5: Зак | AT5: №1172 | AU5: 2019-10-04 | AV5: ТН | AW5: №1172/тн-2 | AX5: 2019-10-23 | AY5: 500000 | AZ5: 2019-10-15 | BA5: 200000 | BB5: 2019-11-05 | BC5: 300000 | BD5: 00:00:00 | BE5: 0 | BF5: 00:00:00 | BG5: 0 | BH5: 00:00:00 | BI5: 0 | BJ5: 00:00:00 | BK5: 0 | BL5: 00:00:00 | BM5: 0 | BN5: 00:00:00 | BO5: 0 | BP5: 00:00:00 | BQ5: 0 | BR5: 00:00:00 | BS5: 0 | BT5: 00:00:00 | BU5: 0 | BV5: 00:00:00 | BW5: 0 | BX5: 2019-10-17 | BY5: 200000 | BZ5: 00:00:00 | CA5: 0 | CB5: 00:00:00 | CC5: 0 | CD5: 00:00:00 | CE5: 0 | CF5: 00:00:00 | CG5: 0 | CH5: 00:00:00 | CI5: 0 | CJ5: 00:00:00 | CK5: 0 | CL5: 00:00:00 | CM5: 0 | CN5: 00:00:00 | CO5: 0 | CP5: 00:00:00 | CQ5: 0 | CR5: 00:00:00 | CS5: 0 | CT5: 00:00:00 | CU5: 0 | CV5: ООО "Заказчик" | CW5: ООО "Зак" | CX5: Петров Иван Иванович | CY5: 123456789 | CZ5: mail@mail.ru | DA5: 1111111111 | DB5: 111111111 | DC5: 111111111111 | DD5: 111111 | DE5: 11111111111111 | DF5: 1111111111111 | DG5: 11111111111111 | DH5: 11111111 | DI5: ALL | DJ5: ALL | DK5: ALL | DL5: ALL | DM5: ALL | DN5: ALL
A6: =ROW() -> 6 | I6: =IF(SUMIFS(INDIRECT("K$1:K"&A6-1),INDIRECT("AS$1:AS"&A6-1),AS6,INDIRECT("AT$1:AT"&A6-1),AT6,INDIRECT("AV$1:AV"&A6-1),AV6,INDIRECT("AW$1:AW"&A6-1),AW6)=0,1,0) -> 1 | J6: =IF(SUMIFS(K6:K6,I6:I6,1,AS6:AS6,screen!$E$6,AT6:AT6,screen!$E$8,AV6:AV6,screen!$E$12,AW6:AW6,screen!$E$14)=0,"",1) -> 1 | K6: =1 -> 1 | L6: =AS6&" / дог. "&AT6&" от "&DAY(AU6)&"."&MONTH(AU6)&"."&YEAR(AU6)&"г. / "&AV6&" "&AW6&" от "&DAY(AX6)&"."&MONTH(AX6)&"."&YEAR(AX6)&"г. / сумма отгр. "&AY6 -> Зак / дог. №1172 от 4.10.2019г. / ТН №1172/тн от 10.10.2019г. / сумма отгр. 200000 | M6: =IF(IF(AY6="",0,AY6)-SUMIFS(BX6:CU6,BX$1:CU$1,"фактич. оплата"&"*")>0,IF(AY6="",0,AY6)-SUMIFS(BX6:CU6,BX$1:CU$1,"фактич. оплата"&"*"),0) -> 100000 | N6: =IF(IF(M6=0,0,IF(AY6=0,0,((BX6-AX6)*BY6+(BZ6-AX6)*CA6+(CB6-AX6)*CC6+(CD6-AX6)*CE6+(CF6-AX6)*CG6+(CH6-AX6)*CI6+(CJ6-AX6)*CK6+(CL6-AX6)*CM6+(CN6-AX6)*CO6+(CP6-AX6)*CQ6+(CR6-AX6)*CS6+(CT6-AX6)*CU6+($AI$2-AX6)*M6)/AY6)-IF(AY6=0,0,((AZ6-AX6)*BA6+(BB6-AX6)*BC6+(BD6-AX6)*BE6+(BF6-AX6)*BG6+(BH6-AX6)*BI6+(BJ6-AX6)*BK6+(BL6-AX6)*BM6+(BN6-AX6)*BO6+(BP6-AX6)*BQ6+(BR6-AX6)*BS6+(BT6-AX6)*BU6+(AX6-AX6)*BW6)/AY6))<=0,0,IF(M6=0,0,IF(AY6=0,0,((BX6-AX6)*BY6+(BZ6-AX6)*CA6+(CB6-AX6)*CC6+(CD6-AX6)*CE6+(CF6-AX6)*CG6+(CH6-AX6)*CI6+(CJ6-AX6)*CK6+(CL6-AX6)*CM6+(CN6-AX6)*CO6+(CP6-AX6)*CQ6+(CR6-AX6)*CS6+(CT6-AX6)*CU6+($AI$2-AX6)*M6)/AY6)-IF(AY6=0,0,((AZ6-AX6)*BA6+(BB6-AX6)*BC6+(BD6-AX6)*BE6+(BF6-AX6)*BG6+(BH6-AX6)*BI6+(BJ6-AX6)*BK6+(BL6-AX6)*BM6+(BN6-AX6)*BO6+(BP6-AX6)*BQ6+(BR6-AX6)*BS6+(BT6-AX6)*BU6+(AX6-AX6)*BW6)/AY6))) -> 293.2676129 | O6: =IF(M6=0,lists!$BQ$11,IF(N6<1,lists!$BQ$12,IF(M6<=conditions!$J$10,lists!$BQ$13,lists!$BQ$14))) -> Долг просроченный | P6: =IF(O6<>lists!$BQ$14,lists!$BT$11,IF(AND(AL6<>"",AL6<>0,AL6>IF(AM6="",0,AM6)),lists!$BT$12,IF(AND(AM6<>"",AM6<>0,AM6>=IF(AL6="",0,AL6)),lists!$BT$13,IF(IF(OR(AN6="",AN6=0),1,0)*U6+IF(OR(AO6="",AO6=0),1,0)*X6+IF(OR(AP6="",AP6=0),1,0)*AA6+IF(OR(AQ6="",AQ6=0),1,0)*AD6+IF(OR(AR6="",AR6=0),1,0)*AG6>0,lists!$BT$14,lists!$BT$15)))) -> Долг брошенный | Q6: =IF(O6<>lists!$BQ$14,"нет статуса",IF(BD!N6<=lists!$CB$11,lists!$BY$11,IF(BD!N6<=lists!$CB$12,lists!$BY$12,IF(BD!N6<=lists!$CB$13,lists!$BY$13,IF(BD!N6<=lists!$CB$14,lists!$BY$14,lists!$BY$15))))) -> просрочка-100 | R6: =IF(Q6="нет статуса","нет действий",IF(AND(Q6=lists!$BY$11,AI6-N6>=AN6),"нет действий",IF(AND(Q6=lists!$BY$11,AI6-N6<AN6),lists!$CK$11,IF(AND(AR6<>0,AR6<>""),lists!$CK$15,IF(AND(AQ6<>0,AQ6<>""),lists!$CK$14,IF(AND(AP6<>0,AP6<>""),lists!$CK$13,IF(AND(AO6<>0,AO6<>""),lists!$CK$12,IF(AND(AN6<>0,AN6<>""),lists!$CK$11,"нет действий")))))))) -> нет действий | S6: =IF(OR(AN6="",AN6=0),0,IF(AN6<$AI$2-N6,1,0)) -> 0 | T6: =IF(OR(AN6="",AN6=0),IF(AND(N6>lists!$CE$11,N6<=lists!$CH$11),N6-lists!$CE$11,0),IF(AND(AN6-($AI$2-N6)>lists!$CE$11,AN6-($AI$2-N6)<=lists!$CH$11),AN6-($AI$2-N6)-lists!$CE$11,0)) -> 0 | U6: =IF(OR(AN6="",AN6=0),IF(N6>lists!$CH$11,N6-lists!$CH$11,0),IF(AN6-($AI$2-N6)>lists!$CH$11,AN6-($AI$2-N6)-lists!$CH$11,0)) -> 291.2676129 | V6: =IF(OR(AO6="",AO6=0),0,IF(AO6<$AI$2-N6+lists!$CB$11,1,0)) -> 0 | W6: =IF(OR(AO6="",AO6=0),IF(AND(N6-lists!$CB$11>lists!$CE$12,N6-lists!$CB$11<=lists!$CH$12),N6-lists!$CB$11-lists!$CE$12,0),IF(AND(AO6-($AI$2-N6)-lists!$CB$11>lists!$CE$12,AO6-($AI$2-N6)-lists!$CB$11<=lists!$CH$12),AO6-($AI$2-N6)-lists!$CB$11-lists!$CE$12,0)) -> 0 | X6: =IF(OR(AO6="",AO6=0),IF(N6-lists!CB12>lists!$CH$12,N6-lists!CB12-lists!$CH$12,0),IF(AO6-($AI$2-N6)-lists!CB12>lists!$CH$12,AO6-($AI$2-N6)-lists!CB12-lists!$CH$12,0)) -> 279.2676129 | Y6: =IF(OR(AP6="",AP6=0),0,IF(AP6<$AI$2-N6+lists!$CB$11+lists!$CB$12,1,0)) -> 0 | Z6: =IF(OR(AP6="",AP6=0),IF(AND(N6-lists!$CB$11-lists!$CB$12>lists!$CE$13,N6-lists!$CB$11-lists!$CB$12<=lists!$CH$13),N6-lists!$CB$11-lists!$CB$12-lists!$CE$13,0),IF(AND(AP6-($AI$2-N6)-lists!$CB$11-lists!$CB$12>lists!$CE$13,AP6-($AI$2-N6)-lists!$CB$11-lists!$CB$12<=lists!$CH$13),AP6-($AI$2-N6)-lists!$CB$11-lists!$CB$12-lists!$CE$13,0)) -> 0 | AA6: =IF(OR(AP6="",AP6=0),IF(N6-lists!CB12-lists!CB13>lists!$CH$13,N6-lists!CB12-lists!CB13-lists!$CH$13,0),IF(AP6-($AI$2-N6)-lists!CB12-lists!CB13>lists!$CH$13,AP6-($AI$2-N6)-lists!CB12-lists!CB13-lists!$CH$13,0)) -> 237.2676129 | AB6: =IF(OR(AQ6="",AQ6=0),0,IF(AQ6<$AI$2-N6+lists!$CB$11+lists!$CB$12+lists!$CB$13,1,0)) -> 0 | AC6: =IF(OR(AQ6="",AQ6=0),IF(AND(N6-lists!$CB$11-lists!$CB$12-lists!$CB$13>lists!$CE$14,N6-lists!$CB$11-lists!$CB$12-lists!$CB$13<=lists!$CH$14),N6-lists!$CB$11-lists!$CB$12-lists!$CB$13-lists!$CE$14,0),IF(AND(AQ6-($AI$2-N6)-lists!$CB$11-lists!$CB$12-lists!$CB$13>lists!$CE$14,AQ6-($AI$2-N6)-lists!$CB$11-lists!$CB$12-lists!$CB$13<=lists!$CH$14),AQ6-($AI$2-N6)-lists!$CB$11-lists!$CB$12-lists!$CB$13-lists!$CE$14,0)) -> 0 | AD6: =IF(OR(AQ6="",AQ6=0),IF(N6-lists!CB12-lists!CB13-lists!CB14>lists!$CH$14,N6-lists!CB12-lists!CB13-lists!CB14-lists!$CH$14,0),IF(AQ6-($AI$2-N6)-lists!CB12-lists!CB13-lists!CB14>lists!$CH$14,AQ6-($AI$2-N6)-lists!CB12-lists!CB13-lists!CB14-lists!$CH$14,0)) -> 166.2676129 | AE6: =IF(OR(AR6="",AR6=0),0,IF(AR6<$AI$2-N6+lists!$CB$11+lists!$CB$12+lists!$CB$13+lists!$CB$14,1,0)) -> 0 | AF6: =IF(OR(AR6="",AR6=0),IF(AND(N6-lists!$CB$11-lists!$CB$12-lists!$CB$13-lists!$CB$14>lists!$CE$15,N6-lists!$CB$11-lists!$CB$12-lists!$CB$13-lists!$CB$14<=lists!$CH$15),N6-lists!$CB$11-lists!$CB$12-lists!$CB$13-lists!$CB$14-lists!$CE$15,0),IF(AND(AR6-($AI$2-N6)-lists!$CB$11-lists!$CB$12-lists!$CB$13-lists!$CB$14>lists!$CE$15,AR6-($AI$2-N6)-lists!$CB$11-lists!$CB$12-lists!$CB$13-lists!$CB$14<=lists!$CH$15),AR6-($AI$2-N6)-lists!$CB$11-lists!$CB$12-lists!$CB$13-lists!$CB$14-lists!$CE$15,0)) -> 0 | AG6: =IF(OR(AR6="",AR6=0),IF(N6-lists!CB12-lists!CB13-lists!CB14-lists!CB15>lists!$CH$15,N6-lists!CB12-lists!CB13-lists!CB14-lists!CB15-lists!$CH$15,0),IF(AR6-($AI$2-N6)-lists!CB12-lists!CB13-lists!CB14-lists!CB15>lists!$CH$15,AR6-($AI$2-N6)-lists!CB12-lists!CB13-lists!CB14-lists!CB15-lists!$CH$15,0)) -> 69.26761291 | AH6: =SUMIFS(AZ6:BW6,AZ$1:BW$1,"соглас. оплата"&"*")-IF(AY6="",0,AY6) -> 0 | AI6: 2019-10-17T12:38:18.500 | AK6: 0 | AL6: 00:00:00 | AM6: 00:00:00 | AN6: 00:00:00 | AO6: 00:00:00 | AP6: 00:00:00 | AQ6: 00:00:00 | AR6: 00:00:00 | AS6: Зак | AT6: №1172 | AU6: 2019-10-04 | AV6: ТН | AW6: №1172/тн | AX6: 2019-10-10 | AY6: 200000 | AZ6: 2019-10-05 | BA6: 100000 | BB6: 2019-10-25 | BC6: 100000 | BD6: 00:00:00 | BE6: 0 | BF6: 00:00:00 | BG6: 0 | BH6: 00:00:00 | BI6: 0 | BJ6: 00:00:00 | BK6: 0 | BL6: 00:00:00 | BM6: 0 | BN6: 00:00:00 | BO6: 0 | BP6: 00:00:00 | BQ6: 0 | BR6: 00:00:00 | BS6: 0 | BT6: 00:00:00 | BU6: 0 | BV6: 00:00:00 | BW6: 0 | BX6: 2019-10-06 | BY6: 100000 | BZ6: 00:00:00 | CA6: 0 | CB6: 00:00:00 | CC6: 0 | CD6: 00:00:00 | CE6: 0 | CF6: 00:00:00 | CG6: 0 | CH6: 00:00:00 | CI6: 0 | CJ6: 00:00:00 | CK6: 0 | CL6: 00:00:00 | CM6: 0 | CN6: 00:00:00 | CO6: 0 | CP6: 00:00:00 | CQ6: 0 | CR6: 00:00:00 | CS6: 0 | CT6: 00:00:00 | CU6: 0 | CV6: ООО "Заказчик" | CW6: ООО "Зак" | CX6: Петров Иван Иванович | CY6: 123456789 | CZ6: mail@mail.ru | DA6: 1111111111 | DB6: 111111111 | DC6: 111111111111 | DD6: 111111 | DE6: 11111111111111 | DF6: 1111111111111 | DG6: 11111111111111 | DH6: 11111111 | DI6: ALL | DJ6: ALL | DK6: ALL | DL6: ALL | DM6: ALL | DN6: ALL
A7: =ROW() -> 7 | I7: =IF(SUMIFS(INDIRECT("K$1:K"&A7-1),INDIRECT("AS$1:AS"&A7-1),AS7,INDIRECT("AT$1:AT"&A7-1),AT7,INDIRECT("AV$1:AV"&A7-1),AV7,INDIRECT("AW$1:AW"&A7-1),AW7)=0,1,0) -> 1 | J7: =IF(SUMIFS(K7:K7,I7:I7,1,AS7:AS7,screen!$E$6,AT7:AT7,screen!$E$8,AV7:AV7,screen!$E$12,AW7:AW7,screen!$E$14)=0,"",1) -> 1 | K7: =1 -> 1 | L7: =AS7&" / дог. "&AT7&" от "&DAY(AU7)&"."&MONTH(AU7)&"."&YEAR(AU7)&"г. / "&AV7&" "&AW7&" от "&DAY(AX7)&"."&MONTH(AX7)&"."&YEAR(AX7)&"г. / сумма отгр. "&AY7 -> Зак-2 / дог. №555 от 1.10.2019г. / ТН №777 от 1.10.2019г. / сумма отгр. 1000000 | M7: =IF(IF(AY7="",0,AY7)-SUMIFS(BX7:CU7,BX$1:CU$1,"фактич. оплата"&"*")>0,IF(AY7="",0,AY7)-SUMIFS(BX7:CU7,BX$1:CU$1,"фактич. оплата"&"*"),0) -> 0 | N7: =IF(IF(M7=0,0,IF(AY7=0,0,((BX7-AX7)*BY7+(BZ7-AX7)*CA7+(CB7-AX7)*CC7+(CD7-AX7)*CE7+(CF7-AX7)*CG7+(CH7-AX7)*CI7+(CJ7-AX7)*CK7+(CL7-AX7)*CM7+(CN7-AX7)*CO7+(CP7-AX7)*CQ7+(CR7-AX7)*CS7+(CT7-AX7)*CU7+($AI$2-AX7)*M7)/AY7)-IF(AY7=0,0,((AZ7-AX7)*BA7+(BB7-AX7)*BC7+(BD7-AX7)*BE7+(BF7-AX7)*BG7+(BH7-AX7)*BI7+(BJ7-AX7)*BK7+(BL7-AX7)*BM7+(BN7-AX7)*BO7+(BP7-AX7)*BQ7+(BR7-AX7)*BS7+(BT7-AX7)*BU7+(AX7-AX7)*BW7)/AY7))<=0,0,IF(M7=0,0,IF(AY7=0,0,((BX7-AX7)*BY7+(BZ7-AX7)*CA7+(CB7-AX7)*CC7+(CD7-AX7)*CE7+(CF7-AX7)*CG7+(CH7-AX7)*CI7+(CJ7-AX7)*CK7+(CL7-AX7)*CM7+(CN7-AX7)*CO7+(CP7-AX7)*CQ7+(CR7-AX7)*CS7+(CT7-AX7)*CU7+($AI$2-AX7)*M7)/AY7)-IF(AY7=0,0,((AZ7-AX7)*BA7+(BB7-AX7)*BC7+(BD7-AX7)*BE7+(BF7-AX7)*BG7+(BH7-AX7)*BI7+(BJ7-AX7)*BK7+(BL7-AX7)*BM7+(BN7-AX7)*BO7+(BP7-AX7)*BQ7+(BR7-AX7)*BS7+(BT7-AX7)*BU7+(AX7-AX7)*BW7)/AY7))) -> 0 | O7: =IF(M7=0,lists!$BQ$11,IF(N7<1,lists!$BQ$12,IF(M7<=conditions!$J$10,lists!$BQ$13,lists!$BQ$14))) -> Долга нет | P7: =IF(O7<>lists!$BQ$14,lists!$BT$11,IF(AND(AL7<>"",AL7<>0,AL7>IF(AM7="",0,AM7)),lists!$BT$12,IF(AND(AM7<>"",AM7<>0,AM7>=IF(AL7="",0,AL7)),lists!$BT$13,IF(IF(OR(AN7="",AN7=0),1,0)*U7+IF(OR(AO7="",AO7=0),1,0)*X7+IF(OR(AP7="",AP7=0),1,0)*AA7+IF(OR(AQ7="",AQ7=0),1,0)*AD7+IF(OR(AR7="",AR7=0),1,0)*AG7>0,lists!$BT$14,lists!$BT$15)))) -> Нет задачи | Q7: =IF(O7<>lists!$BQ$14,"нет статуса",IF(BD!N7<=lists!$CB$11,lists!$BY$11,IF(BD!N7<=lists!$CB$12,lists!$BY$12,IF(BD!N7<=lists!$CB$13,lists!$BY$13,IF(BD!N7<=lists!$CB$14,lists!$BY$14,lists!$BY$15))))) -> нет статуса | R7: =IF(Q7="нет статуса","нет действий",IF(AND(Q7=lists!$BY$11,AI7-N7>=AN7),"нет действий",IF(AND(Q7=lists!$BY$11,AI7-N7<AN7),lists!$CK$11,IF(AND(AR7<>0,AR7<>""),lists!$CK$15,IF(AND(AQ7<>0,AQ7<>""),lists!$CK$14,IF(AND(AP7<>0,AP7<>""),lists!$CK$13,IF(AND(AO7<>0,AO7<>""),lists!$CK$12,IF(AND(AN7<>0,AN7<>""),lists!$CK$11,"нет действий")))))))) -> нет действий | S7: =IF(OR(AN7="",AN7=0),0,IF(AN7<$AI$2-N7,1,0)) -> 0 | T7: =IF(OR(AN7="",AN7=0),IF(AND(N7>lists!$CE$11,N7<=lists!$CH$11),N7-lists!$CE$11,0),IF(AND(AN7-($AI$2-N7)>lists!$CE$11,AN7-($AI$2-N7)<=lists!$CH$11),AN7-($AI$2-N7)-lists!$CE$11,0)) -> 0 | U7: =IF(OR(AN7="",AN7=0),IF(N7>lists!$CH$11,N7-lists!$CH$11,0),IF(AN7-($AI$2-N7)>lists!$CH$11,AN7-($AI$2-N7)-lists!$CH$11,0)) -> 0 | V7: =IF(OR(AO7="",AO7=0),0,IF(AO7<$AI$2-N7+lists!$CB$11,1,0)) -> 0 | W7: =IF(OR(AO7="",AO7=0),IF(AND(N7-lists!$CB$11>lists!$CE$12,N7-lists!$CB$11<=lists!$CH$12),N7-lists!$CB$11-lists!$CE$12,0),IF(AND(AO7-($AI$2-N7)-lists!$CB$11>lists!$CE$12,AO7-($AI$2-N7)-lists!$CB$11<=lists!$CH$12),AO7-($AI$2-N7)-lists!$CB$11-lists!$CE$12,0)) -> 0 | X7: =IF(OR(AO7="",AO7=0),IF(N7-lists!CB12>lists!$CH$12,N7-lists!CB12-lists!$CH$12,0),IF(AO7-($AI$2-N7)-lists!CB12>lists!$CH$12,AO7-($AI$2-N7)-lists!CB12-lists!$CH$12,0)) -> 0 | Y7: =IF(OR(AP7="",AP7=0),0,IF(AP7<$AI$2-N7+lists!$CB$11+lists!$CB$12,1,0)) -> 0 | Z7: =IF(OR(AP7="",AP7=0),IF(AND(N7-lists!$CB$11-lists!$CB$12>lists!$CE$13,N7-lists!$CB$11-lists!$CB$12<=lists!$CH$13),N7-lists!$CB$11-lists!$CB$12-lists!$CE$13,0),IF(AND(AP7-($AI$2-N7)-lists!$CB$11-lists!$CB$12>lists!$CE$13,AP7-($AI$2-N7)-lists!$CB$11-lists!$CB$12<=lists!$CH$13),AP7-($AI$2-N7)-lists!$CB$11-lists!$CB$12-lists!$CE$13,0)) -> 0 | AA7: =IF(OR(AP7="",AP7=0),IF(N7-lists!CB12-lists!CB13>lists!$CH$13,N7-lists!CB12-lists!CB13-lists!$CH$13,0),IF(AP7-($AI$2-N7)-lists!CB12-lists!CB13>lists!$CH$13,AP7-($AI$2-N7)-lists!CB12-lists!CB13-lists!$CH$13,0)) -> 0 | AB7: =IF(OR(AQ7="",AQ7=0),0,IF(AQ7<$AI$2-N7+lists!$CB$11+lists!$CB$12+lists!$CB$13,1,0)) -> 0 | AC7: =IF(OR(AQ7="",AQ7=0),IF(AND(N7-lists!$CB$11-lists!$CB$12-lists!$CB$13>lists!$CE$14,N7-lists!$CB$11-lists!$CB$12-lists!$CB$13<=lists!$CH$14),N7-lists!$CB$11-lists!$CB$12-lists!$CB$13-lists!$CE$14,0),IF(AND(AQ7-($AI$2-N7)-lists!$CB$11-lists!$CB$12-lists!$CB$13>lists!$CE$14,AQ7-($AI$2-N7)-lists!$CB$11-lists!$CB$12-lists!$CB$13<=lists!$CH$14),AQ7-($AI$2-N7)-lists!$CB$11-lists!$CB$12-lists!$CB$13-lists!$CE$14,0)) -> 0 | AD7: =IF(OR(AQ7="",AQ7=0),IF(N7-lists!CB12-lists!CB13-lists!CB14>lists!$CH$14,N7-lists!CB12-lists!CB13-lists!CB14-lists!$CH$14,0),IF(AQ7-($AI$2-N7)-lists!CB12-lists!CB13-lists!CB14>lists!$CH$14,AQ7-($AI$2-N7)-lists!CB12-lists!CB13-lists!CB14-lists!$CH$14,0)) -> 0 | AE7: =IF(OR(AR7="",AR7=0),0,IF(AR7<$AI$2-N7+lists!$CB$11+lists!$CB$12+lists!$CB$13+lists!$CB$14,1,0)) -> 0 | AF7: =IF(OR(AR7="",AR7=0),IF(AND(N7-lists!$CB$11-lists!$CB$12-lists!$CB$13-lists!$CB$14>lists!$CE$15,N7-lists!$CB$11-lists!$CB$12-lists!$CB$13-lists!$CB$14<=lists!$CH$15),N7-lists!$CB$11-lists!$CB$12-lists!$CB$13-lists!$CB$14-lists!$CE$15,0),IF(AND(AR7-($AI$2-N7)-lists!$CB$11-lists!$CB$12-lists!$CB$13-lists!$CB$14>lists!$CE$15,AR7-($AI$2-N7)-lists!$CB$11-lists!$CB$12-lists!$CB$13-lists!$CB$14<=lists!$CH$15),AR7-($AI$2-N7)-lists!$CB$11-lists!$CB$12-lists!$CB$13-lists!$CB$14-lists!$CE$15,0)) -> 0 | AG7: =IF(OR(AR7="",AR7=0),IF(N7-lists!CB12-lists!CB13-lists!CB14-lists!CB15>lists!$CH$15,N7-lists!CB12-lists!CB13-lists!CB14-lists!CB15-lists!$CH$15,0),IF(AR7-($AI$2-N7)-lists!CB12-lists!CB13-lists!CB14-lists!CB15>lists!$CH$15,AR7-($AI$2-N7)-lists!CB12-lists!CB13-lists!CB14-lists!CB15-lists!$CH$15,0)) -> 0 | AH7: =SUMIFS(AZ7:BW7,AZ$1:BW$1,"соглас. оплата"&"*")-IF(AY7="",0,AY7) -> 0 | AI7: 2019-10-17T12:22:55.060 | AK7: 0 | AL7: 00:00:00 | AM7: 00:00:00 | AN7: 00:00:00 | AO7: 00:00:00 | AP7: 00:00:00 | AQ7: 00:00:00 | AR7: 00:00:00 | AS7: Зак-2 | AT7: №555 | AU7: 2019-10-01 | AV7: ТН | AW7: №777 | AX7: 2019-10-01 | AY7: 1000000 | AZ7: 2019-10-01 | BA7: 250000 | BB7: 2019-10-10 | BC7: 250000 | BD7: 2019-10-15 | BE7: 500000 | BF7: 00:00:00 | BG7: 0 | BH7: 00:00:00 | BI7: 0 | BJ7: 00:00:00 | BK7: 0 | BL7: 00:00:00 | BM7: 0 | BN7: 00:00:00 | BO7: 0 | BP7: 00:00:00 | BQ7: 0 | BR7: 00:00:00 | BS7: 0 | BT7: 00:00:00 | BU7: 0 | BV7: 00:00:00 | BW7: 0 | BX7: 2019-10-10 | BY7: 10000 | BZ7: 2019-10-11 | CA7: 300000 | CB7: 2019-10-17 | CC7: 700000 | CD7: 00:00:00 | CE7: 0 | CF7: 00:00:00 | CG7: 0 | CH7: 00:00:00 | CI7: 0 | CJ7: 00:00:00 | CK7: 0 | CL7: 00:00:00 | CM7: 0 | CN7: 00:00:00 | CO7: 0 | CP7: 00:00:00 | CQ7: 0 | CR7: 00:00:00 | CS7: 0 | CT7: 00:00:00 | CU7: 0 | CV7: ООО "Заказчик-2" | CW7: ООО "Зак-2" | CX7: Сидоров | CY7: 33545626 | CZ7: 3756767 | DA7: 74568 | DB7: 267657 | DC7: 7787878 | DD7: 669696 | DE7: 254н565464 | DF7: 756787878 | DG7: 34757 | DH7: 3246 | DI7: ALL | DJ7: ALL | DK7: ALL | DL7: ALL | DM7: ALL | DN7: ALL
A8: =ROW() -> 8 | I8: =IF(SUMIFS(INDIRECT("K$1:K"&A8-1),INDIRECT("AS$1:AS"&A8-1),AS8,INDIRECT("AT$1:AT"&A8-1),AT8,INDIRECT("AV$1:AV"&A8-1),AV8,INDIRECT("AW$1:AW"&A8-1),AW8)=0,1,0) -> 1 | J8: =IF(SUMIFS(K8:K8,I8:I8,1,AS8:AS8,screen!$E$6,AT8:AT8,screen!$E$8,AV8:AV8,screen!$E$12,AW8:AW8,screen!$E$14)=0,"",1) -> 1 | K8: =1 -> 1 | L8: =AS8&" / дог. "&AT8&" от "&DAY(AU8)&"."&MONTH(AU8)&"."&YEAR(AU8)&"г. / "&AV8&" "&AW8&" от "&DAY(AX8)&"."&MONTH(AX8)&"."&YEAR(AX8)&"г. / сумма отгр. "&AY8 -> зак-4 / дог. №444 от 1.10.2019г. / Акт №444/1 от 10.10.2019г. / сумма отгр. 1000000 | M8: =IF(IF(AY8="",0,AY8)-SUMIFS(BX8:CU8,BX$1:CU$1,"фактич. оплата"&"*")>0,IF(AY8="",0,AY8)-SUMIFS(BX8:CU8,BX$1:CU$1,"фактич. оплата"&"*"),0) -> 0 | N8: =IF(IF(M8=0,0,IF(AY8=0,0,((BX8-AX8)*BY8+(BZ8-AX8)*CA8+(CB8-AX8)*CC8+(CD8-AX8)*CE8+(CF8-AX8)*CG8+(CH8-AX8)*CI8+(CJ8-AX8)*CK8+(CL8-AX8)*CM8+(CN8-AX8)*CO8+(CP8-AX8)*CQ8+(CR8-AX8)*CS8+(CT8-AX8)*CU8+($AI$2-AX8)*M8)/AY8)-IF(AY8=0,0,((AZ8-AX8)*BA8+(BB8-AX8)*BC8+(BD8-AX8)*BE8+(BF8-AX8)*BG8+(BH8-AX8)*BI8+(BJ8-AX8)*BK8+(BL8-AX8)*BM8+(BN8-AX8)*BO8+(BP8-AX8)*BQ8+(BR8-AX8)*BS8+(BT8-AX8)*BU8+(AX8-AX8)*BW8)/AY8))<=0,0,IF(M8=0,0,IF(AY8=0,0,((BX8-AX8)*BY8+(BZ8-AX8)*CA8+(CB8-AX8)*CC8+(CD8-AX8)*CE8+(CF8-AX8)*CG8+(CH8-AX8)*CI8+(CJ8-AX8)*CK8+(CL8-AX8)*CM8+(CN8-AX8)*CO8+(CP8-AX8)*CQ8+(CR8-AX8)*CS8+(CT8-AX8)*CU8+($AI$2-AX8)*M8)/AY8)-IF(AY8=0,0,((AZ8-AX8)*BA8+(BB8-AX8)*BC8+(BD8-AX8)*BE8+(BF8-AX8)*BG8+(BH8-AX8)*BI8+(BJ8-AX8)*BK8+(BL8-AX8)*BM8+(BN8-AX8)*BO8+(BP8-AX8)*BQ8+(BR8-AX8)*BS8+(BT8-AX8)*BU8+(AX8-AX8)*BW8)/AY8))) -> 0 | O8: =IF(M8=0,lists!$BQ$11,IF(N8<1,lists!$BQ$12,IF(M8<=conditions!$J$10,lists!$BQ$13,lists!$BQ$14))) -> Долга нет | P8: =IF(O8<>lists!$BQ$14,lists!$BT$11,IF(AND(AL8<>"",AL8<>0,AL8>IF(AM8="",0,AM8)),lists!$BT$12,IF(AND(AM8<>"",AM8<>0,AM8>=IF(AL8="",0,AL8)),lists!$BT$13,IF(IF(OR(AN8="",AN8=0),1,0)*U8+IF(OR(AO8="",AO8=0),1,0)*X8+IF(OR(AP8="",AP8=0),1,0)*AA8+IF(OR(AQ8="",AQ8=0),1,0)*AD8+IF(OR(AR8="",AR8=0),1,0)*AG8>0,lists!$BT$14,lists!$BT$15)))) -> Нет задачи | Q8: =IF(O8<>lists!$BQ$14,"нет статуса",IF(BD!N8<=lists!$CB$11,lists!$BY$11,IF(BD!N8<=lists!$CB$12,lists!$BY$12,IF(BD!N8<=lists!$CB$13,lists!$BY$13,IF(BD!N8<=lists!$CB$14,lists!$BY$14,lists!$BY$15))))) -> нет статуса | R8: =IF(Q8="нет статуса","нет действий",IF(AND(Q8=lists!$BY$11,AI8-N8>=AN8),"нет действий",IF(AND(Q8=lists!$BY$11,AI8-N8<AN8),lists!$CK$11,IF(AND(AR8<>0,AR8<>""),lists!$CK$15,IF(AND(AQ8<>0,AQ8<>""),lists!$CK$14,IF(AND(AP8<>0,AP8<>""),lists!$CK$13,IF(AND(AO8<>0,AO8<>""),lists!$CK$12,IF(AND(AN8<>0,AN8<>""),lists!$CK$11,"нет действий")))))))) -> нет действий | S8: =IF(OR(AN8="",AN8=0),0,IF(AN8<$AI$2-N8,1,0)) -> 1 | T8: =IF(OR(AN8="",AN8=0),IF(AND(N8>lists!$CE$11,N8<=lists!$CH$11),N8-lists!$CE$11,0),IF(AND(AN8-($AI$2-N8)>lists!$CE$11,AN8-($AI$2-N8)<=lists!$CH$11),AN8-($AI$2-N8)-lists!$CE$11,0)) -> 0 | U8: =IF(OR(AN8="",AN8=0),IF(N8>lists!$CH$11,N8-lists!$CH$11,0),IF(AN8-($AI$2-N8)>lists!$CH$11,AN8-($AI$2-N8)-lists!$CH$11,0)) -> 0 | V8: =IF(OR(AO8="",AO8=0),0,IF(AO8<$AI$2-N8+lists!$CB$11,1,0)) -> 1 | W8: =IF(OR(AO8="",AO8=0),IF(AND(N8-lists!$CB$11>lists!$CE$12,N8-lists!$CB$11<=lists!$CH$12),N8-lists!$CB$11-lists!$CE$12,0),IF(AND(AO8-($AI$2-N8)-lists!$CB$11>lists!$CE$12,AO8-($AI$2-N8)-lists!$CB$11<=lists!$CH$12),AO8-($AI$2-N8)-lists!$CB$11-lists!$CE$12,0)) -> 0 | X8: =IF(OR(AO8="",AO8=0),IF(N8-lists!CB12>lists!$CH$12,N8-lists!CB12-lists!$CH$12,0),IF(AO8-($AI$2-N8)-lists!CB12>lists!$CH$12,AO8-($AI$2-N8)-lists!CB12-lists!$CH$12,0)) -> 0 | Y8: =IF(OR(AP8="",AP8=0),0,IF(AP8<$AI$2-N8+lists!$CB$11+lists!$CB$12,1,0)) -> 0 | Z8: =IF(OR(AP8="",AP8=0),IF(AND(N8-lists!$CB$11-lists!$CB$12>lists!$CE$13,N8-lists!$CB$11-lists!$CB$12<=lists!$CH$13),N8-lists!$CB$11-lists!$CB$12-lists!$CE$13,0),IF(AND(AP8-($AI$2-N8)-lists!$CB$11-lists!$CB$12>lists!$CE$13,AP8-($AI$2-N8)-lists!$CB$11-lists!$CB$12<=lists!$CH$13),AP8-($AI$2-N8)-lists!$CB$11-lists!$CB$12-lists!$CE$13,0)) -> 0 | AA8: =IF(OR(AP8="",AP8=0),IF(N8-lists!CB12-lists!CB13>lists!$CH$13,N8-lists!CB12-lists!CB13-lists!$CH$13,0),IF(AP8-($AI$2-N8)-lists!CB12-lists!CB13>lists!$CH$13,AP8-($AI$2-N8)-lists!CB12-lists!CB13-lists!$CH$13,0)) -> 0 | AB8: =IF(OR(AQ8="",AQ8=0),0,IF(AQ8<$AI$2-N8+lists!$CB$11+lists!$CB$12+lists!$CB$13,1,0)) -> 0 | AC8: =IF(OR(AQ8="",AQ8=0),IF(AND(N8-lists!$CB$11-lists!$CB$12-lists!$CB$13>lists!$CE$14,N8-lists!$CB$11-lists!$CB$12-lists!$CB$13<=lists!$CH$14),N8-lists!$CB$11-lists!$CB$12-lists!$CB$13-lists!$CE$14,0),IF(AND(AQ8-($AI$2-N8)-lists!$CB$11-lists!$CB$12-lists!$CB$13>lists!$CE$14,AQ8-($AI$2-N8)-lists!$CB$11-lists!$CB$12-lists!$CB$13<=lists!$CH$14),AQ8-($AI$2-N8)-lists!$CB$11-lists!$CB$12-lists!$CB$13-lists!$CE$14,0)) -> 0 | AD8: =IF(OR(AQ8="",AQ8=0),IF(N8-lists!CB12-lists!CB13-lists!CB14>lists!$CH$14,N8-lists!CB12-lists!CB13-lists!CB14-lists!$CH$14,0),IF(AQ8-($AI$2-N8)-lists!CB12-lists!CB13-lists!CB14>lists!$CH$14,AQ8-($AI$2-N8)-lists!CB12-lists!CB13-lists!CB14-lists!$CH$14,0)) -> 0 | AE8: =IF(OR(AR8="",AR8=0),0,IF(AR8<$AI$2-N8+lists!$CB$11+lists!$CB$12+lists!$CB$13+lists!$CB$14,1,0)) -> 0 | AF8: =IF(OR(AR8="",AR8=0),IF(AND(N8-lists!$CB$11-lists!$CB$12-lists!$CB$13-lists!$CB$14>lists!$CE$15,N8-lists!$CB$11-lists!$CB$12-lists!$CB$13-lists!$CB$14<=lists!$CH$15),N8-lists!$CB$11-lists!$CB$12-lists!$CB$13-lists!$CB$14-lists!$CE$15,0),IF(AND(AR8-($AI$2-N8)-lists!$CB$11-lists!$CB$12-lists!$CB$13-lists!$CB$14>lists!$CE$15,AR8-($AI$2-N8)-lists!$CB$11-lists!$CB$12-lists!$CB$13-lists!$CB$14<=lists!$CH$15),AR8-($AI$2-N8)-lists!$CB$11-lists!$CB$12-lists!$CB$13-lists!$CB$14-lists!$CE$15,0)) -> 0 | AG8: =IF(OR(AR8="",AR8=0),IF(N8-lists!CB12-lists!CB13-lists!CB14-lists!CB15>lists!$CH$15,N8-lists!CB12-lists!CB13-lists!CB14-lists!CB15-lists!$CH$15,0),IF(AR8-($AI$2-N8)-lists!CB12-lists!CB13-lists!CB14-lists!CB15>lists!$CH$15,AR8-($AI$2-N8)-lists!CB12-lists!CB13-lists!CB14-lists!CB15-lists!$CH$15,0)) -> 0 | AH8: =SUMIFS(AZ8:BW8,AZ$1:BW$1,"соглас. оплата"&"*")-IF(AY8="",0,AY8) -> 0 | AI8: 2019-10-17T12:19:54.490 | AK8: 0 | AL8: 00:00:00 | AM8: 00:00:00 | AN8: 2019-10-17T12:18:22.030 | AO8: 2019-10-14T20:15:40.790 | AP8: 00:00:00 | AQ8: 00:00:00 | AR8: 00:00:00 | AS8: зак-4 | AT8: №444 | AU8: 2019-10-01 | AV8: Акт | AW8: №444/1 | AX8: 2019-10-10 | AY8: 1000000 | AZ8: 2019-10-03 | BA8: 300000 | BB8: 2019-10-16 | BC8: 600000 | BD8: 2019-10-13 | BE8: 100000 | BF8: 00:00:00 | BG8: 0 | BH8: 00:00:00 | BI8: 0 | BJ8: 00:00:00 | BK8: 0 | BL8: 00:00:00 | BM8: 0 | BN8: 00:00:00 | BO8: 0 | BP8: 00:00:00 | BQ8: 0 | BR8: 00:00:00 | BS8: 0 | BT8: 00:00:00 | BU8: 0 | BV8: 00:00:00 | BW8: 0 | BX8: 2019-10-04 | BY8: 300000 | BZ8: 2019-10-14 | CA8: 100000 | CB8: 2019-10-17 | CC8: 600000 | CD8: 00:00:00 | CE8: 0 | CF8: 00:00:00 | CG8: 0 | CH8: 00:00:00 | CI8: 0 | CJ8: 00:00:00 | CK8: 0 | CL8: 00:00:00 | CM8: 0 | CN8: 00:00:00 | CO8: 0 | CP8: 00:00:00 | CQ8: 0 | CR8: 00:00:00 | CS8: 0 | CT8: 00:00:00 | CU8: 0 | CV8: 0 | CW8: 0 | CX8: 0 | CY8: 0 | CZ8: 0 | DA8: 0 | DB8: 0 | DC8: 0 | DD8: 0 | DE8: 0 | DF8: 0 | DG8: 0 | DH8: 0 | DI8: 0 | DJ8: 0 | DK8: 0 | DL8: 0 | DM8: 0 | DN8: 0
A9: =ROW() -> 9 | I9: =IF(SUMIFS(INDIRECT("K$1:K"&A9-1),INDIRECT("AS$1:AS"&A9-1),AS9,INDIRECT("AT$1:AT"&A9-1),AT9,INDIRECT("AV$1:AV"&A9-1),AV9,INDIRECT("AW$1:AW"&A9-1),AW9)=0,1,0) -> 0 | J9: =IF(SUMIFS(K9:K9,I9:I9,1,AS9:AS9,screen!$E$6,AT9:AT9,screen!$E$8,AV9:AV9,screen!$E$12,AW9:AW9,screen!$E$14)=0,"",1) ->  | K9: =1 -> 1 | L9: =AS9&" / дог. "&AT9&" от "&DAY(AU9)&"."&MONTH(AU9)&"."&YEAR(AU9)&"г. / "&AV9&" "&AW9&" от "&DAY(AX9)&"."&MONTH(AX9)&"."&YEAR(AX9)&"г. / сумма отгр. "&AY9 -> зак-4 / дог. №444 от 1.10.2019г. / Акт №444/1 от 10.10.2019г. / сумма отгр. 1000000 | M9: =IF(IF(AY9="",0,AY9)-SUMIFS(BX9:CU9,BX$1:CU$1,"фактич. оплата"&"*")>0,IF(AY9="",0,AY9)-SUMIFS(BX9:CU9,BX$1:CU$1,"фактич. оплата"&"*"),0) -> 600000 | N9: =IF(IF(M9=0,0,IF(AY9=0,0,((BX9-AX9)*BY9+(BZ9-AX9)*CA9+(CB9-AX9)*CC9+(CD9-AX9)*CE9+(CF9-AX9)*CG9+(CH9-AX9)*CI9+(CJ9-AX9)*CK9+(CL9-AX9)*CM9+(CN9-AX9)*CO9+(CP9-AX9)*CQ9+(CR9-AX9)*CS9+(CT9-AX9)*CU9+($AI$2-AX9)*M9)/AY9)-IF(AY9=0,0,((AZ9-AX9)*BA9+(BB9-AX9)*BC9+(BD9-AX9)*BE9+(BF9-AX9)*BG9+(BH9-AX9)*BI9+(BJ9-AX9)*BK9+(BL9-AX9)*BM9+(BN9-AX9)*BO9+(BP9-AX9)*BQ9+(BR9-AX9)*BS9+(BT9-AX9)*BU9+(AX9-AX9)*BW9)/AY9))<=0,0,IF(M9=0,0,IF(AY9=0,0,((BX9-AX9)*BY9+(BZ9-AX9)*CA9+(CB9-AX9)*CC9+(CD9-AX9)*CE9+(CF9-AX9)*CG9+(CH9-AX9)*CI9+(CJ9-AX9)*CK9+(CL9-AX9)*CM9+(CN9-AX9)*CO9+(CP9-AX9)*CQ9+(CR9-AX9)*CS9+(CT9-AX9)*CU9+($AI$2-AX9)*M9)/AY9)-IF(AY9=0,0,((AZ9-AX9)*BA9+(BB9-AX9)*BC9+(BD9-AX9)*BE9+(BF9-AX9)*BG9+(BH9-AX9)*BI9+(BJ9-AX9)*BK9+(BL9-AX9)*BM9+(BN9-AX9)*BO9+(BP9-AX9)*BQ9+(BR9-AX9)*BS9+(BT9-AX9)*BU9+(AX9-AX9)*BW9)/AY9))) -> 357.1211355 | O9: =IF(M9=0,lists!$BQ$11,IF(N9<1,lists!$BQ$12,IF(M9<=conditions!$J$10,lists!$BQ$13,lists!$BQ$14))) -> Долг просроченный | P9: =IF(O9<>lists!$BQ$14,lists!$BT$11,IF(AND(AL9<>"",AL9<>0,AL9>IF(AM9="",0,AM9)),lists!$BT$12,IF(AND(AM9<>"",AM9<>0,AM9>=IF(AL9="",0,AL9)),lists!$BT$13,IF(IF(OR(AN9="",AN9=0),1,0)*U9+IF(OR(AO9="",AO9=0),1,0)*X9+IF(OR(AP9="",AP9=0),1,0)*AA9+IF(OR(AQ9="",AQ9=0),1,0)*AD9+IF(OR(AR9="",AR9=0),1,0)*AG9>0,lists!$BT$14,lists!$BT$15)))) -> Долг брошенный | Q9: =IF(O9<>lists!$BQ$14,"нет статуса",IF(BD!N9<=lists!$CB$11,lists!$BY$11,IF(BD!N9<=lists!$CB$12,lists!$BY$12,IF(BD!N9<=lists!$CB$13,lists!$BY$13,IF(BD!N9<=lists!$CB$14,lists!$BY$14,lists!$BY$15))))) -> просрочка-100 | R9: =IF(Q9="нет статуса","нет действий",IF(AND(Q9=lists!$BY$11,AI9-N9>=AN9),"нет действий",IF(AND(Q9=lists!$BY$11,AI9-N9<AN9),lists!$CK$11,IF(AND(AR9<>0,AR9<>""),lists!$CK$15,IF(AND(AQ9<>0,AQ9<>""),lists!$CK$14,IF(AND(AP9<>0,AP9<>""),lists!$CK$13,IF(AND(AO9<>0,AO9<>""),lists!$CK$12,IF(AND(AN9<>0,AN9<>""),lists!$CK$11,"нет действий")))))))) -> график рассрочки | S9: =IF(OR(AN9="",AN9=0),0,IF(AN9<$AI$2-N9,1,0)) -> 1 | T9: =IF(OR(AN9="",AN9=0),IF(AND(N9>lists!$CE$11,N9<=lists!$CH$11),N9-lists!$CE$11,0),IF(AND(AN9-($AI$2-N9)>lists!$CE$11,AN9-($AI$2-N9)<=lists!$CH$11),AN9-($AI$2-N9)-lists!$CE$11,0)) -> 0 | U9: =IF(OR(AN9="",AN9=0),IF(N9>lists!$CH$11,N9-lists!$CH$11,0),IF(AN9-($AI$2-N9)>lists!$CH$11,AN9-($AI$2-N9)-lists!$CH$11,0)) -> 0 | V9: =IF(OR(AO9="",AO9=0),0,IF(AO9<$AI$2-N9+lists!$CB$11,1,0)) -> 1 | W9: =IF(OR(AO9="",AO9=0),IF(AND(N9-lists!$CB$11>lists!$CE$12,N9-lists!$CB$11<=lists!$CH$12),N9-lists!$CB$11-lists!$CE$12,0),IF(AND(AO9-($AI$2-N9)-lists!$CB$11>lists!$CE$12,AO9-($AI$2-N9)-lists!$CB$11<=lists!$CH$12),AO9-($AI$2-N9)-lists!$CB$11-lists!$CE$12,0)) -> 0 | X9: =IF(OR(AO9="",AO9=0),IF(N9-lists!CB12>lists!$CH$12,N9-lists!CB12-lists!$CH$12,0),IF(AO9-($AI$2-N9)-lists!CB12>lists!$CH$12,AO9-($AI$2-N9)-lists!CB12-lists!$CH$12,0)) -> 0 | Y9: =IF(OR(AP9="",AP9=0),0,IF(AP9<$AI$2-N9+lists!$CB$11+lists!$CB$12,1,0)) -> 0 | Z9: =IF(OR(AP9="",AP9=0),IF(AND(N9-lists!$CB$11-lists!$CB$12>lists!$CE$13,N9-lists!$CB$11-lists!$CB$12<=lists!$CH$13),N9-lists!$CB$11-lists!$CB$12-lists!$CE$13,0),IF(AND(AP9-($AI$2-N9)-lists!$CB$11-lists!$CB$12>lists!$CE$13,AP9-($AI$2-N9)-lists!$CB$11-lists!$CB$12<=lists!$CH$13),AP9-($AI$2-N9)-lists!$CB$11-lists!$CB$12-lists!$CE$13,0)) -> 0 | AA9: =IF(OR(AP9="",AP9=0),IF(N9-lists!CB12-lists!CB13>lists!$CH$13,N9-lists!CB12-lists!CB13-lists!$CH$13,0),IF(AP9-($AI$2-N9)-lists!CB12-lists!CB13>lists!$CH$13,AP9-($AI$2-N9)-lists!CB12-lists!CB13-lists!$CH$13,0)) -> 301.1211355 | AB9: =IF(OR(AQ9="",AQ9=0),0,IF(AQ9<$AI$2-N9+lists!$CB$11+lists!$CB$12+lists!$CB$13,1,0)) -> 0 | AC9: =IF(OR(AQ9="",AQ9=0),IF(AND(N9-lists!$CB$11-lists!$CB$12-lists!$CB$13>lists!$CE$14,N9-lists!$CB$11-lists!$CB$12-lists!$CB$13<=lists!$CH$14),N9-lists!$CB$11-lists!$CB$12-lists!$CB$13-lists!$CE$14,0),IF(AND(AQ9-($AI$2-N9)-lists!$CB$11-lists!$CB$12-lists!$CB$13>lists!$CE$14,AQ9-($AI$2-N9)-lists!$CB$11-lists!$CB$12-lists!$CB$13<=lists!$CH$14),AQ9-($AI$2-N9)-lists!$CB$11-lists!$CB$12-lists!$CB$13-lists!$CE$14,0)) -> 0 | AD9: =IF(OR(AQ9="",AQ9=0),IF(N9-lists!CB12-lists!CB13-lists!CB14>lists!$CH$14,N9-lists!CB12-lists!CB13-lists!CB14-lists!$CH$14,0),IF(AQ9-($AI$2-N9)-lists!CB12-lists!CB13-lists!CB14>lists!$CH$14,AQ9-($AI$2-N9)-lists!CB12-lists!CB13-lists!CB14-lists!$CH$14,0)) -> 230.1211355 | AE9: =IF(OR(AR9="",AR9=0),0,IF(AR9<$AI$2-N9+lists!$CB$11+lists!$CB$12+lists!$CB$13+lists!$CB$14,1,0)) -> 0 | AF9: =IF(OR(AR9="",AR9=0),IF(AND(N9-lists!$CB$11-lists!$CB$12-lists!$CB$13-lists!$CB$14>lists!$CE$15,N9-lists!$CB$11-lists!$CB$12-lists!$CB$13-lists!$CB$14<=lists!$CH$15),N9-lists!$CB$11-lists!$CB$12-lists!$CB$13-lists!$CB$14-lists!$CE$15,0),IF(AND(AR9-($AI$2-N9)-lists!$CB$11-lists!$CB$12-lists!$CB$13-lists!$CB$14>lists!$CE$15,AR9-($AI$2-N9)-lists!$CB$11-lists!$CB$12-lists!$CB$13-lists!$CB$14<=lists!$CH$15),AR9-($AI$2-N9)-lists!$CB$11-lists!$CB$12-lists!$CB$13-lists!$CB$14-lists!$CE$15,0)) -> 0 | AG9: =IF(OR(AR9="",AR9=0),IF(N9-lists!CB12-lists!CB13-lists!CB14-lists!CB15>lists!$CH$15,N9-lists!CB12-lists!CB13-lists!CB14-lists!CB15-lists!$CH$15,0),IF(AR9-($AI$2-N9)-lists!CB12-lists!CB13-lists!CB14-lists!CB15>lists!$CH$15,AR9-($AI$2-N9)-lists!CB12-lists!CB13-lists!CB14-lists!CB15-lists!$CH$15,0)) -> 133.1211355 | AH9: =SUMIFS(AZ9:BW9,AZ$1:BW$1,"соглас. оплата"&"*")-IF(AY9="",0,AY9) -> 0 | AI9: 2019-10-17T12:18:22.030 | AK9: 0 | AL9: 00:00:00 | AM9: 00:00:00 | AN9: 2019-10-17T12:18:22.030 | AO9: 2019-10-14T20:15:40.790 | AP9: 00:00:00 | AQ9: 00:00:00 | AR9: 00:00:00 | AS9: зак-4 | AT9: №444 | AU9: 2019-10-01 | AV9: Акт | AW9: №444/1 | AX9: 2019-10-10 | AY9: 1000000 | AZ9: 2019-10-03 | BA9: 300000 | BB9: 2019-10-16 | BC9: 600000 | BD9: 2019-10-13 | BE9: 100000 | BF9: 00:00:00 | BG9: 0 | BH9: 00:00:00 | BI9: 0 | BJ9: 00:00:00 | BK9: 0 | BL9: 00:00:00 | BM9: 0 | BN9: 00:00:00 | BO9: 0 | BP9: 00:00:00 | BQ9: 0 | BR9: 00:00:00 | BS9: 0 | BT9: 00:00:00 | BU9: 0 | BV9: 00:00:00 | BW9: 0 | BX9: 2019-10-04 | BY9: 300000 | BZ9: 2019-10-14 | CA9: 100000 | CB9: 00:00:00 | CC9: 0 | CD9: 00:00:00 | CE9: 0 | CF9: 00:00:00 | CG9: 0 | CH9: 00:00:00 | CI9: 0 | CJ9: 00:00:00 | CK9: 0 | CL9: 00:00:00 | CM9: 0 | CN9: 00:00:00 | CO9: 0 | CP9: 00:00:00 | CQ9: 0 | CR9: 00:00:00 | CS9: 0 | CT9: 00:00:00 | CU9: 0 | CV9: 0 | CW9: 0 | CX9: 0 | CY9: 0 | CZ9: 0 | DA9: 0 | DB9: 0 | DC9: 0 | DD9: 0 | DE9: 0 | DF9: 0 | DG9: 0 | DH9: 0 | DI9: 0 | DJ9: 0 | DK9: 0 | DL9: 0 | DM9: 0 | DN9: 0
A10: =ROW() -> 10 | I10: =IF(SUMIFS(INDIRECT("K$1:K"&A10-1),INDIRECT("AS$1:AS"&A10-1),AS10,INDIRECT("AT$1:AT"&A10-1),AT10,INDIRECT("AV$1:AV"&A10-1),AV10,INDIRECT("AW$1:AW"&A10-1),AW10)=0,1,0) -> 0 | J10: =IF(SUMIFS(K10:K10,I10:I10,1,AS10:AS10,screen!$E$6,AT10:AT10,screen!$E$8,AV10:AV10,screen!$E$12,AW10:AW10,screen!$E$14)=0,"",1) ->  | K10: =1 -> 1 | L10: =AS10&" / дог. "&AT10&" от "&DAY(AU10)&"."&MONTH(AU10)&"."&YEAR(AU10)&"г. / "&AV10&" "&AW10&" от "&DAY(AX10)&"."&MONTH(AX10)&"."&YEAR(AX10)&"г. / сумма отгр. "&AY10 -> зак-4 / дог. №444 от 1.10.2019г. / Акт №444/1 от 10.10.2019г. / сумма отгр. 1000000 | M10: =IF(IF(AY10="",0,AY10)-SUMIFS(BX10:CU10,BX$1:CU$1,"фактич. оплата"&"*")>0,IF(AY10="",0,AY10)-SUMIFS(BX10:CU10,BX$1:CU$1,"фактич. оплата"&"*"),0) -> 600000 | N10: =IF(IF(M10=0,0,IF(AY10=0,0,((BX10-AX10)*BY10+(BZ10-AX10)*CA10+(CB10-AX10)*CC10+(CD10-AX10)*CE10+(CF10-AX10)*CG10+(CH10-AX10)*CI10+(CJ10-AX10)*CK10+(CL10-AX10)*CM10+(CN10-AX10)*CO10+(CP10-AX10)*CQ10+(CR10-AX10)*CS10+(CT10-AX10)*CU10+($AI$2-AX10)*M10)/AY10)-IF(AY10=0,0,((AZ10-AX10)*BA10+(BB10-AX10)*BC10+(BD10-AX10)*BE10+(BF10-AX10)*BG10+(BH10-AX10)*BI10+(BJ10-AX10)*BK10+(BL10-AX10)*BM10+(BN10-AX10)*BO10+(BP10-AX10)*BQ10+(BR10-AX10)*BS10+(BT10-AX10)*BU10+(AX10-AX10)*BW10)/AY10))<=0,0,IF(M10=0,0,IF(AY10=0,0,((BX10-AX10)*BY10+(BZ10-AX10)*CA10+(CB10-AX10)*CC10+(CD10-AX10)*CE10+(CF10-AX10)*CG10+(CH10-AX10)*CI10+(CJ10-AX10)*CK10+(CL10-AX10)*CM10+(CN10-AX10)*CO10+(CP10-AX10)*CQ10+(CR10-AX10)*CS10+(CT10-AX10)*CU10+($AI$2-AX10)*M10)/AY10)-IF(AY10=0,0,((AZ10-AX10)*BA10+(BB10-AX10)*BC10+(BD10-AX10)*BE10+(BF10-AX10)*BG10+(BH10-AX10)*BI10+(BJ10-AX10)*BK10+(BL10-AX10)*BM10+(BN10-AX10)*BO10+(BP10-AX10)*BQ10+(BR10-AX10)*BS10+(BT10-AX10)*BU10+(AX10-AX10)*BW10)/AY10))) -> 357.1211355 | O10: =IF(M10=0,lists!$BQ$11,IF(N10<1,lists!$BQ$12,IF(M10<=conditions!$J$10,lists!$BQ$13,lists!$BQ$14))) -> Долг просроченный | P10: =IF(O10<>lists!$BQ$14,lists!$BT$11,IF(AND(AL10<>"",AL10<>0,AL10>IF(AM10="",0,AM10)),lists!$BT$12,IF(AND(AM10<>"",AM10<>0,AM10>=IF(AL10="",0,AL10)),lists!$BT$13,IF(IF(OR(AN10="",AN10=0),1,0)*U10+IF(OR(AO10="",AO10=0),1,0)*X10+IF(OR(AP10="",AP10=0),1,0)*AA10+IF(OR(AQ10="",AQ10=0),1,0)*AD10+IF(OR(AR10="",AR10=0),1,0)*AG10>0,lists!$BT$14,lists!$BT$15)))) -> Долг брошенный | Q10: =IF(O10<>lists!$BQ$14,"нет статуса",IF(BD!N10<=lists!$CB$11,lists!$BY$11,IF(BD!N10<=lists!$CB$12,lists!$BY$12,IF(BD!N10<=lists!$CB$13,lists!$BY$13,IF(BD!N10<=lists!$CB$14,lists!$BY$14,lists!$BY$15))))) -> просрочка-100 | R10: =IF(Q10="нет статуса","нет действий",IF(AND(Q10=lists!$BY$11,AI10-N10>=AN10),"нет действий",IF(AND(Q10=lists!$BY$11,AI10-N10<AN10),lists!$CK$11,IF(AND(AR10<>0,AR10<>""),lists!$CK$15,IF(AND(AQ10<>0,AQ10<>""),lists!$CK$14,IF(AND(AP10<>0,AP10<>""),lists!$CK$13,IF(AND(AO10<>0,AO10<>""),lists!$CK$12,IF(AND(AN10<>0,AN10<>""),lists!$CK$11,"нет действий")))))))) -> график рассрочки | S10: =IF(OR(AN10="",AN10=0),0,IF(AN10<$AI$2-N10,1,0)) -> 1 | T10: =IF(OR(AN10="",AN10=0),IF(AND(N10>lists!$CE$11,N10<=lists!$CH$11),N10-lists!$CE$11,0),IF(AND(AN10-($AI$2-N10)>lists!$CE$11,AN10-($AI$2-N10)<=lists!$CH$11),AN10-($AI$2-N10)-lists!$CE$11,0)) -> 0 | U10: =IF(OR(AN10="",AN10=0),IF(N10>lists!$CH$11,N10-lists!$CH$11,0),IF(AN10-($AI$2-N10)>lists!$CH$11,AN10-($AI$2-N10)-lists!$CH$11,0)) -> 0 | V10: =IF(OR(AO10="",AO10=0),0,IF(AO10<$AI$2-N10+lists!$CB$11,1,0)) -> 1 | W10: =IF(OR(AO10="",AO10=0),IF(AND(N10-lists!$CB$11>lists!$CE$12,N10-lists!$CB$11<=lists!$CH$12),N10-lists!$CB$11-lists!$CE$12,0),IF(AND(AO10-($AI$2-N10)-lists!$CB$11>lists!$CE$12,AO10-($AI$2-N10)-lists!$CB$11<=lists!$CH$12),AO10-($AI$2-N10)-lists!$CB$11-lists!$CE$12,0)) -> 0 | X10: =IF(OR(AO10="",AO10=0),IF(N10-lists!CB12>lists!$CH$12,N10-lists!CB12-lists!$CH$12,0),IF(AO10-($AI$2-N10)-lists!CB12>lists!$CH$12,AO10-($AI$2-N10)-lists!CB12-lists!$CH$12,0)) -> 0 | Y10: =IF(OR(AP10="",AP10=0),0,IF(AP10<$AI$2-N10+lists!$CB$11+lists!$CB$12,1,0)) -> 0 | Z10: =IF(OR(AP10="",AP10=0),IF(AND(N10-lists!$CB$11-lists!$CB$12>lists!$CE$13,N10-lists!$CB$11-lists!$CB$12<=lists!$CH$13),N10-lists!$CB$11-lists!$CB$12-lists!$CE$13,0),IF(AND(AP10-($AI$2-N10)-lists!$CB$11-lists!$CB$12>lists!$CE$13,AP10-($AI$2-N10)-lists!$CB$11-lists!$CB$12<=lists!$CH$13),AP10-($AI$2-N10)-lists!$CB$11-lists!$CB$12-lists!$CE$13,0)) -> 0 | AA10: =IF(OR(AP10="",AP10=0),IF(N10-lists!CB12-lists!CB13>lists!$CH$13,N10-lists!CB12-lists!CB13-lists!$CH$13,0),IF(AP10-($AI$2-N10)-lists!CB12-lists!CB13>lists!$CH$13,AP10-($AI$2-N10)-lists!CB12-lists!CB13-lists!$CH$13,0)) -> 301.1211355 | AB10: =IF(OR(AQ10="",AQ10=0),0,IF(AQ10<$AI$2-N10+lists!$CB$11+lists!$CB$12+lists!$CB$13,1,0)) -> 0 | AC10: =IF(OR(AQ10="",AQ10=0),IF(AND(N10-lists!$CB$11-lists!$CB$12-lists!$CB$13>lists!$CE$14,N10-lists!$CB$11-lists!$CB$12-lists!$CB$13<=lists!$CH$14),N10-lists!$CB$11-lists!$CB$12-lists!$CB$13-lists!$CE$14,0),IF(AND(AQ10-($AI$2-N10)-lists!$CB$11-lists!$CB$12-lists!$CB$13>lists!$CE$14,AQ10-($AI$2-N10)-lists!$CB$11-lists!$CB$12-lists!$CB$13<=lists!$CH$14),AQ10-($AI$2-N10)-lists!$CB$11-lists!$CB$12-lists!$CB$13-lists!$CE$14,0)) -> 0 | AD10: =IF(OR(AQ10="",AQ10=0),IF(N10-lists!CB12-lists!CB13-lists!CB14>lists!$CH$14,N10-lists!CB12-lists!CB13-lists!CB14-lists!$CH$14,0),IF(AQ10-($AI$2-N10)-lists!CB12-lists!CB13-lists!CB14>lists!$CH$14,AQ10-($AI$2-N10)-lists!CB12-lists!CB13-lists!CB14-lists!$CH$14,0)) -> 230.1211355 | AE10: =IF(OR(AR10="",AR10=0),0,IF(AR10<$AI$2-N10+lists!$CB$11+lists!$CB$12+lists!$CB$13+lists!$CB$14,1,0)) -> 0 | AF10: =IF(OR(AR10="",AR10=0),IF(AND(N10-lists!$CB$11-lists!$CB$12-lists!$CB$13-lists!$CB$14>lists!$CE$15,N10-lists!$CB$11-lists!$CB$12-lists!$CB$13-lists!$CB$14<=lists!$CH$15),N10-lists!$CB$11-lists!$CB$12-lists!$CB$13-lists!$CB$14-lists!$CE$15,0),IF(AND(AR10-($AI$2-N10)-lists!$CB$11-lists!$CB$12-lists!$CB$13-lists!$CB$14>lists!$CE$15,AR10-($AI$2-N10)-lists!$CB$11-lists!$CB$12-lists!$CB$13-lists!$CB$14<=lists!$CH$15),AR10-($AI$2-N10)-lists!$CB$11-lists!$CB$12-lists!$CB$13-lists!$CB$14-lists!$CE$15,0)) -> 0 | AG10: =IF(OR(AR10="",AR10=0),IF(N10-lists!CB12-lists!CB13-lists!CB14-lists!CB15>lists!$CH$15,N10-lists!CB12-lists!CB13-lists!CB14-lists!CB15-lists!$CH$15,0),IF(AR10-($AI$2-N10)-lists!CB12-lists!CB13-lists!CB14-lists!CB15>lists!$CH$15,AR10-($AI$2-N10)-lists!CB12-lists!CB13-lists!CB14-lists!CB15-lists!$CH$15,0)) -> 133.1211355 | AH10: =SUMIFS(AZ10:BW10,AZ$1:BW$1,"соглас. оплата"&"*")-IF(AY10="",0,AY10) -> 0 | AI10: 2019-10-14T20:20:05.980 | AK10: 0 | AL10: 00:00:00 | AM10: 00:00:00 | AN10: 2019-10-14T20:10:35.790 | AO10: 2019-10-14T20:15:40.790 | AP10: 00:00:00 | AQ10: 00:00:00 | AR10: 00:00:00 | AS10: зак-4 | AT10: №444 | AU10: 2019-10-01 | AV10: Акт | AW10: №444/1 | AX10: 2019-10-10 | AY10: 1000000 | AZ10: 2019-10-03 | BA10: 300000 | BB10: 2019-10-16 | BC10: 600000 | BD10: 2019-10-13 | BE10: 100000 | BF10: 00:00:00 | BG10: 0 | BH10: 00:00:00 | BI10: 0 | BJ10: 00:00:00 | BK10: 0 | BL10: 00:00:00 | BM10: 0 | BN10: 00:00:00 | BO10: 0 | BP10: 00:00:00 | BQ10: 0 | BR10: 00:00:00 | BS10: 0 | BT10: 00:00:00 | BU10: 0 | BV10: 00:00:00 | BW10: 0 | BX10: 2019-10-04 | BY10: 300000 | BZ10: 2019-10-14 | CA10: 100000 | CB10: 00:00:00 | CC10: 0 | CD10: 00:00:00 | CE10: 0 | CF10: 00:00:00 | CG10: 0 | CH10: 00:00:00 | CI10: 0 | CJ10: 00:00:00 | CK10: 0 | CL10: 00:00:00 | CM10: 0 | CN10: 00:00:00 | CO10: 0 | CP10: 00:00:00 | CQ10: 0 | CR10: 00:00:00 | CS10: 0 | CT10: 00:00:00 | CU10: 0 | CV10: 0 | CW10: 0 | CX10: 0 | CY10: 0 | CZ10: 0 | DA10: 0 | DB10: 0 | DC10: 0 | DD10: 0 | DE10: 0 | DF10: 0 | DG10: 0 | DH10: 0 | DI10: 0 | DJ10: 0 | DK10: 0 | DL10: 0 | DM10: 0 | DN10: 0
A11: =ROW() -> 11 | I11: =IF(SUMIFS(INDIRECT("K$1:K"&A11-1),INDIRECT("AS$1:AS"&A11-1),AS11,INDIRECT("AT$1:AT"&A11-1),AT11,INDIRECT("AV$1:AV"&A11-1),AV11,INDIRECT("AW$1:AW"&A11-1),AW11)=0,1,0) -> 0 | J11: =IF(SUMIFS(K11:K11,I11:I11,1,AS11:AS11,screen!$E$6,AT11:AT11,screen!$E$8,AV11:AV11,screen!$E$12,AW11:AW11,screen!$E$14)=0,"",1) ->  | K11: =1 -> 1 | L11: =AS11&" / дог. "&AT11&" от "&DAY(AU11)&"."&MONTH(AU11)&"."&YEAR(AU11)&"г. / "&AV11&" "&AW11&" от "&DAY(AX11)&"."&MONTH(AX11)&"."&YEAR(AX11)&"г. / сумма отгр. "&AY11 -> зак-4 / дог. №444 от 1.10.2019г. / Акт №444/1 от 10.10.2019г. / сумма отгр. 1000000 | M11: =IF(IF(AY11="",0,AY11)-SUMIFS(BX11:CU11,BX$1:CU$1,"фактич. оплата"&"*")>0,IF(AY11="",0,AY11)-SUMIFS(BX11:CU11,BX$1:CU$1,"фактич. оплата"&"*"),0) -> 700000 | N11: =IF(IF(M11=0,0,IF(AY11=0,0,((BX11-AX11)*BY11+(BZ11-AX11)*CA11+(CB11-AX11)*CC11+(CD11-AX11)*CE11+(CF11-AX11)*CG11+(CH11-AX11)*CI11+(CJ11-AX11)*CK11+(CL11-AX11)*CM11+(CN11-AX11)*CO11+(CP11-AX11)*CQ11+(CR11-AX11)*CS11+(CT11-AX11)*CU11+($AI$2-AX11)*M11)/AY11)-IF(AY11=0,0,((AZ11-AX11)*BA11+(BB11-AX11)*BC11+(BD11-AX11)*BE11+(BF11-AX11)*BG11+(BH11-AX11)*BI11+(BJ11-AX11)*BK11+(BL11-AX11)*BM11+(BN11-AX11)*BO11+(BP11-AX11)*BQ11+(BR11-AX11)*BS11+(BT11-AX11)*BU11+(AX11-AX11)*BW11)/AY11))<=0,0,IF(M11=0,0,IF(AY11=0,0,((BX11-AX11)*BY11+(BZ11-AX11)*CA11+(CB11-AX11)*CC11+(CD11-AX11)*CE11+(CF11-AX11)*CG11+(CH11-AX11)*CI11+(CJ11-AX11)*CK11+(CL11-AX11)*CM11+(CN11-AX11)*CO11+(CP11-AX11)*CQ11+(CR11-AX11)*CS11+(CT11-AX11)*CU11+($AI$2-AX11)*M11)/AY11)-IF(AY11=0,0,((AZ11-AX11)*BA11+(BB11-AX11)*BC11+(BD11-AX11)*BE11+(BF11-AX11)*BG11+(BH11-AX11)*BI11+(BJ11-AX11)*BK11+(BL11-AX11)*BM11+(BN11-AX11)*BO11+(BP11-AX11)*BQ11+(BR11-AX11)*BS11+(BT11-AX11)*BU11+(AX11-AX11)*BW11)/AY11))) -> 418.5746581 | O11: =IF(M11=0,lists!$BQ$11,IF(N11<1,lists!$BQ$12,IF(M11<=conditions!$J$10,lists!$BQ$13,lists!$BQ$14))) -> Долг просроченный | P11: =IF(O11<>lists!$BQ$14,lists!$BT$11,IF(AND(AL11<>"",AL11<>0,AL11>IF(AM11="",0,AM11)),lists!$BT$12,IF(AND(AM11<>"",AM11<>0,AM11>=IF(AL11="",0,AL11)),lists!$BT$13,IF(IF(OR(AN11="",AN11=0),1,0)*U11+IF(OR(AO11="",AO11=0),1,0)*X11+IF(OR(AP11="",AP11=0),1,0)*AA11+IF(OR(AQ11="",AQ11=0),1,0)*AD11+IF(OR(AR11="",AR11=0),1,0)*AG11>0,lists!$BT$14,lists!$BT$15)))) -> Долг брошенный | Q11: =IF(O11<>lists!$BQ$14,"нет статуса",IF(BD!N11<=lists!$CB$11,lists!$BY$11,IF(BD!N11<=lists!$CB$12,lists!$BY$12,IF(BD!N11<=lists!$CB$13,lists!$BY$13,IF(BD!N11<=lists!$CB$14,lists!$BY$14,lists!$BY$15))))) -> просрочка-100 | R11: =IF(Q11="нет статуса","нет действий",IF(AND(Q11=lists!$BY$11,AI11-N11>=AN11),"нет действий",IF(AND(Q11=lists!$BY$11,AI11-N11<AN11),lists!$CK$11,IF(AND(AR11<>0,AR11<>""),lists!$CK$15,IF(AND(AQ11<>0,AQ11<>""),lists!$CK$14,IF(AND(AP11<>0,AP11<>""),lists!$CK$13,IF(AND(AO11<>0,AO11<>""),lists!$CK$12,IF(AND(AN11<>0,AN11<>""),lists!$CK$11,"нет действий")))))))) -> график рассрочки | S11: =IF(OR(AN11="",AN11=0),0,IF(AN11<$AI$2-N11,1,0)) -> 1 | T11: =IF(OR(AN11="",AN11=0),IF(AND(N11>lists!$CE$11,N11<=lists!$CH$11),N11-lists!$CE$11,0),IF(AND(AN11-($AI$2-N11)>lists!$CE$11,AN11-($AI$2-N11)<=lists!$CH$11),AN11-($AI$2-N11)-lists!$CE$11,0)) -> 0 | U11: =IF(OR(AN11="",AN11=0),IF(N11>lists!$CH$11,N11-lists!$CH$11,0),IF(AN11-($AI$2-N11)>lists!$CH$11,AN11-($AI$2-N11)-lists!$CH$11,0)) -> 0 | V11: =IF(OR(AO11="",AO11=0),0,IF(AO11<$AI$2-N11+lists!$CB$11,1,0)) -> 1 | W11: =IF(OR(AO11="",AO11=0),IF(AND(N11-lists!$CB$11>lists!$CE$12,N11-lists!$CB$11<=lists!$CH$12),N11-lists!$CB$11-lists!$CE$12,0),IF(AND(AO11-($AI$2-N11)-lists!$CB$11>lists!$CE$12,AO11-($AI$2-N11)-lists!$CB$11<=lists!$CH$12),AO11-($AI$2-N11)-lists!$CB$11-lists!$CE$12,0)) -> 0 | X11: =IF(OR(AO11="",AO11=0),IF(N11-lists!CB12>lists!$CH$12,N11-lists!CB12-lists!$CH$12,0),IF(AO11-($AI$2-N11)-lists!CB12>lists!$CH$12,AO11-($AI$2-N11)-lists!CB12-lists!$CH$12,0)) -> 0 | Y11: =IF(OR(AP11="",AP11=0),0,IF(AP11<$AI$2-N11+lists!$CB$11+lists!$CB$12,1,0)) -> 0 | Z11: =IF(OR(AP11="",AP11=0),IF(AND(N11-lists!$CB$11-lists!$CB$12>lists!$CE$13,N11-lists!$CB$11-lists!$CB$12<=lists!$CH$13),N11-lists!$CB$11-lists!$CB$12-lists!$CE$13,0),IF(AND(AP11-($AI$2-N11)-lists!$CB$11-lists!$CB$12>lists!$CE$13,AP11-($AI$2-N11)-lists!$CB$11-lists!$CB$12<=lists!$CH$13),AP11-($AI$2-N11)-lists!$CB$11-lists!$CB$12-lists!$CE$13,0)) -> 0 | AA11: =IF(OR(AP11="",AP11=0),IF(N11-lists!CB12-lists!CB13>lists!$CH$13,N11-lists!CB12-lists!CB13-lists!$CH$13,0),IF(AP11-($AI$2-N11)-lists!CB12-lists!CB13>lists!$CH$13,AP11-($AI$2-N11)-lists!CB12-lists!CB13-lists!$CH$13,0)) -> 362.5746581 | AB11: =IF(OR(AQ11="",AQ11=0),0,IF(AQ11<$AI$2-N11+lists!$CB$11+lists!$CB$12+lists!$CB$13,1,0)) -> 0 | AC11: =IF(OR(AQ11="",AQ11=0),IF(AND(N11-lists!$CB$11-lists!$CB$12-lists!$CB$13>lists!$CE$14,N11-lists!$CB$11-lists!$CB$12-lists!$CB$13<=lists!$CH$14),N11-lists!$CB$11-lists!$CB$12-lists!$CB$13-lists!$CE$14,0),IF(AND(AQ11-($AI$2-N11)-lists!$CB$11-lists!$CB$12-lists!$CB$13>lists!$CE$14,AQ11-($AI$2-N11)-lists!$CB$11-lists!$CB$12-lists!$CB$13<=lists!$CH$14),AQ11-($AI$2-N11)-lists!$CB$11-lists!$CB$12-lists!$CB$13-lists!$CE$14,0)) -> 0 | AD11: =IF(OR(AQ11="",AQ11=0),IF(N11-lists!CB12-lists!CB13-lists!CB14>lists!$CH$14,N11-lists!CB12-lists!CB13-lists!CB14-lists!$CH$14,0),IF(AQ11-($AI$2-N11)-lists!CB12-lists!CB13-lists!CB14>lists!$CH$14,AQ11-($AI$2-N11)-lists!CB12-lists!CB13-lists!CB14-lists!$CH$14,0)) -> 291.5746581 | AE11: =IF(OR(AR11="",AR11=0),0,IF(AR11<$AI$2-N11+lists!$CB$11+lists!$CB$12+lists!$CB$13+lists!$CB$14,1,0)) -> 0 | AF11: =IF(OR(AR11="",AR11=0),IF(AND(N11-lists!$CB$11-lists!$CB$12-lists!$CB$13-lists!$CB$14>lists!$CE$15,N11-lists!$CB$11-lists!$CB$12-lists!$CB$13-lists!$CB$14<=lists!$CH$15),N11-lists!$CB$11-lists!$CB$12-lists!$CB$13-lists!$CB$14-lists!$CE$15,0),IF(AND(AR11-($AI$2-N11)-lists!$CB$11-lists!$CB$12-lists!$CB$13-lists!$CB$14>lists!$CE$15,AR11-($AI$2-N11)-lists!$CB$11-lists!$CB$12-lists!$CB$13-lists!$CB$14<=lists!$CH$15),AR11-($AI$2-N11)-lists!$CB$11-lists!$CB$12-lists!$CB$13-lists!$CB$14-lists!$CE$15,0)) -> 0 | AG11: =IF(OR(AR11="",AR11=0),IF(N11-lists!CB12-lists!CB13-lists!CB14-lists!CB15>lists!$CH$15,N11-lists!CB12-lists!CB13-lists!CB14-lists!CB15-lists!$CH$15,0),IF(AR11-($AI$2-N11)-lists!CB12-lists!CB13-lists!CB14-lists!CB15>lists!$CH$15,AR11-($AI$2-N11)-lists!CB12-lists!CB13-lists!CB14-lists!CB15-lists!$CH$15,0)) -> 194.5746581 | AH11: =SUMIFS(AZ11:BW11,AZ$1:BW$1,"соглас. оплата"&"*")-IF(AY11="",0,AY11) -> 0 | AI11: 2019-10-14T20:15:40.790 | AK11: 0 | AL11: 00:00:00 | AM11: 00:00:00 | AN11: 2019-10-14T20:10:35.790 | AO11: 2019-10-14T20:15:40.790 | AP11: 00:00:00 | AQ11: 00:00:00 | AR11: 00:00:00 | AS11: зак-4 | AT11: №444 | AU11: 2019-10-01 | AV11: Акт | AW11: №444/1 | AX11: 2019-10-10 | AY11: 1000000 | AZ11: 2019-10-03 | BA11: 300000 | BB11: 2019-10-13 | BC11: 700000 | BD11: 00:00:00 | BE11: 0 | BF11: 00:00:00 | BG11: 0 | BH11: 00:00:00 | BI11: 0 | BJ11: 00:00:00 | BK11: 0 | BL11: 00:00:00 | BM11: 0 | BN11: 00:00:00 | BO11: 0 | BP11: 00:00:00 | BQ11: 0 | BR11: 00:00:00 | BS11: 0 | BT11: 00:00:00 | BU11: 0 | BV11: 00:00:00 | BW11: 0 | BX11: 2019-10-04 | BY11: 300000 | BZ11: 00:00:00 | CA11: 0 | CB11: 00:00:00 | CC11: 0 | CD11: 00:00:00 | CE11: 0 | CF11: 00:00:00 | CG11: 0 | CH11: 00:00:00 | CI11: 0 | CJ11: 00:00:00 | CK11: 0 | CL11: 00:00:00 | CM11: 0 | CN11: 00:00:00 | CO11: 0 | CP11: 00:00:00 | CQ11: 0 | CR11: 00:00:00 | CS11: 0 | CT11: 00:00:00 | CU11: 0 | CV11: 0 | CW11: 0 | CX11: 0 | CY11: 0 | CZ11: 0 | DA11: 0 | DB11: 0 | DC11: 0 | DD11: 0 | DE11: 0 | DF11: 0 | DG11: 0 | DH11: 0 | DI11: 0 | DJ11: 0 | DK11: 0 | DL11: 0 | DM11: 0 | DN11: 0
A12: =ROW() -> 12 | I12: =IF(SUMIFS(INDIRECT("K$1:K"&A12-1),INDIRECT("AS$1:AS"&A12-1),AS12,INDIRECT("AT$1:AT"&A12-1),AT12,INDIRECT("AV$1:AV"&A12-1),AV12,INDIRECT("AW$1:AW"&A12-1),AW12)=0,1,0) -> 0 | J12: =IF(SUMIFS(K12:K12,I12:I12,1,AS12:AS12,screen!$E$6,AT12:AT12,screen!$E$8,AV12:AV12,screen!$E$12,AW12:AW12,screen!$E$14)=0,"",1) ->  | K12: =1 -> 1 | L12: =AS12&" / дог. "&AT12&" от "&DAY(AU12)&"."&MONTH(AU12)&"."&YEAR(AU12)&"г. / "&AV12&" "&AW12&" от "&DAY(AX12)&"."&MONTH(AX12)&"."&YEAR(AX12)&"г. / сумма отгр. "&AY12 -> зак-4 / дог. №444 от 1.10.2019г. / Акт №444/1 от 10.10.2019г. / сумма отгр. 1000000 | M12: =IF(IF(AY12="",0,AY12)-SUMIFS(BX12:CU12,BX$1:CU$1,"фактич. оплата"&"*")>0,IF(AY12="",0,AY12)-SUMIFS(BX12:CU12,BX$1:CU$1,"фактич. оплата"&"*"),0) -> 700000 | N12: =IF(IF(M12=0,0,IF(AY12=0,0,((BX12-AX12)*BY12+(BZ12-AX12)*CA12+(CB12-AX12)*CC12+(CD12-AX12)*CE12+(CF12-AX12)*CG12+(CH12-AX12)*CI12+(CJ12-AX12)*CK12+(CL12-AX12)*CM12+(CN12-AX12)*CO12+(CP12-AX12)*CQ12+(CR12-AX12)*CS12+(CT12-AX12)*CU12+($AI$2-AX12)*M12)/AY12)-IF(AY12=0,0,((AZ12-AX12)*BA12+(BB12-AX12)*BC12+(BD12-AX12)*BE12+(BF12-AX12)*BG12+(BH12-AX12)*BI12+(BJ12-AX12)*BK12+(BL12-AX12)*BM12+(BN12-AX12)*BO12+(BP12-AX12)*BQ12+(BR12-AX12)*BS12+(BT12-AX12)*BU12+(AX12-AX12)*BW12)/AY12))<=0,0,IF(M12=0,0,IF(AY12=0,0,((BX12-AX12)*BY12+(BZ12-AX12)*CA12+(CB12-AX12)*CC12+(CD12-AX12)*CE12+(CF12-AX12)*CG12+(CH12-AX12)*CI12+(CJ12-AX12)*CK12+(CL12-AX12)*CM12+(CN12-AX12)*CO12+(CP12-AX12)*CQ12+(CR12-AX12)*CS12+(CT12-AX12)*CU12+($AI$2-AX12)*M12)/AY12)-IF(AY12=0,0,((AZ12-AX12)*BA12+(BB12-AX12)*BC12+(BD12-AX12)*BE12+(BF12-AX12)*BG12+(BH12-AX12)*BI12+(BJ12-AX12)*BK12+(BL12-AX12)*BM12+(BN12-AX12)*BO12+(BP12-AX12)*BQ12+(BR12-AX12)*BS12+(BT12-AX12)*BU12+(AX12-AX12)*BW12)/AY12))) -> 418.5746581 | O12: =IF(M12=0,lists!$BQ$11,IF(N12<1,lists!$BQ$12,IF(M12<=conditions!$J$10,lists!$BQ$13,lists!$BQ$14))) -> Долг просроченный | P12: =IF(O12<>lists!$BQ$14,lists!$BT$11,IF(AND(AL12<>"",AL12<>0,AL12>IF(AM12="",0,AM12)),lists!$BT$12,IF(AND(AM12<>"",AM12<>0,AM12>=IF(AL12="",0,AL12)),lists!$BT$13,IF(IF(OR(AN12="",AN12=0),1,0)*U12+IF(OR(AO12="",AO12=0),1,0)*X12+IF(OR(AP12="",AP12=0),1,0)*AA12+IF(OR(AQ12="",AQ12=0),1,0)*AD12+IF(OR(AR12="",AR12=0),1,0)*AG12>0,lists!$BT$14,lists!$BT$15)))) -> Долг брошенный | Q12: =IF(O12<>lists!$BQ$14,"нет статуса",IF(BD!N12<=lists!$CB$11,lists!$BY$11,IF(BD!N12<=lists!$CB$12,lists!$BY$12,IF(BD!N12<=lists!$CB$13,lists!$BY$13,IF(BD!N12<=lists!$CB$14,lists!$BY$14,lists!$BY$15))))) -> просрочка-100 | R12: =IF(Q12="нет статуса","нет действий",IF(AND(Q12=lists!$BY$11,AI12-N12>=AN12),"нет действий",IF(AND(Q12=lists!$BY$11,AI12-N12<AN12),lists!$CK$11,IF(AND(AR12<>0,AR12<>""),lists!$CK$15,IF(AND(AQ12<>0,AQ12<>""),lists!$CK$14,IF(AND(AP12<>0,AP12<>""),lists!$CK$13,IF(AND(AO12<>0,AO12<>""),lists!$CK$12,IF(AND(AN12<>0,AN12<>""),lists!$CK$11,"нет действий")))))))) -> коммуникация | S12: =IF(OR(AN12="",AN12=0),0,IF(AN12<$AI$2-N12,1,0)) -> 1 | T12: =IF(OR(AN12="",AN12=0),IF(AND(N12>lists!$CE$11,N12<=lists!$CH$11),N12-lists!$CE$11,0),IF(AND(AN12-($AI$2-N12)>lists!$CE$11,AN12-($AI$2-N12)<=lists!$CH$11),AN12-($AI$2-N12)-lists!$CE$11,0)) -> 0 | U12: =IF(OR(AN12="",AN12=0),IF(N12>lists!$CH$11,N12-lists!$CH$11,0),IF(AN12-($AI$2-N12)>lists!$CH$11,AN12-($AI$2-N12)-lists!$CH$11,0)) -> 0 | V12: =IF(OR(AO12="",AO12=0),0,IF(AO12<$AI$2-N12+lists!$CB$11,1,0)) -> 0 | W12: =IF(OR(AO12="",AO12=0),IF(AND(N12-lists!$CB$11>lists!$CE$12,N12-lists!$CB$11<=lists!$CH$12),N12-lists!$CB$11-lists!$CE$12,0),IF(AND(AO12-($AI$2-N12)-lists!$CB$11>lists!$CE$12,AO12-($AI$2-N12)-lists!$CB$11<=lists!$CH$12),AO12-($AI$2-N12)-lists!$CB$11-lists!$CE$12,0)) -> 0 | X12: =IF(OR(AO12="",AO12=0),IF(N12-lists!CB12>lists!$CH$12,N12-lists!CB12-lists!$CH$12,0),IF(AO12-($AI$2-N12)-lists!CB12>lists!$CH$12,AO12-($AI$2-N12)-lists!CB12-lists!$CH$12,0)) -> 404.5746581 | Y12: =IF(OR(AP12="",AP12=0),0,IF(AP12<$AI$2-N12+lists!$CB$11+lists!$CB$12,1,0)) -> 0 | Z12: =IF(OR(AP12="",AP12=0),IF(AND(N12-lists!$CB$11-lists!$CB$12>lists!$CE$13,N12-lists!$CB$11-lists!$CB$12<=lists!$CH$13),N12-lists!$CB$11-lists!$CB$12-lists!$CE$13,0),IF(AND(AP12-($AI$2-N12)-lists!$CB$11-lists!$CB$12>lists!$CE$13,AP12-($AI$2-N12)-lists!$CB$11-lists!$CB$12<=lists!$CH$13),AP12-($AI$2-N12)-lists!$CB$11-lists!$CB$12-lists!$CE$13,0)) -> 0 | AA12: =IF(OR(AP12="",AP12=0),IF(N12-lists!CB12-lists!CB13>lists!$CH$13,N12-lists!CB12-lists!CB13-lists!$CH$13,0),IF(AP12-($AI$2-N12)-lists!CB12-lists!CB13>lists!$CH$13,AP12-($AI$2-N12)-lists!CB12-lists!CB13-lists!$CH$13,0)) -> 362.5746581 | AB12: =IF(OR(AQ12="",AQ12=0),0,IF(AQ12<$AI$2-N12+lists!$CB$11+lists!$CB$12+lists!$CB$13,1,0)) -> 0 | AC12: =IF(OR(AQ12="",AQ12=0),IF(AND(N12-lists!$CB$11-lists!$CB$12-lists!$CB$13>lists!$CE$14,N12-lists!$CB$11-lists!$CB$12-lists!$CB$13<=lists!$CH$14),N12-lists!$CB$11-lists!$CB$12-lists!$CB$13-lists!$CE$14,0),IF(AND(AQ12-($AI$2-N12)-lists!$CB$11-lists!$CB$12-lists!$CB$13>lists!$CE$14,AQ12-($AI$2-N12)-lists!$CB$11-lists!$CB$12-lists!$CB$13<=lists!$CH$14),AQ12-($AI$2-N12)-lists!$CB$11-lists!$CB$12-lists!$CB$13-lists!$CE$14,0)) -> 0 | AD12: =IF(OR(AQ12="",AQ12=0),IF(N12-lists!CB12-lists!CB13-lists!CB14>lists!$CH$14,N12-lists!CB12-lists!CB13-lists!CB14-lists!$CH$14,0),IF(AQ12-($AI$2-N12)-lists!CB12-lists!CB13-lists!CB14>lists!$CH$14,AQ12-($AI$2-N12)-lists!CB12-lists!CB13-lists!CB14-lists!$CH$14,0)) -> 291.5746581 | AE12: =IF(OR(AR12="",AR12=0),0,IF(AR12<$AI$2-N12+lists!$CB$11+lists!$CB$12+lists!$CB$13+lists!$CB$14,1,0)) -> 0 | AF12: =IF(OR(AR12="",AR12=0),IF(AND(N12-lists!$CB$11-lists!$CB$12-lists!$CB$13-lists!$CB$14>lists!$CE$15,N12-lists!$CB$11-lists!$CB$12-lists!$CB$13-lists!$CB$14<=lists!$CH$15),N12-lists!$CB$11-lists!$CB$12-lists!$CB$13-lists!$CB$14-lists!$CE$15,0),IF(AND(AR12-($AI$2-N12)-lists!$CB$11-lists!$CB$12-lists!$CB$13-lists!$CB$14>lists!$CE$15,AR12-($AI$2-N12)-lists!$CB$11-lists!$CB$12-lists!$CB$13-lists!$CB$14<=lists!$CH$15),AR12-($AI$2-N12)-lists!$CB$11-lists!$CB$12-lists!$CB$13-lists!$CB$14-lists!$CE$15,0)) -> 0 | AG12: =IF(OR(AR12="",AR12=0),IF(N12-lists!CB12-lists!CB13-lists!CB14-lists!CB15>lists!$CH$15,N12-lists!CB12-lists!CB13-lists!CB14-lists!CB15-lists!$CH$15,0),IF(AR12-($AI$2-N12)-lists!CB12-lists!CB13-lists!CB14-lists!CB15>lists!$CH$15,AR12-($AI$2-N12)-lists!CB12-lists!CB13-lists!CB14-lists!CB15-lists!$CH$15,0)) -> 194.5746581 | AH12: =SUMIFS(AZ12:BW12,AZ$1:BW$1,"соглас. оплата"&"*")-IF(AY12="",0,AY12) -> 0 | AI12: 2019-10-14T20:10:35.790 | AK12: Владимир | AL12: 00:00:00 | AM12: 00:00:00 | AN12: 2019-10-14T20:10:35.790 | AO12: 00:00:00 | AP12: 00:00:00 | AQ12: 00:00:00 | AR12: 00:00:00 | AS12: зак-4 | AT12: №444 | AU12: 2019-10-01 | AV12: Акт | AW12: №444/1 | AX12: 2019-10-10 | AY12: 1000000 | AZ12: 2019-10-03 | BA12: 300000 | BB12: 2019-10-13 | BC12: 700000 | BD12: 00:00:00 | BE12: 0 | BF12: 00:00:00 | BG12: 0 | BH12: 00:00:00 | BI12: 0 | BJ12: 00:00:00 | BK12: 0 | BL12: 00:00:00 | BM12: 0 | BN12: 00:00:00 | BO12: 0 | BP12: 00:00:00 | BQ12: 0 | BR12: 00:00:00 | BS12: 0 | BT12: 00:00:00 | BU12: 0 | BV12: 00:00:00 | BW12: 0 | BX12: 2019-10-04 | BY12: 300000 | BZ12: 00:00:00 | CA12: 0 | CB12: 00:00:00 | CC12: 0 | CD12: 00:00:00 | CE12: 0 | CF12: 00:00:00 | CG12: 0 | CH12: 00:00:00 | CI12: 0 | CJ12: 00:00:00 | CK12: 0 | CL12: 00:00:00 | CM12: 0 | CN12: 00:00:00 | CO12: 0 | CP12: 00:00:00 | CQ12: 0 | CR12: 00:00:00 | CS12: 0 | CT12: 00:00:00 | CU12: 0 | CV12: 0 | CW12: 0 | CX12: 0 | CY12: 0 | CZ12: 0 | DA12: 0 | DB12: 0 | DC12: 0 | DD12: 0 | DE12: 0 | DF12: 0 | DG12: 0 | DH12: 0 | DI12: 0 | DJ12: 0 | DK12: 0 | DL12: 0 | DM12: 0 | DN12: 0
A13: =ROW() -> 13 | I13: =IF(SUMIFS(INDIRECT("K$1:K"&A13-1),INDIRECT("AS$1:AS"&A13-1),AS13,INDIRECT("AT$1:AT"&A13-1),AT13,INDIRECT("AV$1:AV"&A13-1),AV13,INDIRECT("AW$1:AW"&A13-1),AW13)=0,1,0) -> 0 | J13: =IF(SUMIFS(K13:K13,I13:I13,1,AS13:AS13,screen!$E$6,AT13:AT13,screen!$E$8,AV13:AV13,screen!$E$12,AW13:AW13,screen!$E$14)=0,"",1) ->  | K13: =1 -> 1 | L13: =AS13&" / дог. "&AT13&" от "&DAY(AU13)&"."&MONTH(AU13)&"."&YEAR(AU13)&"г. / "&AV13&" "&AW13&" от "&DAY(AX13)&"."&MONTH(AX13)&"."&YEAR(AX13)&"г. / сумма отгр. "&AY13 -> Зак-2 / дог. №555 от 1.10.2019г. / ТН №777 от 1.10.2019г. / сумма отгр. 1000000 | M13: =IF(IF(AY13="",0,AY13)-SUMIFS(BX13:CU13,BX$1:CU$1,"фактич. оплата"&"*")>0,IF(AY13="",0,AY13)-SUMIFS(BX13:CU13,BX$1:CU$1,"фактич. оплата"&"*"),0) -> 690000 | N13: =IF(IF(M13=0,0,IF(AY13=0,0,((BX13-AX13)*BY13+(BZ13-AX13)*CA13+(CB13-AX13)*CC13+(CD13-AX13)*CE13+(CF13-AX13)*CG13+(CH13-AX13)*CI13+(CJ13-AX13)*CK13+(CL13-AX13)*CM13+(CN13-AX13)*CO13+(CP13-AX13)*CQ13+(CR13-AX13)*CS13+(CT13-AX13)*CU13+($AI$2-AX13)*M13)/AY13)-IF(AY13=0,0,((AZ13-AX13)*BA13+(BB13-AX13)*BC13+(BD13-AX13)*BE13+(BF13-AX13)*BG13+(BH13-AX13)*BI13+(BJ13-AX13)*BK13+(BL13-AX13)*BM13+(BN13-AX13)*BO13+(BP13-AX13)*BQ13+(BR13-AX13)*BS13+(BT13-AX13)*BU13+(AX13-AX13)*BW13)/AY13))<=0,0,IF(M13=0,0,IF(AY13=0,0,((BX13-AX13)*BY13+(BZ13-AX13)*CA13+(CB13-AX13)*CC13+(CD13-AX13)*CE13+(CF13-AX13)*CG13+(CH13-AX13)*CI13+(CJ13-AX13)*CK13+(CL13-AX13)*CM13+(CN13-AX13)*CO13+(CP13-AX13)*CQ13+(CR13-AX13)*CS13+(CT13-AX13)*CU13+($AI$2-AX13)*M13)/AY13)-IF(AY13=0,0,((AZ13-AX13)*BA13+(BB13-AX13)*BC13+(BD13-AX13)*BE13+(BF13-AX13)*BG13+(BH13-AX13)*BI13+(BJ13-AX13)*BK13+(BL13-AX13)*BM13+(BN13-AX13)*BO13+(BP13-AX13)*BQ13+(BR13-AX13)*BS13+(BT13-AX13)*BU13+(AX13-AX13)*BW13)/AY13))) -> 414.4193058 | O13: =IF(M13=0,lists!$BQ$11,IF(N13<1,lists!$BQ$12,IF(M13<=conditions!$J$10,lists!$BQ$13,lists!$BQ$14))) -> Долг просроченный | P13: =IF(O13<>lists!$BQ$14,lists!$BT$11,IF(AND(AL13<>"",AL13<>0,AL13>IF(AM13="",0,AM13)),lists!$BT$12,IF(AND(AM13<>"",AM13<>0,AM13>=IF(AL13="",0,AL13)),lists!$BT$13,IF(IF(OR(AN13="",AN13=0),1,0)*U13+IF(OR(AO13="",AO13=0),1,0)*X13+IF(OR(AP13="",AP13=0),1,0)*AA13+IF(OR(AQ13="",AQ13=0),1,0)*AD13+IF(OR(AR13="",AR13=0),1,0)*AG13>0,lists!$BT$14,lists!$BT$15)))) -> Долг брошенный | Q13: =IF(O13<>lists!$BQ$14,"нет статуса",IF(BD!N13<=lists!$CB$11,lists!$BY$11,IF(BD!N13<=lists!$CB$12,lists!$BY$12,IF(BD!N13<=lists!$CB$13,lists!$BY$13,IF(BD!N13<=lists!$CB$14,lists!$BY$14,lists!$BY$15))))) -> просрочка-100 | R13: =IF(Q13="нет статуса","нет действий",IF(AND(Q13=lists!$BY$11,AI13-N13>=AN13),"нет действий",IF(AND(Q13=lists!$BY$11,AI13-N13<AN13),lists!$CK$11,IF(AND(AR13<>0,AR13<>""),lists!$CK$15,IF(AND(AQ13<>0,AQ13<>""),lists!$CK$14,IF(AND(AP13<>0,AP13<>""),lists!$CK$13,IF(AND(AO13<>0,AO13<>""),lists!$CK$12,IF(AND(AN13<>0,AN13<>""),lists!$CK$11,"нет действий")))))))) -> нет действий | S13: =IF(OR(AN13="",AN13=0),0,IF(AN13<$AI$2-N13,1,0)) -> 0 | T13: =IF(OR(AN13="",AN13=0),IF(AND(N13>lists!$CE$11,N13<=lists!$CH$11),N13-lists!$CE$11,0),IF(AND(AN13-($AI$2-N13)>lists!$CE$11,AN13-($AI$2-N13)<=lists!$CH$11),AN13-($AI$2-N13)-lists!$CE$11,0)) -> 0 | U13: =IF(OR(AN13="",AN13=0),IF(N13>lists!$CH$11,N13-lists!$CH$11,0),IF(AN13-($AI$2-N13)>lists!$CH$11,AN13-($AI$2-N13)-lists!$CH$11,0)) -> 412.4193058 | V13: =IF(OR(AO13="",AO13=0),0,IF(AO13<$AI$2-N13+lists!$CB$11,1,0)) -> 0 | W13: =IF(OR(AO13="",AO13=0),IF(AND(N13-lists!$CB$11>lists!$CE$12,N13-lists!$CB$11<=lists!$CH$12),N13-lists!$CB$11-lists!$CE$12,0),IF(AND(AO13-($AI$2-N13)-lists!$CB$11>lists!$CE$12,AO13-($AI$2-N13)-lists!$CB$11<=lists!$CH$12),AO13-($AI$2-N13)-lists!$CB$11-lists!$CE$12,0)) -> 0 | X13: =IF(OR(AO13="",AO13=0),IF(N13-lists!CB12>lists!$CH$12,N13-lists!CB12-lists!$CH$12,0),IF(AO13-($AI$2-N13)-lists!CB12>lists!$CH$12,AO13-($AI$2-N13)-lists!CB12-lists!$CH$12,0)) -> 400.4193058 | Y13: =IF(OR(AP13="",AP13=0),0,IF(AP13<$AI$2-N13+lists!$CB$11+lists!$CB$12,1,0)) -> 0 | Z13: =IF(OR(AP13="",AP13=0),IF(AND(N13-lists!$CB$11-lists!$CB$12>lists!$CE$13,N13-lists!$CB$11-lists!$CB$12<=lists!$CH$13),N13-lists!$CB$11-lists!$CB$12-lists!$CE$13,0),IF(AND(AP13-($AI$2-N13)-lists!$CB$11-lists!$CB$12>lists!$CE$13,AP13-($AI$2-N13)-lists!$CB$11-lists!$CB$12<=lists!$CH$13),AP13-($AI$2-N13)-lists!$CB$11-lists!$CB$12-lists!$CE$13,0)) -> 0 | AA13: =IF(OR(AP13="",AP13=0),IF(N13-lists!CB12-lists!CB13>lists!$CH$13,N13-lists!CB12-lists!CB13-lists!$CH$13,0),IF(AP13-($AI$2-N13)-lists!CB12-lists!CB13>lists!$CH$13,AP13-($AI$2-N13)-lists!CB12-lists!CB13-lists!$CH$13,0)) -> 358.4193058 | AB13: =IF(OR(AQ13="",AQ13=0),0,IF(AQ13<$AI$2-N13+lists!$CB$11+lists!$CB$12+lists!$CB$13,1,0)) -> 0 | AC13: =IF(OR(AQ13="",AQ13=0),IF(AND(N13-lists!$CB$11-lists!$CB$12-lists!$CB$13>lists!$CE$14,N13-lists!$CB$11-lists!$CB$12-lists!$CB$13<=lists!$CH$14),N13-lists!$CB$11-lists!$CB$12-lists!$CB$13-lists!$CE$14,0),IF(AND(AQ13-($AI$2-N13)-lists!$CB$11-lists!$CB$12-lists!$CB$13>lists!$CE$14,AQ13-($AI$2-N13)-lists!$CB$11-lists!$CB$12-lists!$CB$13<=lists!$CH$14),AQ13-($AI$2-N13)-lists!$CB$11-lists!$CB$12-lists!$CB$13-lists!$CE$14,0)) -> 0 | AD13: =IF(OR(AQ13="",AQ13=0),IF(N13-lists!CB12-lists!CB13-lists!CB14>lists!$CH$14,N13-lists!CB12-lists!CB13-lists!CB14-lists!$CH$14,0),IF(AQ13-($AI$2-N13)-lists!CB12-lists!CB13-lists!CB14>lists!$CH$14,AQ13-($AI$2-N13)-lists!CB12-lists!CB13-lists!CB14-lists!$CH$14,0)) -> 287.4193058 | AE13: =IF(OR(AR13="",AR13=0),0,IF(AR13<$AI$2-N13+lists!$CB$11+lists!$CB$12+lists!$CB$13+lists!$CB$14,1,0)) -> 0 | AF13: =IF(OR(AR13="",AR13=0),IF(AND(N13-lists!$CB$11-lists!$CB$12-lists!$CB$13-lists!$CB$14>lists!$CE$15,N13-lists!$CB$11-lists!$CB$12-lists!$CB$13-lists!$CB$14<=lists!$CH$15),N13-lists!$CB$11-lists!$CB$12-lists!$CB$13-lists!$CB$14-lists!$CE$15,0),IF(AND(AR13-($AI$2-N13)-lists!$CB$11-lists!$CB$12-lists!$CB$13-lists!$CB$14>lists!$CE$15,AR13-($AI$2-N13)-lists!$CB$11-lists!$CB$12-lists!$CB$13-lists!$CB$14<=lists!$CH$15),AR13-($AI$2-N13)-lists!$CB$11-lists!$CB$12-lists!$CB$13-lists!$CB$14-lists!$CE$15,0)) -> 0 | AG13: =IF(OR(AR13="",AR13=0),IF(N13-lists!CB12-lists!CB13-lists!CB14-lists!CB15>lists!$CH$15,N13-lists!CB12-lists!CB13-lists!CB14-lists!CB15-lists!$CH$15,0),IF(AR13-($AI$2-N13)-lists!CB12-lists!CB13-lists!CB14-lists!CB15>lists!$CH$15,AR13-($AI$2-N13)-lists!CB12-lists!CB13-lists!CB14-lists!CB15-lists!$CH$15,0)) -> 190.4193058 | AH13: =SUMIFS(AZ13:BW13,AZ$1:BW$1,"соглас. оплата"&"*")-IF(AY13="",0,AY13) -> 0 | AI13: 2019-10-11T15:53:05.340 | AK13: 0 | AL13: 00:00:00 | AM13: 00:00:00 | AN13: 00:00:00 | AO13: 00:00:00 | AP13: 00:00:00 | AQ13: 00:00:00 | AR13: 00:00:00 | AS13: Зак-2 | AT13: №555 | AU13: 2019-10-01 | AV13: ТН | AW13: №777 | AX13: 2019-10-01 | AY13: 1000000 | AZ13: 2019-10-01 | BA13: 250000 | BB13: 2019-10-10 | BC13: 250000 | BD13: 2019-10-15 | BE13: 500000 | BF13: 00:00:00 | BG13: 0 | BH13: 00:00:00 | BI13: 0 | BJ13: 00:00:00 | BK13: 0 | BL13: 00:00:00 | BM13: 0 | BN13: 00:00:00 | BO13: 0 | BP13: 00:00:00 | BQ13: 0 | BR13: 00:00:00 | BS13: 0 | BT13: 00:00:00 | BU13: 0 | BV13: 00:00:00 | BW13: 0 | BX13: 2019-10-10 | BY13: 10000 | BZ13: 2019-10-11 | CA13: 300000 | CB13: 00:00:00 | CC13: 0 | CD13: 00:00:00 | CE13: 0 | CF13: 00:00:00 | CG13: 0 | CH13: 00:00:00 | CI13: 0 | CJ13: 00:00:00 | CK13: 0 | CL13: 00:00:00 | CM13: 0 | CN13: 00:00:00 | CO13: 0 | CP13: 00:00:00 | CQ13: 0 | CR13: 00:00:00 | CS13: 0 | CT13: 00:00:00 | CU13: 0 | CV13: ООО "Заказчик-2" | CW13: ООО "Зак-2" | CX13: Сидоров | CY13: 33545626 | CZ13: 3756767 | DA13: 74568 | DB13: 267657 | DC13: 7787878 | DD13: 669696 | DE13: 254н565464 | DF13: 756787878 | DG13: 34757 | DH13: 3246 | DI13: ALL | DJ13: ALL | DK13: ALL | DL13: ALL | DM13: ALL | DN13: ALL
A14: =ROW() -> 14 | I14: =IF(SUMIFS(INDIRECT("K$1:K"&A14-1),INDIRECT("AS$1:AS"&A14-1),AS14,INDIRECT("AT$1:AT"&A14-1),AT14,INDIRECT("AV$1:AV"&A14-1),AV14,INDIRECT("AW$1:AW"&A14-1),AW14)=0,1,0) -> 1 | J14: =IF(SUMIFS(K14:K14,I14:I14,1,AS14:AS14,screen!$E$6,AT14:AT14,screen!$E$8,AV14:AV14,screen!$E$12,AW14:AW14,screen!$E$14)=0,"",1) -> 1 | K14: =1 -> 1 | L14: =AS14&" / дог. "&AT14&" от "&DAY(AU14)&"."&MONTH(AU14)&"."&YEAR(AU14)&"г. / "&AV14&" "&AW14&" от "&DAY(AX14)&"."&MONTH(AX14)&"."&YEAR(AX14)&"г. / сумма отгр. "&AY14 -> Зак / дог. №2 от 15.9.2019г. / ТН №5 от 2.10.2019г. / сумма отгр. 1000000 | M14: =IF(IF(AY14="",0,AY14)-SUMIFS(BX14:CU14,BX$1:CU$1,"фактич. оплата"&"*")>0,IF(AY14="",0,AY14)-SUMIFS(BX14:CU14,BX$1:CU$1,"фактич. оплата"&"*"),0) -> 0 | N14: =IF(IF(M14=0,0,IF(AY14=0,0,((BX14-AX14)*BY14+(BZ14-AX14)*CA14+(CB14-AX14)*CC14+(CD14-AX14)*CE14+(CF14-AX14)*CG14+(CH14-AX14)*CI14+(CJ14-AX14)*CK14+(CL14-AX14)*CM14+(CN14-AX14)*CO14+(CP14-AX14)*CQ14+(CR14-AX14)*CS14+(CT14-AX14)*CU14+($AI$2-AX14)*M14)/AY14)-IF(AY14=0,0,((AZ14-AX14)*BA14+(BB14-AX14)*BC14+(BD14-AX14)*BE14+(BF14-AX14)*BG14+(BH14-AX14)*BI14+(BJ14-AX14)*BK14+(BL14-AX14)*BM14+(BN14-AX14)*BO14+(BP14-AX14)*BQ14+(BR14-AX14)*BS14+(BT14-AX14)*BU14+(AX14-AX14)*BW14)/AY14))<=0,0,IF(M14=0,0,IF(AY14=0,0,((BX14-AX14)*BY14+(BZ14-AX14)*CA14+(CB14-AX14)*CC14+(CD14-AX14)*CE14+(CF14-AX14)*CG14+(CH14-AX14)*CI14+(CJ14-AX14)*CK14+(CL14-AX14)*CM14+(CN14-AX14)*CO14+(CP14-AX14)*CQ14+(CR14-AX14)*CS14+(CT14-AX14)*CU14+($AI$2-AX14)*M14)/AY14)-IF(AY14=0,0,((AZ14-AX14)*BA14+(BB14-AX14)*BC14+(BD14-AX14)*BE14+(BF14-AX14)*BG14+(BH14-AX14)*BI14+(BJ14-AX14)*BK14+(BL14-AX14)*BM14+(BN14-AX14)*BO14+(BP14-AX14)*BQ14+(BR14-AX14)*BS14+(BT14-AX14)*BU14+(AX14-AX14)*BW14)/AY14))) -> 0 | O14: =IF(M14=0,lists!$BQ$11,IF(N14<1,lists!$BQ$12,IF(M14<=conditions!$J$10,lists!$BQ$13,lists!$BQ$14))) -> Долга нет | P14: =IF(O14<>lists!$BQ$14,lists!$BT$11,IF(AND(AL14<>"",AL14<>0,AL14>IF(AM14="",0,AM14)),lists!$BT$12,IF(AND(AM14<>"",AM14<>0,AM14>=IF(AL14="",0,AL14)),lists!$BT$13,IF(IF(OR(AN14="",AN14=0),1,0)*U14+IF(OR(AO14="",AO14=0),1,0)*X14+IF(OR(AP14="",AP14=0),1,0)*AA14+IF(OR(AQ14="",AQ14=0),1,0)*AD14+IF(OR(AR14="",AR14=0),1,0)*AG14>0,lists!$BT$14,lists!$BT$15)))) -> Нет задачи | Q14: =IF(O14<>lists!$BQ$14,"нет статуса",IF(BD!N14<=lists!$CB$11,lists!$BY$11,IF(BD!N14<=lists!$CB$12,lists!$BY$12,IF(BD!N14<=lists!$CB$13,lists!$BY$13,IF(BD!N14<=lists!$CB$14,lists!$BY$14,lists!$BY$15))))) -> нет статуса | R14: =IF(Q14="нет статуса","нет действий",IF(AND(Q14=lists!$BY$11,AI14-N14>=AN14),"нет действий",IF(AND(Q14=lists!$BY$11,AI14-N14<AN14),lists!$CK$11,IF(AND(AR14<>0,AR14<>""),lists!$CK$15,IF(AND(AQ14<>0,AQ14<>""),lists!$CK$14,IF(AND(AP14<>0,AP14<>""),lists!$CK$13,IF(AND(AO14<>0,AO14<>""),lists!$CK$12,IF(AND(AN14<>0,AN14<>""),lists!$CK$11,"нет действий")))))))) -> нет действий | S14: =IF(OR(AN14="",AN14=0),0,IF(AN14<$AI$2-N14,1,0)) -> 1 | T14: =IF(OR(AN14="",AN14=0),IF(AND(N14>lists!$CE$11,N14<=lists!$CH$11),N14-lists!$CE$11,0),IF(AND(AN14-($AI$2-N14)>lists!$CE$11,AN14-($AI$2-N14)<=lists!$CH$11),AN14-($AI$2-N14)-lists!$CE$11,0)) -> 0 | U14: =IF(OR(AN14="",AN14=0),IF(N14>lists!$CH$11,N14-lists!$CH$11,0),IF(AN14-($AI$2-N14)>lists!$CH$11,AN14-($AI$2-N14)-lists!$CH$11,0)) -> 0 | V14: =IF(OR(AO14="",AO14=0),0,IF(AO14<$AI$2-N14+lists!$CB$11,1,0)) -> 1 | W14: =IF(OR(AO14="",AO14=0),IF(AND(N14-lists!$CB$11>lists!$CE$12,N14-lists!$CB$11<=lists!$CH$12),N14-lists!$CB$11-lists!$CE$12,0),IF(AND(AO14-($AI$2-N14)-lists!$CB$11>lists!$CE$12,AO14-($AI$2-N14)-lists!$CB$11<=lists!$CH$12),AO14-($AI$2-N14)-lists!$CB$11-lists!$CE$12,0)) -> 0 | X14: =IF(OR(AO14="",AO14=0),IF(N14-lists!CB12>lists!$CH$12,N14-lists!CB12-lists!$CH$12,0),IF(AO14-($AI$2-N14)-lists!CB12>lists!$CH$12,AO14-($AI$2-N14)-lists!CB12-lists!$CH$12,0)) -> 0 | Y14: =IF(OR(AP14="",AP14=0),0,IF(AP14<$AI$2-N14+lists!$CB$11+lists!$CB$12,1,0)) -> 1 | Z14: =IF(OR(AP14="",AP14=0),IF(AND(N14-lists!$CB$11-lists!$CB$12>lists!$CE$13,N14-lists!$CB$11-lists!$CB$12<=lists!$CH$13),N14-lists!$CB$11-lists!$CB$12-lists!$CE$13,0),IF(AND(AP14-($AI$2-N14)-lists!$CB$11-lists!$CB$12>lists!$CE$13,AP14-($AI$2-N14)-lists!$CB$11-lists!$CB$12<=lists!$CH$13),AP14-($AI$2-N14)-lists!$CB$11-lists!$CB$12-lists!$CE$13,0)) -> 0 | AA14: =IF(OR(AP14="",AP14=0),IF(N14-lists!CB12-lists!CB13>lists!$CH$13,N14-lists!CB12-lists!CB13-lists!$CH$13,0),IF(AP14-($AI$2-N14)-lists!CB12-lists!CB13>lists!$CH$13,AP14-($AI$2-N14)-lists!CB12-lists!CB13-lists!$CH$13,0)) -> 0 | AB14: =IF(OR(AQ14="",AQ14=0),0,IF(AQ14<$AI$2-N14+lists!$CB$11+lists!$CB$12+lists!$CB$13,1,0)) -> 1 | AC14: =IF(OR(AQ14="",AQ14=0),IF(AND(N14-lists!$CB$11-lists!$CB$12-lists!$CB$13>lists!$CE$14,N14-lists!$CB$11-lists!$CB$12-lists!$CB$13<=lists!$CH$14),N14-lists!$CB$11-lists!$CB$12-lists!$CB$13-lists!$CE$14,0),IF(AND(AQ14-($AI$2-N14)-lists!$CB$11-lists!$CB$12-lists!$CB$13>lists!$CE$14,AQ14-($AI$2-N14)-lists!$CB$11-lists!$CB$12-lists!$CB$13<=lists!$CH$14),AQ14-($AI$2-N14)-lists!$CB$11-lists!$CB$12-lists!$CB$13-lists!$CE$14,0)) -> 0 | AD14: =IF(OR(AQ14="",AQ14=0),IF(N14-lists!CB12-lists!CB13-lists!CB14>lists!$CH$14,N14-lists!CB12-lists!CB13-lists!CB14-lists!$CH$14,0),IF(AQ14-($AI$2-N14)-lists!CB12-lists!CB13-lists!CB14>lists!$CH$14,AQ14-($AI$2-N14)-lists!CB12-lists!CB13-lists!CB14-lists!$CH$14,0)) -> 0 | AE14: =IF(OR(AR14="",AR14=0),0,IF(AR14<$AI$2-N14+lists!$CB$11+lists!$CB$12+lists!$CB$13+lists!$CB$14,1,0)) -> 0 | AF14: =IF(OR(AR14="",AR14=0),IF(AND(N14-lists!$CB$11-lists!$CB$12-lists!$CB$13-lists!$CB$14>lists!$CE$15,N14-lists!$CB$11-lists!$CB$12-lists!$CB$13-lists!$CB$14<=lists!$CH$15),N14-lists!$CB$11-lists!$CB$12-lists!$CB$13-lists!$CB$14-lists!$CE$15,0),IF(AND(AR14-($AI$2-N14)-lists!$CB$11-lists!$CB$12-lists!$CB$13-lists!$CB$14>lists!$CE$15,AR14-($AI$2-N14)-lists!$CB$11-lists!$CB$12-lists!$CB$13-lists!$CB$14<=lists!$CH$15),AR14-($AI$2-N14)-lists!$CB$11-lists!$CB$12-lists!$CB$13-lists!$CB$14-lists!$CE$15,0)) -> 0 | AG14: =IF(OR(AR14="",AR14=0),IF(N14-lists!CB12-lists!CB13-lists!CB14-lists!CB15>lists!$CH$15,N14-lists!CB12-lists!CB13-lists!CB14-lists!CB15-lists!$CH$15,0),IF(AR14-($AI$2-N14)-lists!CB12-lists!CB13-lists!CB14-lists!CB15>lists!$CH$15,AR14-($AI$2-N14)-lists!CB12-lists!CB13-lists!CB14-lists!CB15-lists!$CH$15,0)) -> 0 | AH14: =SUMIFS(AZ14:BW14,AZ$1:BW$1,"соглас. оплата"&"*")-IF(AY14="",0,AY14) -> 0 | AI14: 2019-10-11T12:07:00.510 | AK14: 0 | AL14: 00:00:00 | AM14: 00:00:00 | AN14: 2019-10-08T04:51:52.380 | AO14: 2019-10-08T04:53:06 | AP14: 2019-10-08T04:56:11.130 | AQ14: 2019-10-11T12:07:00.510 | AR14: 00:00:00 | AS14: Зак | AT14: №2 | AU14: 2019-09-15 | AV14: ТН | AW14: №5 | AX14: 2019-10-02 | AY14: 1000000 | AZ14: 2019-09-18 | BA14: 300000 | BB14: 2019-10-01 | BC14: 500000 | BD14: 2019-10-04 | BE14: 200000 | BF14: 00:00:00 | BG14: 0 | BH14: 00:00:00 | BI14: 0 | BJ14: 00:00:00 | BK14: 0 | BL14: 00:00:00 | BM14: 0 | BN14: 00:00:00 | BO14: 0 | BP14: 00:00:00 | BQ14: 0 | BR14: 00:00:00 | BS14: 0 | BT14: 00:00:00 | BU14: 0 | BV14: 00:00:00 | BW14: 0 | BX14: 2019-09-23 | BY14: 400000 | BZ14: 2019-10-03 | CA14: 100000 | CB14: 2019-10-08 | CC14: 500000 | CD14: 00:00:00 | CE14: 0 | CF14: 00:00:00 | CG14: 0 | CH14: 00:00:00 | CI14: 0 | CJ14: 00:00:00 | CK14: 0 | CL14: 00:00:00 | CM14: 0 | CN14: 00:00:00 | CO14: 0 | CP14: 00:00:00 | CQ14: 0 | CR14: 00:00:00 | CS14: 0 | CT14: 00:00:00 | CU14: 0 | CV14: ООО "Заказчик" | CW14: ООО "Зак" | CX14: Петров Иван Иванович | CY14: 123456789 | CZ14: mail@mail.ru | DA14: 1111111111 | DB14: 111111111 | DC14: 111111111111 | DD14: 111111 | DE14: 11111111111111 | DF14: 1111111111111 | DG14: 11111111111111 | DH14: 11111111 | DI14: ALL | DJ14: ALL | DK14: ALL | DL14: ALL | DM14: ALL | DN14: ALL
A15: =ROW() -> 15 | I15: =IF(SUMIFS(INDIRECT("K$1:K"&A15-1),INDIRECT("AS$1:AS"&A15-1),AS15,INDIRECT("AT$1:AT"&A15-1),AT15,INDIRECT("AV$1:AV"&A15-1),AV15,INDIRECT("AW$1:AW"&A15-1),AW15)=0,1,0) -> 0 | J15: =IF(SUMIFS(K15:K15,I15:I15,1,AS15:AS15,screen!$E$6,AT15:AT15,screen!$E$8,AV15:AV15,screen!$E$12,AW15:AW15,screen!$E$14)=0,"",1) ->  | K15: =1 -> 1 | L15: =AS15&" / дог. "&AT15&" от "&DAY(AU15)&"."&MONTH(AU15)&"."&YEAR(AU15)&"г. / "&AV15&" "&AW15&" от "&DAY(AX15)&"."&MONTH(AX15)&"."&YEAR(AX15)&"г. / сумма отгр. "&AY15 -> Зак-2 / дог. №555 от 1.10.2019г. / ТН №777 от 1.10.2019г. / сумма отгр. 1000000 | M15: =IF(IF(AY15="",0,AY15)-SUMIFS(BX15:CU15,BX$1:CU$1,"фактич. оплата"&"*")>0,IF(AY15="",0,AY15)-SUMIFS(BX15:CU15,BX$1:CU$1,"фактич. оплата"&"*"),0) -> 990000 | N15: =IF(IF(M15=0,0,IF(AY15=0,0,((BX15-AX15)*BY15+(BZ15-AX15)*CA15+(CB15-AX15)*CC15+(CD15-AX15)*CE15+(CF15-AX15)*CG15+(CH15-AX15)*CI15+(CJ15-AX15)*CK15+(CL15-AX15)*CM15+(CN15-AX15)*CO15+(CP15-AX15)*CQ15+(CR15-AX15)*CS15+(CT15-AX15)*CU15+($AI$2-AX15)*M15)/AY15)-IF(AY15=0,0,((AZ15-AX15)*BA15+(BB15-AX15)*BC15+(BD15-AX15)*BE15+(BF15-AX15)*BG15+(BH15-AX15)*BI15+(BJ15-AX15)*BK15+(BL15-AX15)*BM15+(BN15-AX15)*BO15+(BP15-AX15)*BQ15+(BR15-AX15)*BS15+(BT15-AX15)*BU15+(AX15-AX15)*BW15)/AY15))<=0,0,IF(M15=0,0,IF(AY15=0,0,((BX15-AX15)*BY15+(BZ15-AX15)*CA15+(CB15-AX15)*CC15+(CD15-AX15)*CE15+(CF15-AX15)*CG15+(CH15-AX15)*CI15+(CJ15-AX15)*CK15+(CL15-AX15)*CM15+(CN15-AX15)*CO15+(CP15-AX15)*CQ15+(CR15-AX15)*CS15+(CT15-AX15)*CU15+($AI$2-AX15)*M15)/AY15)-IF(AY15=0,0,((AZ15-AX15)*BA15+(BB15-AX15)*BC15+(BD15-AX15)*BE15+(BF15-AX15)*BG15+(BH15-AX15)*BI15+(BJ15-AX15)*BK15+(BL15-AX15)*BM15+(BN15-AX15)*BO15+(BP15-AX15)*BQ15+(BR15-AX15)*BS15+(BT15-AX15)*BU15+(AX15-AX15)*BW15)/AY15))) -> 594.2798736 | O15: =IF(M15=0,lists!$BQ$11,IF(N15<1,lists!$BQ$12,IF(M15<=conditions!$J$10,lists!$BQ$13,lists!$BQ$14))) -> Долг просроченный | P15: =IF(O15<>lists!$BQ$14,lists!$BT$11,IF(AND(AL15<>"",AL15<>0,AL15>IF(AM15="",0,AM15)),lists!$BT$12,IF(AND(AM15<>"",AM15<>0,AM15>=IF(AL15="",0,AL15)),lists!$BT$13,IF(IF(OR(AN15="",AN15=0),1,0)*U15+IF(OR(AO15="",AO15=0),1,0)*X15+IF(OR(AP15="",AP15=0),1,0)*AA15+IF(OR(AQ15="",AQ15=0),1,0)*AD15+IF(OR(AR15="",AR15=0),1,0)*AG15>0,lists!$BT$14,lists!$BT$15)))) -> Долг брошенный | Q15: =IF(O15<>lists!$BQ$14,"нет статуса",IF(BD!N15<=lists!$CB$11,lists!$BY$11,IF(BD!N15<=lists!$CB$12,lists!$BY$12,IF(BD!N15<=lists!$CB$13,lists!$BY$13,IF(BD!N15<=lists!$CB$14,lists!$BY$14,lists!$BY$15))))) -> просрочка-100 | R15: =IF(Q15="нет статуса","нет действий",IF(AND(Q15=lists!$BY$11,AI15-N15>=AN15),"нет действий",IF(AND(Q15=lists!$BY$11,AI15-N15<AN15),lists!$CK$11,IF(AND(AR15<>0,AR15<>""),lists!$CK$15,IF(AND(AQ15<>0,AQ15<>""),lists!$CK$14,IF(AND(AP15<>0,AP15<>""),lists!$CK$13,IF(AND(AO15<>0,AO15<>""),lists!$CK$12,IF(AND(AN15<>0,AN15<>""),lists!$CK$11,"нет действий")))))))) -> нет действий | S15: =IF(OR(AN15="",AN15=0),0,IF(AN15<$AI$2-N15,1,0)) -> 0 | T15: =IF(OR(AN15="",AN15=0),IF(AND(N15>lists!$CE$11,N15<=lists!$CH$11),N15-lists!$CE$11,0),IF(AND(AN15-($AI$2-N15)>lists!$CE$11,AN15-($AI$2-N15)<=lists!$CH$11),AN15-($AI$2-N15)-lists!$CE$11,0)) -> 0 | U15: =IF(OR(AN15="",AN15=0),IF(N15>lists!$CH$11,N15-lists!$CH$11,0),IF(AN15-($AI$2-N15)>lists!$CH$11,AN15-($AI$2-N15)-lists!$CH$11,0)) -> 592.2798736 | V15: =IF(OR(AO15="",AO15=0),0,IF(AO15<$AI$2-N15+lists!$CB$11,1,0)) -> 0 | W15: =IF(OR(AO15="",AO15=0),IF(AND(N15-lists!$CB$11>lists!$CE$12,N15-lists!$CB$11<=lists!$CH$12),N15-lists!$CB$11-lists!$CE$12,0),IF(AND(AO15-($AI$2-N15)-lists!$CB$11>lists!$CE$12,AO15-($AI$2-N15)-lists!$CB$11<=lists!$CH$12),AO15-($AI$2-N15)-lists!$CB$11-lists!$CE$12,0)) -> 0 | X15: =IF(OR(AO15="",AO15=0),IF(N15-lists!CB12>lists!$CH$12,N15-lists!CB12-lists!$CH$12,0),IF(AO15-($AI$2-N15)-lists!CB12>lists!$CH$12,AO15-($AI$2-N15)-lists!CB12-lists!$CH$12,0)) -> 580.2798736 | Y15: =IF(OR(AP15="",AP15=0),0,IF(AP15<$AI$2-N15+lists!$CB$11+lists!$CB$12,1,0)) -> 0 | Z15: =IF(OR(AP15="",AP15=0),IF(AND(N15-lists!$CB$11-lists!$CB$12>lists!$CE$13,N15-lists!$CB$11-lists!$CB$12<=lists!$CH$13),N15-lists!$CB$11-lists!$CB$12-lists!$CE$13,0),IF(AND(AP15-($AI$2-N15)-lists!$CB$11-lists!$CB$12>lists!$CE$13,AP15-($AI$2-N15)-lists!$CB$11-lists!$CB$12<=lists!$CH$13),AP15-($AI$2-N15)-lists!$CB$11-lists!$CB$12-lists!$CE$13,0)) -> 0 | AA15: =IF(OR(AP15="",AP15=0),IF(N15-lists!CB12-lists!CB13>lists!$CH$13,N15-lists!CB12-lists!CB13-lists!$CH$13,0),IF(AP15-($AI$2-N15)-lists!CB12-lists!CB13>lists!$CH$13,AP15-($AI$2-N15)-lists!CB12-lists!CB13-lists!$CH$13,0)) -> 538.2798736 | AB15: =IF(OR(AQ15="",AQ15=0),0,IF(AQ15<$AI$2-N15+lists!$CB$11+lists!$CB$12+lists!$CB$13,1,0)) -> 0 | AC15: =IF(OR(AQ15="",AQ15=0),IF(AND(N15-lists!$CB$11-lists!$CB$12-lists!$CB$13>lists!$CE$14,N15-lists!$CB$11-lists!$CB$12-lists!$CB$13<=lists!$CH$14),N15-lists!$CB$11-lists!$CB$12-lists!$CB$13-lists!$CE$14,0),IF(AND(AQ15-($AI$2-N15)-lists!$CB$11-lists!$CB$12-lists!$CB$13>lists!$CE$14,AQ15-($AI$2-N15)-lists!$CB$11-lists!$CB$12-lists!$CB$13<=lists!$CH$14),AQ15-($AI$2-N15)-lists!$CB$11-lists!$CB$12-lists!$CB$13-lists!$CE$14,0)) -> 0 | AD15: =IF(OR(AQ15="",AQ15=0),IF(N15-lists!CB12-lists!CB13-lists!CB14>lists!$CH$14,N15-lists!CB12-lists!CB13-lists!CB14-lists!$CH$14,0),IF(AQ15-($AI$2-N15)-lists!CB12-lists!CB13-lists!CB14>lists!$CH$14,AQ15-($AI$2-N15)-lists!CB12-lists!CB13-lists!CB14-lists!$CH$14,0)) -> 467.2798736 | AE15: =IF(OR(AR15="",AR15=0),0,IF(AR15<$AI$2-N15+lists!$CB$11+lists!$CB$12+lists!$CB$13+lists!$CB$14,1,0)) -> 0 | AF15: =IF(OR(AR15="",AR15=0),IF(AND(N15-lists!$CB$11-lists!$CB$12-lists!$CB$13-lists!$CB$14>lists!$CE$15,N15-lists!$CB$11-lists!$CB$12-lists!$CB$13-lists!$CB$14<=lists!$CH$15),N15-lists!$CB$11-lists!$CB$12-lists!$CB$13-lists!$CB$14-lists!$CE$15,0),IF(AND(AR15-($AI$2-N15)-lists!$CB$11-lists!$CB$12-lists!$CB$13-lists!$CB$14>lists!$CE$15,AR15-($AI$2-N15)-lists!$CB$11-lists!$CB$12-lists!$CB$13-lists!$CB$14<=lists!$CH$15),AR15-($AI$2-N15)-lists!$CB$11-lists!$CB$12-lists!$CB$13-lists!$CB$14-lists!$CE$15,0)) -> 0 | AG15: =IF(OR(AR15="",AR15=0),IF(N15-lists!CB12-lists!CB13-lists!CB14-lists!CB15>lists!$CH$15,N15-lists!CB12-lists!CB13-lists!CB14-lists!CB15-lists!$CH$15,0),IF(AR15-($AI$2-N15)-lists!CB12-lists!CB13-lists!CB14-lists!CB15>lists!$CH$15,AR15-($AI$2-N15)-lists!CB12-lists!CB13-lists!CB14-lists!CB15-lists!$CH$15,0)) -> 370.2798736 | AH15: =SUMIFS(AZ15:BW15,AZ$1:BW$1,"соглас. оплата"&"*")-IF(AY15="",0,AY15) -> 0 | AI15: 2019-10-11T12:00:14.930 | AK15: пользователь-1-коммуникац | AL15: 00:00:00 | AM15: 00:00:00 | AN15: 00:00:00 | AO15: 00:00:00 | AP15: 00:00:00 | AQ15: 00:00:00 | AR15: 00:00:00 | AS15: Зак-2 | AT15: №555 | AU15: 2019-10-01 | AV15: ТН | AW15: №777 | AX15: 2019-10-01 | AY15: 1000000 | AZ15: 2019-10-01 | BA15: 250000 | BB15: 2019-10-10 | BC15: 250000 | BD15: 2019-10-15 | BE15: 500000 | BF15: 00:00:00 | BG15: 0 | BH15: 00:00:00 | BI15: 0 | BJ15: 00:00:00 | BK15: 0 | BL15: 00:00:00 | BM15: 0 | BN15: 00:00:00 | BO15: 0 | BP15: 00:00:00 | BQ15: 0 | BR15: 00:00:00 | BS15: 0 | BT15: 00:00:00 | BU15: 0 | BV15: 00:00:00 | BW15: 0 | BX15: 2019-10-10 | BY15: 10000 | BZ15: 00:00:00 | CA15: 0 | CB15: 00:00:00 | CC15: 0 | CD15: 00:00:00 | CE15: 0 | CF15: 00:00:00 | CG15: 0 | CH15: 00:00:00 | CI15: 0 | CJ15: 00:00:00 | CK15: 0 | CL15: 00:00:00 | CM15: 0 | CN15: 00:00:00 | CO15: 0 | CP15: 00:00:00 | CQ15: 0 | CR15: 00:00:00 | CS15: 0 | CT15: 00:00:00 | CU15: 0 | CV15: ООО "Заказчик-2" | CW15: ООО "Зак-2" | CX15: Сидоров | CY15: 33545626 | CZ15: 3756767 | DA15: 74568 | DB15: 267657 | DC15: 7787878 | DD15: 669696 | DE15: 254н565464 | DF15: 756787878 | DG15: 34757 | DH15: 3246 | DI15: ALL | DJ15: ALL | DK15: ALL | DL15: ALL | DM15: ALL | DN15: ALL
A16: =ROW() -> 16 | I16: 0 | J16: =IF(SUMIFS(K16:K16,I16:I16,1,AS16:AS16,screen!$E$6,AT16:AT16,screen!$E$8,AV16:AV16,screen!$E$12,AW16:AW16,screen!$E$14)=0,"",1) ->  | K16: =1 -> 1 | L16: =AS16&" / дог. "&AT16&" от "&DAY(AU16)&"."&MONTH(AU16)&"."&YEAR(AU16)&"г. / "&AV16&" "&AW16&" от "&DAY(AX16)&"."&MONTH(AX16)&"."&YEAR(AX16)&"г. / сумма отгр. "&AY16 -> Зак / дог. №2 от 15.9.2019г. / ТН №5 от 2.10.2019г. / сумма отгр. 1000000 | M16: =IF(IF(AY16="",0,AY16)-SUMIFS(BX16:CU16,BX$1:CU$1,"фактич. оплата"&"*")>0,IF(AY16="",0,AY16)-SUMIFS(BX16:CU16,BX$1:CU$1,"фактич. оплата"&"*"),0) -> 0 | N16: =IF(IF(M16=0,0,IF(AY16=0,0,((BX16-AX16)*BY16+(BZ16-AX16)*CA16+(CB16-AX16)*CC16+(CD16-AX16)*CE16+(CF16-AX16)*CG16+(CH16-AX16)*CI16+(CJ16-AX16)*CK16+(CL16-AX16)*CM16+(CN16-AX16)*CO16+(CP16-AX16)*CQ16+(CR16-AX16)*CS16+(CT16-AX16)*CU16+($AI$2-AX16)*M16)/AY16)-IF(AY16=0,0,((AZ16-AX16)*BA16+(BB16-AX16)*BC16+(BD16-AX16)*BE16+(BF16-AX16)*BG16+(BH16-AX16)*BI16+(BJ16-AX16)*BK16+(BL16-AX16)*BM16+(BN16-AX16)*BO16+(BP16-AX16)*BQ16+(BR16-AX16)*BS16+(BT16-AX16)*BU16+(AX16-AX16)*BW16)/AY16))<=0,0,IF(M16=0,0,IF(AY16=0,0,((BX16-AX16)*BY16+(BZ16-AX16)*CA16+(CB16-AX16)*CC16+(CD16-AX16)*CE16+(CF16-AX16)*CG16+(CH16-AX16)*CI16+(CJ16-AX16)*CK16+(CL16-AX16)*CM16+(CN16-AX16)*CO16+(CP16-AX16)*CQ16+(CR16-AX16)*CS16+(CT16-AX16)*CU16+($AI$2-AX16)*M16)/AY16)-IF(AY16=0,0,((AZ16-AX16)*BA16+(BB16-AX16)*BC16+(BD16-AX16)*BE16+(BF16-AX16)*BG16+(BH16-AX16)*BI16+(BJ16-AX16)*BK16+(BL16-AX16)*BM16+(BN16-AX16)*BO16+(BP16-AX16)*BQ16+(BR16-AX16)*BS16+(BT16-AX16)*BU16+(AX16-AX16)*BW16)/AY16))) -> 0 | O16: =IF(M16=0,lists!$BQ$11,IF(N16<1,lists!$BQ$12,IF(M16<=conditions!$J$10,lists!$BQ$13,lists!$BQ$14))) -> Долга нет | P16: =IF(O16<>lists!$BQ$14,lists!$BT$11,IF(AND(AL16<>"",AL16<>0,AL16>IF(AM16="",0,AM16)),lists!$BT$12,IF(AND(AM16<>"",AM16<>0,AM16>=IF(AL16="",0,AL16)),lists!$BT$13,IF(IF(OR(AN16="",AN16=0),1,0)*U16+IF(OR(AO16="",AO16=0),1,0)*X16+IF(OR(AP16="",AP16=0),1,0)*AA16+IF(OR(AQ16="",AQ16=0),1,0)*AD16+IF(OR(AR16="",AR16=0),1,0)*AG16>0,lists!$BT$14,lists!$BT$15)))) -> Нет задачи | Q16: =IF(O16<>lists!$BQ$14,"нет статуса",IF(BD!N16<=lists!$CB$11,lists!$BY$11,IF(BD!N16<=lists!$CB$12,lists!$BY$12,IF(BD!N16<=lists!$CB$13,lists!$BY$13,IF(BD!N16<=lists!$CB$14,lists!$BY$14,lists!$BY$15))))) -> нет статуса | R16: =IF(Q16="нет статуса","нет действий",IF(AND(Q16=lists!$BY$11,AI16-N16>=AN16),"нет действий",IF(AND(Q16=lists!$BY$11,AI16-N16<AN16),lists!$CK$11,IF(AND(AR16<>0,AR16<>""),lists!$CK$15,IF(AND(AQ16<>0,AQ16<>""),lists!$CK$14,IF(AND(AP16<>0,AP16<>""),lists!$CK$13,IF(AND(AO16<>0,AO16<>""),lists!$CK$12,IF(AND(AN16<>0,AN16<>""),lists!$CK$11,"нет действий")))))))) -> нет действий | S16: =IF(OR(AN16="",AN16=0),0,IF(AN16<$AI$2-N16,1,0)) -> 1 | T16: =IF(OR(AN16="",AN16=0),IF(AND(N16>lists!$CE$11,N16<=lists!$CH$11),N16-lists!$CE$11,0),IF(AND(AN16-($AI$2-N16)>lists!$CE$11,AN16-($AI$2-N16)<=lists!$CH$11),AN16-($AI$2-N16)-lists!$CE$11,0)) -> 0 | U16: =IF(OR(AN16="",AN16=0),IF(N16>lists!$CH$11,N16-lists!$CH$11,0),IF(AN16-($AI$2-N16)>lists!$CH$11,AN16-($AI$2-N16)-lists!$CH$11,0)) -> 0 | V16: =IF(OR(AO16="",AO16=0),0,IF(AO16<$AI$2-N16+lists!$CB$11,1,0)) -> 1 | W16: =IF(OR(AO16="",AO16=0),IF(AND(N16-lists!$CB$11>lists!$CE$12,N16-lists!$CB$11<=lists!$CH$12),N16-lists!$CB$11-lists!$CE$12,0),IF(AND(AO16-($AI$2-N16)-lists!$CB$11>lists!$CE$12,AO16-($AI$2-N16)-lists!$CB$11<=lists!$CH$12),AO16-($AI$2-N16)-lists!$CB$11-lists!$CE$12,0)) -> 0 | X16: =IF(OR(AO16="",AO16=0),IF(N16-lists!CB12>lists!$CH$12,N16-lists!CB12-lists!$CH$12,0),IF(AO16-($AI$2-N16)-lists!CB12>lists!$CH$12,AO16-($AI$2-N16)-lists!CB12-lists!$CH$12,0)) -> 0 | Y16: =IF(OR(AP16="",AP16=0),0,IF(AP16<$AI$2-N16+lists!$CB$11+lists!$CB$12,1,0)) -> 1 | Z16: =IF(OR(AP16="",AP16=0),IF(AND(N16-lists!$CB$11-lists!$CB$12>lists!$CE$13,N16-lists!$CB$11-lists!$CB$12<=lists!$CH$13),N16-lists!$CB$11-lists!$CB$12-lists!$CE$13,0),IF(AND(AP16-($AI$2-N16)-lists!$CB$11-lists!$CB$12>lists!$CE$13,AP16-($AI$2-N16)-lists!$CB$11-lists!$CB$12<=lists!$CH$13),AP16-($AI$2-N16)-lists!$CB$11-lists!$CB$12-lists!$CE$13,0)) -> 0 | AA16: =IF(OR(AP16="",AP16=0),IF(N16-lists!CB12-lists!CB13>lists!$CH$13,N16-lists!CB12-lists!CB13-lists!$CH$13,0),IF(AP16-($AI$2-N16)-lists!CB12-lists!CB13>lists!$CH$13,AP16-($AI$2-N16)-lists!CB12-lists!CB13-lists!$CH$13,0)) -> 0 | AB16: =IF(OR(AQ16="",AQ16=0),0,IF(AQ16<$AI$2-N16+lists!$CB$11+lists!$CB$12+lists!$CB$13,1,0)) -> 0 | AC16: =IF(OR(AQ16="",AQ16=0),IF(AND(N16-lists!$CB$11-lists!$CB$12-lists!$CB$13>lists!$CE$14,N16-lists!$CB$11-lists!$CB$12-lists!$CB$13<=lists!$CH$14),N16-lists!$CB$11-lists!$CB$12-lists!$CB$13-lists!$CE$14,0),IF(AND(AQ16-($AI$2-N16)-lists!$CB$11-lists!$CB$12-lists!$CB$13>lists!$CE$14,AQ16-($AI$2-N16)-lists!$CB$11-lists!$CB$12-lists!$CB$13<=lists!$CH$14),AQ16-($AI$2-N16)-lists!$CB$11-lists!$CB$12-lists!$CB$13-lists!$CE$14,0)) -> 0 | AD16: =IF(OR(AQ16="",AQ16=0),IF(N16-lists!CB12-lists!CB13-lists!CB14>lists!$CH$14,N16-lists!CB12-lists!CB13-lists!CB14-lists!$CH$14,0),IF(AQ16-($AI$2-N16)-lists!CB12-lists!CB13-lists!CB14>lists!$CH$14,AQ16-($AI$2-N16)-lists!CB12-lists!CB13-lists!CB14-lists!$CH$14,0)) -> 0 | AE16: =IF(OR(AR16="",AR16=0),0,IF(AR16<$AI$2-N16+lists!$CB$11+lists!$CB$12+lists!$CB$13+lists!$CB$14,1,0)) -> 0 | AF16: =IF(OR(AR16="",AR16=0),IF(AND(N16-lists!$CB$11-lists!$CB$12-lists!$CB$13-lists!$CB$14>lists!$CE$15,N16-lists!$CB$11-lists!$CB$12-lists!$CB$13-lists!$CB$14<=lists!$CH$15),N16-lists!$CB$11-lists!$CB$12-lists!$CB$13-lists!$CB$14-lists!$CE$15,0),IF(AND(AR16-($AI$2-N16)-lists!$CB$11-lists!$CB$12-lists!$CB$13-lists!$CB$14>lists!$CE$15,AR16-($AI$2-N16)-lists!$CB$11-lists!$CB$12-lists!$CB$13-lists!$CB$14<=lists!$CH$15),AR16-($AI$2-N16)-lists!$CB$11-lists!$CB$12-lists!$CB$13-lists!$CB$14-lists!$CE$15,0)) -> 0 | AG16: =IF(OR(AR16="",AR16=0),IF(N16-lists!CB12-lists!CB13-lists!CB14-lists!CB15>lists!$CH$15,N16-lists!CB12-lists!CB13-lists!CB14-lists!CB15-lists!$CH$15,0),IF(AR16-($AI$2-N16)-lists!CB12-lists!CB13-lists!CB14-lists!CB15>lists!$CH$15,AR16-($AI$2-N16)-lists!CB12-lists!CB13-lists!CB14-lists!CB15-lists!$CH$15,0)) -> 0 | AH16: =SUMIFS(AZ16:BW16,AZ$1:BW$1,"соглас. оплата"&"*")-IF(AY16="",0,AY16) -> 0 | AI16: 2019-10-08T04:56:11.130 | AK16: 0 | AL16: 00:00:00 | AM16: 00:00:00 | AN16: 2019-10-08T04:51:52.380 | AO16: 2019-10-08T04:53:06 | AP16: 2019-10-08T04:56:11.130 | AQ16: 00:00:00 | AR16: 00:00:00 | AS16: Зак | AT16: №2 | AU16: 2019-09-15 | AV16: ТН | AW16: №5 | AX16: 2019-10-02 | AY16: 1000000 | AZ16: 2019-09-18 | BA16: 300000 | BB16: 2019-10-01 | BC16: 500000 | BD16: 2019-10-04 | BE16: 200000 | BF16: 00:00:00 | BG16: 0 | BH16: 00:00:00 | BI16: 0 | BJ16: 00:00:00 | BK16: 0 | BL16: 00:00:00 | BM16: 0 | BN16: 00:00:00 | BO16: 0 | BP16: 00:00:00 | BQ16: 0 | BR16: 00:00:00 | BS16: 0 | BT16: 00:00:00 | BU16: 0 | BV16: 00:00:00 | BW16: 0 | BX16: 2019-09-23 | BY16: 400000 | BZ16: 2019-10-03 | CA16: 100000 | CB16: 2019-10-08 | CC16: 500000 | CD16: 00:00:00 | CE16: 0 | CF16: 00:00:00 | CG16: 0 | CH16: 00:00:00 | CI16: 0 | CJ16: 00:00:00 | CK16: 0 | CL16: 00:00:00 | CM16: 0 | CN16: 00:00:00 | CO16: 0 | CP16: 00:00:00 | CQ16: 0 | CR16: 00:00:00 | CS16: 0 | CT16: 00:00:00 | CU16: 0 | CV16: ООО "Заказчик" | CW16: ООО "Зак" | CX16: Петров Иван Иванович | CY16: 123456789 | CZ16: mail@mail.ru | DA16: 1111111111 | DB16: 111111111 | DC16: 111111111111 | DD16: 111111 | DE16: 11111111111111 | DF16: 1111111111111 | DG16: 11111111111111 | DH16: 11111111 | DI16: ALL | DJ16: ALL | DK16: ALL | DL16: ALL | DM16: ALL | DN16: ALL
A17: =ROW() -> 17 | I17: 0 | J17: =IF(SUMIFS(K17:K17,I17:I17,1,AS17:AS17,screen!$E$6,AT17:AT17,screen!$E$8,AV17:AV17,screen!$E$12,AW17:AW17,screen!$E$14)=0,"",1) ->  | K17: =1 -> 1 | L17: =AS17&" / дог. "&AT17&" от "&DAY(AU17)&"."&MONTH(AU17)&"."&YEAR(AU17)&"г. / "&AV17&" "&AW17&" от "&DAY(AX17)&"."&MONTH(AX17)&"."&YEAR(AX17)&"г. / сумма отгр. "&AY17 -> 0 / дог. 0 от 0.1.1900г. / 0 0 от 0.1.1900г. / сумма отгр. 0 | M17: =IF(IF(AY17="",0,AY17)-SUMIFS(BX17:CU17,BX$1:CU$1,"фактич. оплата"&"*")>0,IF(AY17="",0,AY17)-SUMIFS(BX17:CU17,BX$1:CU$1,"фактич. оплата"&"*"),0) -> 0 | N17: =IF(IF(M17=0,0,IF(AY17=0,0,((BX17-AX17)*BY17+(BZ17-AX17)*CA17+(CB17-AX17)*CC17+(CD17-AX17)*CE17+(CF17-AX17)*CG17+(CH17-AX17)*CI17+(CJ17-AX17)*CK17+(CL17-AX17)*CM17+(CN17-AX17)*CO17+(CP17-AX17)*CQ17+(CR17-AX17)*CS17+(CT17-AX17)*CU17+($AI$2-AX17)*M17)/AY17)-IF(AY17=0,0,((AZ17-AX17)*BA17+(BB17-AX17)*BC17+(BD17-AX17)*BE17+(BF17-AX17)*BG17+(BH17-AX17)*BI17+(BJ17-AX17)*BK17+(BL17-AX17)*BM17+(BN17-AX17)*BO17+(BP17-AX17)*BQ17+(BR17-AX17)*BS17+(BT17-AX17)*BU17+(AX17-AX17)*BW17)/AY17))<=0,0,IF(M17=0,0,IF(AY17=0,0,((BX17-AX17)*BY17+(BZ17-AX17)*CA17+(CB17-AX17)*CC17+(CD17-AX17)*CE17+(CF17-AX17)*CG17+(CH17-AX17)*CI17+(CJ17-AX17)*CK17+(CL17-AX17)*CM17+(CN17-AX17)*CO17+(CP17-AX17)*CQ17+(CR17-AX17)*CS17+(CT17-AX17)*CU17+($AI$2-AX17)*M17)/AY17)-IF(AY17=0,0,((AZ17-AX17)*BA17+(BB17-AX17)*BC17+(BD17-AX17)*BE17+(BF17-AX17)*BG17+(BH17-AX17)*BI17+(BJ17-AX17)*BK17+(BL17-AX17)*BM17+(BN17-AX17)*BO17+(BP17-AX17)*BQ17+(BR17-AX17)*BS17+(BT17-AX17)*BU17+(AX17-AX17)*BW17)/AY17))) -> 0 | O17: =IF(M17=0,lists!$BQ$11,IF(N17<1,lists!$BQ$12,IF(M17<=conditions!$J$10,lists!$BQ$13,lists!$BQ$14))) -> Долга нет | P17: =IF(O17<>lists!$BQ$14,lists!$BT$11,IF(AND(AL17<>"",AL17<>0,AL17>IF(AM17="",0,AM17)),lists!$BT$12,IF(AND(AM17<>"",AM17<>0,AM17>=IF(AL17="",0,AL17)),lists!$BT$13,IF(IF(OR(AN17="",AN17=0),1,0)*U17+IF(OR(AO17="",AO17=0),1,0)*X17+IF(OR(AP17="",AP17=0),1,0)*AA17+IF(OR(AQ17="",AQ17=0),1,0)*AD17+IF(OR(AR17="",AR17=0),1,0)*AG17>0,lists!$BT$14,lists!$BT$15)))) -> Нет задачи | Q17: =IF(O17<>lists!$BQ$14,"нет статуса",IF(BD!N17<=lists!$CB$11,lists!$BY$11,IF(BD!N17<=lists!$CB$12,lists!$BY$12,IF(BD!N17<=lists!$CB$13,lists!$BY$13,IF(BD!N17<=lists!$CB$14,lists!$BY$14,lists!$BY$15))))) -> нет статуса | R17: =IF(Q17="нет статуса","нет действий",IF(AND(Q17=lists!$BY$11,AI17-N17>=AN17),"нет действий",IF(AND(Q17=lists!$BY$11,AI17-N17<AN17),lists!$CK$11,IF(AND(AR17<>0,AR17<>""),lists!$CK$15,IF(AND(AQ17<>0,AQ17<>""),lists!$CK$14,IF(AND(AP17<>0,AP17<>""),lists!$CK$13,IF(AND(AO17<>0,AO17<>""),lists!$CK$12,IF(AND(AN17<>0,AN17<>""),lists!$CK$11,"нет действий")))))))) -> нет действий | S17: =IF(OR(AN17="",AN17=0),0,IF(AN17<$AI$2-N17,1,0)) -> 0 | T17: =IF(OR(AN17="",AN17=0),IF(AND(N17>lists!$CE$11,N17<=lists!$CH$11),N17-lists!$CE$11,0),IF(AND(AN17-($AI$2-N17)>lists!$CE$11,AN17-($AI$2-N17)<=lists!$CH$11),AN17-($AI$2-N17)-lists!$CE$11,0)) -> 0 | U17: =IF(OR(AN17="",AN17=0),IF(N17>lists!$CH$11,N17-lists!$CH$11,0),IF(AN17-($AI$2-N17)>lists!$CH$11,AN17-($AI$2-N17)-lists!$CH$11,0)) -> 0 | V17: =IF(OR(AO17="",AO17=0),0,IF(AO17<$AI$2-N17+lists!$CB$11,1,0)) -> 0 | W17: =IF(OR(AO17="",AO17=0),IF(AND(N17-lists!$CB$11>lists!$CE$12,N17-lists!$CB$11<=lists!$CH$12),N17-lists!$CB$11-lists!$CE$12,0),IF(AND(AO17-($AI$2-N17)-lists!$CB$11>lists!$CE$12,AO17-($AI$2-N17)-lists!$CB$11<=lists!$CH$12),AO17-($AI$2-N17)-lists!$CB$11-lists!$CE$12,0)) -> 0 | X17: =IF(OR(AO17="",AO17=0),IF(N17-lists!CB12>lists!$CH$12,N17-lists!CB12-lists!$CH$12,0),IF(AO17-($AI$2-N17)-lists!CB12>lists!$CH$12,AO17-($AI$2-N17)-lists!CB12-lists!$CH$12,0)) -> 0 | Y17: =IF(OR(AP17="",AP17=0),0,IF(AP17<$AI$2-N17+lists!$CB$11+lists!$CB$12,1,0)) -> 0 | Z17: =IF(OR(AP17="",AP17=0),IF(AND(N17-lists!$CB$11-lists!$CB$12>lists!$CE$13,N17-lists!$CB$11-lists!$CB$12<=lists!$CH$13),N17-lists!$CB$11-lists!$CB$12-lists!$CE$13,0),IF(AND(AP17-($AI$2-N17)-lists!$CB$11-lists!$CB$12>lists!$CE$13,AP17-($AI$2-N17)-lists!$CB$11-lists!$CB$12<=lists!$CH$13),AP17-($AI$2-N17)-lists!$CB$11-lists!$CB$12-lists!$CE$13,0)) -> 0 | AA17: =IF(OR(AP17="",AP17=0),IF(N17-lists!CB12-lists!CB13>lists!$CH$13,N17-lists!CB12-lists!CB13-lists!$CH$13,0),IF(AP17-($AI$2-N17)-lists!CB12-lists!CB13>lists!$CH$13,AP17-($AI$2-N17)-lists!CB12-lists!CB13-lists!$CH$13,0)) -> 0 | AB17: =IF(OR(AQ17="",AQ17=0),0,IF(AQ17<$AI$2-N17+lists!$CB$11+lists!$CB$12+lists!$CB$13,1,0)) -> 0 | AC17: =IF(OR(AQ17="",AQ17=0),IF(AND(N17-lists!$CB$11-lists!$CB$12-lists!$CB$13>lists!$CE$14,N17-lists!$CB$11-lists!$CB$12-lists!$CB$13<=lists!$CH$14),N17-lists!$CB$11-lists!$CB$12-lists!$CB$13-lists!$CE$14,0),IF(AND(AQ17-($AI$2-N17)-lists!$CB$11-lists!$CB$12-lists!$CB$13>lists!$CE$14,AQ17-($AI$2-N17)-lists!$CB$11-lists!$CB$12-lists!$CB$13<=lists!$CH$14),AQ17-($AI$2-N17)-lists!$CB$11-lists!$CB$12-lists!$CB$13-lists!$CE$14,0)) -> 0 | AD17: =IF(OR(AQ17="",AQ17=0),IF(N17-lists!CB12-lists!CB13-lists!CB14>lists!$CH$14,N17-lists!CB12-lists!CB13-lists!CB14-lists!$CH$14,0),IF(AQ17-($AI$2-N17)-lists!CB12-lists!CB13-lists!CB14>lists!$CH$14,AQ17-($AI$2-N17)-lists!CB12-lists!CB13-lists!CB14-lists!$CH$14,0)) -> 0 | AE17: =IF(OR(AR17="",AR17=0),0,IF(AR17<$AI$2-N17+lists!$CB$11+lists!$CB$12+lists!$CB$13+lists!$CB$14,1,0)) -> 0 | AF17: =IF(OR(AR17="",AR17=0),IF(AND(N17-lists!$CB$11-lists!$CB$12-lists!$CB$13-lists!$CB$14>lists!$CE$15,N17-lists!$CB$11-lists!$CB$12-lists!$CB$13-lists!$CB$14<=lists!$CH$15),N17-lists!$CB$11-lists!$CB$12-lists!$CB$13-lists!$CB$14-lists!$CE$15,0),IF(AND(AR17-($AI$2-N17)-lists!$CB$11-lists!$CB$12-lists!$CB$13-lists!$CB$14>lists!$CE$15,AR17-($AI$2-N17)-lists!$CB$11-lists!$CB$12-lists!$CB$13-lists!$CB$14<=lists!$CH$15),AR17-($AI$2-N17)-lists!$CB$11-lists!$CB$12-lists!$CB$13-lists!$CB$14-lists!$CE$15,0)) -> 0 | AG17: =IF(OR(AR17="",AR17=0),IF(N17-lists!CB12-lists!CB13-lists!CB14-lists!CB15>lists!$CH$15,N17-lists!CB12-lists!CB13-lists!CB14-lists!CB15-lists!$CH$15,0),IF(AR17-($AI$2-N17)-lists!CB12-lists!CB13-lists!CB14-lists!CB15>lists!$CH$15,AR17-($AI$2-N17)-lists!CB12-lists!CB13-lists!CB14-lists!CB15-lists!$CH$15,0)) -> 0 | AH17: =SUMIFS(AZ17:BW17,AZ$1:BW$1,"соглас. оплата"&"*")-IF(AY17="",0,AY17) -> 0 | AI17: 2019-10-08T04:55:54.270 | AK17: 0 | AL17: 00:00:00 | AM17: 00:00:00 | AN17: 00:00:00 | AO17: 00:00:00 | AP17: 00:00:00 | AQ17: 00:00:00 | AR17: 00:00:00 | AS17: 0 | AT17: 0 | AU17: 00:00:00 | AV17: 0 | AW17: 0 | AX17: 00:00:00 | AY17: 0 | AZ17: 00:00:00 | BA17: 0 | BB17: 00:00:00 | BC17: 0 | BD17: 00:00:00 | BE17: 0 | BF17: 00:00:00 | BG17: 0 | BH17: 00:00:00 | BI17: 0 | BJ17: 00:00:00 | BK17: 0 | BL17: 00:00:00 | BM17: 0 | BN17: 00:00:00 | BO17: 0 | BP17: 00:00:00 | BQ17: 0 | BR17: 00:00:00 | BS17: 0 | BT17: 00:00:00 | BU17: 0 | BV17: 00:00:00 | BW17: 0 | BX17: 00:00:00 | BY17: 0 | BZ17: 00:00:00 | CA17: 0 | CB17: 00:00:00 | CC17: 0 | CD17: 00:00:00 | CE17: 0 | CF17: 00:00:00 | CG17: 0 | CH17: 00:00:00 | CI17: 0 | CJ17: 00:00:00 | CK17: 0 | CL17: 00:00:00 | CM17: 0 | CN17: 00:00:00 | CO17: 0 | CP17: 00:00:00 | CQ17: 0 | CR17: 00:00:00 | CS17: 0 | CT17: 00:00:00 | CU17: 0 | CV17: 0 | CW17: 0 | CX17: 0 | CY17: 0 | CZ17: 0 | DA17: 0 | DB17: 0 | DC17: 0 | DD17: 0 | DE17: 0 | DF17: 0 | DG17: 0 | DH17: 0 | DI17: 0 | DJ17: 0 | DK17: 0 | DL17: 0 | DM17: 0 | DN17: 0
A18: =ROW() -> 18 | I18: 0 | J18: =IF(SUMIFS(K18:K18,I18:I18,1,AS18:AS18,screen!$E$6,AT18:AT18,screen!$E$8,AV18:AV18,screen!$E$12,AW18:AW18,screen!$E$14)=0,"",1) ->  | K18: =1 -> 1 | L18: =AS18&" / дог. "&AT18&" от "&DAY(AU18)&"."&MONTH(AU18)&"."&YEAR(AU18)&"г. / "&AV18&" "&AW18&" от "&DAY(AX18)&"."&MONTH(AX18)&"."&YEAR(AX18)&"г. / сумма отгр. "&AY18 -> Зак / дог. №2 от 15.9.2019г. / ТН №5 от 2.10.2019г. / сумма отгр. 1000000 | M18: =IF(IF(AY18="",0,AY18)-SUMIFS(BX18:CU18,BX$1:CU$1,"фактич. оплата"&"*")>0,IF(AY18="",0,AY18)-SUMIFS(BX18:CU18,BX$1:CU$1,"фактич. оплата"&"*"),0) -> 0 | N18: =IF(IF(M18=0,0,IF(AY18=0,0,((BX18-AX18)*BY18+(BZ18-AX18)*CA18+(CB18-AX18)*CC18+(CD18-AX18)*CE18+(CF18-AX18)*CG18+(CH18-AX18)*CI18+(CJ18-AX18)*CK18+(CL18-AX18)*CM18+(CN18-AX18)*CO18+(CP18-AX18)*CQ18+(CR18-AX18)*CS18+(CT18-AX18)*CU18+($AI$2-AX18)*M18)/AY18)-IF(AY18=0,0,((AZ18-AX18)*BA18+(BB18-AX18)*BC18+(BD18-AX18)*BE18+(BF18-AX18)*BG18+(BH18-AX18)*BI18+(BJ18-AX18)*BK18+(BL18-AX18)*BM18+(BN18-AX18)*BO18+(BP18-AX18)*BQ18+(BR18-AX18)*BS18+(BT18-AX18)*BU18+(AX18-AX18)*BW18)/AY18))<=0,0,IF(M18=0,0,IF(AY18=0,0,((BX18-AX18)*BY18+(BZ18-AX18)*CA18+(CB18-AX18)*CC18+(CD18-AX18)*CE18+(CF18-AX18)*CG18+(CH18-AX18)*CI18+(CJ18-AX18)*CK18+(CL18-AX18)*CM18+(CN18-AX18)*CO18+(CP18-AX18)*CQ18+(CR18-AX18)*CS18+(CT18-AX18)*CU18+($AI$2-AX18)*M18)/AY18)-IF(AY18=0,0,((AZ18-AX18)*BA18+(BB18-AX18)*BC18+(BD18-AX18)*BE18+(BF18-AX18)*BG18+(BH18-AX18)*BI18+(BJ18-AX18)*BK18+(BL18-AX18)*BM18+(BN18-AX18)*BO18+(BP18-AX18)*BQ18+(BR18-AX18)*BS18+(BT18-AX18)*BU18+(AX18-AX18)*BW18)/AY18))) -> 0 | O18: =IF(M18=0,lists!$BQ$11,IF(N18<1,lists!$BQ$12,IF(M18<=conditions!$J$10,lists!$BQ$13,lists!$BQ$14))) -> Долга нет | P18: =IF(O18<>lists!$BQ$14,lists!$BT$11,IF(AND(AL18<>"",AL18<>0,AL18>IF(AM18="",0,AM18)),lists!$BT$12,IF(AND(AM18<>"",AM18<>0,AM18>=IF(AL18="",0,AL18)),lists!$BT$13,IF(IF(OR(AN18="",AN18=0),1,0)*U18+IF(OR(AO18="",AO18=0),1,0)*X18+IF(OR(AP18="",AP18=0),1,0)*AA18+IF(OR(AQ18="",AQ18=0),1,0)*AD18+IF(OR(AR18="",AR18=0),1,0)*AG18>0,lists!$BT$14,lists!$BT$15)))) -> Нет задачи | Q18: =IF(O18<>lists!$BQ$14,"нет статуса",IF(BD!N18<=lists!$CB$11,lists!$BY$11,IF(BD!N18<=lists!$CB$12,lists!$BY$12,IF(BD!N18<=lists!$CB$13,lists!$BY$13,IF(BD!N18<=lists!$CB$14,lists!$BY$14,lists!$BY$15))))) -> нет статуса | R18: =IF(Q18="нет статуса","нет действий",IF(AND(Q18=lists!$BY$11,AI18-N18>=AN18),"нет действий",IF(AND(Q18=lists!$BY$11,AI18-N18<AN18),lists!$CK$11,IF(AND(AR18<>0,AR18<>""),lists!$CK$15,IF(AND(AQ18<>0,AQ18<>""),lists!$CK$14,IF(AND(AP18<>0,AP18<>""),lists!$CK$13,IF(AND(AO18<>0,AO18<>""),lists!$CK$12,IF(AND(AN18<>0,AN18<>""),lists!$CK$11,"нет действий")))))))) -> нет действий | S18: =IF(OR(AN18="",AN18=0),0,IF(AN18<$AI$2-N18,1,0)) -> 1 | T18: =IF(OR(AN18="",AN18=0),IF(AND(N18>lists!$CE$11,N18<=lists!$CH$11),N18-lists!$CE$11,0),IF(AND(AN18-($AI$2-N18)>lists!$CE$11,AN18-($AI$2-N18)<=lists!$CH$11),AN18-($AI$2-N18)-lists!$CE$11,0)) -> 0 | U18: =IF(OR(AN18="",AN18=0),IF(N18>lists!$CH$11,N18-lists!$CH$11,0),IF(AN18-($AI$2-N18)>lists!$CH$11,AN18-($AI$2-N18)-lists!$CH$11,0)) -> 0 | V18: =IF(OR(AO18="",AO18=0),0,IF(AO18<$AI$2-N18+lists!$CB$11,1,0)) -> 1 | W18: =IF(OR(AO18="",AO18=0),IF(AND(N18-lists!$CB$11>lists!$CE$12,N18-lists!$CB$11<=lists!$CH$12),N18-lists!$CB$11-lists!$CE$12,0),IF(AND(AO18-($AI$2-N18)-lists!$CB$11>lists!$CE$12,AO18-($AI$2-N18)-lists!$CB$11<=lists!$CH$12),AO18-($AI$2-N18)-lists!$CB$11-lists!$CE$12,0)) -> 0 | X18: =IF(OR(AO18="",AO18=0),IF(N18-lists!CB12>lists!$CH$12,N18-lists!CB12-lists!$CH$12,0),IF(AO18-($AI$2-N18)-lists!CB12>lists!$CH$12,AO18-($AI$2-N18)-lists!CB12-lists!$CH$12,0)) -> 0 | Y18: =IF(OR(AP18="",AP18=0),0,IF(AP18<$AI$2-N18+lists!$CB$11+lists!$CB$12,1,0)) -> 0 | Z18: =IF(OR(AP18="",AP18=0),IF(AND(N18-lists!$CB$11-lists!$CB$12>lists!$CE$13,N18-lists!$CB$11-lists!$CB$12<=lists!$CH$13),N18-lists!$CB$11-lists!$CB$12-lists!$CE$13,0),IF(AND(AP18-($AI$2-N18)-lists!$CB$11-lists!$CB$12>lists!$CE$13,AP18-($AI$2-N18)-lists!$CB$11-lists!$CB$12<=lists!$CH$13),AP18-($AI$2-N18)-lists!$CB$11-lists!$CB$12-lists!$CE$13,0)) -> 0 | AA18: =IF(OR(AP18="",AP18=0),IF(N18-lists!CB12-lists!CB13>lists!$CH$13,N18-lists!CB12-lists!CB13-lists!$CH$13,0),IF(AP18-($AI$2-N18)-lists!CB12-lists!CB13>lists!$CH$13,AP18-($AI$2-N18)-lists!CB12-lists!CB13-lists!$CH$13,0)) -> 0 | AB18: =IF(OR(AQ18="",AQ18=0),0,IF(AQ18<$AI$2-N18+lists!$CB$11+lists!$CB$12+lists!$CB$13,1,0)) -> 0 | AC18: =IF(OR(AQ18="",AQ18=0),IF(AND(N18-lists!$CB$11-lists!$CB$12-lists!$CB$13>lists!$CE$14,N18-lists!$CB$11-lists!$CB$12-lists!$CB$13<=lists!$CH$14),N18-lists!$CB$11-lists!$CB$12-lists!$CB$13-lists!$CE$14,0),IF(AND(AQ18-($AI$2-N18)-lists!$CB$11-lists!$CB$12-lists!$CB$13>lists!$CE$14,AQ18-($AI$2-N18)-lists!$CB$11-lists!$CB$12-lists!$CB$13<=lists!$CH$14),AQ18-($AI$2-N18)-lists!$CB$11-lists!$CB$12-lists!$CB$13-lists!$CE$14,0)) -> 0 | AD18: =IF(OR(AQ18="",AQ18=0),IF(N18-lists!CB12-lists!CB13-lists!CB14>lists!$CH$14,N18-lists!CB12-lists!CB13-lists!CB14-lists!$CH$14,0),IF(AQ18-($AI$2-N18)-lists!CB12-lists!CB13-lists!CB14>lists!$CH$14,AQ18-($AI$2-N18)-lists!CB12-lists!CB13-lists!CB14-lists!$CH$14,0)) -> 0 | AE18: =IF(OR(AR18="",AR18=0),0,IF(AR18<$AI$2-N18+lists!$CB$11+lists!$CB$12+lists!$CB$13+lists!$CB$14,1,0)) -> 0 | AF18: =IF(OR(AR18="",AR18=0),IF(AND(N18-lists!$CB$11-lists!$CB$12-lists!$CB$13-lists!$CB$14>lists!$CE$15,N18-lists!$CB$11-lists!$CB$12-lists!$CB$13-lists!$CB$14<=lists!$CH$15),N18-lists!$CB$11-lists!$CB$12-lists!$CB$13-lists!$CB$14-lists!$CE$15,0),IF(AND(AR18-($AI$2-N18)-lists!$CB$11-lists!$CB$12-lists!$CB$13-lists!$CB$14>lists!$CE$15,AR18-($AI$2-N18)-lists!$CB$11-lists!$CB$12-lists!$CB$13-lists!$CB$14<=lists!$CH$15),AR18-($AI$2-N18)-lists!$CB$11-lists!$CB$12-lists!$CB$13-lists!$CB$14-lists!$CE$15,0)) -> 0 | AG18: =IF(OR(AR18="",AR18=0),IF(N18-lists!CB12-lists!CB13-lists!CB14-lists!CB15>lists!$CH$15,N18-lists!CB12-lists!CB13-lists!CB14-lists!CB15-lists!$CH$15,0),IF(AR18-($AI$2-N18)-lists!CB12-lists!CB13-lists!CB14-lists!CB15>lists!$CH$15,AR18-($AI$2-N18)-lists!CB12-lists!CB13-lists!CB14-lists!CB15-lists!$CH$15,0)) -> 0 | AH18: =SUMIFS(AZ18:BW18,AZ$1:BW$1,"соглас. оплата"&"*")-IF(AY18="",0,AY18) -> 0 | AI18: 2019-10-08T04:53:06 | AK18: 0 | AL18: 00:00:00 | AM18: 00:00:00 | AN18: 2019-10-08T04:51:52.380 | AO18: 2019-10-08T04:53:06 | AP18: 00:00:00 | AQ18: 00:00:00 | AR18: 00:00:00 | AS18: Зак | AT18: №2 | AU18: 2019-09-15 | AV18: ТН | AW18: №5 | AX18: 2019-10-02 | AY18: 1000000 | AZ18: 2019-09-18 | BA18: 300000 | BB18: 2019-10-01 | BC18: 500000 | BD18: 2019-10-04 | BE18: 200000 | BF18: 00:00:00 | BG18: 0 | BH18: 00:00:00 | BI18: 0 | BJ18: 00:00:00 | BK18: 0 | BL18: 00:00:00 | BM18: 0 | BN18: 00:00:00 | BO18: 0 | BP18: 00:00:00 | BQ18: 0 | BR18: 00:00:00 | BS18: 0 | BT18: 00:00:00 | BU18: 0 | BV18: 00:00:00 | BW18: 0 | BX18: 2019-09-23 | BY18: 400000 | BZ18: 2019-10-03 | CA18: 100000 | CB18: 2019-10-08 | CC18: 500000 | CD18: 00:00:00 | CE18: 0 | CF18: 00:00:00 | CG18: 0 | CH18: 00:00:00 | CI18: 0 | CJ18: 00:00:00 | CK18: 0 | CL18: 00:00:00 | CM18: 0 | CN18: 00:00:00 | CO18: 0 | CP18: 00:00:00 | CQ18: 0 | CR18: 00:00:00 | CS18: 0 | CT18: 00:00:00 | CU18: 0 | CV18: ООО "Заказчик" | CW18: ООО "Зак" | CX18: Петров Иван Иванович | CY18: 123456789 | CZ18: mail@mail.ru | DA18: 1111111111 | DB18: 111111111 | DC18: 111111111111 | DD18: 111111 | DE18: 11111111111111 | DF18: 1111111111111 | DG18: 11111111111111 | DH18: 11111111 | DI18: ALL | DJ18: ALL | DK18: ALL | DL18: ALL | DM18: ALL | DN18: ALL
A19: =ROW() -> 19 | I19: 0 | J19: =IF(SUMIFS(K19:K19,I19:I19,1,AS19:AS19,screen!$E$6,AT19:AT19,screen!$E$8,AV19:AV19,screen!$E$12,AW19:AW19,screen!$E$14)=0,"",1) ->  | K19: =1 -> 1 | L19: =AS19&" / дог. "&AT19&" от "&DAY(AU19)&"."&MONTH(AU19)&"."&YEAR(AU19)&"г. / "&AV19&" "&AW19&" от "&DAY(AX19)&"."&MONTH(AX19)&"."&YEAR(AX19)&"г. / сумма отгр. "&AY19 -> Зак / дог. №2 от 15.9.2019г. / ТН №5 от 2.10.2019г. / сумма отгр. 1000000 | M19: =IF(IF(AY19="",0,AY19)-SUMIFS(BX19:CU19,BX$1:CU$1,"фактич. оплата"&"*")>0,IF(AY19="",0,AY19)-SUMIFS(BX19:CU19,BX$1:CU$1,"фактич. оплата"&"*"),0) -> 0 | N19: =IF(IF(M19=0,0,IF(AY19=0,0,((BX19-AX19)*BY19+(BZ19-AX19)*CA19+(CB19-AX19)*CC19+(CD19-AX19)*CE19+(CF19-AX19)*CG19+(CH19-AX19)*CI19+(CJ19-AX19)*CK19+(CL19-AX19)*CM19+(CN19-AX19)*CO19+(CP19-AX19)*CQ19+(CR19-AX19)*CS19+(CT19-AX19)*CU19+($AI$2-AX19)*M19)/AY19)-IF(AY19=0,0,((AZ19-AX19)*BA19+(BB19-AX19)*BC19+(BD19-AX19)*BE19+(BF19-AX19)*BG19+(BH19-AX19)*BI19+(BJ19-AX19)*BK19+(BL19-AX19)*BM19+(BN19-AX19)*BO19+(BP19-AX19)*BQ19+(BR19-AX19)*BS19+(BT19-AX19)*BU19+(AX19-AX19)*BW19)/AY19))<=0,0,IF(M19=0,0,IF(AY19=0,0,((BX19-AX19)*BY19+(BZ19-AX19)*CA19+(CB19-AX19)*CC19+(CD19-AX19)*CE19+(CF19-AX19)*CG19+(CH19-AX19)*CI19+(CJ19-AX19)*CK19+(CL19-AX19)*CM19+(CN19-AX19)*CO19+(CP19-AX19)*CQ19+(CR19-AX19)*CS19+(CT19-AX19)*CU19+($AI$2-AX19)*M19)/AY19)-IF(AY19=0,0,((AZ19-AX19)*BA19+(BB19-AX19)*BC19+(BD19-AX19)*BE19+(BF19-AX19)*BG19+(BH19-AX19)*BI19+(BJ19-AX19)*BK19+(BL19-AX19)*BM19+(BN19-AX19)*BO19+(BP19-AX19)*BQ19+(BR19-AX19)*BS19+(BT19-AX19)*BU19+(AX19-AX19)*BW19)/AY19))) -> 0 | O19: =IF(M19=0,lists!$BQ$11,IF(N19<1,lists!$BQ$12,IF(M19<=conditions!$J$10,lists!$BQ$13,lists!$BQ$14))) -> Долга нет | P19: =IF(O19<>lists!$BQ$14,lists!$BT$11,IF(AND(AL19<>"",AL19<>0,AL19>IF(AM19="",0,AM19)),lists!$BT$12,IF(AND(AM19<>"",AM19<>0,AM19>=IF(AL19="",0,AL19)),lists!$BT$13,IF(IF(OR(AN19="",AN19=0),1,0)*U19+IF(OR(AO19="",AO19=0),1,0)*X19+IF(OR(AP19="",AP19=0),1,0)*AA19+IF(OR(AQ19="",AQ19=0),1,0)*AD19+IF(OR(AR19="",AR19=0),1,0)*AG19>0,lists!$BT$14,lists!$BT$15)))) -> Нет задачи | Q19: =IF(O19<>lists!$BQ$14,"нет статуса",IF(BD!N19<=lists!$CB$11,lists!$BY$11,IF(BD!N19<=lists!$CB$12,lists!$BY$12,IF(BD!N19<=lists!$CB$13,lists!$BY$13,IF(BD!N19<=lists!$CB$14,lists!$BY$14,lists!$BY$15))))) -> нет статуса | R19: =IF(Q19="нет статуса","нет действий",IF(AND(Q19=lists!$BY$11,AI19-N19>=AN19),"нет действий",IF(AND(Q19=lists!$BY$11,AI19-N19<AN19),lists!$CK$11,IF(AND(AR19<>0,AR19<>""),lists!$CK$15,IF(AND(AQ19<>0,AQ19<>""),lists!$CK$14,IF(AND(AP19<>0,AP19<>""),lists!$CK$13,IF(AND(AO19<>0,AO19<>""),lists!$CK$12,IF(AND(AN19<>0,AN19<>""),lists!$CK$11,"нет действий")))))))) -> нет действий | S19: =IF(OR(AN19="",AN19=0),0,IF(AN19<$AI$2-N19,1,0)) -> 1 | T19: =IF(OR(AN19="",AN19=0),IF(AND(N19>lists!$CE$11,N19<=lists!$CH$11),N19-lists!$CE$11,0),IF(AND(AN19-($AI$2-N19)>lists!$CE$11,AN19-($AI$2-N19)<=lists!$CH$11),AN19-($AI$2-N19)-lists!$CE$11,0)) -> 0 | U19: =IF(OR(AN19="",AN19=0),IF(N19>lists!$CH$11,N19-lists!$CH$11,0),IF(AN19-($AI$2-N19)>lists!$CH$11,AN19-($AI$2-N19)-lists!$CH$11,0)) -> 0 | V19: =IF(OR(AO19="",AO19=0),0,IF(AO19<$AI$2-N19+lists!$CB$11,1,0)) -> 0 | W19: =IF(OR(AO19="",AO19=0),IF(AND(N19-lists!$CB$11>lists!$CE$12,N19-lists!$CB$11<=lists!$CH$12),N19-lists!$CB$11-lists!$CE$12,0),IF(AND(AO19-($AI$2-N19)-lists!$CB$11>lists!$CE$12,AO19-($AI$2-N19)-lists!$CB$11<=lists!$CH$12),AO19-($AI$2-N19)-lists!$CB$11-lists!$CE$12,0)) -> 0 | X19: =IF(OR(AO19="",AO19=0),IF(N19-lists!CB12>lists!$CH$12,N19-lists!CB12-lists!$CH$12,0),IF(AO19-($AI$2-N19)-lists!CB12>lists!$CH$12,AO19-($AI$2-N19)-lists!CB12-lists!$CH$12,0)) -> 0 | Y19: =IF(OR(AP19="",AP19=0),0,IF(AP19<$AI$2-N19+lists!$CB$11+lists!$CB$12,1,0)) -> 0 | Z19: =IF(OR(AP19="",AP19=0),IF(AND(N19-lists!$CB$11-lists!$CB$12>lists!$CE$13,N19-lists!$CB$11-lists!$CB$12<=lists!$CH$13),N19-lists!$CB$11-lists!$CB$12-lists!$CE$13,0),IF(AND(AP19-($AI$2-N19)-lists!$CB$11-lists!$CB$12>lists!$CE$13,AP19-($AI$2-N19)-lists!$CB$11-lists!$CB$12<=lists!$CH$13),AP19-($AI$2-N19)-lists!$CB$11-lists!$CB$12-lists!$CE$13,0)) -> 0 | AA19: =IF(OR(AP19="",AP19=0),IF(N19-lists!CB12-lists!CB13>lists!$CH$13,N19-lists!CB12-lists!CB13-lists!$CH$13,0),IF(AP19-($AI$2-N19)-lists!CB12-lists!CB13>lists!$CH$13,AP19-($AI$2-N19)-lists!CB12-lists!CB13-lists!$CH$13,0)) -> 0 | AB19: =IF(OR(AQ19="",AQ19=0),0,IF(AQ19<$AI$2-N19+lists!$CB$11+lists!$CB$12+lists!$CB$13,1,0)) -> 0 | AC19: =IF(OR(AQ19="",AQ19=0),IF(AND(N19-lists!$CB$11-lists!$CB$12-lists!$CB$13>lists!$CE$14,N19-lists!$CB$11-lists!$CB$12-lists!$CB$13<=lists!$CH$14),N19-lists!$CB$11-lists!$CB$12-lists!$CB$13-lists!$CE$14,0),IF(AND(AQ19-($AI$2-N19)-lists!$CB$11-lists!$CB$12-lists!$CB$13>lists!$CE$14,AQ19-($AI$2-N19)-lists!$CB$11-lists!$CB$12-lists!$CB$13<=lists!$CH$14),AQ19-($AI$2-N19)-lists!$CB$11-lists!$CB$12-lists!$CB$13-lists!$CE$14,0)) -> 0 | AD19: =IF(OR(AQ19="",AQ19=0),IF(N19-lists!CB12-lists!CB13-lists!CB14>lists!$CH$14,N19-lists!CB12-lists!CB13-lists!CB14-lists!$CH$14,0),IF(AQ19-($AI$2-N19)-lists!CB12-lists!CB13-lists!CB14>lists!$CH$14,AQ19-($AI$2-N19)-lists!CB12-lists!CB13-lists!CB14-lists!$CH$14,0)) -> 0 | AE19: =IF(OR(AR19="",AR19=0),0,IF(AR19<$AI$2-N19+lists!$CB$11+lists!$CB$12+lists!$CB$13+lists!$CB$14,1,0)) -> 0 | AF19: =IF(OR(AR19="",AR19=0),IF(AND(N19-lists!$CB$11-lists!$CB$12-lists!$CB$13-lists!$CB$14>lists!$CE$15,N19-lists!$CB$11-lists!$CB$12-lists!$CB$13-lists!$CB$14<=lists!$CH$15),N19-lists!$CB$11-lists!$CB$12-lists!$CB$13-lists!$CB$14-lists!$CE$15,0),IF(AND(AR19-($AI$2-N19)-lists!$CB$11-lists!$CB$12-lists!$CB$13-lists!$CB$14>lists!$CE$15,AR19-($AI$2-N19)-lists!$CB$11-lists!$CB$12-lists!$CB$13-lists!$CB$14<=lists!$CH$15),AR19-($AI$2-N19)-lists!$CB$11-lists!$CB$12-lists!$CB$13-lists!$CB$14-lists!$CE$15,0)) -> 0 | AG19: =IF(OR(AR19="",AR19=0),IF(N19-lists!CB12-lists!CB13-lists!CB14-lists!CB15>lists!$CH$15,N19-lists!CB12-lists!CB13-lists!CB14-lists!CB15-lists!$CH$15,0),IF(AR19-($AI$2-N19)-lists!CB12-lists!CB13-lists!CB14-lists!CB15>lists!$CH$15,AR19-($AI$2-N19)-lists!CB12-lists!CB13-lists!CB14-lists!CB15-lists!$CH$15,0)) -> 0 | AH19: =SUMIFS(AZ19:BW19,AZ$1:BW$1,"соглас. оплата"&"*")-IF(AY19="",0,AY19) -> 0 | AI19: 2019-10-08T04:51:52.380 | AK19: 0 | AL19: 00:00:00 | AM19: 00:00:00 | AN19: 2019-10-08T04:51:52.380 | AO19: 00:00:00 | AP19: 00:00:00 | AQ19: 00:00:00 | AR19: 00:00:00 | AS19: Зак | AT19: №2 | AU19: 2019-09-15 | AV19: ТН | AW19: №5 | AX19: 2019-10-02 | AY19: 1000000 | AZ19: 2019-09-18 | BA19: 300000 | BB19: 2019-10-01 | BC19: 500000 | BD19: 2019-10-04 | BE19: 200000 | BF19: 00:00:00 | BG19: 0 | BH19: 00:00:00 | BI19: 0 | BJ19: 00:00:00 | BK19: 0 | BL19: 00:00:00 | BM19: 0 | BN19: 00:00:00 | BO19: 0 | BP19: 00:00:00 | BQ19: 0 | BR19: 00:00:00 | BS19: 0 | BT19: 00:00:00 | BU19: 0 | BV19: 00:00:00 | BW19: 0 | BX19: 2019-09-23 | BY19: 400000 | BZ19: 2019-10-03 | CA19: 100000 | CB19: 2019-10-08 | CC19: 500000 | CD19: 00:00:00 | CE19: 0 | CF19: 00:00:00 | CG19: 0 | CH19: 00:00:00 | CI19: 0 | CJ19: 00:00:00 | CK19: 0 | CL19: 00:00:00 | CM19: 0 | CN19: 00:00:00 | CO19: 0 | CP19: 00:00:00 | CQ19: 0 | CR19: 00:00:00 | CS19: 0 | CT19: 00:00:00 | CU19: 0 | CV19: ООО "Заказчик" | CW19: ООО "Зак" | CX19: Петров Иван Иванович | CY19: 123456789 | CZ19: mail@mail.ru | DA19: 1111111111 | DB19: 111111111 | DC19: 111111111111 | DD19: 111111 | DE19: 11111111111111 | DF19: 1111111111111 | DG19: 11111111111111 | DH19: 11111111 | DI19: ALL | DJ19: ALL | DK19: ALL | DL19: ALL | DM19: ALL | DN19: ALL
A20: =ROW() -> 20 | I20: 1 | J20: =IF(SUMIFS(K20:K20,I20:I20,1,AS20:AS20,screen!$E$6,AT20:AT20,screen!$E$8,AV20:AV20,screen!$E$12,AW20:AW20,screen!$E$14)=0,"",1) -> 1 | K20: =1 -> 1 | L20: Зак-2 / дог. №76-в от 23.9.2019г. / АКТ №786 от 1.10.2019г. / сумма отгр. 3000000 | M20: 1200000 | N20: 242.4474237 | O20: =IF(M20=0,lists!$BQ$11,IF(N20<1,lists!$BQ$12,IF(M20<=conditions!$J$10,lists!$BQ$13,lists!$BQ$14))) -> Долг просроченный | P20: =IF(O20<>lists!$BQ$14,lists!$BT$11,IF(AND(AL20<>"",AL20<>0,AL20>IF(AM20="",0,AM20)),lists!$BT$12,IF(AND(AM20<>"",AM20<>0,AM20>=IF(AL20="",0,AL20)),lists!$BT$13,IF(IF(OR(AN20="",AN20=0),1,0)*U20+IF(OR(AO20="",AO20=0),1,0)*X20+IF(OR(AP20="",AP20=0),1,0)*AA20+IF(OR(AQ20="",AQ20=0),1,0)*AD20+IF(OR(AR20="",AR20=0),1,0)*AG20>0,lists!$BT$14,lists!$BT$15)))) -> Долг брошенный | Q20: =IF(O20<>lists!$BQ$14,"нет статуса",IF(BD!N20<=lists!$CB$11,lists!$BY$11,IF(BD!N20<=lists!$CB$12,lists!$BY$12,IF(BD!N20<=lists!$CB$13,lists!$BY$13,IF(BD!N20<=lists!$CB$14,lists!$BY$14,lists!$BY$15))))) -> просрочка-100 | R20: =IF(Q20="нет статуса","нет действий",IF(AND(Q20=lists!$BY$11,AI20-N20>=AN20),"нет действий",IF(AND(Q20=lists!$BY$11,AI20-N20<AN20),lists!$CK$11,IF(AND(AR20<>0,AR20<>""),lists!$CK$15,IF(AND(AQ20<>0,AQ20<>""),lists!$CK$14,IF(AND(AP20<>0,AP20<>""),lists!$CK$13,IF(AND(AO20<>0,AO20<>""),lists!$CK$12,IF(AND(AN20<>0,AN20<>""),lists!$CK$11,"нет действий")))))))) -> досудебная претензия | S20: 1 | T20: =IF(OR(AN20="",AN20=0),IF(AND(N20>lists!$CE$11,N20<=lists!$CH$11),N20-lists!$CE$11,0),IF(AND(AN20-($AI$2-N20)>lists!$CE$11,AN20-($AI$2-N20)<=lists!$CH$11),AN20-($AI$2-N20)-lists!$CE$11,0)) -> 0 | U20: =IF(OR(AN20="",AN20=0),IF(N20>lists!$CH$11,N20-lists!$CH$11,0),IF(AN20-($AI$2-N20)>lists!$CH$11,AN20-($AI$2-N20)-lists!$CH$11,0)) -> 0 | V20: =IF(OR(AO20="",AO20=0),0,IF(AO20<$AI$2-N20+lists!$CB$11,1,0)) -> 1 | W20: =IF(OR(AO20="",AO20=0),IF(AND(N20-lists!$CB$11>lists!$CE$12,N20-lists!$CB$11<=lists!$CH$12),N20-lists!$CB$11-lists!$CE$12,0),IF(AND(AO20-($AI$2-N20)-lists!$CB$11>lists!$CE$12,AO20-($AI$2-N20)-lists!$CB$11<=lists!$CH$12),AO20-($AI$2-N20)-lists!$CB$11-lists!$CE$12,0)) -> 0 | X20: =IF(OR(AO20="",AO20=0),IF(N20-lists!CB12>lists!$CH$12,N20-lists!CB12-lists!$CH$12,0),IF(AO20-($AI$2-N20)-lists!CB12>lists!$CH$12,AO20-($AI$2-N20)-lists!CB12-lists!$CH$12,0)) -> 0 | Y20: =IF(OR(AP20="",AP20=0),0,IF(AP20<$AI$2-N20+lists!$CB$11+lists!$CB$12,1,0)) -> 1 | Z20: =IF(OR(AP20="",AP20=0),IF(AND(N20-lists!$CB$11-lists!$CB$12>lists!$CE$13,N20-lists!$CB$11-lists!$CB$12<=lists!$CH$13),N20-lists!$CB$11-lists!$CB$12-lists!$CE$13,0),IF(AND(AP20-($AI$2-N20)-lists!$CB$11-lists!$CB$12>lists!$CE$13,AP20-($AI$2-N20)-lists!$CB$11-lists!$CB$12<=lists!$CH$13),AP20-($AI$2-N20)-lists!$CB$11-lists!$CB$12-lists!$CE$13,0)) -> 0 | AA20: =IF(OR(AP20="",AP20=0),IF(N20-lists!CB12-lists!CB13>lists!$CH$13,N20-lists!CB12-lists!CB13-lists!$CH$13,0),IF(AP20-($AI$2-N20)-lists!CB12-lists!CB13>lists!$CH$13,AP20-($AI$2-N20)-lists!CB12-lists!CB13-lists!$CH$13,0)) -> 0 | AB20: =IF(OR(AQ20="",AQ20=0),0,IF(AQ20<$AI$2-N20+lists!$CB$11+lists!$CB$12+lists!$CB$13,1,0)) -> 0 | AC20: =IF(OR(AQ20="",AQ20=0),IF(AND(N20-lists!$CB$11-lists!$CB$12-lists!$CB$13>lists!$CE$14,N20-lists!$CB$11-lists!$CB$12-lists!$CB$13<=lists!$CH$14),N20-lists!$CB$11-lists!$CB$12-lists!$CB$13-lists!$CE$14,0),IF(AND(AQ20-($AI$2-N20)-lists!$CB$11-lists!$CB$12-lists!$CB$13>lists!$CE$14,AQ20-($AI$2-N20)-lists!$CB$11-lists!$CB$12-lists!$CB$13<=lists!$CH$14),AQ20-($AI$2-N20)-lists!$CB$11-lists!$CB$12-lists!$CB$13-lists!$CE$14,0)) -> 0 | AD20: =IF(OR(AQ20="",AQ20=0),IF(N20-lists!CB12-lists!CB13-lists!CB14>lists!$CH$14,N20-lists!CB12-lists!CB13-lists!CB14-lists!$CH$14,0),IF(AQ20-($AI$2-N20)-lists!CB12-lists!CB13-lists!CB14>lists!$CH$14,AQ20-($AI$2-N20)-lists!CB12-lists!CB13-lists!CB14-lists!$CH$14,0)) -> 115.4474237 | AE20: =IF(OR(AR20="",AR20=0),0,IF(AR20<$AI$2-N20+lists!$CB$11+lists!$CB$12+lists!$CB$13+lists!$CB$14,1,0)) -> 0 | AF20: =IF(OR(AR20="",AR20=0),IF(AND(N20-lists!$CB$11-lists!$CB$12-lists!$CB$13-lists!$CB$14>lists!$CE$15,N20-lists!$CB$11-lists!$CB$12-lists!$CB$13-lists!$CB$14<=lists!$CH$15),N20-lists!$CB$11-lists!$CB$12-lists!$CB$13-lists!$CB$14-lists!$CE$15,0),IF(AND(AR20-($AI$2-N20)-lists!$CB$11-lists!$CB$12-lists!$CB$13-lists!$CB$14>lists!$CE$15,AR20-($AI$2-N20)-lists!$CB$11-lists!$CB$12-lists!$CB$13-lists!$CB$14<=lists!$CH$15),AR20-($AI$2-N20)-lists!$CB$11-lists!$CB$12-lists!$CB$13-lists!$CB$14-lists!$CE$15,0)) -> 0 | AG20: =IF(OR(AR20="",AR20=0),IF(N20-lists!CB12-lists!CB13-lists!CB14-lists!CB15>lists!$CH$15,N20-lists!CB12-lists!CB13-lists!CB14-lists!CB15-lists!$CH$15,0),IF(AR20-($AI$2-N20)-lists!CB12-lists!CB13-lists!CB14-lists!CB15>lists!$CH$15,AR20-($AI$2-N20)-lists!CB12-lists!CB13-lists!CB14-lists!CB15-lists!$CH$15,0)) -> 18.44742366 | AH20: 0 | AI20: 2019-10-08T04:38:20.290 | AK20: 0 | AL20: 00:00:00 | AM20: 00:00:00 | AN20: 2019-10-08T04:09:50.660 | AO20: 2019-10-08T04:33:07.640 | AP20: 2019-10-08T04:38:20.290 | AQ20: 00:00:00 | AR20: 00:00:00 | AS20: Зак-2 | AT20: №76-в | AU20: 2019-09-23 | AV20: АКТ | AW20: №786 | AX20: 2019-10-01 | AY20: 3000000 | AZ20: 2019-10-01 | BA20: 1000000 | BB20: 2019-10-04 | BC20: 1600000 | BD20: 2019-10-12 | BE20: 400000 | BF20: 00:00:00 | BG20: 0 | BH20: 00:00:00 | BI20: 0 | BJ20: 00:00:00 | BK20: 0 | BL20: 00:00:00 | BM20: 0 | BN20: 00:00:00 | BO20: 0 | BP20: 00:00:00 | BQ20: 0 | BR20: 00:00:00 | BS20: 0 | BT20: 00:00:00 | BU20: 0 | BV20: 00:00:00 | BW20: 0 | BX20: 2019-10-02 | BY20: 700000 | BZ20: 2019-10-05 | CA20: 1100000 | CB20: 00:00:00 | CC20: 0 | CD20: 00:00:00 | CE20: 0 | CF20: 00:00:00 | CG20: 0 | CH20: 00:00:00 | CI20: 0 | CJ20: 00:00:00 | CK20: 0 | CL20: 00:00:00 | CM20: 0 | CN20: 00:00:00 | CO20: 0 | CP20: 00:00:00 | CQ20: 0 | CR20: 00:00:00 | CS20: 0 | CT20: 00:00:00 | CU20: 0 | CV20: ООО "Заказчик-2" | CW20: ООО "Зак-2" | CX20: Сидоров | CY20: 33545626 | CZ20: 3756767 | DA20: 74568 | DB20: 267657 | DC20: 7787878 | DD20: 669696 | DE20: 254н565464 | DF20: 756787878 | DG20: 34757 | DH20: 3246 | DI20: ALL | DJ20: ALL | DK20: ALL | DL20: ALL | DM20: ALL | DN20: ALL
A21: =ROW() -> 21 | I21: 0 | J21: =IF(SUMIFS(K21:K21,I21:I21,1,AS21:AS21,screen!$E$6,AT21:AT21,screen!$E$8,AV21:AV21,screen!$E$12,AW21:AW21,screen!$E$14)=0,"",1) ->  | K21: =1 -> 1 | L21: Зак-2 / дог. №76-в от 23.9.2019г. / АКТ №786 от 1.10.2019г. / сумма отгр. 3000000 | M21: 1200000 | N21: 242.4474237 | O21: =IF(M21=0,lists!$BQ$11,IF(N21<1,lists!$BQ$12,IF(M21<=conditions!$J$10,lists!$BQ$13,lists!$BQ$14))) -> Долг просроченный | P21: =IF(O21<>lists!$BQ$14,lists!$BT$11,IF(AND(AL21<>"",AL21<>0,AL21>IF(AM21="",0,AM21)),lists!$BT$12,IF(AND(AM21<>"",AM21<>0,AM21>=IF(AL21="",0,AL21)),lists!$BT$13,IF(IF(OR(AN21="",AN21=0),1,0)*U21+IF(OR(AO21="",AO21=0),1,0)*X21+IF(OR(AP21="",AP21=0),1,0)*AA21+IF(OR(AQ21="",AQ21=0),1,0)*AD21+IF(OR(AR21="",AR21=0),1,0)*AG21>0,lists!$BT$14,lists!$BT$15)))) -> Долг брошенный | Q21: =IF(O21<>lists!$BQ$14,"нет статуса",IF(BD!N21<=lists!$CB$11,lists!$BY$11,IF(BD!N21<=lists!$CB$12,lists!$BY$12,IF(BD!N21<=lists!$CB$13,lists!$BY$13,IF(BD!N21<=lists!$CB$14,lists!$BY$14,lists!$BY$15))))) -> просрочка-100 | R21: =IF(Q21="нет статуса","нет действий",IF(AND(Q21=lists!$BY$11,AI21-N21>=AN21),"нет действий",IF(AND(Q21=lists!$BY$11,AI21-N21<AN21),lists!$CK$11,IF(AND(AR21<>0,AR21<>""),lists!$CK$15,IF(AND(AQ21<>0,AQ21<>""),lists!$CK$14,IF(AND(AP21<>0,AP21<>""),lists!$CK$13,IF(AND(AO21<>0,AO21<>""),lists!$CK$12,IF(AND(AN21<>0,AN21<>""),lists!$CK$11,"нет действий")))))))) -> график рассрочки | S21: 1 | T21: =IF(OR(AN21="",AN21=0),IF(AND(N21>lists!$CE$11,N21<=lists!$CH$11),N21-lists!$CE$11,0),IF(AND(AN21-($AI$2-N21)>lists!$CE$11,AN21-($AI$2-N21)<=lists!$CH$11),AN21-($AI$2-N21)-lists!$CE$11,0)) -> 0 | U21: =IF(OR(AN21="",AN21=0),IF(N21>lists!$CH$11,N21-lists!$CH$11,0),IF(AN21-($AI$2-N21)>lists!$CH$11,AN21-($AI$2-N21)-lists!$CH$11,0)) -> 0 | V21: =IF(OR(AO21="",AO21=0),0,IF(AO21<$AI$2-N21+lists!$CB$11,1,0)) -> 1 | W21: =IF(OR(AO21="",AO21=0),IF(AND(N21-lists!$CB$11>lists!$CE$12,N21-lists!$CB$11<=lists!$CH$12),N21-lists!$CB$11-lists!$CE$12,0),IF(AND(AO21-($AI$2-N21)-lists!$CB$11>lists!$CE$12,AO21-($AI$2-N21)-lists!$CB$11<=lists!$CH$12),AO21-($AI$2-N21)-lists!$CB$11-lists!$CE$12,0)) -> 0 | X21: =IF(OR(AO21="",AO21=0),IF(N21-lists!CB12>lists!$CH$12,N21-lists!CB12-lists!$CH$12,0),IF(AO21-($AI$2-N21)-lists!CB12>lists!$CH$12,AO21-($AI$2-N21)-lists!CB12-lists!$CH$12,0)) -> 0 | Y21: =IF(OR(AP21="",AP21=0),0,IF(AP21<$AI$2-N21+lists!$CB$11+lists!$CB$12,1,0)) -> 0 | Z21: =IF(OR(AP21="",AP21=0),IF(AND(N21-lists!$CB$11-lists!$CB$12>lists!$CE$13,N21-lists!$CB$11-lists!$CB$12<=lists!$CH$13),N21-lists!$CB$11-lists!$CB$12-lists!$CE$13,0),IF(AND(AP21-($AI$2-N21)-lists!$CB$11-lists!$CB$12>lists!$CE$13,AP21-($AI$2-N21)-lists!$CB$11-lists!$CB$12<=lists!$CH$13),AP21-($AI$2-N21)-lists!$CB$11-lists!$CB$12-lists!$CE$13,0)) -> 0 | AA21: =IF(OR(AP21="",AP21=0),IF(N21-lists!CB12-lists!CB13>lists!$CH$13,N21-lists!CB12-lists!CB13-lists!$CH$13,0),IF(AP21-($AI$2-N21)-lists!CB12-lists!CB13>lists!$CH$13,AP21-($AI$2-N21)-lists!CB12-lists!CB13-lists!$CH$13,0)) -> 186.4474237 | AB21: =IF(OR(AQ21="",AQ21=0),0,IF(AQ21<$AI$2-N21+lists!$CB$11+lists!$CB$12+lists!$CB$13,1,0)) -> 0 | AC21: =IF(OR(AQ21="",AQ21=0),IF(AND(N21-lists!$CB$11-lists!$CB$12-lists!$CB$13>lists!$CE$14,N21-lists!$CB$11-lists!$CB$12-lists!$CB$13<=lists!$CH$14),N21-lists!$CB$11-lists!$CB$12-lists!$CB$13-lists!$CE$14,0),IF(AND(AQ21-($AI$2-N21)-lists!$CB$11-lists!$CB$12-lists!$CB$13>lists!$CE$14,AQ21-($AI$2-N21)-lists!$CB$11-lists!$CB$12-lists!$CB$13<=lists!$CH$14),AQ21-($AI$2-N21)-lists!$CB$11-lists!$CB$12-lists!$CB$13-lists!$CE$14,0)) -> 0 | AD21: =IF(OR(AQ21="",AQ21=0),IF(N21-lists!CB12-lists!CB13-lists!CB14>lists!$CH$14,N21-lists!CB12-lists!CB13-lists!CB14-lists!$CH$14,0),IF(AQ21-($AI$2-N21)-lists!CB12-lists!CB13-lists!CB14>lists!$CH$14,AQ21-($AI$2-N21)-lists!CB12-lists!CB13-lists!CB14-lists!$CH$14,0)) -> 115.4474237 | AE21: =IF(OR(AR21="",AR21=0),0,IF(AR21<$AI$2-N21+lists!$CB$11+lists!$CB$12+lists!$CB$13+lists!$CB$14,1,0)) -> 0 | AF21: =IF(OR(AR21="",AR21=0),IF(AND(N21-lists!$CB$11-lists!$CB$12-lists!$CB$13-lists!$CB$14>lists!$CE$15,N21-lists!$CB$11-lists!$CB$12-lists!$CB$13-lists!$CB$14<=lists!$CH$15),N21-lists!$CB$11-lists!$CB$12-lists!$CB$13-lists!$CB$14-lists!$CE$15,0),IF(AND(AR21-($AI$2-N21)-lists!$CB$11-lists!$CB$12-lists!$CB$13-lists!$CB$14>lists!$CE$15,AR21-($AI$2-N21)-lists!$CB$11-lists!$CB$12-lists!$CB$13-lists!$CB$14<=lists!$CH$15),AR21-($AI$2-N21)-lists!$CB$11-lists!$CB$12-lists!$CB$13-lists!$CB$14-lists!$CE$15,0)) -> 0 | AG21: =IF(OR(AR21="",AR21=0),IF(N21-lists!CB12-lists!CB13-lists!CB14-lists!CB15>lists!$CH$15,N21-lists!CB12-lists!CB13-lists!CB14-lists!CB15-lists!$CH$15,0),IF(AR21-($AI$2-N21)-lists!CB12-lists!CB13-lists!CB14-lists!CB15>lists!$CH$15,AR21-($AI$2-N21)-lists!CB12-lists!CB13-lists!CB14-lists!CB15-lists!$CH$15,0)) -> 18.44742366 | AH21: 0 | AI21: 2019-10-08T04:33:07.640 | AK21: 0 | AL21: 00:00:00 | AM21: 00:00:00 | AN21: 2019-10-08T04:09:50.660 | AO21: 2019-10-08T04:33:07.640 | AP21: 00:00:00 | AQ21: 00:00:00 | AR21: 00:00:00 | AS21: Зак-2 | AT21: №76-в | AU21: 2019-09-23 | AV21: АКТ | AW21: №786 | AX21: 2019-10-01 | AY21: 3000000 | AZ21: 2019-10-01 | BA21: 1000000 | BB21: 2019-10-04 | BC21: 1600000 | BD21: 2019-10-12 | BE21: 400000 | BF21: 00:00:00 | BG21: 0 | BH21: 00:00:00 | BI21: 0 | BJ21: 00:00:00 | BK21: 0 | BL21: 00:00:00 | BM21: 0 | BN21: 00:00:00 | BO21: 0 | BP21: 00:00:00 | BQ21: 0 | BR21: 00:00:00 | BS21: 0 | BT21: 00:00:00 | BU21: 0 | BV21: 00:00:00 | BW21: 0 | BX21: 2019-10-02 | BY21: 700000 | BZ21: 2019-10-05 | CA21: 1100000 | CB21: 00:00:00 | CC21: 0 | CD21: 00:00:00 | CE21: 0 | CF21: 00:00:00 | CG21: 0 | CH21: 00:00:00 | CI21: 0 | CJ21: 00:00:00 | CK21: 0 | CL21: 00:00:00 | CM21: 0 | CN21: 00:00:00 | CO21: 0 | CP21: 00:00:00 | CQ21: 0 | CR21: 00:00:00 | CS21: 0 | CT21: 00:00:00 | CU21: 0 | CV21: ООО "Заказчик-2" | CW21: ООО "Зак-2" | CX21: Сидоров | CY21: 33545626 | CZ21: 3756767 | DA21: 74568 | DB21: 267657 | DC21: 7787878 | DD21: 669696 | DE21: 254н565464 | DF21: 756787878 | DG21: 34757 | DH21: 3246 | DI21: ALL | DJ21: ALL | DK21: ALL | DL21: ALL | DM21: ALL | DN21: ALL
A22: =ROW() -> 22 | I22: 0 | J22: =IF(SUMIFS(K22:K22,I22:I22,1,AS22:AS22,screen!$E$6,AT22:AT22,screen!$E$8,AV22:AV22,screen!$E$12,AW22:AW22,screen!$E$14)=0,"",1) ->  | K22: =1 -> 1 | L22: Зак-2 / дог. №76-в от 23.9.2019г. / АКТ №786 от 1.10.2019г. / сумма отгр. 3000000 | M22: 1200000 | N22: 242.4474237 | O22: =IF(M22=0,lists!$BQ$11,IF(N22<1,lists!$BQ$12,IF(M22<=conditions!$J$10,lists!$BQ$13,lists!$BQ$14))) -> Долг просроченный | P22: =IF(O22<>lists!$BQ$14,lists!$BT$11,IF(AND(AL22<>"",AL22<>0,AL22>IF(AM22="",0,AM22)),lists!$BT$12,IF(AND(AM22<>"",AM22<>0,AM22>=IF(AL22="",0,AL22)),lists!$BT$13,IF(IF(OR(AN22="",AN22=0),1,0)*U22+IF(OR(AO22="",AO22=0),1,0)*X22+IF(OR(AP22="",AP22=0),1,0)*AA22+IF(OR(AQ22="",AQ22=0),1,0)*AD22+IF(OR(AR22="",AR22=0),1,0)*AG22>0,lists!$BT$14,lists!$BT$15)))) -> Долг брошенный | Q22: =IF(O22<>lists!$BQ$14,"нет статуса",IF(BD!N22<=lists!$CB$11,lists!$BY$11,IF(BD!N22<=lists!$CB$12,lists!$BY$12,IF(BD!N22<=lists!$CB$13,lists!$BY$13,IF(BD!N22<=lists!$CB$14,lists!$BY$14,lists!$BY$15))))) -> просрочка-100 | R22: =IF(Q22="нет статуса","нет действий",IF(AND(Q22=lists!$BY$11,AI22-N22>=AN22),"нет действий",IF(AND(Q22=lists!$BY$11,AI22-N22<AN22),lists!$CK$11,IF(AND(AR22<>0,AR22<>""),lists!$CK$15,IF(AND(AQ22<>0,AQ22<>""),lists!$CK$14,IF(AND(AP22<>0,AP22<>""),lists!$CK$13,IF(AND(AO22<>0,AO22<>""),lists!$CK$12,IF(AND(AN22<>0,AN22<>""),lists!$CK$11,"нет действий")))))))) -> коммуникация | S22: 1 | T22: =IF(OR(AN22="",AN22=0),IF(AND(N22>lists!$CE$11,N22<=lists!$CH$11),N22-lists!$CE$11,0),IF(AND(AN22-($AI$2-N22)>lists!$CE$11,AN22-($AI$2-N22)<=lists!$CH$11),AN22-($AI$2-N22)-lists!$CE$11,0)) -> 0 | U22: =IF(OR(AN22="",AN22=0),IF(N22>lists!$CH$11,N22-lists!$CH$11,0),IF(AN22-($AI$2-N22)>lists!$CH$11,AN22-($AI$2-N22)-lists!$CH$11,0)) -> 0 | V22: =IF(OR(AO22="",AO22=0),0,IF(AO22<$AI$2-N22+lists!$CB$11,1,0)) -> 0 | W22: =IF(OR(AO22="",AO22=0),IF(AND(N22-lists!$CB$11>lists!$CE$12,N22-lists!$CB$11<=lists!$CH$12),N22-lists!$CB$11-lists!$CE$12,0),IF(AND(AO22-($AI$2-N22)-lists!$CB$11>lists!$CE$12,AO22-($AI$2-N22)-lists!$CB$11<=lists!$CH$12),AO22-($AI$2-N22)-lists!$CB$11-lists!$CE$12,0)) -> 0 | X22: =IF(OR(AO22="",AO22=0),IF(N22-lists!CB12>lists!$CH$12,N22-lists!CB12-lists!$CH$12,0),IF(AO22-($AI$2-N22)-lists!CB12>lists!$CH$12,AO22-($AI$2-N22)-lists!CB12-lists!$CH$12,0)) -> 228.4474237 | Y22: =IF(OR(AP22="",AP22=0),0,IF(AP22<$AI$2-N22+lists!$CB$11+lists!$CB$12,1,0)) -> 0 | Z22: =IF(OR(AP22="",AP22=0),IF(AND(N22-lists!$CB$11-lists!$CB$12>lists!$CE$13,N22-lists!$CB$11-lists!$CB$12<=lists!$CH$13),N22-lists!$CB$11-lists!$CB$12-lists!$CE$13,0),IF(AND(AP22-($AI$2-N22)-lists!$CB$11-lists!$CB$12>lists!$CE$13,AP22-($AI$2-N22)-lists!$CB$11-lists!$CB$12<=lists!$CH$13),AP22-($AI$2-N22)-lists!$CB$11-lists!$CB$12-lists!$CE$13,0)) -> 0 | AA22: =IF(OR(AP22="",AP22=0),IF(N22-lists!CB12-lists!CB13>lists!$CH$13,N22-lists!CB12-lists!CB13-lists!$CH$13,0),IF(AP22-($AI$2-N22)-lists!CB12-lists!CB13>lists!$CH$13,AP22-($AI$2-N22)-lists!CB12-lists!CB13-lists!$CH$13,0)) -> 186.4474237 | AB22: =IF(OR(AQ22="",AQ22=0),0,IF(AQ22<$AI$2-N22+lists!$CB$11+lists!$CB$12+lists!$CB$13,1,0)) -> 0 | AC22: =IF(OR(AQ22="",AQ22=0),IF(AND(N22-lists!$CB$11-lists!$CB$12-lists!$CB$13>lists!$CE$14,N22-lists!$CB$11-lists!$CB$12-lists!$CB$13<=lists!$CH$14),N22-lists!$CB$11-lists!$CB$12-lists!$CB$13-lists!$CE$14,0),IF(AND(AQ22-($AI$2-N22)-lists!$CB$11-lists!$CB$12-lists!$CB$13>lists!$CE$14,AQ22-($AI$2-N22)-lists!$CB$11-lists!$CB$12-lists!$CB$13<=lists!$CH$14),AQ22-($AI$2-N22)-lists!$CB$11-lists!$CB$12-lists!$CB$13-lists!$CE$14,0)) -> 0 | AD22: =IF(OR(AQ22="",AQ22=0),IF(N22-lists!CB12-lists!CB13-lists!CB14>lists!$CH$14,N22-lists!CB12-lists!CB13-lists!CB14-lists!$CH$14,0),IF(AQ22-($AI$2-N22)-lists!CB12-lists!CB13-lists!CB14>lists!$CH$14,AQ22-($AI$2-N22)-lists!CB12-lists!CB13-lists!CB14-lists!$CH$14,0)) -> 115.4474237 | AE22: =IF(OR(AR22="",AR22=0),0,IF(AR22<$AI$2-N22+lists!$CB$11+lists!$CB$12+lists!$CB$13+lists!$CB$14,1,0)) -> 0 | AF22: =IF(OR(AR22="",AR22=0),IF(AND(N22-lists!$CB$11-lists!$CB$12-lists!$CB$13-lists!$CB$14>lists!$CE$15,N22-lists!$CB$11-lists!$CB$12-lists!$CB$13-lists!$CB$14<=lists!$CH$15),N22-lists!$CB$11-lists!$CB$12-lists!$CB$13-lists!$CB$14-lists!$CE$15,0),IF(AND(AR22-($AI$2-N22)-lists!$CB$11-lists!$CB$12-lists!$CB$13-lists!$CB$14>lists!$CE$15,AR22-($AI$2-N22)-lists!$CB$11-lists!$CB$12-lists!$CB$13-lists!$CB$14<=lists!$CH$15),AR22-($AI$2-N22)-lists!$CB$11-lists!$CB$12-lists!$CB$13-lists!$CB$14-lists!$CE$15,0)) -> 0 | AG22: =IF(OR(AR22="",AR22=0),IF(N22-lists!CB12-lists!CB13-lists!CB14-lists!CB15>lists!$CH$15,N22-lists!CB12-lists!CB13-lists!CB14-lists!CB15-lists!$CH$15,0),IF(AR22-($AI$2-N22)-lists!CB12-lists!CB13-lists!CB14-lists!CB15>lists!$CH$15,AR22-($AI$2-N22)-lists!CB12-lists!CB13-lists!CB14-lists!CB15-lists!$CH$15,0)) -> 18.44742366 | AH22: 0 | AI22: 2019-10-08T04:09:50.660 | AK22: 0 | AL22: 00:00:00 | AM22: 00:00:00 | AN22: 2019-10-08T04:09:50.660 | AO22: 00:00:00 | AP22: 00:00:00 | AQ22: 00:00:00 | AR22: 00:00:00 | AS22: Зак-2 | AT22: №76-в | AU22: 2019-09-23 | AV22: АКТ | AW22: №786 | AX22: 2019-10-01 | AY22: 3000000 | AZ22: 2019-10-01 | BA22: 1000000 | BB22: 2019-10-04 | BC22: 1600000 | BD22: 2019-10-12 | BE22: 400000 | BF22: 00:00:00 | BG22: 0 | BH22: 00:00:00 | BI22: 0 | BJ22: 00:00:00 | BK22: 0 | BL22: 00:00:00 | BM22: 0 | BN22: 00:00:00 | BO22: 0 | BP22: 00:00:00 | BQ22: 0 | BR22: 00:00:00 | BS22: 0 | BT22: 00:00:00 | BU22: 0 | BV22: 00:00:00 | BW22: 0 | BX22: 2019-10-02 | BY22: 700000 | BZ22: 2019-10-05 | CA22: 1100000 | CB22: 00:00:00 | CC22: 0 | CD22: 00:00:00 | CE22: 0 | CF22: 00:00:00 | CG22: 0 | CH22: 00:00:00 | CI22: 0 | CJ22: 00:00:00 | CK22: 0 | CL22: 00:00:00 | CM22: 0 | CN22: 00:00:00 | CO22: 0 | CP22: 00:00:00 | CQ22: 0 | CR22: 00:00:00 | CS22: 0 | CT22: 00:00:00 | CU22: 0 | CV22: ООО "Заказчик-2" | CW22: ООО "Зак-2" | CX22: Сидоров | CY22: 33545626 | CZ22: 3756767 | DA22: 74568 | DB22: 267657 | DC22: 7787878 | DD22: 669696 | DE22: 254н565464 | DF22: 756787878 | DG22: 34757 | DH22: 3246 | DI22: ALL | DJ22: ALL | DK22: ALL | DL22: ALL | DM22: ALL | DN22: ALL
A23: =ROW() -> 23 | I23: 0 | J23: =IF(SUMIFS(K23:K23,I23:I23,1,AS23:AS23,screen!$E$6,AT23:AT23,screen!$E$8,AV23:AV23,screen!$E$12,AW23:AW23,screen!$E$14)=0,"",1) ->  | K23: =1 -> 1 | L23: Зак-2 / дог. №76-в от 23.9.2019г. / АКТ №786 от 1.10.2019г. / сумма отгр. 3000000 | M23: 1200000 | N23: 242.4474237 | O23: =IF(M23=0,lists!$BQ$11,IF(N23<1,lists!$BQ$12,IF(M23<=conditions!$J$10,lists!$BQ$13,lists!$BQ$14))) -> Долг просроченный | P23: =IF(O23<>lists!$BQ$14,lists!$BT$11,IF(AND(AL23<>"",AL23<>0,AL23>IF(AM23="",0,AM23)),lists!$BT$12,IF(AND(AM23<>"",AM23<>0,AM23>=IF(AL23="",0,AL23)),lists!$BT$13,IF(IF(OR(AN23="",AN23=0),1,0)*U23+IF(OR(AO23="",AO23=0),1,0)*X23+IF(OR(AP23="",AP23=0),1,0)*AA23+IF(OR(AQ23="",AQ23=0),1,0)*AD23+IF(OR(AR23="",AR23=0),1,0)*AG23>0,lists!$BT$14,lists!$BT$15)))) -> Долг брошенный | Q23: =IF(O23<>lists!$BQ$14,"нет статуса",IF(BD!N23<=lists!$CB$11,lists!$BY$11,IF(BD!N23<=lists!$CB$12,lists!$BY$12,IF(BD!N23<=lists!$CB$13,lists!$BY$13,IF(BD!N23<=lists!$CB$14,lists!$BY$14,lists!$BY$15))))) -> просрочка-100 | R23: =IF(Q23="нет статуса","нет действий",IF(AND(Q23=lists!$BY$11,AI23-N23>=AN23),"нет действий",IF(AND(Q23=lists!$BY$11,AI23-N23<AN23),lists!$CK$11,IF(AND(AR23<>0,AR23<>""),lists!$CK$15,IF(AND(AQ23<>0,AQ23<>""),lists!$CK$14,IF(AND(AP23<>0,AP23<>""),lists!$CK$13,IF(AND(AO23<>0,AO23<>""),lists!$CK$12,IF(AND(AN23<>0,AN23<>""),lists!$CK$11,"нет действий")))))))) -> коммуникация | S23: 1 | T23: =IF(OR(AN23="",AN23=0),IF(AND(N23>lists!$CE$11,N23<=lists!$CH$11),N23-lists!$CE$11,0),IF(AND(AN23-($AI$2-N23)>lists!$CE$11,AN23-($AI$2-N23)<=lists!$CH$11),AN23-($AI$2-N23)-lists!$CE$11,0)) -> 0 | U23: =IF(OR(AN23="",AN23=0),IF(N23>lists!$CH$11,N23-lists!$CH$11,0),IF(AN23-($AI$2-N23)>lists!$CH$11,AN23-($AI$2-N23)-lists!$CH$11,0)) -> 0 | V23: =IF(OR(AO23="",AO23=0),0,IF(AO23<$AI$2-N23+lists!$CB$11,1,0)) -> 0 | W23: =IF(OR(AO23="",AO23=0),IF(AND(N23-lists!$CB$11>lists!$CE$12,N23-lists!$CB$11<=lists!$CH$12),N23-lists!$CB$11-lists!$CE$12,0),IF(AND(AO23-($AI$2-N23)-lists!$CB$11>lists!$CE$12,AO23-($AI$2-N23)-lists!$CB$11<=lists!$CH$12),AO23-($AI$2-N23)-lists!$CB$11-lists!$CE$12,0)) -> 0 | X23: =IF(OR(AO23="",AO23=0),IF(N23-lists!CB12>lists!$CH$12,N23-lists!CB12-lists!$CH$12,0),IF(AO23-($AI$2-N23)-lists!CB12>lists!$CH$12,AO23-($AI$2-N23)-lists!CB12-lists!$CH$12,0)) -> 228.4474237 | Y23: =IF(OR(AP23="",AP23=0),0,IF(AP23<$AI$2-N23+lists!$CB$11+lists!$CB$12,1,0)) -> 0 | Z23: =IF(OR(AP23="",AP23=0),IF(AND(N23-lists!$CB$11-lists!$CB$12>lists!$CE$13,N23-lists!$CB$11-lists!$CB$12<=lists!$CH$13),N23-lists!$CB$11-lists!$CB$12-lists!$CE$13,0),IF(AND(AP23-($AI$2-N23)-lists!$CB$11-lists!$CB$12>lists!$CE$13,AP23-($AI$2-N23)-lists!$CB$11-lists!$CB$12<=lists!$CH$13),AP23-($AI$2-N23)-lists!$CB$11-lists!$CB$12-lists!$CE$13,0)) -> 0 | AA23: =IF(OR(AP23="",AP23=0),IF(N23-lists!CB12-lists!CB13>lists!$CH$13,N23-lists!CB12-lists!CB13-lists!$CH$13,0),IF(AP23-($AI$2-N23)-lists!CB12-lists!CB13>lists!$CH$13,AP23-($AI$2-N23)-lists!CB12-lists!CB13-lists!$CH$13,0)) -> 186.4474237 | AB23: =IF(OR(AQ23="",AQ23=0),0,IF(AQ23<$AI$2-N23+lists!$CB$11+lists!$CB$12+lists!$CB$13,1,0)) -> 0 | AC23: =IF(OR(AQ23="",AQ23=0),IF(AND(N23-lists!$CB$11-lists!$CB$12-lists!$CB$13>lists!$CE$14,N23-lists!$CB$11-lists!$CB$12-lists!$CB$13<=lists!$CH$14),N23-lists!$CB$11-lists!$CB$12-lists!$CB$13-lists!$CE$14,0),IF(AND(AQ23-($AI$2-N23)-lists!$CB$11-lists!$CB$12-lists!$CB$13>lists!$CE$14,AQ23-($AI$2-N23)-lists!$CB$11-lists!$CB$12-lists!$CB$13<=lists!$CH$14),AQ23-($AI$2-N23)-lists!$CB$11-lists!$CB$12-lists!$CB$13-lists!$CE$14,0)) -> 0 | AD23: =IF(OR(AQ23="",AQ23=0),IF(N23-lists!CB12-lists!CB13-lists!CB14>lists!$CH$14,N23-lists!CB12-lists!CB13-lists!CB14-lists!$CH$14,0),IF(AQ23-($AI$2-N23)-lists!CB12-lists!CB13-lists!CB14>lists!$CH$14,AQ23-($AI$2-N23)-lists!CB12-lists!CB13-lists!CB14-lists!$CH$14,0)) -> 115.4474237 | AE23: =IF(OR(AR23="",AR23=0),0,IF(AR23<$AI$2-N23+lists!$CB$11+lists!$CB$12+lists!$CB$13+lists!$CB$14,1,0)) -> 0 | AF23: =IF(OR(AR23="",AR23=0),IF(AND(N23-lists!$CB$11-lists!$CB$12-lists!$CB$13-lists!$CB$14>lists!$CE$15,N23-lists!$CB$11-lists!$CB$12-lists!$CB$13-lists!$CB$14<=lists!$CH$15),N23-lists!$CB$11-lists!$CB$12-lists!$CB$13-lists!$CB$14-lists!$CE$15,0),IF(AND(AR23-($AI$2-N23)-lists!$CB$11-lists!$CB$12-lists!$CB$13-lists!$CB$14>lists!$CE$15,AR23-($AI$2-N23)-lists!$CB$11-lists!$CB$12-lists!$CB$13-lists!$CB$14<=lists!$CH$15),AR23-($AI$2-N23)-lists!$CB$11-lists!$CB$12-lists!$CB$13-lists!$CB$14-lists!$CE$15,0)) -> 0 | AG23: =IF(OR(AR23="",AR23=0),IF(N23-lists!CB12-lists!CB13-lists!CB14-lists!CB15>lists!$CH$15,N23-lists!CB12-lists!CB13-lists!CB14-lists!CB15-lists!$CH$15,0),IF(AR23-($AI$2-N23)-lists!CB12-lists!CB13-lists!CB14-lists!CB15>lists!$CH$15,AR23-($AI$2-N23)-lists!CB12-lists!CB13-lists!CB14-lists!CB15-lists!$CH$15,0)) -> 18.44742366 | AH23: 0 | AI23: 2019-10-08T04:07:12.140 | AK23: 0 | AL23: 00:00:00 | AM23: 00:00:00 | AN23: 2019-10-08T04:07:12.140 | AO23: 00:00:00 | AP23: 00:00:00 | AQ23: 00:00:00 | AR23: 00:00:00 | AS23: Зак-2 | AT23: №76-в | AU23: 2019-09-23 | AV23: АКТ | AW23: №786 | AX23: 2019-10-01 | AY23: 3000000 | AZ23: 2019-10-01 | BA23: 1000000 | BB23: 2019-10-04 | BC23: 1600000 | BD23: 2019-10-12 | BE23: 400000 | BF23: 00:00:00 | BG23: 0 | BH23: 00:00:00 | BI23: 0 | BJ23: 00:00:00 | BK23: 0 | BL23: 00:00:00 | BM23: 0 | BN23: 00:00:00 | BO23: 0 | BP23: 00:00:00 | BQ23: 0 | BR23: 00:00:00 | BS23: 0 | BT23: 00:00:00 | BU23: 0 | BV23: 00:00:00 | BW23: 0 | BX23: 2019-10-02 | BY23: 700000 | BZ23: 2019-10-05 | CA23: 1100000 | CB23: 00:00:00 | CC23: 0 | CD23: 00:00:00 | CE23: 0 | CF23: 00:00:00 | CG23: 0 | CH23: 00:00:00 | CI23: 0 | CJ23: 00:00:00 | CK23: 0 | CL23: 00:00:00 | CM23: 0 | CN23: 00:00:00 | CO23: 0 | CP23: 00:00:00 | CQ23: 0 | CR23: 00:00:00 | CS23: 0 | CT23: 00:00:00 | CU23: 0 | CV23: ООО "Заказчик-2" | CW23: ООО "Зак-2" | CX23: Сидоров | CY23: 33545626 | CZ23: 3756767 | DA23: 74568 | DB23: 267657 | DC23: 7787878 | DD23: 669696 | DE23: 254н565464 | DF23: 756787878 | DG23: 34757 | DH23: 3246 | DI23: ALL | DJ23: ALL | DK23: ALL | DL23: ALL | DM23: ALL | DN23: ALL
A24: =ROW() -> 24 | I24: =IF(SUMIFS(INDIRECT("K$1:K"&A24-1),INDIRECT("AS$1:AS"&A24-1),AS24,INDIRECT("AT$1:AT"&A24-1),AT24,INDIRECT("AV$1:AV"&A24-1),AV24,INDIRECT("AW$1:AW"&A24-1),AW24)=0,1,0) -> 0 | J24: =IF(SUMIFS(K24:K24,I24:I24,1,AS24:AS24,screen!$E$6,AT24:AT24,screen!$E$8,AV24:AV24,screen!$E$12,AW24:AW24,screen!$E$14)=0,"",1) ->  | K24: =1 -> 1 | L24: Зак / дог. №2 от 15.9.2019г. / ТН №5 от 2.10.2019г. / сумма отгр. 1000000 | M24: 0 | N24: 0 | O24: =IF(M24=0,lists!$BQ$11,IF(N24<1,lists!$BQ$12,IF(M24<=conditions!$J$10,lists!$BQ$13,lists!$BQ$14))) -> Долга нет | P24: =IF(O24<>lists!$BQ$14,lists!$BT$11,IF(AND(AL24<>"",AL24<>0,AL24>IF(AM24="",0,AM24)),lists!$BT$12,IF(AND(AM24<>"",AM24<>0,AM24>=IF(AL24="",0,AL24)),lists!$BT$13,IF(IF(OR(AN24="",AN24=0),1,0)*U24+IF(OR(AO24="",AO24=0),1,0)*X24+IF(OR(AP24="",AP24=0),1,0)*AA24+IF(OR(AQ24="",AQ24=0),1,0)*AD24+IF(OR(AR24="",AR24=0),1,0)*AG24>0,lists!$BT$14,lists!$BT$15)))) -> Нет задачи | Q24: =IF(O24<>lists!$BQ$14,"нет статуса",IF(BD!N24<=lists!$CB$11,lists!$BY$11,IF(BD!N24<=lists!$CB$12,lists!$BY$12,IF(BD!N24<=lists!$CB$13,lists!$BY$13,IF(BD!N24<=lists!$CB$14,lists!$BY$14,lists!$BY$15))))) -> нет статуса | R24: =IF(Q24="нет статуса","нет действий",IF(AND(Q24=lists!$BY$11,AI24-N24>=AN24),"нет действий",IF(AND(Q24=lists!$BY$11,AI24-N24<AN24),lists!$CK$11,IF(AND(AR24<>0,AR24<>""),lists!$CK$15,IF(AND(AQ24<>0,AQ24<>""),lists!$CK$14,IF(AND(AP24<>0,AP24<>""),lists!$CK$13,IF(AND(AO24<>0,AO24<>""),lists!$CK$12,IF(AND(AN24<>0,AN24<>""),lists!$CK$11,"нет действий")))))))) -> нет действий | S24: 0 | T24: =IF(OR(AN24="",AN24=0),IF(AND(N24>lists!$CE$11,N24<=lists!$CH$11),N24-lists!$CE$11,0),IF(AND(AN24-($AI$2-N24)>lists!$CE$11,AN24-($AI$2-N24)<=lists!$CH$11),AN24-($AI$2-N24)-lists!$CE$11,0)) -> 0 | U24: =IF(OR(AN24="",AN24=0),IF(N24>lists!$CH$11,N24-lists!$CH$11,0),IF(AN24-($AI$2-N24)>lists!$CH$11,AN24-($AI$2-N24)-lists!$CH$11,0)) -> 0 | V24: =IF(OR(AO24="",AO24=0),0,IF(AO24<$AI$2-N24+lists!$CB$11,1,0)) -> 0 | W24: =IF(OR(AO24="",AO24=0),IF(AND(N24-lists!$CB$11>lists!$CE$12,N24-lists!$CB$11<=lists!$CH$12),N24-lists!$CB$11-lists!$CE$12,0),IF(AND(AO24-($AI$2-N24)-lists!$CB$11>lists!$CE$12,AO24-($AI$2-N24)-lists!$CB$11<=lists!$CH$12),AO24-($AI$2-N24)-lists!$CB$11-lists!$CE$12,0)) -> 0 | X24: =IF(OR(AO24="",AO24=0),IF(N24-lists!CB12>lists!$CH$12,N24-lists!CB12-lists!$CH$12,0),IF(AO24-($AI$2-N24)-lists!CB12>lists!$CH$12,AO24-($AI$2-N24)-lists!CB12-lists!$CH$12,0)) -> 0 | Y24: =IF(OR(AP24="",AP24=0),0,IF(AP24<$AI$2-N24+lists!$CB$11+lists!$CB$12,1,0)) -> 0 | Z24: =IF(OR(AP24="",AP24=0),IF(AND(N24-lists!$CB$11-lists!$CB$12>lists!$CE$13,N24-lists!$CB$11-lists!$CB$12<=lists!$CH$13),N24-lists!$CB$11-lists!$CB$12-lists!$CE$13,0),IF(AND(AP24-($AI$2-N24)-lists!$CB$11-lists!$CB$12>lists!$CE$13,AP24-($AI$2-N24)-lists!$CB$11-lists!$CB$12<=lists!$CH$13),AP24-($AI$2-N24)-lists!$CB$11-lists!$CB$12-lists!$CE$13,0)) -> 0 | AA24: =IF(OR(AP24="",AP24=0),IF(N24-lists!CB12-lists!CB13>lists!$CH$13,N24-lists!CB12-lists!CB13-lists!$CH$13,0),IF(AP24-($AI$2-N24)-lists!CB12-lists!CB13>lists!$CH$13,AP24-($AI$2-N24)-lists!CB12-lists!CB13-lists!$CH$13,0)) -> 0 | AB24: =IF(OR(AQ24="",AQ24=0),0,IF(AQ24<$AI$2-N24+lists!$CB$11+lists!$CB$12+lists!$CB$13,1,0)) -> 0 | AC24: =IF(OR(AQ24="",AQ24=0),IF(AND(N24-lists!$CB$11-lists!$CB$12-lists!$CB$13>lists!$CE$14,N24-lists!$CB$11-lists!$CB$12-lists!$CB$13<=lists!$CH$14),N24-lists!$CB$11-lists!$CB$12-lists!$CB$13-lists!$CE$14,0),IF(AND(AQ24-($AI$2-N24)-lists!$CB$11-lists!$CB$12-lists!$CB$13>lists!$CE$14,AQ24-($AI$2-N24)-lists!$CB$11-lists!$CB$12-lists!$CB$13<=lists!$CH$14),AQ24-($AI$2-N24)-lists!$CB$11-lists!$CB$12-lists!$CB$13-lists!$CE$14,0)) -> 0 | AD24: =IF(OR(AQ24="",AQ24=0),IF(N24-lists!CB12-lists!CB13-lists!CB14>lists!$CH$14,N24-lists!CB12-lists!CB13-lists!CB14-lists!$CH$14,0),IF(AQ24-($AI$2-N24)-lists!CB12-lists!CB13-lists!CB14>lists!$CH$14,AQ24-($AI$2-N24)-lists!CB12-lists!CB13-lists!CB14-lists!$CH$14,0)) -> 0 | AE24: =IF(OR(AR24="",AR24=0),0,IF(AR24<$AI$2-N24+lists!$CB$11+lists!$CB$12+lists!$CB$13+lists!$CB$14,1,0)) -> 0 | AF24: =IF(OR(AR24="",AR24=0),IF(AND(N24-lists!$CB$11-lists!$CB$12-lists!$CB$13-lists!$CB$14>lists!$CE$15,N24-lists!$CB$11-lists!$CB$12-lists!$CB$13-lists!$CB$14<=lists!$CH$15),N24-lists!$CB$11-lists!$CB$12-lists!$CB$13-lists!$CB$14-lists!$CE$15,0),IF(AND(AR24-($AI$2-N24)-lists!$CB$11-lists!$CB$12-lists!$CB$13-lists!$CB$14>lists!$CE$15,AR24-($AI$2-N24)-lists!$CB$11-lists!$CB$12-lists!$CB$13-lists!$CB$14<=lists!$CH$15),AR24-($AI$2-N24)-lists!$CB$11-lists!$CB$12-lists!$CB$13-lists!$CB$14-lists!$CE$15,0)) -> 0 | AG24: =IF(OR(AR24="",AR24=0),IF(N24-lists!CB12-lists!CB13-lists!CB14-lists!CB15>lists!$CH$15,N24-lists!CB12-lists!CB13-lists!CB14-lists!CB15-lists!$CH$15,0),IF(AR24-($AI$2-N24)-lists!CB12-lists!CB13-lists!CB14-lists!CB15>lists!$CH$15,AR24-($AI$2-N24)-lists!CB12-lists!CB13-lists!CB14-lists!CB15-lists!$CH$15,0)) -> 0 | AH24: 0 | AI24: 2019-10-08T03:56:36.610 | AK24: 0 | AL24: 00:00:00 | AM24: 00:00:00 | AN24: 00:00:00 | AO24: 00:00:00 | AP24: 00:00:00 | AQ24: 00:00:00 | AR24: 00:00:00 | AS24: Зак | AT24: №2 | AU24: 2019-09-15 | AV24: ТН | AW24: №5 | AX24: 2019-10-02 | AY24: 1000000 | AZ24: 2019-09-18 | BA24: 300000 | BB24: 2019-10-01 | BC24: 500000 | BD24: 2019-10-04 | BE24: 200000 | BF24: 00:00:00 | BG24: 0 | BH24: 00:00:00 | BI24: 0 | BJ24: 00:00:00 | BK24: 0 | BL24: 00:00:00 | BM24: 0 | BN24: 00:00:00 | BO24: 0 | BP24: 00:00:00 | BQ24: 0 | BR24: 00:00:00 | BS24: 0 | BT24: 00:00:00 | BU24: 0 | BV24: 00:00:00 | BW24: 0 | BX24: 2019-09-23 | BY24: 400000 | BZ24: 2019-10-03 | CA24: 100000 | CB24: 2019-10-08 | CC24: 500000 | CD24: 00:00:00 | CE24: 0 | CF24: 00:00:00 | CG24: 0 | CH24: 00:00:00 | CI24: 0 | CJ24: 00:00:00 | CK24: 0 | CL24: 00:00:00 | CM24: 0 | CN24: 00:00:00 | CO24: 0 | CP24: 00:00:00 | CQ24: 0 | CR24: 00:00:00 | CS24: 0 | CT24: 00:00:00 | CU24: 0 | CV24: ООО "Заказчик" | CW24: ООО "Зак" | CX24: Петров Иван Иванович | CY24: 123456789 | CZ24: mail@mail.ru | DA24: 1111111111 | DB24: 111111111 | DC24: 111111111111 | DD24: 111111 | DE24: 11111111111111 | DF24: 1111111111111 | DG24: 11111111111111 | DH24: 11111111 | DI24: ALL | DJ24: ALL | DK24: ALL | DL24: ALL | DM24: ALL | DN24: ALL
A25: =ROW() -> 25 | I25: 0 | J25: =IF(SUMIFS(K25:K25,I25:I25,1,AS25:AS25,screen!$E$6,AT25:AT25,screen!$E$8,AV25:AV25,screen!$E$12,AW25:AW25,screen!$E$14)=0,"",1) ->  | K25: =1 -> 1 | L25: 0 / дог. 0 от 0.1.1900г. / 0 0 от 0.1.1900г. / сумма отгр. 0 | M25: 0 | N25: 0 | O25: =IF(M25=0,lists!$BQ$11,IF(N25<1,lists!$BQ$12,IF(M25<=conditions!$J$10,lists!$BQ$13,lists!$BQ$14))) -> Долга нет | P25: =IF(O25<>lists!$BQ$14,lists!$BT$11,IF(AND(AL25<>"",AL25<>0,AL25>IF(AM25="",0,AM25)),lists!$BT$12,IF(AND(AM25<>"",AM25<>0,AM25>=IF(AL25="",0,AL25)),lists!$BT$13,IF(IF(OR(AN25="",AN25=0),1,0)*U25+IF(OR(AO25="",AO25=0),1,0)*X25+IF(OR(AP25="",AP25=0),1,0)*AA25+IF(OR(AQ25="",AQ25=0),1,0)*AD25+IF(OR(AR25="",AR25=0),1,0)*AG25>0,lists!$BT$14,lists!$BT$15)))) -> Нет задачи | Q25: =IF(O25<>lists!$BQ$14,"нет статуса",IF(BD!N25<=lists!$CB$11,lists!$BY$11,IF(BD!N25<=lists!$CB$12,lists!$BY$12,IF(BD!N25<=lists!$CB$13,lists!$BY$13,IF(BD!N25<=lists!$CB$14,lists!$BY$14,lists!$BY$15))))) -> нет статуса | R25: =IF(Q25="нет статуса","нет действий",IF(AND(Q25=lists!$BY$11,AI25-N25>=AN25),"нет действий",IF(AND(Q25=lists!$BY$11,AI25-N25<AN25),lists!$CK$11,IF(AND(AR25<>0,AR25<>""),lists!$CK$15,IF(AND(AQ25<>0,AQ25<>""),lists!$CK$14,IF(AND(AP25<>0,AP25<>""),lists!$CK$13,IF(AND(AO25<>0,AO25<>""),lists!$CK$12,IF(AND(AN25<>0,AN25<>""),lists!$CK$11,"нет действий")))))))) -> нет действий | S25: 0 | T25: =IF(OR(AN25="",AN25=0),IF(AND(N25>lists!$CE$11,N25<=lists!$CH$11),N25-lists!$CE$11,0),IF(AND(AN25-($AI$2-N25)>lists!$CE$11,AN25-($AI$2-N25)<=lists!$CH$11),AN25-($AI$2-N25)-lists!$CE$11,0)) -> 0 | U25: =IF(OR(AN25="",AN25=0),IF(N25>lists!$CH$11,N25-lists!$CH$11,0),IF(AN25-($AI$2-N25)>lists!$CH$11,AN25-($AI$2-N25)-lists!$CH$11,0)) -> 0 | V25: =IF(OR(AO25="",AO25=0),0,IF(AO25<$AI$2-N25+lists!$CB$11,1,0)) -> 0 | W25: =IF(OR(AO25="",AO25=0),IF(AND(N25-lists!$CB$11>lists!$CE$12,N25-lists!$CB$11<=lists!$CH$12),N25-lists!$CB$11-lists!$CE$12,0),IF(AND(AO25-($AI$2-N25)-lists!$CB$11>lists!$CE$12,AO25-($AI$2-N25)-lists!$CB$11<=lists!$CH$12),AO25-($AI$2-N25)-lists!$CB$11-lists!$CE$12,0)) -> 0 | X25: =IF(OR(AO25="",AO25=0),IF(N25-lists!CB12>lists!$CH$12,N25-lists!CB12-lists!$CH$12,0),IF(AO25-($AI$2-N25)-lists!CB12>lists!$CH$12,AO25-($AI$2-N25)-lists!CB12-lists!$CH$12,0)) -> 0 | Y25: =IF(OR(AP25="",AP25=0),0,IF(AP25<$AI$2-N25+lists!$CB$11+lists!$CB$12,1,0)) -> 0 | Z25: =IF(OR(AP25="",AP25=0),IF(AND(N25-lists!$CB$11-lists!$CB$12>lists!$CE$13,N25-lists!$CB$11-lists!$CB$12<=lists!$CH$13),N25-lists!$CB$11-lists!$CB$12-lists!$CE$13,0),IF(AND(AP25-($AI$2-N25)-lists!$CB$11-lists!$CB$12>lists!$CE$13,AP25-($AI$2-N25)-lists!$CB$11-lists!$CB$12<=lists!$CH$13),AP25-($AI$2-N25)-lists!$CB$11-lists!$CB$12-lists!$CE$13,0)) -> 0 | AA25: =IF(OR(AP25="",AP25=0),IF(N25-lists!CB12-lists!CB13>lists!$CH$13,N25-lists!CB12-lists!CB13-lists!$CH$13,0),IF(AP25-($AI$2-N25)-lists!CB12-lists!CB13>lists!$CH$13,AP25-($AI$2-N25)-lists!CB12-lists!CB13-lists!$CH$13,0)) -> 0 | AB25: =IF(OR(AQ25="",AQ25=0),0,IF(AQ25<$AI$2-N25+lists!$CB$11+lists!$CB$12+lists!$CB$13,1,0)) -> 0 | AC25: =IF(OR(AQ25="",AQ25=0),IF(AND(N25-lists!$CB$11-lists!$CB$12-lists!$CB$13>lists!$CE$14,N25-lists!$CB$11-lists!$CB$12-lists!$CB$13<=lists!$CH$14),N25-lists!$CB$11-lists!$CB$12-lists!$CB$13-lists!$CE$14,0),IF(AND(AQ25-($AI$2-N25)-lists!$CB$11-lists!$CB$12-lists!$CB$13>lists!$CE$14,AQ25-($AI$2-N25)-lists!$CB$11-lists!$CB$12-lists!$CB$13<=lists!$CH$14),AQ25-($AI$2-N25)-lists!$CB$11-lists!$CB$12-lists!$CB$13-lists!$CE$14,0)) -> 0 | AD25: =IF(OR(AQ25="",AQ25=0),IF(N25-lists!CB12-lists!CB13-lists!CB14>lists!$CH$14,N25-lists!CB12-lists!CB13-lists!CB14-lists!$CH$14,0),IF(AQ25-($AI$2-N25)-lists!CB12-lists!CB13-lists!CB14>lists!$CH$14,AQ25-($AI$2-N25)-lists!CB12-lists!CB13-lists!CB14-lists!$CH$14,0)) -> 0 | AE25: =IF(OR(AR25="",AR25=0),0,IF(AR25<$AI$2-N25+lists!$CB$11+lists!$CB$12+lists!$CB$13+lists!$CB$14,1,0)) -> 0 | AF25: =IF(OR(AR25="",AR25=0),IF(AND(N25-lists!$CB$11-lists!$CB$12-lists!$CB$13-lists!$CB$14>lists!$CE$15,N25-lists!$CB$11-lists!$CB$12-lists!$CB$13-lists!$CB$14<=lists!$CH$15),N25-lists!$CB$11-lists!$CB$12-lists!$CB$13-lists!$CB$14-lists!$CE$15,0),IF(AND(AR25-($AI$2-N25)-lists!$CB$11-lists!$CB$12-lists!$CB$13-lists!$CB$14>lists!$CE$15,AR25-($AI$2-N25)-lists!$CB$11-lists!$CB$12-lists!$CB$13-lists!$CB$14<=lists!$CH$15),AR25-($AI$2-N25)-lists!$CB$11-lists!$CB$12-lists!$CB$13-lists!$CB$14-lists!$CE$15,0)) -> 0 | AG25: =IF(OR(AR25="",AR25=0),IF(N25-lists!CB12-lists!CB13-lists!CB14-lists!CB15>lists!$CH$15,N25-lists!CB12-lists!CB13-lists!CB14-lists!CB15-lists!$CH$15,0),IF(AR25-($AI$2-N25)-lists!CB12-lists!CB13-lists!CB14-lists!CB15>lists!$CH$15,AR25-($AI$2-N25)-lists!CB12-lists!CB13-lists!CB14-lists!CB15-lists!$CH$15,0)) -> 0 | AH25: 0 | AI25: 2019-10-08T02:42:34.480 | AK25: 0 | AL25: 00:00:00 | AM25: 00:00:00 | AN25: 00:00:00 | AO25: 00:00:00 | AP25: 00:00:00 | AQ25: 00:00:00 | AR25: 00:00:00 | AS25: 0 | AT25: 0 | AU25: 00:00:00 | AV25: 0 | AW25: 0 | AX25: 00:00:00 | AY25: 0 | AZ25: 00:00:00 | BA25: 0 | BB25: 00:00:00 | BC25: 0 | BD25: 00:00:00 | BE25: 0 | BF25: 00:00:00 | BG25: 0 | BH25: 00:00:00 | BI25: 0 | BJ25: 00:00:00 | BK25: 0 | BL25: 00:00:00 | BM25: 0 | BN25: 00:00:00 | BO25: 0 | BP25: 00:00:00 | BQ25: 0 | BR25: 00:00:00 | BS25: 0 | BT25: 00:00:00 | BU25: 0 | BV25: 00:00:00 | BW25: 0 | BX25: 00:00:00 | BY25: 0 | BZ25: 00:00:00 | CA25: 0 | CB25: 00:00:00 | CC25: 0 | CD25: 00:00:00 | CE25: 0 | CF25: 00:00:00 | CG25: 0 | CH25: 00:00:00 | CI25: 0 | CJ25: 00:00:00 | CK25: 0 | CL25: 00:00:00 | CM25: 0 | CN25: 00:00:00 | CO25: 0 | CP25: 00:00:00 | CQ25: 0 | CR25: 00:00:00 | CS25: 0 | CT25: 00:00:00 | CU25: 0 | CV25: 0 | CW25: 0 | CX25: 0 | CY25: 0 | CZ25: 0 | DA25: 0 | DB25: 0 | DC25: 0 | DD25: 0 | DE25: 0 | DF25: 0 | DG25: 0 | DH25: 0 | DI25: 0 | DJ25: 0 | DK25: 0 | DL25: 0 | DM25: 0 | DN25: 0
A26: =ROW() -> 26 | I26: 0 | J26: =IF(SUMIFS(K26:K26,I26:I26,1,AS26:AS26,screen!$E$6,AT26:AT26,screen!$E$8,AV26:AV26,screen!$E$12,AW26:AW26,screen!$E$14)=0,"",1) ->  | K26: =1 -> 1 | L26: Зак-2 / дог. №76-в от 23.9.2019г. / АКТ №786 от 1.10.2019г. / сумма отгр. 3000000 | M26: 1200000 | N26: 242.4474237 | O26: =IF(M26=0,lists!$BQ$11,IF(N26<1,lists!$BQ$12,IF(M26<=conditions!$J$10,lists!$BQ$13,lists!$BQ$14))) -> Долг просроченный | P26: =IF(O26<>lists!$BQ$14,lists!$BT$11,IF(AND(AL26<>"",AL26<>0,AL26>IF(AM26="",0,AM26)),lists!$BT$12,IF(AND(AM26<>"",AM26<>0,AM26>=IF(AL26="",0,AL26)),lists!$BT$13,IF(IF(OR(AN26="",AN26=0),1,0)*U26+IF(OR(AO26="",AO26=0),1,0)*X26+IF(OR(AP26="",AP26=0),1,0)*AA26+IF(OR(AQ26="",AQ26=0),1,0)*AD26+IF(OR(AR26="",AR26=0),1,0)*AG26>0,lists!$BT$14,lists!$BT$15)))) -> Долг брошенный | Q26: =IF(O26<>lists!$BQ$14,"нет статуса",IF(BD!N26<=lists!$CB$11,lists!$BY$11,IF(BD!N26<=lists!$CB$12,lists!$BY$12,IF(BD!N26<=lists!$CB$13,lists!$BY$13,IF(BD!N26<=lists!$CB$14,lists!$BY$14,lists!$BY$15))))) -> просрочка-100 | R26: =IF(Q26="нет статуса","нет действий",IF(AND(Q26=lists!$BY$11,AI26-N26>=AN26),"нет действий",IF(AND(Q26=lists!$BY$11,AI26-N26<AN26),lists!$CK$11,IF(AND(AR26<>0,AR26<>""),lists!$CK$15,IF(AND(AQ26<>0,AQ26<>""),lists!$CK$14,IF(AND(AP26<>0,AP26<>""),lists!$CK$13,IF(AND(AO26<>0,AO26<>""),lists!$CK$12,IF(AND(AN26<>0,AN26<>""),lists!$CK$11,"нет действий")))))))) -> коммуникация | S26: 1 | T26: =IF(OR(AN26="",AN26=0),IF(AND(N26>lists!$CE$11,N26<=lists!$CH$11),N26-lists!$CE$11,0),IF(AND(AN26-($AI$2-N26)>lists!$CE$11,AN26-($AI$2-N26)<=lists!$CH$11),AN26-($AI$2-N26)-lists!$CE$11,0)) -> 0 | U26: =IF(OR(AN26="",AN26=0),IF(N26>lists!$CH$11,N26-lists!$CH$11,0),IF(AN26-($AI$2-N26)>lists!$CH$11,AN26-($AI$2-N26)-lists!$CH$11,0)) -> 0 | V26: =IF(OR(AO26="",AO26=0),0,IF(AO26<$AI$2-N26+lists!$CB$11,1,0)) -> 0 | W26: =IF(OR(AO26="",AO26=0),IF(AND(N26-lists!$CB$11>lists!$CE$12,N26-lists!$CB$11<=lists!$CH$12),N26-lists!$CB$11-lists!$CE$12,0),IF(AND(AO26-($AI$2-N26)-lists!$CB$11>lists!$CE$12,AO26-($AI$2-N26)-lists!$CB$11<=lists!$CH$12),AO26-($AI$2-N26)-lists!$CB$11-lists!$CE$12,0)) -> 0 | X26: =IF(OR(AO26="",AO26=0),IF(N26-lists!CB12>lists!$CH$12,N26-lists!CB12-lists!$CH$12,0),IF(AO26-($AI$2-N26)-lists!CB12>lists!$CH$12,AO26-($AI$2-N26)-lists!CB12-lists!$CH$12,0)) -> 228.4474237 | Y26: =IF(OR(AP26="",AP26=0),0,IF(AP26<$AI$2-N26+lists!$CB$11+lists!$CB$12,1,0)) -> 0 | Z26: =IF(OR(AP26="",AP26=0),IF(AND(N26-lists!$CB$11-lists!$CB$12>lists!$CE$13,N26-lists!$CB$11-lists!$CB$12<=lists!$CH$13),N26-lists!$CB$11-lists!$CB$12-lists!$CE$13,0),IF(AND(AP26-($AI$2-N26)-lists!$CB$11-lists!$CB$12>lists!$CE$13,AP26-($AI$2-N26)-lists!$CB$11-lists!$CB$12<=lists!$CH$13),AP26-($AI$2-N26)-lists!$CB$11-lists!$CB$12-lists!$CE$13,0)) -> 0 | AA26: =IF(OR(AP26="",AP26=0),IF(N26-lists!CB12-lists!CB13>lists!$CH$13,N26-lists!CB12-lists!CB13-lists!$CH$13,0),IF(AP26-($AI$2-N26)-lists!CB12-lists!CB13>lists!$CH$13,AP26-($AI$2-N26)-lists!CB12-lists!CB13-lists!$CH$13,0)) -> 186.4474237 | AB26: =IF(OR(AQ26="",AQ26=0),0,IF(AQ26<$AI$2-N26+lists!$CB$11+lists!$CB$12+lists!$CB$13,1,0)) -> 0 | AC26: =IF(OR(AQ26="",AQ26=0),IF(AND(N26-lists!$CB$11-lists!$CB$12-lists!$CB$13>lists!$CE$14,N26-lists!$CB$11-lists!$CB$12-lists!$CB$13<=lists!$CH$14),N26-lists!$CB$11-lists!$CB$12-lists!$CB$13-lists!$CE$14,0),IF(AND(AQ26-($AI$2-N26)-lists!$CB$11-lists!$CB$12-lists!$CB$13>lists!$CE$14,AQ26-($AI$2-N26)-lists!$CB$11-lists!$CB$12-lists!$CB$13<=lists!$CH$14),AQ26-($AI$2-N26)-lists!$CB$11-lists!$CB$12-lists!$CB$13-lists!$CE$14,0)) -> 0 | AD26: =IF(OR(AQ26="",AQ26=0),IF(N26-lists!CB12-lists!CB13-lists!CB14>lists!$CH$14,N26-lists!CB12-lists!CB13-lists!CB14-lists!$CH$14,0),IF(AQ26-($AI$2-N26)-lists!CB12-lists!CB13-lists!CB14>lists!$CH$14,AQ26-($AI$2-N26)-lists!CB12-lists!CB13-lists!CB14-lists!$CH$14,0)) -> 115.4474237 | AE26: =IF(OR(AR26="",AR26=0),0,IF(AR26<$AI$2-N26+lists!$CB$11+lists!$CB$12+lists!$CB$13+lists!$CB$14,1,0)) -> 0 | AF26: =IF(OR(AR26="",AR26=0),IF(AND(N26-lists!$CB$11-lists!$CB$12-lists!$CB$13-lists!$CB$14>lists!$CE$15,N26-lists!$CB$11-lists!$CB$12-lists!$CB$13-lists!$CB$14<=lists!$CH$15),N26-lists!$CB$11-lists!$CB$12-lists!$CB$13-lists!$CB$14-lists!$CE$15,0),IF(AND(AR26-($AI$2-N26)-lists!$CB$11-lists!$CB$12-lists!$CB$13-lists!$CB$14>lists!$CE$15,AR26-($AI$2-N26)-lists!$CB$11-lists!$CB$12-lists!$CB$13-lists!$CB$14<=lists!$CH$15),AR26-($AI$2-N26)-lists!$CB$11-lists!$CB$12-lists!$CB$13-lists!$CB$14-lists!$CE$15,0)) -> 0 | AG26: =IF(OR(AR26="",AR26=0),IF(N26-lists!CB12-lists!CB13-lists!CB14-lists!CB15>lists!$CH$15,N26-lists!CB12-lists!CB13-lists!CB14-lists!CB15-lists!$CH$15,0),IF(AR26-($AI$2-N26)-lists!CB12-lists!CB13-lists!CB14-lists!CB15>lists!$CH$15,AR26-($AI$2-N26)-lists!CB12-lists!CB13-lists!CB14-lists!CB15-lists!$CH$15,0)) -> 18.44742366 | AH26: 0 | AI26: 2019-10-08T02:40:25.640 | AK26: 0 | AL26: 00:00:00 | AM26: 00:00:00 | AN26: 2019-10-08T02:40:25.640 | AO26: 00:00:00 | AP26: 00:00:00 | AQ26: 00:00:00 | AR26: 00:00:00 | AS26: Зак-2 | AT26: №76-в | AU26: 2019-09-23 | AV26: АКТ | AW26: №786 | AX26: 2019-10-01 | AY26: 3000000 | AZ26: 2019-10-01 | BA26: 1000000 | BB26: 2019-10-04 | BC26: 1600000 | BD26: 2019-10-12 | BE26: 400000 | BF26: 00:00:00 | BG26: 0 | BH26: 00:00:00 | BI26: 0 | BJ26: 00:00:00 | BK26: 0 | BL26: 00:00:00 | BM26: 0 | BN26: 00:00:00 | BO26: 0 | BP26: 00:00:00 | BQ26: 0 | BR26: 00:00:00 | BS26: 0 | BT26: 00:00:00 | BU26: 0 | BV26: 00:00:00 | BW26: 0 | BX26: 2019-10-02 | BY26: 700000 | BZ26: 2019-10-05 | CA26: 1100000 | CB26: 00:00:00 | CC26: 0 | CD26: 00:00:00 | CE26: 0 | CF26: 00:00:00 | CG26: 0 | CH26: 00:00:00 | CI26: 0 | CJ26: 00:00:00 | CK26: 0 | CL26: 00:00:00 | CM26: 0 | CN26: 00:00:00 | CO26: 0 | CP26: 00:00:00 | CQ26: 0 | CR26: 00:00:00 | CS26: 0 | CT26: 00:00:00 | CU26: 0 | CV26: ООО "Заказчик-2" | CW26: ООО "Зак-2" | CX26: Сидоров | CY26: 33545626 | CZ26: 3756767 | DA26: 74568 | DB26: 267657 | DC26: 7787878 | DD26: 669696 | DE26: 254н565464 | DF26: 756787878 | DG26: 34757 | DH26: 3246 | DI26: ALL | DJ26: ALL | DK26: ALL | DL26: ALL | DM26: ALL | DN26: ALL
A27: =ROW() -> 27 | I27: 0 | J27: =IF(SUMIFS(K27:K27,I27:I27,1,AS27:AS27,screen!$E$6,AT27:AT27,screen!$E$8,AV27:AV27,screen!$E$12,AW27:AW27,screen!$E$14)=0,"",1) ->  | K27: =1 -> 1 | L27: Зак / дог. №2 от 15.9.2019г. / ТН №5 от 2.10.2019г. / сумма отгр. 1000000 | M27: 500000 | N27: 305.0676129 | O27: =IF(M27=0,lists!$BQ$11,IF(N27<1,lists!$BQ$12,IF(M27<=conditions!$J$10,lists!$BQ$13,lists!$BQ$14))) -> Долг просроченный | P27: =IF(O27<>lists!$BQ$14,lists!$BT$11,IF(AND(AL27<>"",AL27<>0,AL27>IF(AM27="",0,AM27)),lists!$BT$12,IF(AND(AM27<>"",AM27<>0,AM27>=IF(AL27="",0,AL27)),lists!$BT$13,IF(IF(OR(AN27="",AN27=0),1,0)*U27+IF(OR(AO27="",AO27=0),1,0)*X27+IF(OR(AP27="",AP27=0),1,0)*AA27+IF(OR(AQ27="",AQ27=0),1,0)*AD27+IF(OR(AR27="",AR27=0),1,0)*AG27>0,lists!$BT$14,lists!$BT$15)))) -> Долг брошенный | Q27: =IF(O27<>lists!$BQ$14,"нет статуса",IF(BD!N27<=lists!$CB$11,lists!$BY$11,IF(BD!N27<=lists!$CB$12,lists!$BY$12,IF(BD!N27<=lists!$CB$13,lists!$BY$13,IF(BD!N27<=lists!$CB$14,lists!$BY$14,lists!$BY$15))))) -> просрочка-100 | R27: =IF(Q27="нет статуса","нет действий",IF(AND(Q27=lists!$BY$11,AI27-N27>=AN27),"нет действий",IF(AND(Q27=lists!$BY$11,AI27-N27<AN27),lists!$CK$11,IF(AND(AR27<>0,AR27<>""),lists!$CK$15,IF(AND(AQ27<>0,AQ27<>""),lists!$CK$14,IF(AND(AP27<>0,AP27<>""),lists!$CK$13,IF(AND(AO27<>0,AO27<>""),lists!$CK$12,IF(AND(AN27<>0,AN27<>""),lists!$CK$11,"нет действий")))))))) -> нет действий | S27: 0 | T27: =IF(OR(AN27="",AN27=0),IF(AND(N27>lists!$CE$11,N27<=lists!$CH$11),N27-lists!$CE$11,0),IF(AND(AN27-($AI$2-N27)>lists!$CE$11,AN27-($AI$2-N27)<=lists!$CH$11),AN27-($AI$2-N27)-lists!$CE$11,0)) -> 0 | U27: =IF(OR(AN27="",AN27=0),IF(N27>lists!$CH$11,N27-lists!$CH$11,0),IF(AN27-($AI$2-N27)>lists!$CH$11,AN27-($AI$2-N27)-lists!$CH$11,0)) -> 303.0676129 | V27: =IF(OR(AO27="",AO27=0),0,IF(AO27<$AI$2-N27+lists!$CB$11,1,0)) -> 0 | W27: =IF(OR(AO27="",AO27=0),IF(AND(N27-lists!$CB$11>lists!$CE$12,N27-lists!$CB$11<=lists!$CH$12),N27-lists!$CB$11-lists!$CE$12,0),IF(AND(AO27-($AI$2-N27)-lists!$CB$11>lists!$CE$12,AO27-($AI$2-N27)-lists!$CB$11<=lists!$CH$12),AO27-($AI$2-N27)-lists!$CB$11-lists!$CE$12,0)) -> 0 | X27: =IF(OR(AO27="",AO27=0),IF(N27-lists!CB12>lists!$CH$12,N27-lists!CB12-lists!$CH$12,0),IF(AO27-($AI$2-N27)-lists!CB12>lists!$CH$12,AO27-($AI$2-N27)-lists!CB12-lists!$CH$12,0)) -> 291.0676129 | Y27: =IF(OR(AP27="",AP27=0),0,IF(AP27<$AI$2-N27+lists!$CB$11+lists!$CB$12,1,0)) -> 0 | Z27: =IF(OR(AP27="",AP27=0),IF(AND(N27-lists!$CB$11-lists!$CB$12>lists!$CE$13,N27-lists!$CB$11-lists!$CB$12<=lists!$CH$13),N27-lists!$CB$11-lists!$CB$12-lists!$CE$13,0),IF(AND(AP27-($AI$2-N27)-lists!$CB$11-lists!$CB$12>lists!$CE$13,AP27-($AI$2-N27)-lists!$CB$11-lists!$CB$12<=lists!$CH$13),AP27-($AI$2-N27)-lists!$CB$11-lists!$CB$12-lists!$CE$13,0)) -> 0 | AA27: =IF(OR(AP27="",AP27=0),IF(N27-lists!CB12-lists!CB13>lists!$CH$13,N27-lists!CB12-lists!CB13-lists!$CH$13,0),IF(AP27-($AI$2-N27)-lists!CB12-lists!CB13>lists!$CH$13,AP27-($AI$2-N27)-lists!CB12-lists!CB13-lists!$CH$13,0)) -> 249.0676129 | AB27: =IF(OR(AQ27="",AQ27=0),0,IF(AQ27<$AI$2-N27+lists!$CB$11+lists!$CB$12+lists!$CB$13,1,0)) -> 0 | AC27: =IF(OR(AQ27="",AQ27=0),IF(AND(N27-lists!$CB$11-lists!$CB$12-lists!$CB$13>lists!$CE$14,N27-lists!$CB$11-lists!$CB$12-lists!$CB$13<=lists!$CH$14),N27-lists!$CB$11-lists!$CB$12-lists!$CB$13-lists!$CE$14,0),IF(AND(AQ27-($AI$2-N27)-lists!$CB$11-lists!$CB$12-lists!$CB$13>lists!$CE$14,AQ27-($AI$2-N27)-lists!$CB$11-lists!$CB$12-lists!$CB$13<=lists!$CH$14),AQ27-($AI$2-N27)-lists!$CB$11-lists!$CB$12-lists!$CB$13-lists!$CE$14,0)) -> 0 | AD27: =IF(OR(AQ27="",AQ27=0),IF(N27-lists!CB12-lists!CB13-lists!CB14>lists!$CH$14,N27-lists!CB12-lists!CB13-lists!CB14-lists!$CH$14,0),IF(AQ27-($AI$2-N27)-lists!CB12-lists!CB13-lists!CB14>lists!$CH$14,AQ27-($AI$2-N27)-lists!CB12-lists!CB13-lists!CB14-lists!$CH$14,0)) -> 178.0676129 | AE27: =IF(OR(AR27="",AR27=0),0,IF(AR27<$AI$2-N27+lists!$CB$11+lists!$CB$12+lists!$CB$13+lists!$CB$14,1,0)) -> 0 | AF27: =IF(OR(AR27="",AR27=0),IF(AND(N27-lists!$CB$11-lists!$CB$12-lists!$CB$13-lists!$CB$14>lists!$CE$15,N27-lists!$CB$11-lists!$CB$12-lists!$CB$13-lists!$CB$14<=lists!$CH$15),N27-lists!$CB$11-lists!$CB$12-lists!$CB$13-lists!$CB$14-lists!$CE$15,0),IF(AND(AR27-($AI$2-N27)-lists!$CB$11-lists!$CB$12-lists!$CB$13-lists!$CB$14>lists!$CE$15,AR27-($AI$2-N27)-lists!$CB$11-lists!$CB$12-lists!$CB$13-lists!$CB$14<=lists!$CH$15),AR27-($AI$2-N27)-lists!$CB$11-lists!$CB$12-lists!$CB$13-lists!$CB$14-lists!$CE$15,0)) -> 0 | AG27: =IF(OR(AR27="",AR27=0),IF(N27-lists!CB12-lists!CB13-lists!CB14-lists!CB15>lists!$CH$15,N27-lists!CB12-lists!CB13-lists!CB14-lists!CB15-lists!$CH$15,0),IF(AR27-($AI$2-N27)-lists!CB12-lists!CB13-lists!CB14-lists!CB15>lists!$CH$15,AR27-($AI$2-N27)-lists!CB12-lists!CB13-lists!CB14-lists!CB15-lists!$CH$15,0)) -> 81.06761291 | AH27: 0 | AI27: 2019-10-08T02:29:25.460 | AK27: пользователь-1-коммуникац | AL27: 00:00:00 | AM27: 00:00:00 | AN27: 00:00:00 | AO27: 00:00:00 | AP27: 00:00:00 | AQ27: 00:00:00 | AR27: 00:00:00 | AS27: Зак | AT27: №2 | AU27: 2019-09-15 | AV27: ТН | AW27: №5 | AX27: 2019-10-02 | AY27: 1000000 | AZ27: 2019-09-18 | BA27: 300000 | BB27: 2019-10-01 | BC27: 500000 | BD27: 2019-10-04 | BE27: 200000 | BF27: 00:00:00 | BG27: 0 | BH27: 00:00:00 | BI27: 0 | BJ27: 00:00:00 | BK27: 0 | BL27: 00:00:00 | BM27: 0 | BN27: 00:00:00 | BO27: 0 | BP27: 00:00:00 | BQ27: 0 | BR27: 00:00:00 | BS27: 0 | BT27: 00:00:00 | BU27: 0 | BV27: 00:00:00 | BW27: 0 | BX27: 2019-09-23 | BY27: 400000 | BZ27: 2019-10-03 | CA27: 100000 | CB27: 00:00:00 | CC27: 0 | CD27: 00:00:00 | CE27: 0 | CF27: 00:00:00 | CG27: 0 | CH27: 00:00:00 | CI27: 0 | CJ27: 00:00:00 | CK27: 0 | CL27: 00:00:00 | CM27: 0 | CN27: 00:00:00 | CO27: 0 | CP27: 00:00:00 | CQ27: 0 | CR27: 00:00:00 | CS27: 0 | CT27: 00:00:00 | CU27: 0 | CV27: ООО "Заказчик" | CW27: ООО "Зак" | CX27: Петров Иван Иванович | CY27: 123456789 | CZ27: mail@mail.ru | DA27: 1111111111 | DB27: 111111111 | DC27: 111111111111 | DD27: 111111 | DE27: 11111111111111 | DF27: 1111111111111 | DG27: 11111111111111 | DH27: 11111111 | DI27: ALL | DJ27: ALL | DK27: ALL | DL27: ALL | DM27: ALL | DN27: ALL
A28: =ROW() -> 28 | I28: 0 | J28: =IF(SUMIFS(K28:K28,I28:I28,1,AS28:AS28,screen!$E$6,AT28:AT28,screen!$E$8,AV28:AV28,screen!$E$12,AW28:AW28,screen!$E$14)=0,"",1) ->  | K28: =1 -> 1 | L28: 0 / дог. 0 от 0.1.1900г. / 0 0 от 0.1.1900г. / сумма отгр. 0 | M28: 0 | N28: 0 | O28: =IF(M28=0,lists!$BQ$11,IF(N28<1,lists!$BQ$12,IF(M28<=conditions!$J$10,lists!$BQ$13,lists!$BQ$14))) -> Долга нет | P28: =IF(O28<>lists!$BQ$14,lists!$BT$11,IF(AND(AL28<>"",AL28<>0,AL28>IF(AM28="",0,AM28)),lists!$BT$12,IF(AND(AM28<>"",AM28<>0,AM28>=IF(AL28="",0,AL28)),lists!$BT$13,IF(IF(OR(AN28="",AN28=0),1,0)*U28+IF(OR(AO28="",AO28=0),1,0)*X28+IF(OR(AP28="",AP28=0),1,0)*AA28+IF(OR(AQ28="",AQ28=0),1,0)*AD28+IF(OR(AR28="",AR28=0),1,0)*AG28>0,lists!$BT$14,lists!$BT$15)))) -> Нет задачи | Q28: =IF(O28<>lists!$BQ$14,"нет статуса",IF(BD!N28<=lists!$CB$11,lists!$BY$11,IF(BD!N28<=lists!$CB$12,lists!$BY$12,IF(BD!N28<=lists!$CB$13,lists!$BY$13,IF(BD!N28<=lists!$CB$14,lists!$BY$14,lists!$BY$15))))) -> нет статуса | R28: =IF(Q28="нет статуса","нет действий",IF(AND(Q28=lists!$BY$11,AI28-N28>=AN28),"нет действий",IF(AND(Q28=lists!$BY$11,AI28-N28<AN28),lists!$CK$11,IF(AND(AR28<>0,AR28<>""),lists!$CK$15,IF(AND(AQ28<>0,AQ28<>""),lists!$CK$14,IF(AND(AP28<>0,AP28<>""),lists!$CK$13,IF(AND(AO28<>0,AO28<>""),lists!$CK$12,IF(AND(AN28<>0,AN28<>""),lists!$CK$11,"нет действий")))))))) -> нет действий | S28: 0 | T28: =IF(OR(AN28="",AN28=0),IF(AND(N28>lists!$CE$11,N28<=lists!$CH$11),N28-lists!$CE$11,0),IF(AND(AN28-($AI$2-N28)>lists!$CE$11,AN28-($AI$2-N28)<=lists!$CH$11),AN28-($AI$2-N28)-lists!$CE$11,0)) -> 0 | U28: =IF(OR(AN28="",AN28=0),IF(N28>lists!$CH$11,N28-lists!$CH$11,0),IF(AN28-($AI$2-N28)>lists!$CH$11,AN28-($AI$2-N28)-lists!$CH$11,0)) -> 0 | V28: =IF(OR(AO28="",AO28=0),0,IF(AO28<$AI$2-N28+lists!$CB$11,1,0)) -> 0 | W28: =IF(OR(AO28="",AO28=0),IF(AND(N28-lists!$CB$11>lists!$CE$12,N28-lists!$CB$11<=lists!$CH$12),N28-lists!$CB$11-lists!$CE$12,0),IF(AND(AO28-($AI$2-N28)-lists!$CB$11>lists!$CE$12,AO28-($AI$2-N28)-lists!$CB$11<=lists!$CH$12),AO28-($AI$2-N28)-lists!$CB$11-lists!$CE$12,0)) -> 0 | X28: =IF(OR(AO28="",AO28=0),IF(N28-lists!CB12>lists!$CH$12,N28-lists!CB12-lists!$CH$12,0),IF(AO28-($AI$2-N28)-lists!CB12>lists!$CH$12,AO28-($AI$2-N28)-lists!CB12-lists!$CH$12,0)) -> 0 | Y28: =IF(OR(AP28="",AP28=0),0,IF(AP28<$AI$2-N28+lists!$CB$11+lists!$CB$12,1,0)) -> 0 | Z28: =IF(OR(AP28="",AP28=0),IF(AND(N28-lists!$CB$11-lists!$CB$12>lists!$CE$13,N28-lists!$CB$11-lists!$CB$12<=lists!$CH$13),N28-lists!$CB$11-lists!$CB$12-lists!$CE$13,0),IF(AND(AP28-($AI$2-N28)-lists!$CB$11-lists!$CB$12>lists!$CE$13,AP28-($AI$2-N28)-lists!$CB$11-lists!$CB$12<=lists!$CH$13),AP28-($AI$2-N28)-lists!$CB$11-lists!$CB$12-lists!$CE$13,0)) -> 0 | AA28: =IF(OR(AP28="",AP28=0),IF(N28-lists!CB12-lists!CB13>lists!$CH$13,N28-lists!CB12-lists!CB13-lists!$CH$13,0),IF(AP28-($AI$2-N28)-lists!CB12-lists!CB13>lists!$CH$13,AP28-($AI$2-N28)-lists!CB12-lists!CB13-lists!$CH$13,0)) -> 0 | AB28: =IF(OR(AQ28="",AQ28=0),0,IF(AQ28<$AI$2-N28+lists!$CB$11+lists!$CB$12+lists!$CB$13,1,0)) -> 0 | AC28: =IF(OR(AQ28="",AQ28=0),IF(AND(N28-lists!$CB$11-lists!$CB$12-lists!$CB$13>lists!$CE$14,N28-lists!$CB$11-lists!$CB$12-lists!$CB$13<=lists!$CH$14),N28-lists!$CB$11-lists!$CB$12-lists!$CB$13-lists!$CE$14,0),IF(AND(AQ28-($AI$2-N28)-lists!$CB$11-lists!$CB$12-lists!$CB$13>lists!$CE$14,AQ28-($AI$2-N28)-lists!$CB$11-lists!$CB$12-lists!$CB$13<=lists!$CH$14),AQ28-($AI$2-N28)-lists!$CB$11-lists!$CB$12-lists!$CB$13-lists!$CE$14,0)) -> 0 | AD28: =IF(OR(AQ28="",AQ28=0),IF(N28-lists!CB12-lists!CB13-lists!CB14>lists!$CH$14,N28-lists!CB12-lists!CB13-lists!CB14-lists!$CH$14,0),IF(AQ28-($AI$2-N28)-lists!CB12-lists!CB13-lists!CB14>lists!$CH$14,AQ28-($AI$2-N28)-lists!CB12-lists!CB13-lists!CB14-lists!$CH$14,0)) -> 0 | AE28: =IF(OR(AR28="",AR28=0),0,IF(AR28<$AI$2-N28+lists!$CB$11+lists!$CB$12+lists!$CB$13+lists!$CB$14,1,0)) -> 0 | AF28: =IF(OR(AR28="",AR28=0),IF(AND(N28-lists!$CB$11-lists!$CB$12-lists!$CB$13-lists!$CB$14>lists!$CE$15,N28-lists!$CB$11-lists!$CB$12-lists!$CB$13-lists!$CB$14<=lists!$CH$15),N28-lists!$CB$11-lists!$CB$12-lists!$CB$13-lists!$CB$14-lists!$CE$15,0),IF(AND(AR28-($AI$2-N28)-lists!$CB$11-lists!$CB$12-lists!$CB$13-lists!$CB$14>lists!$CE$15,AR28-($AI$2-N28)-lists!$CB$11-lists!$CB$12-lists!$CB$13-lists!$CB$14<=lists!$CH$15),AR28-($AI$2-N28)-lists!$CB$11-lists!$CB$12-lists!$CB$13-lists!$CB$14-lists!$CE$15,0)) -> 0 | AG28: =IF(OR(AR28="",AR28=0),IF(N28-lists!CB12-lists!CB13-lists!CB14-lists!CB15>lists!$CH$15,N28-lists!CB12-lists!CB13-lists!CB14-lists!CB15-lists!$CH$15,0),IF(AR28-($AI$2-N28)-lists!CB12-lists!CB13-lists!CB14-lists!CB15>lists!$CH$15,AR28-($AI$2-N28)-lists!CB12-lists!CB13-lists!CB14-lists!CB15-lists!$CH$15,0)) -> 0 | AH28: 0 | AI28: =NOW() -> 2021-06-01T12:50:43.510 | AK28: =screen!$M$3 -> 0 | AS28: =screen!$E$5 -> 0 | AT28: =screen!$E$7 -> 0 | AU28: =screen!$E$9 -> 00:00:00 | AV28: =screen!$E$11 -> 0 | AW28: =screen!$E$13 -> 0 | AX28: =screen!$E$15 -> 00:00:00 | AY28: =screen!$E$17 -> 0 | AZ28: =screen!$C$21 -> 00:00:00 | BA28: =screen!$E$21 -> 0 | BB28: =screen!$C$23 -> 00:00:00 | BC28: =screen!$E$23 -> 0 | BD28: =screen!$C$25 -> 00:00:00 | BE28: =screen!$E$25 -> 0 | BF28: =screen!$C$27 -> 00:00:00 | BG28: =screen!$E$27 -> 0 | BH28: =screen!$C$29 -> 00:00:00 | BI28: =screen!$E$29 -> 0 | BJ28: =screen!$C$31 -> 00:00:00 | BK28: =screen!$E$31 -> 0 | BL28: =screen!$C$33 -> 00:00:00 | BM28: =screen!$E$33 -> 0 | BN28: =screen!$C$35 -> 00:00:00 | BO28: =screen!$E$35 -> 0 | BP28: =screen!$C$37 -> 00:00:00 | BQ28: =screen!$E$37 -> 0 | BR28: =screen!$C$39 -> 00:00:00 | BS28: =screen!$E$39 -> 0 | BT28: =screen!$C$41 -> 00:00:00 | BU28: =screen!$E$41 -> 0 | BV28: =screen!$C$43 -> 00:00:00 | BW28: =screen!$E$43 -> 0 | BX28: =screen!$I$21 -> 00:00:00 | BY28: =screen!$K$21 -> 0 | BZ28: =screen!$I$23 -> 00:00:00 | CA28: =screen!$K$23 -> 0 | CB28: =screen!$I$25 -> 00:00:00 | CC28: =screen!$K$25 -> 0 | CD28: =screen!$I$27 -> 00:00:00 | CE28: =screen!$K$27 -> 0 | CF28: =screen!$I$29 -> 00:00:00 | CG28: =screen!$K$29 -> 0 | CH28: =screen!$I$31 -> 00:00:00 | CI28: =screen!$K$31 -> 0 | CJ28: =screen!$I$33 -> 00:00:00 | CK28: =screen!$K$33 -> 0 | CL28: =screen!$I$35 -> 00:00:00 | CM28: =screen!$K$35 -> 0 | CN28: =screen!$I$37 -> 00:00:00 | CO28: =screen!$K$37 -> 0 | CP28: =screen!$I$39 -> 00:00:00 | CQ28: =screen!$K$39 -> 0 | CR28: =screen!$I$41 -> 00:00:00 | CS28: =screen!$K$41 -> 0 | CT28: =screen!$I$43 -> 00:00:00 | CU28: =screen!$K$43 -> 0 | CV28: =INDEX(lists!$1:$1048576,SUMIFS(lists!$A:$A,lists!$G:$G,$AS28),SUMIFS(lists!$1:$1,lists!$8:$8,CV$1)) -> 0 | CW28: =INDEX(lists!$1:$1048576,SUMIFS(lists!$A:$A,lists!$G:$G,$AS28),SUMIFS(lists!$1:$1,lists!$8:$8,CW$1)) -> 0 | CX28: =INDEX(lists!$1:$1048576,SUMIFS(lists!$A:$A,lists!$G:$G,$AS28),SUMIFS(lists!$1:$1,lists!$8:$8,CX$1)) -> 0 | CY28: =INDEX(lists!$1:$1048576,SUMIFS(lists!$A:$A,lists!$G:$G,$AS28),SUMIFS(lists!$1:$1,lists!$8:$8,CY$1)) -> 0 | CZ28: =INDEX(lists!$1:$1048576,SUMIFS(lists!$A:$A,lists!$G:$G,$AS28),SUMIFS(lists!$1:$1,lists!$8:$8,CZ$1)) -> 0 | DA28: =INDEX(lists!$1:$1048576,SUMIFS(lists!$A:$A,lists!$G:$G,$AS28),SUMIFS(lists!$1:$1,lists!$8:$8,DA$1)) -> 0 | DB28: =INDEX(lists!$1:$1048576,SUMIFS(lists!$A:$A,lists!$G:$G,$AS28),SUMIFS(lists!$1:$1,lists!$8:$8,DB$1)) -> 0 | DC28: =INDEX(lists!$1:$1048576,SUMIFS(lists!$A:$A,lists!$G:$G,$AS28),SUMIFS(lists!$1:$1,lists!$8:$8,DC$1)) -> 0 | DD28: =INDEX(lists!$1:$1048576,SUMIFS(lists!$A:$A,lists!$G:$G,$AS28),SUMIFS(lists!$1:$1,lists!$8:$8,DD$1)) -> 0 | DE28: =INDEX(lists!$1:$1048576,SUMIFS(lists!$A:$A,lists!$G:$G,$AS28),SUMIFS(lists!$1:$1,lists!$8:$8,DE$1)) -> 0 | DF28: =INDEX(lists!$1:$1048576,SUMIFS(lists!$A:$A,lists!$G:$G,$AS28),SUMIFS(lists!$1:$1,lists!$8:$8,DF$1)) -> 0 | DG28: =INDEX(lists!$1:$1048576,SUMIFS(lists!$A:$A,lists!$G:$G,$AS28),SUMIFS(lists!$1:$1,lists!$8:$8,DG$1)) -> 0 | DH28: =INDEX(lists!$1:$1048576,SUMIFS(lists!$A:$A,lists!$G:$G,$AS28),SUMIFS(lists!$1:$1,lists!$8:$8,DH$1)) -> 0 | DI28: =INDEX(lists!$1:$1048576,SUMIFS(lists!$A:$A,lists!$G:$G,$AS28),SUMIFS(lists!$1:$1,lists!$8:$8,DI$1)) -> 0 | DJ28: =INDEX(lists!$1:$1048576,SUMIFS(lists!$A:$A,lists!$G:$G,$AS28),SUMIFS(lists!$1:$1,lists!$8:$8,DJ$1)) -> 0 | DK28: =INDEX(lists!$1:$1048576,SUMIFS(lists!$A:$A,lists!$G:$G,$AS28),SUMIFS(lists!$1:$1,lists!$8:$8,DK$1)) -> 0 | DL28: =INDEX(lists!$1:$1048576,SUMIFS(lists!$A:$A,lists!$G:$G,$AS28),SUMIFS(lists!$1:$1,lists!$8:$8,DL$1)) -> 0 | DM28: =INDEX(lists!$1:$1048576,SUMIFS(lists!$A:$A,lists!$G:$G,$AS28),SUMIFS(lists!$1:$1,lists!$8:$8,DM$1)) -> 0 | DN28: =INDEX(lists!$1:$1048576,SUMIFS(lists!$A:$A,lists!$G:$G,$AS28),SUMIFS(lists!$1:$1,lists!$8:$8,DN$1)) -> 0

Sheet lists
A1: =ROW() -> 1 | B1: =COLUMN() -> 2 | C1: =COLUMN() -> 3 | D1: =COLUMN() -> 4 | E1: =COLUMN() -> 5 | F1: =COLUMN() -> 6 | G1: =COLUMN() -> 7 | H1: =COLUMN() -> 8 | I1: =COLUMN() -> 9 | J1: =COLUMN() -> 10 | K1: =COLUMN() -> 11 | L1: =COLUMN() -> 12 | M1: =COLUMN() -> 13 | N1: =COLUMN() -> 14 | O1: =COLUMN() -> 15 | P1: =COLUMN() -> 16 | Q1: =COLUMN() -> 17 | R1: =COLUMN() -> 18 | S1: =COLUMN() -> 19 | T1: =COLUMN() -> 20 | U1: =COLUMN() -> 21 | V1: =COLUMN() -> 22 | W1: =COLUMN() -> 23 | X1: =COLUMN() -> 24 | Y1: =COLUMN() -> 25 | Z1: =COLUMN() -> 26 | AA1: =COLUMN() -> 27 | AB1: =COLUMN() -> 28 | AC1: =COLUMN() -> 29 | AD1: =COLUMN() -> 30 | AE1: =COLUMN() -> 31 | AF1: =COLUMN() -> 32 | AG1: =COLUMN() -> 33 | AH1: =COLUMN() -> 34 | AI1: =COLUMN() -> 35 | AJ1: =COLUMN() -> 36 | AK1: =COLUMN() -> 37 | AL1: =COLUMN() -> 38 | AM1: =COLUMN() -> 39 | AN1: =COLUMN() -> 40 | AO1: =COLUMN() -> 41 | AP1: =COLUMN() -> 42 | AQ1: =COLUMN() -> 43 | AR1: =COLUMN() -> 44 | AS1: =COLUMN() -> 45 | AT1: =COLUMN() -> 46 | AU1: =COLUMN() -> 47 | AV1: =COLUMN() -> 48 | AW1: =COLUMN() -> 49 | AX1: =COLUMN() -> 50 | AY1: =COLUMN() -> 51 | AZ1: =COLUMN() -> 52 | BA1: =COLUMN() -> 53 | BB1: =COLUMN() -> 54 | BC1: =COLUMN() -> 55 | BD1: =COLUMN() -> 56 | BE1: =COLUMN() -> 57 | BF1: =COLUMN() -> 58 | BG1: =COLUMN() -> 59 | BH1: =COLUMN() -> 60 | BI1: =COLUMN() -> 61 | BJ1: =COLUMN() -> 62 | BK1: =COLUMN() -> 63 | BL1: =COLUMN() -> 64 | BM1: =COLUMN() -> 65 | BN1: =COLUMN() -> 66 | BO1: =COLUMN() -> 67 | BP1: =COLUMN() -> 68 | BQ1: =COLUMN() -> 69 | BR1: =COLUMN() -> 70 | BS1: =COLUMN() -> 71 | BT1: =COLUMN() -> 72 | BU1: =COLUMN() -> 73 | BV1: =COLUMN() -> 74 | BW1: =COLUMN() -> 75 | BX1: =COLUMN() -> 76 | BY1: =COLUMN() -> 77 | BZ1: =COLUMN() -> 78 | CA1: =COLUMN() -> 79 | CB1: =COLUMN() -> 80 | CC1: =COLUMN() -> 81 | CD1: =COLUMN() -> 82 | CE1: =COLUMN() -> 83 | CF1: =COLUMN() -> 84 | CG1: =COLUMN() -> 85 | CH1: =COLUMN() -> 86 | CI1: =COLUMN() -> 87 | CJ1: =COLUMN() -> 88 | CK1: =COLUMN() -> 89 | CL1: =COLUMN() -> 90 | CM1: =COLUMN() -> 91 | CN1: =COLUMN() -> 92 | CO1: =COLUMN() -> 93 | CP1: =COLUMN() -> 94 | CQ1: =COLUMN() -> 95 | CR1: =COLUMN() -> 96 | CS1: =COLUMN() -> 97 | CT1: =COLUMN() -> 98 | CU1: =COLUMN() -> 99 | CV1: =COLUMN() -> 100 | CW1: =COLUMN() -> 101 | CX1: =COLUMN() -> 102 | CY1: =COLUMN() -> 103 | CZ1: =COLUMN() -> 104 | DA1: =COLUMN() -> 105 | DB1: =COLUMN() -> 106 | DC1: =COLUMN() -> 107 | DD1: =COLUMN() -> 108 | DE1: =COLUMN() -> 109 | DF1: =COLUMN() -> 110 | DG1: =COLUMN() -> 111 | DH1: =COLUMN() -> 112 | DI1: =COLUMN() -> 113 | DJ1: =COLUMN() -> 114 | DK1: =COLUMN() -> 115 | DL1: =COLUMN() -> 116 | DM1: =COLUMN() -> 117 | DN1: =COLUMN() -> 118 | DO1: =COLUMN() -> 119 | DP1: =COLUMN() -> 120 | DQ1: =COLUMN() -> 121 | DR1: =COLUMN() -> 122 | DS1: =COLUMN() -> 123 | DT1: =COLUMN() -> 124 | DU1: =COLUMN() -> 125 | DV1: =COLUMN() -> 126 | DW1: =COLUMN() -> 127 | DX1: =COLUMN() -> 128 | DY1: =COLUMN() -> 129 | DZ1: =COLUMN() -> 130 | EA1: =COLUMN() -> 131 | EB1: =COLUMN() -> 132 | EC1: =COLUMN() -> 133 | ED1: =COLUMN() -> 134
A2: =ROW() -> 2 | C2: =SUM($D$2:$LLC$2) -> 0 | H2: =SUM(H$3:H$10004) -> 0 | K2: =SUM(K$3:K$10004) -> 0 | N2: =SUM(N$3:N$10004) -> 0 | Q2: =SUM(Q$3:Q$10004) -> 0 | T2: =SUM(T$3:T$10004) -> 0 | W2: =SUM(W$3:W$10004) -> 0 | Z2: =SUM(Z$3:Z$10004) -> 0 | AC2: =SUM(AC$3:AC$10004) -> 0 | AF2: =SUM(AF$3:AF$10004) -> 0 | AI2: =SUM(AI$3:AI$10004) -> 0 | AL2: =SUM(AL$3:AL$10004) -> 0 | AO2: =SUM(AO$3:AO$10004) -> 0 | AR2: =SUM(AR$3:AR$10004) -> 0 | AU2: =SUM(AU$3:AU$10004) -> 0 | AX2: =SUM(AX$3:AX$10004) -> 0 | BA2: =SUM(BA$3:BA$10004) -> 0 | BD2: =SUM(BD$3:BD$10004) -> 0 | BG2: =SUM(BG$3:BG$10004) -> 0 | BJ2: =SUM(BJ$3:BJ$10004) -> 0 | BM2: =SUM(BM$3:BM$10004) -> 0 | BR2: =SUM(BR$3:BR$10000) -> 0 | BU2: =SUM(BU$3:BU$10000) -> 0 | BZ2: =SUM(BZ$3:BZ$10000) -> 0 | CC2: =SUM(CC$3:CC$10000) -> 0 | CF2: =SUM(CF$3:CF$10000) -> 0 | CI2: =SUM(CI$3:CI$10000) -> 0 | CL2: =SUM(CL$3:CL$10000) -> 0 | CQ2: =SUM(CQ$3:CQ$10000) -> 0 | CT2: =SUM(CT$3:CT$10000) -> 0 | CX2: =SUM(CX$3:CX$10000) -> 0
A3: =ROW() -> 3 | F3: =IF(OR(G3=0,G3=""),"*","") -> * | H3: =IF(OR(G3="",G3=0),0,IF(COUNTIF(G:G,G3)=1,0,1)) -> 0 | I3: =IF(OR(J3=0,J3=""),"*","") -> * | K3: =IF(AND($G3<>"",$G3<>0,OR(J3="",J3=0)),1,0) -> 0 | L3: =IF(OR(M3=0,M3=""),"*","") -> * | N3: =IF(AND($G3<>"",$G3<>0,OR(M3="",M3=0)),1,0) -> 0 | O3: =IF(OR(P3=0,P3=""),"*","") -> * | Q3: =IF(AND($G3<>"",$G3<>0,OR(P3="",P3=0)),1,0) -> 0 | R3: =IF(OR(S3=0,S3=""),"*","") -> * | T3: =IF(AND($G3<>"",$G3<>0,OR(S3="",S3=0)),1,0) -> 0 | U3: =IF(OR(V3=0,V3=""),"*","") -> * | W3: =IF(AND($G3<>"",$G3<>0,OR(V3="",V3=0)),1,0) -> 0 | X3: =IF(OR(Y3=0,Y3=""),"*","") -> * | Z3: =IF(AND($G3<>"",$G3<>0,OR(Y3="",Y3=0)),1,0) -> 0 | AA3: =IF(OR(AB3=0,AB3=""),"*","") -> * | AC3: =IF(AND($G3<>"",$G3<>0,OR(AB3="",AB3=0)),1,0) -> 0 | AD3: =IF(OR(AE3=0,AE3=""),"*","") -> * | AF3: =IF(AND($G3<>"",$G3<>0,OR(AE3="",AE3=0)),1,0) -> 0 | AG3: =IF(OR(AH3=0,AH3=""),"*","") -> * | AI3: =IF(AND($G3<>"",$G3<>0,OR(AH3="",AH3=0)),1,0) -> 0 | AJ3: =IF(OR(AK3=0,AK3=""),"*","") -> * | AL3: =IF(AND($G3<>"",$G3<>0,OR(AK3="",AK3=0)),1,0) -> 0 | AM3: =IF(OR(AN3=0,AN3=""),"*","") -> * | AO3: =IF(AND($G3<>"",$G3<>0,OR(AN3="",AN3=0)),1,0) -> 0 | AP3: =IF(OR(AQ3=0,AQ3=""),"*","") -> * | AR3: =IF(AND($G3<>"",$G3<>0,OR(AQ3="",AQ3=0)),1,0) -> 0 | AS3: =IF(OR(AT3=0,AT3=""),"*","") -> * | AU3: =IF(AND($G3<>"",$G3<>0,OR(AT3="",AT3=0)),1,0) -> 0 | AV3: =IF(OR(AW3=0,AW3=""),"*","") -> * | AX3: =IF(AND($G3<>"",$G3<>0,OR(AW3="",AW3=0)),1,0) -> 0 | AY3: =IF(OR(AZ3=0,AZ3=""),"*","") -> * | BA3: =IF(AND($G3<>"",$G3<>0,OR(AZ3="",AZ3=0)),1,0) -> 0 | BB3: =IF(OR(BC3=0,BC3=""),"*","") -> * | BD3: =IF(AND($G3<>"",$G3<>0,OR(BC3="",BC3=0)),1,0) -> 0 | BE3: =IF(OR(BF3=0,BF3=""),"*","") -> * | BG3: =IF(AND($G3<>"",$G3<>0,OR(BF3="",BF3=0)),1,0) -> 0 | BH3: =IF(OR(BI3=0,BI3=""),"*","") -> * | BJ3: =IF(AND($G3<>"",$G3<>0,OR(BI3="",BI3=0)),1,0) -> 0 | BK3: =IF(OR(BL3=0,BL3=""),"*","") -> * | BM3: =IF(AND($G3<>"",$G3<>0,OR(BL3="",BL3=0)),1,0) -> 0 | BR3: =IF(OR(BQ3="",BQ3=0),0,IF(COUNTIF(BQ:BQ,BQ3)=1,0,1)) -> 0 | BU3: =IF(OR(BT3="",BT3=0),0,IF(COUNTIF(BT:BT,BT3)=1,0,1)) -> 0 | BZ3: =IF(OR(BY3="",BY3=0),0,IF(COUNTIF(BY:BY,BY3)=1,0,1)) -> 0 | CC3: =IF(AND($BY3<>"",$BY3<>0,OR(CB3="",CB3=0)),1,0) -> 0 | CF3: =IF(AND($BY3<>"",$BY3<>0,OR(CE3="",CE3=0)),1,0) -> 0 | CI3: =IF(AND($BY3<>"",$BY3<>0,OR(CH3="",CH3=0)),1,0) -> 0 | CL3: =IF(AND($BY3<>"",$BY3<>0,OR(CK3="",CK3=0)),1,0) -> 0 | CQ3: =IF(OR(CP3="",CP3=0),0,IF(COUNTIF(CP:CP,CP3)=1,0,1)) -> 0 | CT3: =IF(OR(CS3="",CS3=0),0,IF(COUNTIF(CS:CS,CS3)=1,0,1)) -> 0 | CX3: =IF(OR(CW3="",CW3=0),0,IF(COUNTIF(CW:CW,CW3)=1,0,1)) -> 0
A4: =ROW() -> 4
A5: =ROW() -> 5 | B5: Списки
A6: =ROW() -> 6
A7: =ROW() -> 7
A8: =ROW() -> 8 | F8: * | G8: сокращ. название Заказчика | I8: * | J8: полн. наим. Заказчика | L8: * | M8: кратк. наим. Заказчика | O8: * | P8: ФИО ГД | R8: * | S8: тел. | U8: * | V8: e-mail | X8: * | Y8: ИНН | AA8: * | AB8: КПП | AD8: * | AE8: ОГРН | AG8: * | AH8: Адрес | AJ8: * | AK8: р/сч | AM8: * | AN8: Банк | AP8: * | AQ8: корр/сч | AS8: * | AT8: БИК | AV8: * | AW8: Атриб-15 | AY8: * | AZ8: Атриб-16 | BB8: * | BC8: Атриб-17 | BE8: * | BF8: Атриб-18 | BH8: * | BI8: Атриб-19 | BK8: * | BL8: Атриб-20 | BP8: * | BQ8: статус Долга | BS8: * | BT8: статус ответственного за Долг | BW8: №ст | BX8: * | BY8: статус просроченного Долга | CA8: * | CB8: срок просрочки | CD8: * | CE8: зеленая зона | CG8: * | CH8: желтая зона | CJ8: * | CK8: статус действия | CO8: * | CP8: исполнитель | CR8: * | CS8: ТОП | CV8: * | CW8: ответ "да"
A9: =ROW() -> 9
A10: =ROW() -> 10
A11: =ROW() -> 11 | F11: =IF(OR(G11=0,G11=""),"*","") ->  | G11: зак-4 | H11: =IF(OR(G11="",G11=0),0,IF(COUNTIF(G:G,G11)=1,0,1)) -> 0 | I11: =IF(OR(J11=0,J11=""),"*","") ->  | J11: ООО "Заказчик-4" | K11: =IF(AND($G11<>"",$G11<>0,OR(J11="",J11=0)),1,0) -> 0 | L11: =IF(OR(M11=0,M11=""),"*","") ->  | M11: ООО "Зак-4" | N11: =IF(AND($G11<>"",$G11<>0,OR(M11="",M11=0)),1,0) -> 0 | O11: =IF(OR(P11=0,P11=""),"*","") ->  | P11: Алексеев | Q11: =IF(AND($G11<>"",$G11<>0,OR(P11="",P11=0)),1,0) -> 0 | R11: =IF(OR(S11=0,S11=""),"*","") ->  | S11: 4654654 | T11: =IF(AND($G11<>"",$G11<>0,OR(S11="",S11=0)),1,0) -> 0 | U11: =IF(OR(V11=0,V11=""),"*","") ->  | V11: 4565465 | W11: =IF(AND($G11<>"",$G11<>0,OR(V11="",V11=0)),1,0) -> 0 | X11: =IF(OR(Y11=0,Y11=""),"*","") ->  | Y11: 34654654 | Z11: =IF(AND($G11<>"",$G11<>0,OR(Y11="",Y11=0)),1,0) -> 0 | AA11: =IF(OR(AB11=0,AB11=""),"*","") ->  | AB11: 65436435 | AC11: =IF(AND($G11<>"",$G11<>0,OR(AB11="",AB11=0)),1,0) -> 0 | AD11: =IF(OR(AE11=0,AE11=""),"*","") ->  | AE11: 46543654 | AF11: =IF(AND($G11<>"",$G11<>0,OR(AE11="",AE11=0)),1,0) -> 0 | AG11: =IF(OR(AH11=0,AH11=""),"*","") ->  | AH11: 23645 | AI11: =IF(AND($G11<>"",$G11<>0,OR(AH11="",AH11=0)),1,0) -> 0 | AJ11: =IF(OR(AK11=0,AK11=""),"*","") ->  | AK11: 54443647 | AL11: =IF(AND($G11<>"",$G11<>0,OR(AK11="",AK11=0)),1,0) -> 0 | AM11: =IF(OR(AN11=0,AN11=""),"*","") ->  | AN11: 65437 | AO11: =IF(AND($G11<>"",$G11<>0,OR(AN11="",AN11=0)),1,0) -> 0 | AP11: =IF(OR(AQ11=0,AQ11=""),"*","") ->  | AQ11: 5675 | AR11: =IF(AND($G11<>"",$G11<>0,OR(AQ11="",AQ11=0)),1,0) -> 0 | AS11: =IF(OR(AT11=0,AT11=""),"*","") ->  | AT11: 6756546 | AU11: =IF(AND($G11<>"",$G11<>0,OR(AT11="",AT11=0)),1,0) -> 0 | AV11: =IF(OR(AW11=0,AW11=""),"*","") ->  | AW11: ALL | AX11: =IF(AND($G11<>"",$G11<>0,OR(AW11="",AW11=0)),1,0) -> 0 | AY11: =IF(OR(AZ11=0,AZ11=""),"*","") ->  | AZ11: ALL | BA11: =IF(AND($G11<>"",$G11<>0,OR(AZ11="",AZ11=0)),1,0) -> 0 | BB11: =IF(OR(BC11=0,BC11=""),"*","") ->  | BC11: ALL | BD11: =IF(AND($G11<>"",$G11<>0,OR(BC11="",BC11=0)),1,0) -> 0 | BE11: =IF(OR(BF11=0,BF11=""),"*","") ->  | BF11: ALL | BG11: =IF(AND($G11<>"",$G11<>0,OR(BF11="",BF11=0)),1,0) -> 0 | BH11: =IF(OR(BI11=0,BI11=""),"*","") ->  | BI11: ALL | BJ11: =IF(AND($G11<>"",$G11<>0,OR(BI11="",BI11=0)),1,0) -> 0 | BK11: =IF(OR(BL11=0,BL11=""),"*","") ->  | BL11: ALL | BM11: =IF(AND($G11<>"",$G11<>0,OR(BL11="",BL11=0)),1,0) -> 0 | BP11: * | BQ11: Долга нет | BR11: =IF(OR(BQ11="",BQ11=0),0,IF(COUNTIF(BQ:BQ,BQ11)=1,0,1)) -> 0 | BS11: * | BT11: Нет задачи | BU11: =IF(OR(BT11="",BT11=0),0,IF(COUNTIF(BT:BT,BT11)=1,0,1)) -> 0 | BW11: =IF(OR(BY11="",BY11=0),"",1) -> 1 | BX11: * | BY11: ="просрочка-"&CB11 -> просрочка-4 | BZ11: =IF(OR(BY11="",BY11=0),0,IF(COUNTIF(BY:BY,BY11)=1,0,1)) -> 0 | CA11: =IF(OR(CB11=0,CB11=""),"*","") ->  | CB11: 4 | CC11: =IF(AND($BY11<>"",$BY11<>0,OR(CB11="",CB11=0)),1,0) -> 0 | CD11: =IF(OR(CE11=0,CE11=""),"*","") ->  | CE11: 1 | CF11: =IF(AND($BY11<>"",$BY11<>0,OR(CE11="",CE11=0)),1,0) -> 0 | CG11: =IF(OR(CH11=0,CH11=""),"*","") ->  | CH11: 2 | CI11: =IF(AND($BY11<>"",$BY11<>0,OR(CH11="",CH11=0)),1,0) -> 0 | CJ11: =IF(OR(CK11=0,CK11=""),"*","") ->  | CK11: коммуникация | CL11: =IF(AND($BY11<>"",$BY11<>0,OR(CK11="",CK11=0)),1,0) -> 0 | CO11: * | CP11: Владимир | CQ11: =IF(OR(CP11="",CP11=0),0,IF(COUNTIF(CP:CP,CP11)=1,0,1)) -> 0 | CR11: * | CS11: руководитель-ТОП-1 | CT11: =IF(OR(CS11="",CS11=0),0,IF(COUNTIF(CS:CS,CS11)=1,0,1)) -> 0 | CV11: * | CW11: да | CX11: =IF(OR(CW11="",CW11=0),0,IF(COUNTIF(CW:CW,CW11)=1,0,1)) -> 0
A12: =ROW() -> 12 | F12: =IF(OR(G12=0,G12=""),"*","") ->  | G12: зак-3 | H12: =IF(OR(G12="",G12=0),0,IF(COUNTIF(G:G,G12)=1,0,1)) -> 0 | I12: =IF(OR(J12=0,J12=""),"*","") ->  | J12: ООО "Заказчик-3" | K12: =IF(AND($G12<>"",$G12<>0,OR(J12="",J12=0)),1,0) -> 0 | L12: =IF(OR(M12=0,M12=""),"*","") ->  | M12: ООО "Зак-3" | N12: =IF(AND($G12<>"",$G12<>0,OR(M12="",M12=0)),1,0) -> 0 | O12: =IF(OR(P12=0,P12=""),"*","") ->  | P12: Иванов | Q12: =IF(AND($G12<>"",$G12<>0,OR(P12="",P12=0)),1,0) -> 0 | R12: =IF(OR(S12=0,S12=""),"*","") ->  | S12: 124245 | T12: =IF(AND($G12<>"",$G12<>0,OR(S12="",S12=0)),1,0) -> 0 | U12: =IF(OR(V12=0,V12=""),"*","") ->  | V12: 37556 | W12: =IF(AND($G12<>"",$G12<>0,OR(V12="",V12=0)),1,0) -> 0 | X12: =IF(OR(Y12=0,Y12=""),"*","") ->  | Y12: 264565757 | Z12: =IF(AND($G12<>"",$G12<>0,OR(Y12="",Y12=0)),1,0) -> 0 | AA12: =IF(OR(AB12=0,AB12=""),"*","") ->  | AB12: 456757 | AC12: =IF(AND($G12<>"",$G12<>0,OR(AB12="",AB12=0)),1,0) -> 0 | AD12: =IF(OR(AE12=0,AE12=""),"*","") ->  | AE12: 643765765 | AF12: =IF(AND($G12<>"",$G12<>0,OR(AE12="",AE12=0)),1,0) -> 0 | AG12: =IF(OR(AH12=0,AH12=""),"*","") ->  | AH12: парнур6565 | AI12: =IF(AND($G12<>"",$G12<>0,OR(AH12="",AH12=0)),1,0) -> 0 | AJ12: =IF(OR(AK12=0,AK12=""),"*","") ->  | AK12: 64536657567 | AL12: =IF(AND($G12<>"",$G12<>0,OR(AK12="",AK12=0)),1,0) -> 0 | AM12: =IF(OR(AN12=0,AN12=""),"*","") ->  | AN12: 5н4657575 | AO12: =IF(AND($G12<>"",$G12<>0,OR(AN12="",AN12=0)),1,0) -> 0 | AP12: =IF(OR(AQ12=0,AQ12=""),"*","") ->  | AQ12: 3465765756 | AR12: =IF(AND($G12<>"",$G12<>0,OR(AQ12="",AQ12=0)),1,0) -> 0 | AS12: =IF(OR(AT12=0,AT12=""),"*","") ->  | AT12: 6543673 | AU12: =IF(AND($G12<>"",$G12<>0,OR(AT12="",AT12=0)),1,0) -> 0 | AV12: =IF(OR(AW12=0,AW12=""),"*","") ->  | AW12: ALL | AX12: =IF(AND($G12<>"",$G12<>0,OR(AW12="",AW12=0)),1,0) -> 0 | AY12: =IF(OR(AZ12=0,AZ12=""),"*","") ->  | AZ12: ALL | BA12: =IF(AND($G12<>"",$G12<>0,OR(AZ12="",AZ12=0)),1,0) -> 0 | BB12: =IF(OR(BC12=0,BC12=""),"*","") ->  | BC12: ALL | BD12: =IF(AND($G12<>"",$G12<>0,OR(BC12="",BC12=0)),1,0) -> 0 | BE12: =IF(OR(BF12=0,BF12=""),"*","") ->  | BF12: ALL | BG12: =IF(AND($G12<>"",$G12<>0,OR(BF12="",BF12=0)),1,0) -> 0 | BH12: =IF(OR(BI12=0,BI12=""),"*","") ->  | BI12: ALL | BJ12: =IF(AND($G12<>"",$G12<>0,OR(BI12="",BI12=0)),1,0) -> 0 | BK12: =IF(OR(BL12=0,BL12=""),"*","") ->  | BL12: ALL | BM12: =IF(AND($G12<>"",$G12<>0,OR(BL12="",BL12=0)),1,0) -> 0 | BP12: * | BQ12: Долг непросроченный | BR12: =IF(OR(BQ12="",BQ12=0),0,IF(COUNTIF(BQ:BQ,BQ12)=1,0,1)) -> 0 | BS12: * | BT12: Долг в ответственности Юр | BU12: =IF(OR(BT12="",BT12=0),0,IF(COUNTIF(BT:BT,BT12)=1,0,1)) -> 0 | BW12: =IF(OR(BY12="",BY12=0),"",BW11+1) -> 2 | BX12: * | BY12: ="просрочка-"&CB12 -> просрочка-10 | BZ12: =IF(OR(BY12="",BY12=0),0,IF(COUNTIF(BY:BY,BY12)=1,0,1)) -> 0 | CA12: =IF(OR(CB12=0,CB12=""),"*","") ->  | CB12: 10 | CC12: =IF(AND($BY12<>"",$BY12<>0,OR(CB12="",CB12=0)),1,0) -> 0 | CD12: =IF(OR(CE12=0,CE12=""),"*","") ->  | CE12: 3 | CF12: =IF(AND($BY12<>"",$BY12<>0,OR(CE12="",CE12=0)),1,0) -> 0 | CG12: =IF(OR(CH12=0,CH12=""),"*","") ->  | CH12: 4 | CI12: =IF(AND($BY12<>"",$BY12<>0,OR(CH12="",CH12=0)),1,0) -> 0 | CJ12: =IF(OR(CK12=0,CK12=""),"*","") ->  | CK12: график рассрочки | CL12: =IF(AND($BY12<>"",$BY12<>0,OR(CK12="",CK12=0)),1,0) -> 0 | CO12: * | CP12: пользователь-2-график рассрочки | CQ12: =IF(OR(CP12="",CP12=0),0,IF(COUNTIF(CP:CP,CP12)=1,0,1)) -> 0 | CR12: * | CS12: руководитель-ТОП-2 | CT12: =IF(OR(CS12="",CS12=0),0,IF(COUNTIF(CS:CS,CS12)=1,0,1)) -> 0
A13: =ROW() -> 13 | F13: =IF(OR(G13=0,G13=""),"*","") ->  | G13: Зак-2 | H13: =IF(OR(G13="",G13=0),0,IF(COUNTIF(G:G,G13)=1,0,1)) -> 0 | I13: =IF(OR(J13=0,J13=""),"*","") ->  | J13: ООО "Заказчик-2" | K13: =IF(AND($G13<>"",$G13<>0,OR(J13="",J13=0)),1,0) -> 0 | L13: =IF(OR(M13=0,M13=""),"*","") ->  | M13: ООО "Зак-2" | N13: =IF(AND($G13<>"",$G13<>0,OR(M13="",M13=0)),1,0) -> 0 | O13: =IF(OR(P13=0,P13=""),"*","") ->  | P13: Сидоров | Q13: =IF(AND($G13<>"",$G13<>0,OR(P13="",P13=0)),1,0) -> 0 | R13: =IF(OR(S13=0,S13=""),"*","") ->  | S13: 33545626 | T13: =IF(AND($G13<>"",$G13<>0,OR(S13="",S13=0)),1,0) -> 0 | U13: =IF(OR(V13=0,V13=""),"*","") ->  | V13: 3756767 | W13: =IF(AND($G13<>"",$G13<>0,OR(V13="",V13=0)),1,0) -> 0 | X13: =IF(OR(Y13=0,Y13=""),"*","") ->  | Y13: 74568 | Z13: =IF(AND($G13<>"",$G13<>0,OR(Y13="",Y13=0)),1,0) -> 0 | AA13: =IF(OR(AB13=0,AB13=""),"*","") ->  | AB13: 267657 | AC13: =IF(AND($G13<>"",$G13<>0,OR(AB13="",AB13=0)),1,0) -> 0 | AD13: =IF(OR(AE13=0,AE13=""),"*","") ->  | AE13: 7787878 | AF13: =IF(AND($G13<>"",$G13<>0,OR(AE13="",AE13=0)),1,0) -> 0 | AG13: =IF(OR(AH13=0,AH13=""),"*","") ->  | AH13: 669696 | AI13: =IF(AND($G13<>"",$G13<>0,OR(AH13="",AH13=0)),1,0) -> 0 | AJ13: =IF(OR(AK13=0,AK13=""),"*","") ->  | AK13: 254н565464 | AL13: =IF(AND($G13<>"",$G13<>0,OR(AK13="",AK13=0)),1,0) -> 0 | AM13: =IF(OR(AN13=0,AN13=""),"*","") ->  | AN13: 756787878 | AO13: =IF(AND($G13<>"",$G13<>0,OR(AN13="",AN13=0)),1,0) -> 0 | AP13: =IF(OR(AQ13=0,AQ13=""),"*","") ->  | AQ13: 34757 | AR13: =IF(AND($G13<>"",$G13<>0,OR(AQ13="",AQ13=0)),1,0) -> 0 | AS13: =IF(OR(AT13=0,AT13=""),"*","") ->  | AT13: 3246 | AU13: =IF(AND($G13<>"",$G13<>0,OR(AT13="",AT13=0)),1,0) -> 0 | AV13: =IF(OR(AW13=0,AW13=""),"*","") ->  | AW13: ALL | AX13: =IF(AND($G13<>"",$G13<>0,OR(AW13="",AW13=0)),1,0) -> 0 | AY13: =IF(OR(AZ13=0,AZ13=""),"*","") ->  | AZ13: ALL | BA13: =IF(AND($G13<>"",$G13<>0,OR(AZ13="",AZ13=0)),1,0) -> 0 | BB13: =IF(OR(BC13=0,BC13=""),"*","") ->  | BC13: ALL | BD13: =IF(AND($G13<>"",$G13<>0,OR(BC13="",BC13=0)),1,0) -> 0 | BE13: =IF(OR(BF13=0,BF13=""),"*","") ->  | BF13: ALL | BG13: =IF(AND($G13<>"",$G13<>0,OR(BF13="",BF13=0)),1,0) -> 0 | BH13: =IF(OR(BI13=0,BI13=""),"*","") ->  | BI13: ALL | BJ13: =IF(AND($G13<>"",$G13<>0,OR(BI13="",BI13=0)),1,0) -> 0 | BK13: =IF(OR(BL13=0,BL13=""),"*","") ->  | BL13: ALL | BM13: =IF(AND($G13<>"",$G13<>0,OR(BL13="",BL13=0)),1,0) -> 0 | BP13: * | BQ13: Долг несущественный | BR13: =IF(OR(BQ13="",BQ13=0),0,IF(COUNTIF(BQ:BQ,BQ13)=1,0,1)) -> 0 | BS13: * | BT13: Долг в ответственности ТОП | BU13: =IF(OR(BT13="",BT13=0),0,IF(COUNTIF(BT:BT,BT13)=1,0,1)) -> 0 | BW13: =IF(OR(BY13="",BY13=0),"",BW12+1) -> 3 | BX13: * | BY13: просрочка-40 | BZ13: 0 | CB13: 40 | CC13: 0 | CE13: 3 | CF13: 0 | CH13: 6 | CI13: 0 | CK13: досудебная претензия | CL13: 0 | CO13: * | CP13: пользователь-3-досудебная претензия | CQ13: 0 | CR13: * | CS13: руководитель-ТОП-3 | CT13: 0
A14: =ROW() -> 14 | F14: =IF(OR(G14=0,G14=""),"*","") ->  | G14: Зак | H14: =IF(OR(G14="",G14=0),0,IF(COUNTIF(G:G,G14)=1,0,1)) -> 0 | I14: =IF(OR(J14=0,J14=""),"*","") ->  | J14: ООО "Заказчик" | K14: =IF(AND($G14<>"",$G14<>0,OR(J14="",J14=0)),1,0) -> 0 | L14: =IF(OR(M14=0,M14=""),"*","") ->  | M14: ООО "Зак" | N14: =IF(AND($G14<>"",$G14<>0,OR(M14="",M14=0)),1,0) -> 0 | O14: =IF(OR(P14=0,P14=""),"*","") ->  | P14: Петров Иван Иванович | Q14: =IF(AND($G14<>"",$G14<>0,OR(P14="",P14=0)),1,0) -> 0 | R14: =IF(OR(S14=0,S14=""),"*","") ->  | S14: 123456789 | T14: =IF(AND($G14<>"",$G14<>0,OR(S14="",S14=0)),1,0) -> 0 | U14: =IF(OR(V14=0,V14=""),"*","") ->  | V14: mail@mail.ru | W14: =IF(AND($G14<>"",$G14<>0,OR(V14="",V14=0)),1,0) -> 0 | X14: =IF(OR(Y14=0,Y14=""),"*","") ->  | Y14: 1111111111 | Z14: =IF(AND($G14<>"",$G14<>0,OR(Y14="",Y14=0)),1,0) -> 0 | AA14: =IF(OR(AB14=0,AB14=""),"*","") ->  | AB14: 111111111 | AC14: =IF(AND($G14<>"",$G14<>0,OR(AB14="",AB14=0)),1,0) -> 0 | AD14: =IF(OR(AE14=0,AE14=""),"*","") ->  | AE14: 111111111111 | AF14: =IF(AND($G14<>"",$G14<>0,OR(AE14="",AE14=0)),1,0) -> 0 | AG14: =IF(OR(AH14=0,AH14=""),"*","") ->  | AH14: 111111 | AI14: =IF(AND($G14<>"",$G14<>0,OR(AH14="",AH14=0)),1,0) -> 0 | AJ14: =IF(OR(AK14=0,AK14=""),"*","") ->  | AK14: 11111111111111 | AL14: =IF(AND($G14<>"",$G14<>0,OR(AK14="",AK14=0)),1,0) -> 0 | AM14: =IF(OR(AN14=0,AN14=""),"*","") ->  | AN14: 1111111111111 | AO14: =IF(AND($G14<>"",$G14<>0,OR(AN14="",AN14=0)),1,0) -> 0 | AP14: =IF(OR(AQ14=0,AQ14=""),"*","") ->  | AQ14: 11111111111111 | AR14: =IF(AND($G14<>"",$G14<>0,OR(AQ14="",AQ14=0)),1,0) -> 0 | AS14: =IF(OR(AT14=0,AT14=""),"*","") ->  | AT14: 11111111 | AU14: =IF(AND($G14<>"",$G14<>0,OR(AT14="",AT14=0)),1,0) -> 0 | AV14: =IF(OR(AW14=0,AW14=""),"*","") ->  | AW14: ALL | AX14: =IF(AND($G14<>"",$G14<>0,OR(AW14="",AW14=0)),1,0) -> 0 | AY14: =IF(OR(AZ14=0,AZ14=""),"*","") ->  | AZ14: ALL | BA14: =IF(AND($G14<>"",$G14<>0,OR(AZ14="",AZ14=0)),1,0) -> 0 | BB14: =IF(OR(BC14=0,BC14=""),"*","") ->  | BC14: ALL | BD14: =IF(AND($G14<>"",$G14<>0,OR(BC14="",BC14=0)),1,0) -> 0 | BE14: =IF(OR(BF14=0,BF14=""),"*","") ->  | BF14: ALL | BG14: =IF(AND($G14<>"",$G14<>0,OR(BF14="",BF14=0)),1,0) -> 0 | BH14: =IF(OR(BI14=0,BI14=""),"*","") ->  | BI14: ALL | BJ14: =IF(AND($G14<>"",$G14<>0,OR(BI14="",BI14=0)),1,0) -> 0 | BK14: =IF(OR(BL14=0,BL14=""),"*","") ->  | BL14: ALL | BM14: =IF(AND($G14<>"",$G14<>0,OR(BL14="",BL14=0)),1,0) -> 0 | BP14: * | BQ14: Долг просроченный | BR14: 0 | BS14: * | BT14: Долг брошенный | BU14: =IF(OR(BT14="",BT14=0),0,IF(COUNTIF(BT:BT,BT14)=1,0,1)) -> 0 | BW14: 4 | BX14: * | BY14: просрочка-70 | BZ14: 0 | CB14: 70 | CC14: 0 | CE14: 5 | CF14: 0 | CH14: 7 | CI14: 0 | CK14: ознакомление Должника с иском | CL14: 0 | CO14: * | CP14: пользователь-4-ознакомление с иском | CQ14: 0 | CR14: * | CS14: руководитель-ТОП-4 | CT14: 0
A15: =ROW() -> 15 | F15: =IF(OR(G15=0,G15=""),"*","") ->  | G15: ALL | H15: =IF(OR(G15="",G15=0),0,IF(COUNTIF(G:G,G15)=1,0,1)) -> 0 | I15: =IF(OR(J15=0,J15=""),"*","") ->  | J15: ALL | K15: =IF(AND($G15<>"",$G15<>0,OR(J15="",J15=0)),1,0) -> 0 | L15: =IF(OR(M15=0,M15=""),"*","") ->  | M15: ALL | N15: =IF(AND($G15<>"",$G15<>0,OR(M15="",M15=0)),1,0) -> 0 | O15: =IF(OR(P15=0,P15=""),"*","") ->  | P15: ALL | Q15: =IF(AND($G15<>"",$G15<>0,OR(P15="",P15=0)),1,0) -> 0 | R15: =IF(OR(S15=0,S15=""),"*","") ->  | S15: ALL | T15: =IF(AND($G15<>"",$G15<>0,OR(S15="",S15=0)),1,0) -> 0 | U15: =IF(OR(V15=0,V15=""),"*","") ->  | V15: ALL | W15: =IF(AND($G15<>"",$G15<>0,OR(V15="",V15=0)),1,0) -> 0 | X15: =IF(OR(Y15=0,Y15=""),"*","") ->  | Y15: ALL | Z15: =IF(AND($G15<>"",$G15<>0,OR(Y15="",Y15=0)),1,0) -> 0 | AA15: =IF(OR(AB15=0,AB15=""),"*","") ->  | AB15: ALL | AC15: =IF(AND($G15<>"",$G15<>0,OR(AB15="",AB15=0)),1,0) -> 0 | AD15: =IF(OR(AE15=0,AE15=""),"*","") ->  | AE15: ALL | AF15: =IF(AND($G15<>"",$G15<>0,OR(AE15="",AE15=0)),1,0) -> 0 | AG15: =IF(OR(AH15=0,AH15=""),"*","") ->  | AH15: ALL | AI15: =IF(AND($G15<>"",$G15<>0,OR(AH15="",AH15=0)),1,0) -> 0 | AJ15: =IF(OR(AK15=0,AK15=""),"*","") ->  | AK15: ALL | AL15: =IF(AND($G15<>"",$G15<>0,OR(AK15="",AK15=0)),1,0) -> 0 | AM15: =IF(OR(AN15=0,AN15=""),"*","") ->  | AN15: ALL | AO15: =IF(AND($G15<>"",$G15<>0,OR(AN15="",AN15=0)),1,0) -> 0 | AP15: =IF(OR(AQ15=0,AQ15=""),"*","") ->  | AQ15: ALL | AR15: =IF(AND($G15<>"",$G15<>0,OR(AQ15="",AQ15=0)),1,0) -> 0 | AS15: =IF(OR(AT15=0,AT15=""),"*","") ->  | AT15: ALL | AU15: =IF(AND($G15<>"",$G15<>0,OR(AT15="",AT15=0)),1,0) -> 0 | AV15: =IF(OR(AW15=0,AW15=""),"*","") ->  | AW15: ALL | AX15: =IF(AND($G15<>"",$G15<>0,OR(AW15="",AW15=0)),1,0) -> 0 | AY15: =IF(OR(AZ15=0,AZ15=""),"*","") ->  | AZ15: ALL | BA15: =IF(AND($G15<>"",$G15<>0,OR(AZ15="",AZ15=0)),1,0) -> 0 | BB15: =IF(OR(BC15=0,BC15=""),"*","") ->  | BC15: ALL | BD15: =IF(AND($G15<>"",$G15<>0,OR(BC15="",BC15=0)),1,0) -> 0 | BE15: =IF(OR(BF15=0,BF15=""),"*","") ->  | BF15: ALL | BG15: =IF(AND($G15<>"",$G15<>0,OR(BF15="",BF15=0)),1,0) -> 0 | BH15: =IF(OR(BI15=0,BI15=""),"*","") ->  | BI15: ALL | BJ15: =IF(AND($G15<>"",$G15<>0,OR(BI15="",BI15=0)),1,0) -> 0 | BK15: =IF(OR(BL15=0,BL15=""),"*","") ->  | BL15: ALL | BM15: =IF(AND($G15<>"",$G15<>0,OR(BL15="",BL15=0)),1,0) -> 0 | BS15: * | BT15: Долг в исполнении | BU15: =IF(OR(BT15="",BT15=0),0,IF(COUNTIF(BT:BT,BT15)=1,0,1)) -> 0 | BW15: 5 | BX15: * | BY15: просрочка-100 | BZ15: 0 | CB15: 100 | CC15: 0 | CE15: 3 | CF15: 0 | CH15: 4 | CI15: 0 | CK15: иск в Суд | CL15: 0 | CO15: * | CP15: пользователь-5-иск в Суд | CQ15: 0 | CR15: * | CS15: руководитель-ТОП-5 | CT15: 0
A16: =ROW() -> 16 | CN16: =IF(OR(CP16="",CP16=0),"",CN15+1) ->  | CU16: =IF(OR(CW16="",CW16=0),"",CU15+1) -> 
A17: =ROW() -> 17
A18: =ROW() -> 18
A19: =ROW() -> 19
A20: =ROW() -> 20
A21: =ROW() -> 21
A22: =ROW() -> 22
A23: =ROW() -> 23
A24: =ROW() -> 24
A25: =ROW() -> 25
A26: =ROW() -> 26
A27: =ROW() -> 27
A28: =ROW() -> 28
A29: =ROW() -> 29
A30: =ROW() -> 30
A31: =ROW() -> 31
A32: =ROW() -> 32
A33: =ROW() -> 33
A34: =ROW() -> 34
A35: =ROW() -> 35
A36: =ROW() -> 36
A37: =ROW() -> 37
A38: =ROW() -> 38
A39: =ROW() -> 39
A40: =ROW() -> 40
A41: =ROW() -> 41
A42: =ROW() -> 42
A43: =ROW() -> 43
A44: =ROW() -> 44
A45: =ROW() -> 45
A46: =ROW() -> 46
A47: =ROW() -> 47
A48: =ROW() -> 48
A49: =ROW() -> 49
A50: =ROW() -> 50
A51: =ROW() -> 51
A52: =ROW() -> 52
A53: =ROW() -> 53
A54: =ROW() -> 54
A55: =ROW() -> 55
A56: =ROW() -> 56
A57: =ROW() -> 57
A58: =ROW() -> 58
A59: =ROW() -> 59
A60: =ROW() -> 60
A61: =ROW() -> 61
A62: =ROW() -> 62
A63: =ROW() -> 63
A64: =ROW() -> 64
A65: =ROW() -> 65
A66: =ROW() -> 66
A67: =ROW() -> 67
A68: =ROW() -> 68
A69: =ROW() -> 69
A70: =ROW() -> 70
A71: =ROW() -> 71
A72: =ROW() -> 72
A73: =ROW() -> 73
A74: =ROW() -> 74
A75: =ROW() -> 75
A76: =ROW() -> 76
A77: =ROW() -> 77
A78: =ROW() -> 78
A79: =ROW() -> 79
A80: =ROW() -> 80
A81: =ROW() -> 81
A82: =ROW() -> 82
A83: =ROW() -> 83
A84: =ROW() -> 84
A85: =ROW() -> 85
A86: =ROW() -> 86
A87: =ROW() -> 87
A88: =ROW() -> 88
A89: =ROW() -> 89
A90: =ROW() -> 90
A91: =ROW() -> 91
A92: =ROW() -> 92
A93: =ROW() -> 93
A94: =ROW() -> 94
A95: =ROW() -> 95
A96: =ROW() -> 96
A97: =ROW() -> 97
A98: =ROW() -> 98
A99: =ROW() -> 99
A100: =ROW() -> 100
A101: =ROW() -> 101
A102: =ROW() -> 102
A103: =ROW() -> 103
A104: =ROW() -> 104
A105: =ROW() -> 105
A106: =ROW() -> 106
A107: =ROW() -> 107
A108: =ROW() -> 108
A109: =ROW() -> 109
A110: =ROW() -> 110
A111: =ROW() -> 111
A112: =ROW() -> 112
A113: =ROW() -> 113
A114: =ROW() -> 114
A115: =ROW() -> 115
A116: =ROW() -> 116
A117: =ROW() -> 117
A118: =ROW() -> 118
A119: =ROW() -> 119
A120: =ROW() -> 120
A121: =ROW() -> 121
A122: =ROW() -> 122
A123: =ROW() -> 123
A124: =ROW() -> 124
A125: =ROW() -> 125
A126: =ROW() -> 126
A127: =ROW() -> 127
A128: =ROW() -> 128
A129: =ROW() -> 129
A130: =ROW() -> 130
A131: =ROW() -> 131
A132: =ROW() -> 132
A133: =ROW() -> 133
A134: =ROW() -> 134
A135: =ROW() -> 135
A136: =ROW() -> 136
A137: =ROW() -> 137
A138: =ROW() -> 138
A139: =ROW() -> 139
A140: =ROW() -> 140
A141: =ROW() -> 141
A142: =ROW() -> 142
A143: =ROW() -> 143
A144: =ROW() -> 144
A145: =ROW() -> 145
A146: =ROW() -> 146
A147: =ROW() -> 147
A148: =ROW() -> 148
A149: =ROW() -> 149
A150: =ROW() -> 150
A151: =ROW() -> 151
A152: =ROW() -> 152
A153: =ROW() -> 153
A154: =ROW() -> 154
A155: =ROW() -> 155
A156: =ROW() -> 156
A157: =ROW() -> 157
A158: =ROW() -> 158
A159: =ROW() -> 159
A160: =ROW() -> 160
A161: =ROW() -> 161
A162: =ROW() -> 162
A163: =ROW() -> 163
A164: =ROW() -> 164
A165: =ROW() -> 165
A166: =ROW() -> 166
A167: =ROW() -> 167
A168: =ROW() -> 168
A169: =ROW() -> 169
A170: =ROW() -> 170
A171: =ROW() -> 171
A172: =ROW() -> 172
A173: =ROW() -> 173
A174: =ROW() -> 174
A175: =ROW() -> 175
A176: =ROW() -> 176
A177: =ROW() -> 177
A178: =ROW() -> 178
A179: =ROW() -> 179
A180: =ROW() -> 180
A181: =ROW() -> 181
A182: =ROW() -> 182
A183: =ROW() -> 183
A184: =ROW() -> 184
A185: =ROW() -> 185
A186: =ROW() -> 186
A187: =ROW() -> 187
A188: =ROW() -> 188
A189: =ROW() -> 189
A190: =ROW() -> 190
A191: =ROW() -> 191
A192: =ROW() -> 192
A193: =ROW() -> 193
A194: =ROW() -> 194
A195: =ROW() -> 195
A196: =ROW() -> 196
A197: =ROW() -> 197
A198: =ROW() -> 198
A199: =ROW() -> 199
A200: =ROW() -> 200
... 799 more rows

Sheet PvT
A1: =ROW() -> 1 | C1: Названия строк
A2: =ROW() -> 2 | C2: Общий итог
A3: =ROW() -> 3
A4: =ROW() -> 4
A5: =ROW() -> 5 | C5: ID | D5: 1
A6: =ROW() -> 6
A7: =ROW() -> 7 | B7: =IF(OR(C7=$C$1,C7=$C$2,C7=$C$3,C7=0),0,MAX(B$1:B6)+1) -> 0 | C7: Названия строк
A8: =ROW() -> 8 | B8: =IF(OR(C8=$C$1,C8=$C$2,C8=$C$3,C8=0),0,MAX(B$1:B7)+1) -> 1 | C8: Зак / дог. №2 от 15.9.2019г. / ТН №5 от 2.10.2019г. / сумма отгр. 1000000
A9: =ROW() -> 9 | B9: =IF(OR(C9=$C$1,C9=$C$2,C9=$C$3,C9=0),0,MAX(B$1:B8)+1) -> 2 | C9: Зак-2 / дог. №76-в от 23.9.2019г. / АКТ №786 от 1.10.2019г. / сумма отгр. 3000000
A10: =ROW() -> 10 | B10: =IF(OR(C10=$C$1,C10=$C$2,C10=$C$3,C10=0),0,MAX(B$1:B9)+1) -> 3 | C10: Зак-2 / дог. №555 от 1.10.2019г. / ТН №777 от 1.10.2019г. / сумма отгр. 1000000
A11: =ROW() -> 11 | B11: =IF(OR(C11=$C$1,C11=$C$2,C11=$C$3,C11=0),0,MAX(B$1:B10)+1) -> 4 | C11: зак-4 / дог. №444 от 1.10.2019г. / Акт №444/1 от 10.10.2019г. / сумма отгр. 1000000
A12: =ROW() -> 12 | B12: =IF(OR(C12=$C$1,C12=$C$2,C12=$C$3,C12=0),0,MAX(B$1:B11)+1) -> 5 | C12: Зак / дог. №1172 от 4.10.2019г. / ТН №1172/тн от 10.10.2019г. / сумма отгр. 200000
A13: =ROW() -> 13 | B13: =IF(OR(C13=$C$1,C13=$C$2,C13=$C$3,C13=0),0,MAX(B$1:B12)+1) -> 6 | C13: Зак / дог. №1172 от 4.10.2019г. / ТН №1172/тн-2 от 23.10.2019г. / сумма отгр. 500000
A14: =ROW() -> 14 | B14: =IF(OR(C14=$C$1,C14=$C$2,C14=$C$3,C14=0),0,MAX(B$1:B13)+1) -> 7 | C14: зак-4 / дог. №8823 от 15.10.2019г. / АКТ №45 от 31.10.2019г. / сумма отгр. 1600000
A15: =ROW() -> 15 | B15: =IF(OR(C15=$C$1,C15=$C$2,C15=$C$3,C15=0),0,MAX(B$1:B14)+1) -> 8 | C15: зак-4 / дог. №12-3 от 1.10.2019г. / АКТ №12-3/акт от 12.10.2019г. / сумма отгр. 700000
A16: =ROW() -> 16 | B16: =IF(OR(C16=$C$1,C16=$C$2,C16=$C$3,C16=0),0,MAX(B$1:B15)+1) -> 0 | C16: Общий итог
A17: =ROW() -> 17 | B17: =IF(OR(C17=$C$1,C17=$C$2,C17=$C$3,C17=0),0,MAX(B$1:B16)+1) -> 0
A18: =ROW() -> 18 | B18: =IF(OR(C18=$C$1,C18=$C$2,C18=$C$3,C18=0),0,MAX(B$1:B17)+1) -> 0
A19: =ROW() -> 19 | B19: =IF(OR(C19=$C$1,C19=$C$2,C19=$C$3,C19=0),0,MAX(B$1:B18)+1) -> 0
A20: =ROW() -> 20 | B20: =IF(OR(C20=$C$1,C20=$C$2,C20=$C$3,C20=0),0,MAX(B$1:B19)+1) -> 0
A21: =ROW() -> 21 | B21: =IF(OR(C21=$C$1,C21=$C$2,C21=$C$3,C21=0),0,MAX(B$1:B20)+1) -> 0
A22: =ROW() -> 22 | B22: =IF(OR(C22=$C$1,C22=$C$2,C22=$C$3,C22=0),0,MAX(B$1:B21)+1) -> 0
A23: =ROW() -> 23 | B23: =IF(OR(C23=$C$1,C23=$C$2,C23=$C$3,C23=0),0,MAX(B$1:B22)+1) -> 0
A24: =ROW() -> 24 | B24: =IF(OR(C24=$C$1,C24=$C$2,C24=$C$3,C24=0),0,MAX(B$1:B23)+1) -> 0
A25: =ROW() -> 25 | B25: =IF(OR(C25=$C$1,C25=$C$2,C25=$C$3,C25=0),0,MAX(B$1:B24)+1) -> 0
A26: =ROW() -> 26 | B26: =IF(OR(C26=$C$1,C26=$C$2,C26=$C$3,C26=0),0,MAX(B$1:B25)+1) -> 0
A27: =ROW() -> 27 | B27: =IF(OR(C27=$C$1,C27=$C$2,C27=$C$3,C27=0),0,MAX(B$1:B26)+1) -> 0
A28: =ROW() -> 28 | B28: =IF(OR(C28=$C$1,C28=$C$2,C28=$C$3,C28=0),0,MAX(B$1:B27)+1) -> 0
A29: =ROW() -> 29 | B29: =IF(OR(C29=$C$1,C29=$C$2,C29=$C$3,C29=0),0,MAX(B$1:B28)+1) -> 0
A30: =ROW() -> 30 | B30: =IF(OR(C30=$C$1,C30=$C$2,C30=$C$3,C30=0),0,MAX(B$1:B29)+1) -> 0
A31: =ROW() -> 31 | B31: =IF(OR(C31=$C$1,C31=$C$2,C31=$C$3,C31=0),0,MAX(B$1:B30)+1) -> 0
A32: =ROW() -> 32 | B32: =IF(OR(C32=$C$1,C32=$C$2,C32=$C$3,C32=0),0,MAX(B$1:B31)+1) -> 0
A33: =ROW() -> 33 | B33: =IF(OR(C33=$C$1,C33=$C$2,C33=$C$3,C33=0),0,MAX(B$1:B32)+1) -> 0
A34: =ROW() -> 34 | B34: =IF(OR(C34=$C$1,C34=$C$2,C34=$C$3,C34=0),0,MAX(B$1:B33)+1) -> 0
A35: =ROW() -> 35 | B35: =IF(OR(C35=$C$1,C35=$C$2,C35=$C$3,C35=0),0,MAX(B$1:B34)+1) -> 0
A36: =ROW() -> 36 | B36: =IF(OR(C36=$C$1,C36=$C$2,C36=$C$3,C36=0),0,MAX(B$1:B35)+1) -> 0
A37: =ROW() -> 37 | B37: =IF(OR(C37=$C$1,C37=$C$2,C37=$C$3,C37=0),0,MAX(B$1:B36)+1) -> 0
A38: =ROW() -> 38 | B38: =IF(OR(C38=$C$1,C38=$C$2,C38=$C$3,C38=0),0,MAX(B$1:B37)+1) -> 0
A39: =ROW() -> 39 | B39: =IF(OR(C39=$C$1,C39=$C$2,C39=$C$3,C39=0),0,MAX(B$1:B38)+1) -> 0
A40: =ROW() -> 40 | B40: =IF(OR(C40=$C$1,C40=$C$2,C40=$C$3,C40=0),0,MAX(B$1:B39)+1) -> 0
A41: =ROW() -> 41 | B41: =IF(OR(C41=$C$1,C41=$C$2,C41=$C$3,C41=0),0,MAX(B$1:B40)+1) -> 0
A42: =ROW() -> 42 | B42: =IF(OR(C42=$C$1,C42=$C$2,C42=$C$3,C42=0),0,MAX(B$1:B41)+1) -> 0
A43: =ROW() -> 43 | B43: =IF(OR(C43=$C$1,C43=$C$2,C43=$C$3,C43=0),0,MAX(B$1:B42)+1) -> 0
A44: =ROW() -> 44 | B44: =IF(OR(C44=$C$1,C44=$C$2,C44=$C$3,C44=0),0,MAX(B$1:B43)+1) -> 0
A45: =ROW() -> 45 | B45: =IF(OR(C45=$C$1,C45=$C$2,C45=$C$3,C45=0),0,MAX(B$1:B44)+1) -> 0
A46: =ROW() -> 46 | B46: =IF(OR(C46=$C$1,C46=$C$2,C46=$C$3,C46=0),0,MAX(B$1:B45)+1) -> 0
A47: =ROW() -> 47 | B47: =IF(OR(C47=$C$1,C47=$C$2,C47=$C$3,C47=0),0,MAX(B$1:B46)+1) -> 0
A48: =ROW() -> 48 | B48: =IF(OR(C48=$C$1,C48=$C$2,C48=$C$3,C48=0),0,MAX(B$1:B47)+1) -> 0
A49: =ROW() -> 49 | B49: =IF(OR(C49=$C$1,C49=$C$2,C49=$C$3,C49=0),0,MAX(B$1:B48)+1) -> 0
A50: =ROW() -> 50 | B50: =IF(OR(C50=$C$1,C50=$C$2,C50=$C$3,C50=0),0,MAX(B$1:B49)+1) -> 0
A51: =ROW() -> 51 | B51: =IF(OR(C51=$C$1,C51=$C$2,C51=$C$3,C51=0),0,MAX(B$1:B50)+1) -> 0
A52: =ROW() -> 52 | B52: =IF(OR(C52=$C$1,C52=$C$2,C52=$C$3,C52=0),0,MAX(B$1:B51)+1) -> 0
A53: =ROW() -> 53 | B53: =IF(OR(C53=$C$1,C53=$C$2,C53=$C$3,C53=0),0,MAX(B$1:B52)+1) -> 0
A54: =ROW() -> 54 | B54: =IF(OR(C54=$C$1,C54=$C$2,C54=$C$3,C54=0),0,MAX(B$1:B53)+1) -> 0
A55: =ROW() -> 55 | B55: =IF(OR(C55=$C$1,C55=$C$2,C55=$C$3,C55=0),0,MAX(B$1:B54)+1) -> 0
A56: =ROW() -> 56 | B56: =IF(OR(C56=$C$1,C56=$C$2,C56=$C$3,C56=0),0,MAX(B$1:B55)+1) -> 0
A57: =ROW() -> 57 | B57: =IF(OR(C57=$C$1,C57=$C$2,C57=$C$3,C57=0),0,MAX(B$1:B56)+1) -> 0
A58: =ROW() -> 58 | B58: =IF(OR(C58=$C$1,C58=$C$2,C58=$C$3,C58=0),0,MAX(B$1:B57)+1) -> 0
A59: =ROW() -> 59 | B59: =IF(OR(C59=$C$1,C59=$C$2,C59=$C$3,C59=0),0,MAX(B$1:B58)+1) -> 0
A60: =ROW() -> 60 | B60: =IF(OR(C60=$C$1,C60=$C$2,C60=$C$3,C60=0),0,MAX(B$1:B59)+1) -> 0
A61: =ROW() -> 61 | B61: =IF(OR(C61=$C$1,C61=$C$2,C61=$C$3,C61=0),0,MAX(B$1:B60)+1) -> 0
A62: =ROW() -> 62 | B62: =IF(OR(C62=$C$1,C62=$C$2,C62=$C$3,C62=0),0,MAX(B$1:B61)+1) -> 0
A63: =ROW() -> 63 | B63: =IF(OR(C63=$C$1,C63=$C$2,C63=$C$3,C63=0),0,MAX(B$1:B62)+1) -> 0
A64: =ROW() -> 64 | B64: =IF(OR(C64=$C$1,C64=$C$2,C64=$C$3,C64=0),0,MAX(B$1:B63)+1) -> 0
A65: =ROW() -> 65 | B65: =IF(OR(C65=$C$1,C65=$C$2,C65=$C$3,C65=0),0,MAX(B$1:B64)+1) -> 0
A66: =ROW() -> 66 | B66: =IF(OR(C66=$C$1,C66=$C$2,C66=$C$3,C66=0),0,MAX(B$1:B65)+1) -> 0
A67: =ROW() -> 67 | B67: =IF(OR(C67=$C$1,C67=$C$2,C67=$C$3,C67=0),0,MAX(B$1:B66)+1) -> 0
A68: =ROW() -> 68 | B68: =IF(OR(C68=$C$1,C68=$C$2,C68=$C$3,C68=0),0,MAX(B$1:B67)+1) -> 0
A69: =ROW() -> 69 | B69: =IF(OR(C69=$C$1,C69=$C$2,C69=$C$3,C69=0),0,MAX(B$1:B68)+1) -> 0
A70: =ROW() -> 70 | B70: =IF(OR(C70=$C$1,C70=$C$2,C70=$C$3,C70=0),0,MAX(B$1:B69)+1) -> 0
A71: =ROW() -> 71 | B71: =IF(OR(C71=$C$1,C71=$C$2,C71=$C$3,C71=0),0,MAX(B$1:B70)+1) -> 0
A72: =ROW() -> 72 | B72: =IF(OR(C72=$C$1,C72=$C$2,C72=$C$3,C72=0),0,MAX(B$1:B71)+1) -> 0
A73: =ROW() -> 73 | B73: =IF(OR(C73=$C$1,C73=$C$2,C73=$C$3,C73=0),0,MAX(B$1:B72)+1) -> 0
A74: =ROW() -> 74 | B74: =IF(OR(C74=$C$1,C74=$C$2,C74=$C$3,C74=0),0,MAX(B$1:B73)+1) -> 0
A75: =ROW() -> 75 | B75: =IF(OR(C75=$C$1,C75=$C$2,C75=$C$3,C75=0),0,MAX(B$1:B74)+1) -> 0
A76: =ROW() -> 76 | B76: =IF(OR(C76=$C$1,C76=$C$2,C76=$C$3,C76=0),0,MAX(B$1:B75)+1) -> 0
A77: =ROW() -> 77 | B77: =IF(OR(C77=$C$1,C77=$C$2,C77=$C$3,C77=0),0,MAX(B$1:B76)+1) -> 0
A78: =ROW() -> 78 | B78: =IF(OR(C78=$C$1,C78=$C$2,C78=$C$3,C78=0),0,MAX(B$1:B77)+1) -> 0
A79: =ROW() -> 79 | B79: =IF(OR(C79=$C$1,C79=$C$2,C79=$C$3,C79=0),0,MAX(B$1:B78)+1) -> 0
A80: =ROW() -> 80 | B80: =IF(OR(C80=$C$1,C80=$C$2,C80=$C$3,C80=0),0,MAX(B$1:B79)+1) -> 0
A81: =ROW() -> 81 | B81: =IF(OR(C81=$C$1,C81=$C$2,C81=$C$3,C81=0),0,MAX(B$1:B80)+1) -> 0
A82: =ROW() -> 82 | B82: =IF(OR(C82=$C$1,C82=$C$2,C82=$C$3,C82=0),0,MAX(B$1:B81)+1) -> 0
A83: =ROW() -> 83 | B83: =IF(OR(C83=$C$1,C83=$C$2,C83=$C$3,C83=0),0,MAX(B$1:B82)+1) -> 0
A84: =ROW() -> 84 | B84: =IF(OR(C84=$C$1,C84=$C$2,C84=$C$3,C84=0),0,MAX(B$1:B83)+1) -> 0
A85: =ROW() -> 85 | B85: =IF(OR(C85=$C$1,C85=$C$2,C85=$C$3,C85=0),0,MAX(B$1:B84)+1) -> 0
A86: =ROW() -> 86 | B86: =IF(OR(C86=$C$1,C86=$C$2,C86=$C$3,C86=0),0,MAX(B$1:B85)+1) -> 0
A87: =ROW() -> 87 | B87: =IF(OR(C87=$C$1,C87=$C$2,C87=$C$3,C87=0),0,MAX(B$1:B86)+1) -> 0
A88: =ROW() -> 88 | B88: =IF(OR(C88=$C$1,C88=$C$2,C88=$C$3,C88=0),0,MAX(B$1:B87)+1) -> 0
A89: =ROW() -> 89 | B89: =IF(OR(C89=$C$1,C89=$C$2,C89=$C$3,C89=0),0,MAX(B$1:B88)+1) -> 0
A90: =ROW() -> 90 | B90: =IF(OR(C90=$C$1,C90=$C$2,C90=$C$3,C90=0),0,MAX(B$1:B89)+1) -> 0
A91: =ROW() -> 91 | B91: =IF(OR(C91=$C$1,C91=$C$2,C91=$C$3,C91=0),0,MAX(B$1:B90)+1) -> 0
A92: =ROW() -> 92 | B92: =IF(OR(C92=$C$1,C92=$C$2,C92=$C$3,C92=0),0,MAX(B$1:B91)+1) -> 0
A93: =ROW() -> 93 | B93: =IF(OR(C93=$C$1,C93=$C$2,C93=$C$3,C93=0),0,MAX(B$1:B92)+1) -> 0
A94: =ROW() -> 94 | B94: =IF(OR(C94=$C$1,C94=$C$2,C94=$C$3,C94=0),0,MAX(B$1:B93)+1) -> 0
A95: =ROW() -> 95 | B95: =IF(OR(C95=$C$1,C95=$C$2,C95=$C$3,C95=0),0,MAX(B$1:B94)+1) -> 0
A96: =ROW() -> 96 | B96: =IF(OR(C96=$C$1,C96=$C$2,C96=$C$3,C96=0),0,MAX(B$1:B95)+1) -> 0
A97: =ROW() -> 97 | B97: =IF(OR(C97=$C$1,C97=$C$2,C97=$C$3,C97=0),0,MAX(B$1:B96)+1) -> 0
A98: =ROW() -> 98 | B98: =IF(OR(C98=$C$1,C98=$C$2,C98=$C$3,C98=0),0,MAX(B$1:B97)+1) -> 0
A99: =ROW() -> 99 | B99: =IF(OR(C99=$C$1,C99=$C$2,C99=$C$3,C99=0),0,MAX(B$1:B98)+1) -> 0
A100: =ROW() -> 100 | B100: =IF(OR(C100=$C$1,C100=$C$2,C100=$C$3,C100=0),0,MAX(B$1:B99)+1) -> 0
A101: =ROW() -> 101 | B101: =IF(OR(C101=$C$1,C101=$C$2,C101=$C$3,C101=0),0,MAX(B$1:B100)+1) -> 0
A102: =ROW() -> 102 | B102: =IF(OR(C102=$C$1,C102=$C$2,C102=$C$3,C102=0),0,MAX(B$1:B101)+1) -> 0
A103: =ROW() -> 103 | B103: =IF(OR(C103=$C$1,C103=$C$2,C103=$C$3,C103=0),0,MAX(B$1:B102)+1) -> 0
A104: =ROW() -> 104 | B104: =IF(OR(C104=$C$1,C104=$C$2,C104=$C$3,C104=0),0,MAX(B$1:B103)+1) -> 0
A105: =ROW() -> 105 | B105: =IF(OR(C105=$C$1,C105=$C$2,C105=$C$3,C105=0),0,MAX(B$1:B104)+1) -> 0
A106: =ROW() -> 106 | B106: =IF(OR(C106=$C$1,C106=$C$2,C106=$C$3,C106=0),0,MAX(B$1:B105)+1) -> 0
A107: =ROW() -> 107 | B107: =IF(OR(C107=$C$1,C107=$C$2,C107=$C$3,C107=0),0,MAX(B$1:B106)+1) -> 0
A108: =ROW() -> 108 | B108: =IF(OR(C108=$C$1,C108=$C$2,C108=$C$3,C108=0),0,MAX(B$1:B107)+1) -> 0
A109: =ROW() -> 109 | B109: =IF(OR(C109=$C$1,C109=$C$2,C109=$C$3,C109=0),0,MAX(B$1:B108)+1) -> 0
A110: =ROW() -> 110 | B110: =IF(OR(C110=$C$1,C110=$C$2,C110=$C$3,C110=0),0,MAX(B$1:B109)+1) -> 0
A111: =ROW() -> 111 | B111: =IF(OR(C111=$C$1,C111=$C$2,C111=$C$3,C111=0),0,MAX(B$1:B110)+1) -> 0
A112: =ROW() -> 112 | B112: =IF(OR(C112=$C$1,C112=$C$2,C112=$C$3,C112=0),0,MAX(B$1:B111)+1) -> 0
A113: =ROW() -> 113 | B113: =IF(OR(C113=$C$1,C113=$C$2,C113=$C$3,C113=0),0,MAX(B$1:B112)+1) -> 0
A114: =ROW() -> 114 | B114: =IF(OR(C114=$C$1,C114=$C$2,C114=$C$3,C114=0),0,MAX(B$1:B113)+1) -> 0
A115: =ROW() -> 115 | B115: =IF(OR(C115=$C$1,C115=$C$2,C115=$C$3,C115=0),0,MAX(B$1:B114)+1) -> 0
A116: =ROW() -> 116 | B116: =IF(OR(C116=$C$1,C116=$C$2,C116=$C$3,C116=0),0,MAX(B$1:B115)+1) -> 0
A117: =ROW() -> 117 | B117: =IF(OR(C117=$C$1,C117=$C$2,C117=$C$3,C117=0),0,MAX(B$1:B116)+1) -> 0
A118: =ROW() -> 118 | B118: =IF(OR(C118=$C$1,C118=$C$2,C118=$C$3,C118=0),0,MAX(B$1:B117)+1) -> 0
A119: =ROW() -> 119 | B119: =IF(OR(C119=$C$1,C119=$C$2,C119=$C$3,C119=0),0,MAX(B$1:B118)+1) -> 0
A120: =ROW() -> 120 | B120: =IF(OR(C120=$C$1,C120=$C$2,C120=$C$3,C120=0),0,MAX(B$1:B119)+1) -> 0
A121: =ROW() -> 121 | B121: =IF(OR(C121=$C$1,C121=$C$2,C121=$C$3,C121=0),0,MAX(B$1:B120)+1) -> 0
A122: =ROW() -> 122 | B122: =IF(OR(C122=$C$1,C122=$C$2,C122=$C$3,C122=0),0,MAX(B$1:B121)+1) -> 0
A123: =ROW() -> 123 | B123: =IF(OR(C123=$C$1,C123=$C$2,C123=$C$3,C123=0),0,MAX(B$1:B122)+1) -> 0
A124: =ROW() -> 124 | B124: =IF(OR(C124=$C$1,C124=$C$2,C124=$C$3,C124=0),0,MAX(B$1:B123)+1) -> 0
A125: =ROW() -> 125 | B125: =IF(OR(C125=$C$1,C125=$C$2,C125=$C$3,C125=0),0,MAX(B$1:B124)+1) -> 0
A126: =ROW() -> 126 | B126: =IF(OR(C126=$C$1,C126=$C$2,C126=$C$3,C126=0),0,MAX(B$1:B125)+1) -> 0
A127: =ROW() -> 127 | B127: =IF(OR(C127=$C$1,C127=$C$2,C127=$C$3,C127=0),0,MAX(B$1:B126)+1) -> 0
A128: =ROW() -> 128 | B128: =IF(OR(C128=$C$1,C128=$C$2,C128=$C$3,C128=0),0,MAX(B$1:B127)+1) -> 0
A129: =ROW() -> 129 | B129: =IF(OR(C129=$C$1,C129=$C$2,C129=$C$3,C129=0),0,MAX(B$1:B128)+1) -> 0
A130: =ROW() -> 130 | B130: =IF(OR(C130=$C$1,C130=$C$2,C130=$C$3,C130=0),0,MAX(B$1:B129)+1) -> 0
A131: =ROW() -> 131 | B131: =IF(OR(C131=$C$1,C131=$C$2,C131=$C$3,C131=0),0,MAX(B$1:B130)+1) -> 0
A132: =ROW() -> 132 | B132: =IF(OR(C132=$C$1,C132=$C$2,C132=$C$3,C132=0),0,MAX(B$1:B131)+1) -> 0
A133: =ROW() -> 133 | B133: =IF(OR(C133=$C$1,C133=$C$2,C133=$C$3,C133=0),0,MAX(B$1:B132)+1) -> 0
A134: =ROW() -> 134 | B134: =IF(OR(C134=$C$1,C134=$C$2,C134=$C$3,C134=0),0,MAX(B$1:B133)+1) -> 0
A135: =ROW() -> 135 | B135: =IF(OR(C135=$C$1,C135=$C$2,C135=$C$3,C135=0),0,MAX(B$1:B134)+1) -> 0
A136: =ROW() -> 136 | B136: =IF(OR(C136=$C$1,C136=$C$2,C136=$C$3,C136=0),0,MAX(B$1:B135)+1) -> 0
A137: =ROW() -> 137 | B137: =IF(OR(C137=$C$1,C137=$C$2,C137=$C$3,C137=0),0,MAX(B$1:B136)+1) -> 0
A138: =ROW() -> 138 | B138: =IF(OR(C138=$C$1,C138=$C$2,C138=$C$3,C138=0),0,MAX(B$1:B137)+1) -> 0
A139: =ROW() -> 139 | B139: =IF(OR(C139=$C$1,C139=$C$2,C139=$C$3,C139=0),0,MAX(B$1:B138)+1) -> 0
A140: =ROW() -> 140 | B140: =IF(OR(C140=$C$1,C140=$C$2,C140=$C$3,C140=0),0,MAX(B$1:B139)+1) -> 0
A141: =ROW() -> 141 | B141: =IF(OR(C141=$C$1,C141=$C$2,C141=$C$3,C141=0),0,MAX(B$1:B140)+1) -> 0
A142: =ROW() -> 142 | B142: =IF(OR(C142=$C$1,C142=$C$2,C142=$C$3,C142=0),0,MAX(B$1:B141)+1) -> 0
A143: =ROW() -> 143 | B143: =IF(OR(C143=$C$1,C143=$C$2,C143=$C$3,C143=0),0,MAX(B$1:B142)+1) -> 0
A144: =ROW() -> 144 | B144: =IF(OR(C144=$C$1,C144=$C$2,C144=$C$3,C144=0),0,MAX(B$1:B143)+1) -> 0
A145: =ROW() -> 145 | B145: =IF(OR(C145=$C$1,C145=$C$2,C145=$C$3,C145=0),0,MAX(B$1:B144)+1) -> 0
A146: =ROW() -> 146 | B146: =IF(OR(C146=$C$1,C146=$C$2,C146=$C$3,C146=0),0,MAX(B$1:B145)+1) -> 0
A147: =ROW() -> 147 | B147: =IF(OR(C147=$C$1,C147=$C$2,C147=$C$3,C147=0),0,MAX(B$1:B146)+1) -> 0
A148: =ROW() -> 148 | B148: =IF(OR(C148=$C$1,C148=$C$2,C148=$C$3,C148=0),0,MAX(B$1:B147)+1) -> 0
A149: =ROW() -> 149 | B149: =IF(OR(C149=$C$1,C149=$C$2,C149=$C$3,C149=0),0,MAX(B$1:B148)+1) -> 0
A150: =ROW() -> 150 | B150: =IF(OR(C150=$C$1,C150=$C$2,C150=$C$3,C150=0),0,MAX(B$1:B149)+1) -> 0
A151: =ROW() -> 151 | B151: =IF(OR(C151=$C$1,C151=$C$2,C151=$C$3,C151=0),0,MAX(B$1:B150)+1) -> 0
A152: =ROW() -> 152 | B152: =IF(OR(C152=$C$1,C152=$C$2,C152=$C$3,C152=0),0,MAX(B$1:B151)+1) -> 0
A153: =ROW() -> 153 | B153: =IF(OR(C153=$C$1,C153=$C$2,C153=$C$3,C153=0),0,MAX(B$1:B152)+1) -> 0
A154: =ROW() -> 154 | B154: =IF(OR(C154=$C$1,C154=$C$2,C154=$C$3,C154=0),0,MAX(B$1:B153)+1) -> 0
A155: =ROW() -> 155 | B155: =IF(OR(C155=$C$1,C155=$C$2,C155=$C$3,C155=0),0,MAX(B$1:B154)+1) -> 0
A156: =ROW() -> 156 | B156: =IF(OR(C156=$C$1,C156=$C$2,C156=$C$3,C156=0),0,MAX(B$1:B155)+1) -> 0
A157: =ROW() -> 157 | B157: =IF(OR(C157=$C$1,C157=$C$2,C157=$C$3,C157=0),0,MAX(B$1:B156)+1) -> 0
A158: =ROW() -> 158 | B158: =IF(OR(C158=$C$1,C158=$C$2,C158=$C$3,C158=0),0,MAX(B$1:B157)+1) -> 0
A159: =ROW() -> 159 | B159: =IF(OR(C159=$C$1,C159=$C$2,C159=$C$3,C159=0),0,MAX(B$1:B158)+1) -> 0
A160: =ROW() -> 160 | B160: =IF(OR(C160=$C$1,C160=$C$2,C160=$C$3,C160=0),0,MAX(B$1:B159)+1) -> 0
A161: =ROW() -> 161 | B161: =IF(OR(C161=$C$1,C161=$C$2,C161=$C$3,C161=0),0,MAX(B$1:B160)+1) -> 0
A162: =ROW() -> 162 | B162: =IF(OR(C162=$C$1,C162=$C$2,C162=$C$3,C162=0),0,MAX(B$1:B161)+1) -> 0
A163: =ROW() -> 163 | B163: =IF(OR(C163=$C$1,C163=$C$2,C163=$C$3,C163=0),0,MAX(B$1:B162)+1) -> 0
A164: =ROW() -> 164 | B164: =IF(OR(C164=$C$1,C164=$C$2,C164=$C$3,C164=0),0,MAX(B$1:B163)+1) -> 0
A165: =ROW() -> 165 | B165: =IF(OR(C165=$C$1,C165=$C$2,C165=$C$3,C165=0),0,MAX(B$1:B164)+1) -> 0
A166: =ROW() -> 166 | B166: =IF(OR(C166=$C$1,C166=$C$2,C166=$C$3,C166=0),0,MAX(B$1:B165)+1) -> 0
A167: =ROW() -> 167 | B167: =IF(OR(C167=$C$1,C167=$C$2,C167=$C$3,C167=0),0,MAX(B$1:B166)+1) -> 0
A168: =ROW() -> 168 | B168: =IF(OR(C168=$C$1,C168=$C$2,C168=$C$3,C168=0),0,MAX(B$1:B167)+1) -> 0
A169: =ROW() -> 169 | B169: =IF(OR(C169=$C$1,C169=$C$2,C169=$C$3,C169=0),0,MAX(B$1:B168)+1) -> 0
A170: =ROW() -> 170 | B170: =IF(OR(C170=$C$1,C170=$C$2,C170=$C$3,C170=0),0,MAX(B$1:B169)+1) -> 0
A171: =ROW() -> 171 | B171: =IF(OR(C171=$C$1,C171=$C$2,C171=$C$3,C171=0),0,MAX(B$1:B170)+1) -> 0
A172: =ROW() -> 172 | B172: =IF(OR(C172=$C$1,C172=$C$2,C172=$C$3,C172=0),0,MAX(B$1:B171)+1) -> 0
A173: =ROW() -> 173 | B173: =IF(OR(C173=$C$1,C173=$C$2,C173=$C$3,C173=0),0,MAX(B$1:B172)+1) -> 0
A174: =ROW() -> 174 | B174: =IF(OR(C174=$C$1,C174=$C$2,C174=$C$3,C174=0),0,MAX(B$1:B173)+1) -> 0
A175: =ROW() -> 175 | B175: =IF(OR(C175=$C$1,C175=$C$2,C175=$C$3,C175=0),0,MAX(B$1:B174)+1) -> 0
A176: =ROW() -> 176 | B176: =IF(OR(C176=$C$1,C176=$C$2,C176=$C$3,C176=0),0,MAX(B$1:B175)+1) -> 0
A177: =ROW() -> 177 | B177: =IF(OR(C177=$C$1,C177=$C$2,C177=$C$3,C177=0),0,MAX(B$1:B176)+1) -> 0
A178: =ROW() -> 178 | B178: =IF(OR(C178=$C$1,C178=$C$2,C178=$C$3,C178=0),0,MAX(B$1:B177)+1) -> 0
A179: =ROW() -> 179 | B179: =IF(OR(C179=$C$1,C179=$C$2,C179=$C$3,C179=0),0,MAX(B$1:B178)+1) -> 0
A180: =ROW() -> 180 | B180: =IF(OR(C180=$C$1,C180=$C$2,C180=$C$3,C180=0),0,MAX(B$1:B179)+1) -> 0
A181: =ROW() -> 181 | B181: =IF(OR(C181=$C$1,C181=$C$2,C181=$C$3,C181=0),0,MAX(B$1:B180)+1) -> 0
A182: =ROW() -> 182 | B182: =IF(OR(C182=$C$1,C182=$C$2,C182=$C$3,C182=0),0,MAX(B$1:B181)+1) -> 0
A183: =ROW() -> 183 | B183: =IF(OR(C183=$C$1,C183=$C$2,C183=$C$3,C183=0),0,MAX(B$1:B182)+1) -> 0
A184: =ROW() -> 184 | B184: =IF(OR(C184=$C$1,C184=$C$2,C184=$C$3,C184=0),0,MAX(B$1:B183)+1) -> 0
A185: =ROW() -> 185 | B185: =IF(OR(C185=$C$1,C185=$C$2,C185=$C$3,C185=0),0,MAX(B$1:B184)+1) -> 0
A186: =ROW() -> 186 | B186: =IF(OR(C186=$C$1,C186=$C$2,C186=$C$3,C186=0),0,MAX(B$1:B185)+1) -> 0
A187: =ROW() -> 187 | B187: =IF(OR(C187=$C$1,C187=$C$2,C187=$C$3,C187=0),0,MAX(B$1:B186)+1) -> 0
A188: =ROW() -> 188 | B188: =IF(OR(C188=$C$1,C188=$C$2,C188=$C$3,C188=0),0,MAX(B$1:B187)+1) -> 0
A189: =ROW() -> 189 | B189: =IF(OR(C189=$C$1,C189=$C$2,C189=$C$3,C189=0),0,MAX(B$1:B188)+1) -> 0
A190: =ROW() -> 190 | B190: =IF(OR(C190=$C$1,C190=$C$2,C190=$C$3,C190=0),0,MAX(B$1:B189)+1) -> 0
A191: =ROW() -> 191 | B191: =IF(OR(C191=$C$1,C191=$C$2,C191=$C$3,C191=0),0,MAX(B$1:B190)+1) -> 0
A192: =ROW() -> 192 | B192: =IF(OR(C192=$C$1,C192=$C$2,C192=$C$3,C192=0),0,MAX(B$1:B191)+1) -> 0
A193: =ROW() -> 193 | B193: =IF(OR(C193=$C$1,C193=$C$2,C193=$C$3,C193=0),0,MAX(B$1:B192)+1) -> 0
A194: =ROW() -> 194 | B194: =IF(OR(C194=$C$1,C194=$C$2,C194=$C$3,C194=0),0,MAX(B$1:B193)+1) -> 0
A195: =ROW() -> 195 | B195: =IF(OR(C195=$C$1,C195=$C$2,C195=$C$3,C195=0),0,MAX(B$1:B194)+1) -> 0
A196: =ROW() -> 196 | B196: =IF(OR(C196=$C$1,C196=$C$2,C196=$C$3,C196=0),0,MAX(B$1:B195)+1) -> 0
A197: =ROW() -> 197 | B197: =IF(OR(C197=$C$1,C197=$C$2,C197=$C$3,C197=0),0,MAX(B$1:B196)+1) -> 0
A198: =ROW() -> 198 | B198: =IF(OR(C198=$C$1,C198=$C$2,C198=$C$3,C198=0),0,MAX(B$1:B197)+1) -> 0
A199: =ROW() -> 199 | B199: =IF(OR(C199=$C$1,C199=$C$2,C199=$C$3,C199=0),0,MAX(B$1:B198)+1) -> 0
A200: =ROW() -> 200 | B200: =IF(OR(C200=$C$1,C200=$C$2,C200=$C$3,C200=0),0,MAX(B$1:B199)+1) -> 0
... 800 more rows

Sheet conditions
E10: критерий несущественности долга | J10: 10000
